Workbook

Sheet Title
C2: California Active Transportation Benefit/Cost Analysis Model (Cal-B/C AT) Version 6.0
B22: Office of Transportation Economics
B23: Division of Transportation Planning
B24: February 2017
B27: For questions and comments, please contact:
B29: Rose Agacer | C29: (916) 651-6014; rose.agacer@dot.ca.gov

Sheet Instructions

Sheet Definitions
B1: Definitions
B2: Several definitions require clarification in evaluating facility use, either improved existing or new facilities. This section provides definitions for terms that are used in this tool with respect to “trip types” and “user types). In addition, not all users benefit from projects in the same way. Definitions about benefit categories are elaborated upon below. Relevance of benefit categories depends on trip purpose and type of project (i.e., existing facility upgrade and new construction).
B4: Trip Types | C4: Definitions
B5: Trips | C5: One-way travel to a destination for commuting, or other purposes
B6: Roundtrips | C6: One-way trips with return journeys – most trips have a return journey using the same mode, but not all do
B7: Existing Trips | C7: Baseline trips, either on an existing facility or unmarked street, where the project will create a new facility with specific improvements
B8: Induced Trips | C8: Additional trips above the baseline that arise because of the improvements to existing or new facilities
B9: Trip Forecasts | C9: Forecasts are developed for existing facilities and new locations (if applicable), model users determine numbers of current and induced trips, and other characteristics (e.g., roundtrip probability, purpose, distance, etc.)
B11: Trip Purposes | C11: Definitions
B12: Commute to Work | C12: Users who are taking the facility to or from work. These users are primarily adult or young-adult aged. Use by college students would be classified under "other destinations"
B13: Safe Route to School | C13: Users who are school-aged, i.e. 18 or under years old, and taking the facility to or from school.
B14: Other Destinations | C14: Users who are taking the facility to reach a variety of other destinations besides work, such as shopping, meeting friends, college classes, etc. These are trips that would be otherwise taken by some type of motor vehicle
B15: Recreational | C15: Users who are taking the facility purely as a loop-trip for exercise purposes. These trips would not be otherwise taken by motor vehicle since the purpose is for fitness and recreation.
B17: Benefit Categories | C17: Definitions
B18: Journey Quality | C18: Improvements in the quality of the trip for pedestrians and cyclists that arise from a greater feeling of safety, comfort, aesthetics, and other types of improvements. Improvements to existing and new facilities can generate benefits for current trips and induced trips. Benefits to induced users are estimated using "rule of half" approximation. Journey quality is assumed to have a zero value for existing users along routes where there is no existing facility. The value of journey quality includes the perception of safety improvement and thus, to avoid double counting, additional accident reduction value along the routes is excluded. However, safety improvements at intersections along existing facilities generate additional benefits that are discussed below.
B19: Time Savings (at Improved Intersections of Existing Facilities Only) | C19: Improvements to existing intersections (e.g. lights, bridges, etc.) can lead to time savings for trips by reducing waiting time at intersections, for say a break in vehicular traffic. Time savings benefits can arise for existing and induced pedestrians and cyclists at each intersection that they cross. The number of intersections crossed by users of a facility on each trip is determined by the total length of the existing facility the average distance traveled per user type, and the number of intersections with improvements. Benefits to induced users are estimated using "rule of half" approximation.
B20: Safety Improvements (at Improved Intersections of Existing Facilities Only) | C20: Improvements to existing intersections (e.g. lights, bridges, etc.) can lead to reduced accidents at intersections. Benefits can arise for existing and induced pedestrians and cyclists at each intersection crossed. The number of intersections crossed per trip is determined by the total length of the existing facility, the average distance traveled per user type, and the number of intersections with improvements. The magnitude of impacts is determined by the percent reduction in existing accidents due to specific safety measures. Induced trips benefits apply "rule of half" approximation.
B21: Auto Accident Costs and Auto Emissions | C21: Some of the induced pedestrian and cycling trips entail diversions from auto use. Benefits from reduced auto use include reduced frequency of accidents and level of auto emissions. Benefits are estimated for each diverted auto trip by using standard methods and data for estimating the value of auto use externalities.
B22: Health Benefits for Commuters (Reduced Absenteeism) | C22: Health benefits related to reduced absenteeism are generated by induced walking and cycling commuters. The benefits are monetized by higher productivity due to fewer sick days. Benefits to these induced users are not estimated using "rule of half" approximation since the value is observed by the employer.
B23: Health Benefits (Reduced Mortality) | C23: Health benefits related to improved long-term health and reduced risk of disease and early death. These benefits are derived from parameters established by the World Health Organization (WHO) and formalized in their online HEAT tool and documentation. Benefits are derived from reduced mortality risk in populations that range from 20-64 for cyclists and 20-74 for pedestrians. Reduced mortality risk depends on the amount of cycling (average distance) undertaken over a one year period.
B25: Benefit Categories by Facility Type
B26: The matrix below indicates the applicability of benefits by to different types of trips and projects. Projects include existing facility improvements and new construction. Trips differ between current trips already being taken and new, induced trips that arise because of improvements.
C27: Existing Facility Improvement | E27: New Construction
B28: Benefit Categories by Facility Type | C28: Existing Trips | D28: Induced Trips | E28: Existing Trips | F28: Induced Trips
B29: Journey Quality | C29: Yes | D29: Yes | E29: Yes | F29: Yes
B30: Time Savings (at improved intersections of existing facilities only) | C30: Yes | D30: Yes
B31: Safety Improvements (at improved intersections of existing facilities only) | C31: Yes | D31: Yes
B32: Auto Accident Costs and Auto Emissions | D32: Yes | F32: Yes
B33: Health Benefits for Commuters (Reduced Absenteeism) | D33: Yes (commuters only) | F33: Yes (commuters only)
B34: Health Benefits (Reduced Mortality) | D34: Yes (age dependent) | F34: Yes (age dependent)

Sheet 1a) Project Info
C2: District: | E2: HQ | V2: Enter all project and program costs (in today's dollars) in the two tables shown below . Costs during construction should be entered in the first row.
H3: EA: | V3: Project costs (including maintenance and operating costs) should be net of costs without project.
C4: PROJECT: | E4: Hypothetical Project | H4: PPNO:
C7: 1A | D7: PROJECT AND SITE CHARACTERISTICS | M7: 1D | N7: GENERAL USER CHARACTERISTICS (BASED ON PROJECT LOCATION) | W7: 1F | X7: PROJECT COSTS AND REQUESTED FUNDS (enter in thousands of dollars) | AK7: 1H | AL7: DATA CHECKS - PROJECT LENGTH, DAILY TRIPS
C9: Type of Project | M9: Cycling | W9: Col. no.
E10: Existing facility upgrade only = 1 New facility only, no existing facility work = 2 Existing facility upgrade and new facility extension = 3 | N10: Trip Purpose | Q10: No Build | R10: Build | Y10: DIRECT PROJECT COSTS | AF10: TOTAL COSTS (in dollars) | AO10: No Build Project Length | AP10: Build Project Length
O11: Commuting Trip Purpose (%) | Q11: =IF(ProjLoc=1,PARAMETERS!AJ71,IF(ProjLoc=2,PARAMETERS!AK71,PARAMETERS!AL71)) -> 0.07 | R11: =Q11 -> 0.07 | Y11: INITIAL COSTS | AB11: SUBSEQUENT COSTS | AN11: Existing Facility Length Check | AO11: =IF(G39=ProjLenEX,"OK","Not OK") -> OK | AP11: =IF(H39=G39,"OK","Not OK") -> OK
D12: Total Project Length | I12: Project Type Data Check | O12: Recreational Trip Purpose (%) | Q12: =IF(ProjLoc=1,PARAMETERS!AJ72,IF(ProjLoc=2,PARAMETERS!AK72,PARAMETERS!AL72)) -> 0.15 | R12: =Q12 -> 0.15 | W12: Year | X12: Construction | Y12: Project | AB12: Maint./ | AF12: Constant | AG12: Present | AN12: New Facility Length Check | AO12: =IF(Q34=H14,"OK","Not OK") -> OK | AP12: =IF(R39=Q34,"OK","Not OK") -> OK
E13: Total Existing Facility Length (miles) | I13: =IF(AND(OR(ProjType=1,ProjType=3),ProjLenEX=0),"Not OK",IF(AND(ProjType=2,ProjLenEX>0),"Not OK","OK")) -> OK | O13: Other Destinations Trip Purpose (%) | Q13: =IF(ProjLoc=1,PARAMETERS!AJ73,IF(ProjLoc=2,PARAMETERS!AK73,PARAMETERS!AL73)) -> 0.78 | R13: =Q13 -> 0.78 | X13: Years | Y13: Support | Z13: R / W | AA13: Construction | AB13: Op. | AC13: Rehab. | AF13: Dollars | AG13: Value
E14: Total New Facility Length (miles) | I14: =IF(AND(OR(ProjType=2,ProjType=3),ProjLenNEW=0),"Not OK",IF(AND(ProjType=1,ProjLenNEW>0),"Not OK","OK")) -> OK | N14: General Trip Characteristics | W14: Infrastructure Program Costs | AO14: Cycling Daily Trips per Mile | AP14: Pedestrian Daily Trips per Mile
O15: Overall Average Distance Traveled / Trip (mi) | Q15: =IF(ProjLoc=1,PARAMETERS!AJ60,IF(ProjLoc=2,PARAMETERS!AK60,PARAMETERS!AL60)) -> 2.48 | R15: =TAvMiCycNB -> 2.48 | W15: 1 | X15: =IF(AA15>0,1,0) -> 0 | AB15: <-- Must enter a cost | AF15: =SUM(Y15:AA15)*1000 -> 0 | AG15: =AF15/(1+DiscRate)^($W15-1) -> 0 | AN15: Existing Facility Users | AO15: =IFERROR(ADT0CycEX/G39,"NA") -> NA | AP15: =IFERROR(ADT0PedEX/G39,"NA") -> NA
C16: Characteristics | O16: Children - SRTS - Distance Traveled / Trip (mi) | Q16: =IF(ProjLoc=1,PARAMETERS!AJ61,IF(ProjLoc=2,PARAMETERS!AK61,PARAMETERS!AL61)) -> 1.12 | R16: =TAvMiCycNBSRTS -> 1.12 | W16: 2 | X16: =IF(AA16>0,1,0) -> 0 | AF16: =SUM(Y16:AA16)*1000 -> 0 | AG16: 0 | AN16: New Facility Users | AO16: =IFERROR(ADT0CycNew/Q39,"NA") -> NA | AP16: =IFERROR(ADT0PedNew/Q39,"NA") -> NA
D17: Project Location (enter 1 for So. Cal., 2 for No. Cal., or 3 for rural) | W17: 3 | X17: 0 | AF17: 0 | AG17: 0
M18: Pedestrian | W18: 4 | X18: 0 | AF18: 0 | AG18: 0 | AO18: Safety Measures - Existing only
D19: Safe Route to School? (enter 1 for Yes, 0 for No) | N19: Trip Purpose | W19: 5 | X19: 0 | AF19: 0 | AG19: 0 | AN19: Existing Facility Characteristics | AO19: =IF(AND(ProjLenEX=0,SUM(H116:H130)>0),"Not OK", "OK") -> OK
O20: Commuting Trip Purpose (%) | Q20: =IF(ProjLoc=1,PARAMETERS!AJ74,IF(ProjLoc=2,PARAMETERS!AK74,PARAMETERS!AL74)) -> 0.04 | R20: =Q20 -> 0.04 | W20: 6 | X20: 0 | AF20: 0 | AG20: 0
D21: Programmatic Initiatives? (enter 1 for Yes, 0 for No) | O21: Recreational Trip Purpose (%) | Q21: =IF(ProjLoc=1,PARAMETERS!AJ75,IF(ProjLoc=2,PARAMETERS!AK75,PARAMETERS!AL75)) -> 0.15 | R21: =PerRecPedNB -> 0.15 | W21: 7 | X21: 0 | AF21: 0 | AG21: 0
O22: Other Destination Trip Purpose (%) | Q22: =IF(ProjLoc=1,PARAMETERS!AJ76,IF(ProjLoc=2,PARAMETERS!AK76,PARAMETERS!AL76)) -> 0.81 | R22: =PerODPedNB -> 0.81 | W22: 8 | X22: 0 | AF22: 0 | AG22: 0
D23: Construction | I23: Constr. Years Data Check | N23: General Trip Characteristics | W23: Annual Infrastructure O&M Costs
E24: Length of Construction Period (years) | I24: =IF(SUM(X15:X22)=Construct, "OK","Not OK") -> OK | O24: Overall Average Distance Traveled / Trip (mi) | Q24: =IF(ProjLoc=1,PARAMETERS!AJ62,IF(ProjLoc=2,PARAMETERS!AK62,PARAMETERS!AL62)) -> 0.69 | R24: =TAvMiPedNB -> 0.69 | W24: 1 | AF24: =SUM(AB24:AC24)*1000 -> 0 | AG24: =$AF24/(1+DiscRate)^($W24+Construct-1) -> 0
O25: Children - SRTS - Distance Traveled / Trip (mi) | Q25: =IF(ProjLoc=1,PARAMETERS!AJ63,IF(ProjLoc=2,PARAMETERS!AK63,PARAMETERS!AL63)) -> 0.57 | R25: =TAvMiPedNBSRTS -> 0.57 | W25: 2 | AF25: =SUM(AB25:AC25)*1000 -> 0 | AG25: 0
W26: 3 | AF26: =SUM(AB26:AC26)*1000 -> 0 | AG26: 0
W27: 4 | AF27: 0 | AG27: 0
W28: 5 | AF28: 0 | AG28: 0
W29: 6 | AF29: 0 | AG29: 0
C30: 1B | D30: EXISTING SEGMENT IMPROVEMENTS AND TRIP VOLUME | M30: 1E | N30: NEW FACILITY IMPROVEMENTS AND TRIP VOLUME | W30: 7 | AF30: 0 | AG30: 0
W31: 8 | AF31: 0 | AG31: 0
C32: Improvement Characteristics | M32: Improvement Characteristics | W32: 9 | AF32: 0 | AG32: 0
D33: Existing Facility Length, if Applicable | F33: Class | G33: No Build | H33: Build | I33: Project Length Data Check | N33: New Facility Length | P33: Class | Q33: No Build | R33: Build | S33: Project Length Data Check | W33: 10 | AF33: 0 | AG33: 0
O34: No Facility | P34: 0 | Q34: =ProjLenNEW -> 0 | S34: =IF(OR(AO12="Not OK",AP12="Not OK"),"Not OK","OK") -> OK | W34: 11 | AF34: 0 | AG34: 0
E35: Bike Paths (miles) | F35: I | I35: =IF(OR(AO11="Not OK",AP11="Not OK"),"Not OK","OK") -> OK | O35: Bike Paths (miles) | P35: I | W35: 12 | AF35: 0 | AG35: 0
E36: Bike Lanes (miles) | F36: II | O36: Bike Lanes (miles) | P36: II | W36: 13 | AF36: 0 | AG36: 0
E37: Bike Route (miles) | F37: III | O37: Bike Route (miles) | P37: III | W37: 14 | AF37: 0 | AG37: 0
E38: Separated Bikeways, Cycle Tracks (miles) | F38: IV | O38: Separated Bikeways, Cycle Tracks (miles) | P38: IV | W38: 15 | AF38: 0 | AG38: 0
E39: Total | G39: =SUM(G35:G38) -> 0 | H39: =SUM(H35:H38) -> 0 | O39: Total | Q39: =SUM(Q34:Q38) -> 0 | R39: =SUM(R34:R38) -> 0 | W39: 16 | AF39: 0 | AG39: 0
W40: 17 | AF40: 0 | AG40: 0
D41: Pedestrian Improvements | G41: Yes =1 or No=0 | H41: Yes =1 or No=0 | N41: Pedestrian Improvements | R41: Yes =1 | W41: 18 | AF41: 0 | AG41: 0
E42: Street Lighting | O42: Street Lighting | W42: 19 | AF42: 0 | AG42: 0
E43: Curb Level | O43: Curb Level | W43: 20 | AF43: 0 | AG43: 0
E44: Crowding | O44: Crowding | W44: Total | Y44: =SUM(Y15:Y22) -> 0 | Z44: =SUM(Z15:Z22) -> 0 | AA44: =SUM(AA15:AA22) -> 0 | AB44: =SUM(AB24:AB43) -> 0 | AC44: =SUM(AC24:AC43) -> 0 | AF44: =SUM(AF15:AF43) -> 0 | AG44: =SUM(AG15:AG43) -> 0
E45: Pavement Evenness | O45: Pavement Evenness
E46: Information Panels | O46: Information Panels | W46: ATP REQUESTED FUNDS
E47: Benches | O47: Benches | W47: Total
E48: Directional Signage | O48: Directional Signage
C50: Trip Data - Adults | M50: Trip Data - Adults
D51: Cycling | N51: Cycling | Q51: No Build | R51: Build | W51: 1G | X51: PROGRAM COSTS AND REQUESTED FUNDS (enter in thousands of dollars)
E52: Daily Trips - Current | O52: Daily Trips - Current
E53: Projected Annual Growth Rates from Year 1 (%) | O53: Projected Annual Growth Rates from Year 1 (%)
Y54: DIRECT PROJECT COSTS
E55: Daily Trips - Year 1 (post-construction) | G55: =ADT0CycEX*(1+$G$53)^Construct -> 0 | H55: =ADT0CycEX*(1+$H$53)^Construct -> 0 | O55: Daily Trips - Year 1 (post-construction) | Q55: =ADT0CycNew*(1+$Q$53)^Construct -> 0 | R55: =ADT0CycNew*(1+$R$53)^Construct -> 0 | Y55: INITIAL COSTS | AB55: SUBSEQUENT COSTS | AF55: TOTAL COSTS (in dollars)
E56: Daily Trips - Year 20 (post-construction) | G56: =ADT1CycNBEX*(1+$G$53)^20 -> 0 | H56: =ADT1CycBEX*(1+$H$53)^20 -> 0 | O56: Daily Trips - Year 20 (post-construction) | Q56: =ADT1CycNBNew*(1+$Q$53)^20 -> 0 | R56: =ADT1CycBNew*(1+$R$53)^20 -> 0 | W56: Year | X56: Construction | Y56: Project | AB56: Maint./ | AF56: Constant | AG56: Present
X57: Years | Y57: Support | Z57: R / W | AA57: Construction | AB57: Op. | AC57: Rehab. | AF57: Dollars | AG57: Value
D58: Pedestrian | N58: Pedestrian | W58: Non-Infrastructure Program Costs
E59: Daily Trips - Current | O59: Daily Trips - Current | W59: 1 | AB59: <-- Must enter a cost | AF59: =SUM(Y59:AA59)*1000 -> 0 | AG59: =AF59/(1+DiscRate)^($W59-1) -> 0
E60: Projected Annual Growth Rates from Year 1 (%) | O60: Projected Annual Growth Rates from Year 1 (%) | W60: 2 | AF60: =SUM(Y60:AA60)*1000 -> 0 | AG60: 0
W61: 3 | AF61: 0 | AG61: 0
E62: Daily Trips - Year 1 (post-construction) | G62: =ADT0PedEX*(1+$G$60)^Construct -> 0 | H62: =ADT0PedEX*(1+$H$60)^Construct -> 0 | O62: Daily Trips - Year 1 (post-construction) | Q62: =ADT0PedNew*(1+$Q$60)^Construct -> 0 | R62: =ADT0PedNew*(1+$R$60)^Construct -> 0 | W62: 4 | AF62: 0 | AG62: 0
E63: Daily Trips - Year 20 (post-construction) | G63: =ADT1PedNBEX*(1+$G$60)^20 -> 0 | H63: =ADT1PedBEX*(1+$H$60)^20 -> 0 | O63: Daily Trips - Year 20 (post-construction) | Q63: =ADT1PedNBNew*(1+$Q$60)^20 -> 0 | R63: =ADT1PedBNew*(1+$R$60)^20 -> 0 | W63: 5 | AF63: 0 | AG63: 0
W64: 6 | AF64: 0 | AG64: 0
C65: Trip Data - Children - SRTS | M65: Trip Data - Children - SRTS | W65: 7 | AF65: 0 | AG65: 0
D66: Cycling | N66: Cycling | Q66: No Build | R66: Build | W66: 8 | AF66: 0 | AG66: 0
E67: Daily Trips - Current | O67: Daily Trips - Current | W67: Annual Non-Infrastructure O&M Costs
E68: Projected Annual Growth Rates from Year 1 (%) | O68: Projected Annual Growth Rates from Year 1 (%) | W68: 1 | AF68: =SUM(AB68:AC68)*1000 -> 0 | AG68: =$AF68/(1+DiscRate)^($W68-1) -> 0
W69: 2 | AF69: =SUM(AB69:AC69)*1000 -> 0 | AG69: 0
E70: Daily Trips - Year 1 (post-construction) | G70: =ADT0CycEX_SRTS*(1+$G$68)^Construct -> 0 | H70: =ADT0CycEX_SRTS*(1+$H$68)^Construct -> 0 | O70: Daily Trips - Year 1 (post-construction) | Q70: =ADT0CycNew_SRTS*(1+$Q$68)^Construct -> 0 | R70: =ADT0CycNew_SRTS*(1+$R$68)^Construct -> 0 | W70: 3 | AF70: =SUM(AB70:AC70)*1000 -> 0 | AG70: 0
E71: Daily Trips - Year 20 (post-construction) | G71: =ADT1CycNBEX_SRTS*(1+$G$68)^20 -> 0 | H71: =ADT1CycBEX_SRTS*(1+$H$68)^20 -> 0 | O71: Daily Trips - Year 20 (post-construction) | Q71: =ADT1CycNBNew_SRTS*(1+$Q$68)^20 -> 0 | R71: =ADT1CycBNew_SRTS*(1+$R$68)^20 -> 0 | W71: 4 | AF71: 0 | AG71: 0
W72: 5 | AF72: 0 | AG72: 0
D73: Pedestrian | N73: Pedestrian | W73: 6 | AF73: 0 | AG73: 0
E74: Daily Trips - Current | O74: Daily Trips - Current | W74: 7 | AF74: 0 | AG74: 0
E75: Projected Annual Growth Rates from Year 1 (%) | O75: Projected Annual Growth Rates from Year 1 (%) | W75: 8 | AF75: 0 | AG75: 0
W76: 9 | AF76: 0 | AG76: 0
E77: Daily Trips - Year 1 (post-construction) | G77: =ADT0PedEX_SRTS*(1+$G$75)^Construct -> 0 | H77: =ADT0PedEX_SRTS*(1+$H$75)^Construct -> 0 | O77: Daily Trips - Year 1 (post-construction) | Q77: =ADT0PedNew_SRTS*(1+$Q$75)^Construct -> 0 | R77: =ADT0PedNew_SRTS*(1+$R$75)^Construct -> 0 | W77: 10 | AF77: 0 | AG77: 0
E78: Daily Trips - Year 20 (post-construction) | G78: =ADT1PedNBEX_SRTS*(1+$G$75)^20 -> 0 | H78: =ADT1PedBEX_SRTS*(1+$H$75)^20 -> 0 | O78: Daily Trips - Year 20 (post-construction) | Q78: =ADT1PedNBNew_SRTS*(1+$Q$75)^20 -> 0 | R78: =ADT1PedBNew_SRTS*(1+$R$75)^20 -> 0 | W78: 11 | AF78: 0 | AG78: 0
W79: 12 | AF79: 0 | AG79: 0
W80: 13 | AF80: 0 | AG80: 0
W81: 14 | AF81: 0 | AG81: 0
W82: 15 | AF82: 0 | AG82: 0
C83: 1C | D83: INTERSECTION IMPROVEMENTS - TIME SAVINGS AND ACCIDENT REDUCTION DATA | W83: 16 | AF83: 0 | AG83: 0
W84: 17 | AF84: 0 | AG84: 0
C85: Reduced Delay Due to Intersection Improvements | W85: 18 | AF85: 0 | AG85: 0
D86: Time Savings Parameters | W86: 19 | AF86: 0 | AG86: 0
E87: Number of Improved Intersections | W87: 20 | AF87: 0 | AG87: 0
E88: Time Savings per Improved Intersection (min.) | W88: Total | Y88: =SUM(Y59:Y66) -> 0 | Z88: =SUM(Z59:Z66) -> 0 | AA88: =SUM(AA59:AA66) -> 0 | AB88: =SUM(AB68:AB87) -> 0 | AC88: =SUM(AC68:AC87) -> 0 | AF88: =SUM(AF59:AF87) -> 0 | AG88: =SUM(AG59:AG87) -> 0
E89: Intersection improvements on SRTS? (enter 1 for Yes, 0 for No)
W90: ATP REQUESTED FUNDS
C91: Accident Rate - Current Conditions | W91: Total
D93: Cyclists | G93: Count (No.) | H93: Rate per Year
E94: Number of Years of Data
E96: Existing Conditions
E97: Total Number of Accidents (Tot) | G97: =SUM(G98:G100) -> 0 | H97: =IFERROR(G97/$G$94,0) -> 0
E98: Number of Fatal Accidents (Fat) | H98: =IFERROR(G98/$G$94,0) -> 0
E99: Number of Injury Accidents (Inj) | H99: =IFERROR(G99/$G$94,0) -> 0
E100: Number of \Property Damage Only (PDO) Accidents | H100: =IFERROR(G100/$G$94,0) -> 0
E101: Annual Growth Rate in Accidents (%/year)
D103: Pedestrians | G103: Count (No.) | H103: Rate per Year
E104: Number of Years of Data
E106: Existing Conditions
E107: Total Number of Accidents (Tot) | G107: =SUM(G108:G110) -> 0 | H107: =IFERROR(G107/$G$104,0) -> 0
E108: Number of Fatal Accidents (Fat) | H108: =IFERROR(G108/$G$104,0) -> 0
E109: Number of Injury Accidents (Inj) | H109: =IFERROR(G109/$G$104,0) -> 0
E110: Number of \Property Damage Only (PDO) Accidents | H110: =IFERROR(G110/$G$104,0) -> 0
E111: Annual Growth Rate in Accidents (%/year)
C113: Safety Countermeasures (improvements to existing facilities only)
D115: Signalized Intersection | H115: Yes =1
E116: Pedestrian Countdown Signal Heads
E117: Pedestrian Crossing
E118: Advance Stop Bar before Crosswalk
E119: Install Overpass/Underpass
D120: Unsignalized Intersection
E121: Raised Medians/Refuge Islands
E122: Pedestrian Crossing (new signs and markings only)
E123: Pedestrian Crossing (safety features/curb extensions)
E124: Pedestrian Signals
D125: Roadways - these issues may not be used to influence benefits
E126: Bike Lanes
E127: Sidewalk/Pathway (to avoid walking along roadway)
E128: Pedestrian Crossing (with enhanced safety features)
E129: Pedestrian Crossing
D130: Other Reduction Factor Countermeasures

Sheet 1b) Non-Inf Program Info
C2: District: | E2: ='1a) Project Info'!E2 -> HQ
H3: EA: | I3: ='1a) Project Info'!I3 -> 0
C4: PROJECT: | E4: ='1a) Project Info'!E4 -> Hypothetical Project | H4: PPNO: | I4: ='1a) Project Info'!I4 -> 0
C7: 1I | D7: NON-INFRASTRUCTURE PROGRAM CHARACTERISTICS
C10: Programmatic Initiatives? | H10: =IF('1a) Project Info'!H21=1,"Yes","No") -> No
C12: Scale of Initiative
D13: Participants / Beneficiaries | I13: Data Check on Initiative
E14: Numbers of People Reached per Year | I14: =IF(AND(H10="No",H14>0),"Not Ok","OK") -> OK
E15: Average Percentage of Current Active Bicyclists Reached per Year
E16: Average Percentage of Current Active Pedestrians Reached per Year
C18: Scoring Criteria
D19: Total Number of Criteria | I19: 4
D20: Total Criteria Weight Sum | I20: =IF(SUM(I23,I34,I45,I56)<>1,"Not Correct",SUM(I23,I34,I45,I56)) -> 1
I22: Criteria Weight
D23: 1) Target Audience | I23: 0.25
E25: Indicators | H25: (mark as %; sum must equal 100%) | I25: Indicator Weight
E26: Younger than 10 | F26: ` | I26: 0.1
E27: 10-12 | I27: 0.2
E28: 13-24 | I28: 0.25
E29: 25-55 | I29: 0.15
E30: 55+ | I30: 0.05
E31: Indicator-Weighted Score | H31: =IF(SUM($H$26:$H$30)<>100%,"Sum must equal 100%",SUMPRODUCT(I26:I30,H26:H30)) -> Sum must equal 100%
I33: Criteria Weight
D34: 2) Characteristics Promotional Effort | I34: 0.25
E36: Indicators | H36: (enter 1 for Yes on all that apply) | I36: Indicator Weight
E37: Effort Targets 5 E's or 5 P's | I37: 0.05
E38: Knowledgeable Staff/Educator | I38: 0.05
E39: Partnership/Volunteers | I39: 0.05
E40: Creates Community Ownership/Relationship | I40: 0.05
E41: Part of Bigger Effort (e.g., political support) | I41: 0.05
E42: Indicator-Weighted Score | H42: =SUMPRODUCT(I37:I41,H37:H41) -> 0
I44: Criteria Weight
D45: 3) Type of Impact and Messaging | I45: 0.25
E47: Indicators | H47: (enter 1 for Yes on all that apply) | I47: Indicator Weight
E48: Outreach is Hands-on (self-efficacy) | I48: 0.05
E49: Overcome Barriers (e.g., dist., time, etc.) | I49: 0.05
E50: Eliminates Hazards/Threats (speed, crime, etc.) | I50: 0.05
E51: Connected or Addresses Connectivity Challenges | I51: 0.05
E52: Creating Value in Using Active Transportation | I52: 0.05
E53: Indicator-Weighted Score | H53: =SUMPRODUCT(I48:I52,H48:H52) -> 0
I55: Criteria Weight
D56: 4) Frequency of Outreach Effort | I56: 0.25
E58: Indicators | H58: (enter 1 for Yes for only one option) | I58: Indicator Weight
E59: One Day | I59: 0.05
E60: One Month | I60: 0.1
E61: One Year | I61: 0.15
E62: Multiple Years | I62: 0.2
E63: Continuous Effort | I63: 0.25
E64: Indicator-Weighted Score | H64: =IF(SUM(H59:H63)>1,"Choose Only 1 Option",SUMPRODUCT(I59:I63,H59:H63)) -> 0
D66: Projected New Active Transportation Cyclists
E67: Number of Potential New Facility Users | H67: =$H$14*(1-$H$15) -> 0
E68: Weighted Impact Score of Outreach | H68: =IFERROR(($H$42*$I$34+$H$53*$I$45+$H$64*$I$56+$H$31*$I$23)*$I$19,"") -> 
E69: Program Impact Score | H69: =IFERROR(H67*H68,"") -> 
E70: Years of Outreach | H70: =20-COUNTBLANK('1a) Project Info'!$AB$68:$AB$87) -> 0
E71: Multi-year Program Impact Score | H71: =IFERROR(H70*H69,"") -> 
D73: Cost Effectiveness
E74: Total Discounted Cost | H74: ='1a) Project Info'!$AG$88 -> 0
E75: Cost per Program Impact Score | H75: =IFERROR(H74/H71,"") -> 
D77: Projected New Active Transportation Pedestrians
E78: Number of Potential New Facility Users | H78: =$H$14*(1-$H$16) -> 0
E79: Weighted Impact Score of Outreach | H79: =IFERROR(($H$42*$I$34+$H$53*$I$45+$H$64*$I$56+$H$31*$I$23)*$I$19,"") -> 
E80: Program Impact Score | H80: =IFERROR(H78*H79,"") -> 
E81: Years of Outreach | H81: =20-COUNTBLANK('1a) Project Info'!$AB$68:$AB$87) -> 0
E82: Multi-year Program Impact Score | H82: =IFERROR(H81*H80,"") -> 
D84: Cost Effectiveness
E85: Total Discounted Cost | H85: ='1a) Project Info'!$AG$88 -> 0
E86: Cost per Program Impact Score | H86: =IFERROR(H85/H82,"") -> 

Sheet 2) Model Inputs
C3: 2A | E3: ACTIVE TRANSPORTATION DAILY VOLUME INPUTS - CYCLING - Existing Facility Segment | N3: 2E | P3: ACTIVE TRANSPORTATION DAILY VOLUME INPUTS - PEDESTRIAN - Existing Facility Segment
F5: Calculated by Model | G5: Changed by User | H5: Used for Proj. Eval. | I5: Reason for Change | Q5: Calculated by Model | R5: Changed by User | S5: Used for Proj. Eval. | T5: Reason for Change
C6: No Build - Cycling | N6: No Build - Pedestrian
D7: Year 1 | O7: Year 1
E8: Annual Trips - Commuting | F8: =ADT1CycNBEX*PerCommCycNB*CycleDays -> 0 | H8: =IF(ISNUMBER(G8),G8,F8) -> 0 | P8: Annual Trips - Commuting | Q8: =ADT1PedNBEX*PerCommPedNB*CycleDays -> 0 | S8: =IF(ISNUMBER(R8),R8,Q8) -> 0
E9: Annual Trips - Other Destinations | F9: =ADT1CycNBEX*PerODCycNB*CycleDays -> 0 | H9: 0 | P9: Annual Trips - Other Destinations | Q9: =ADT1PedNBEX*PerODPedNB*WalkDays -> 0 | S9: 0
E10: Annual Trips - Recreational | F10: =ADT1CycNBEX*PerRecCycNB*CycleDays -> 0 | H10: =IF(ISNUMBER(G10),G10,F10)*RecBen -> 0 | I10: =IF(RecBen=0,"Recreational Users not Included in Benefits","") -> Recreational Users not Included in Benefits | P10: Annual Trips - Recreational | Q10: =ADT1PedNBEX*PerRecPedNB*WalkDays -> 0 | S10: =IF(ISNUMBER(R10),R10,Q10)*RecBen -> 0 | T10: =IF(RecBen=0,"Recreational Users not Included in Benefits","") -> Recreational Users not Included in Benefits
E11: Users - Commuting | F11: =H8/(1+RTCycNB) -> 0 | H11: 0 | P11: Users - Commuting | Q11: =S8/(1+RTPedNB) -> 0 | S11: 0
E12: Users - Other Destinations | F12: =H9/(1+RTCycNB) -> 0 | H12: 0 | P12: Users - Other Destinations | Q12: =S9/(1+RTPedNB) -> 0 | S12: 0
E13: Users - Recreational | F13: =H10/2 -> 0 | H13: =IF(ISNUMBER(G13),G13,F13)*RecBen -> 0 | I13: =IF(RecBen=0,"Recreational Users not Included in Benefits","") -> Recreational Users not Included in Benefits | P13: Users - Recreational | Q13: =S10/2 -> 0 | S13: =IF(ISNUMBER(R13),R13,Q13)*RecBen -> 0 | T13: =IF(RecBen=0,"Recreational Users not Included in Benefits","") -> Recreational Users not Included in Benefits
E14: Total Miles - Commuting | F14: =H8*TAvMiCycNB*(1+RTCycNB) -> 0 | H14: 0 | P14: Total Miles - Commuting | Q14: =S8*TAvMiPedNB*(1+RTPedNB) -> 0 | S14: 0
E15: Total Miles - Other Destinations | F15: =H9*TAvMiCycNB*(1+RTCycNB) -> 0 | H15: 0 | P15: Total Miles - Other Destinations | Q15: =S9*TAvMiPedNB*(1+RTPedNB) -> 0 | S15: 0
E16: Total Miles - Recreational | F16: =H10*TAvMiCycNB -> 0 | H16: =IF(ISNUMBER(G16),G16,F16)*RecBen -> 0 | I16: =IF(RecBen=0,"Recreational Users not Included in Benefits","") -> Recreational Users not Included in Benefits | P16: Total Miles - Recreational | Q16: =S10*TAvMiPedNB -> 0 | S16: =IF(ISNUMBER(R16),R16,Q16)*RecBen -> 0 | T16: =IF(RecBen=0,"Recreational Users not Included in Benefits","") -> Recreational Users not Included in Benefits
D18: Year 20 | O18: Year 20
E19: Trips - Commuting | F19: =ADT20CycNBEX*PerCommCycNB*CycleDays -> 0 | H19: =IF(ISNUMBER(G19),G19,F19) -> 0 | P19: Annual Trips - Commuting | Q19: =ADT20PedNBEX*PerCommPedNB*CycleDays -> 0 | S19: =IF(ISNUMBER(R19),R19,Q19) -> 0
E20: Trips - Other Destinations | F20: =ADT20CycNBEX*PerODCycNB*CycleDays -> 0 | H20: 0 | P20: Annual Trips - Other Destinations | Q20: =ADT20PedNBEX*PerODPedNB*WalkDays -> 0 | S20: 0
E21: Trips - Recreational | F21: =ADT20CycNBEX*PerRecCycNB*CycleDays -> 0 | H21: =IF(ISNUMBER(G21),G21,F21)*RecBen -> 0 | I21: =IF(RecBen=0,"Recreational Users not Included in Benefits","") -> Recreational Users not Included in Benefits | P21: Annual Trips - Recreational | Q21: =ADT20PedNBEX*PerRecPedNB*WalkDays -> 0 | S21: =IF(ISNUMBER(R21),R21,Q21)*RecBen -> 0 | T21: =IF(RecBen=0,"Recreational Users not Included in Benefits","") -> Recreational Users not Included in Benefits
E22: Users - Commuting | F22: =H19/(1+RTCycNB) -> 0 | H22: 0 | P22: Users - Commuting | Q22: =S19/(1+RTPedNB) -> 0 | S22: 0
E23: Users - Other Destinations | F23: =H20/(1+RTCycNB) -> 0 | H23: 0 | P23: Users - Other Destinations | Q23: =S20/(1+RTPedNB) -> 0 | S23: 0
E24: Users - Recreational | F24: =H21/2 -> 0 | H24: =IF(ISNUMBER(G24),G24,F24)*RecBen -> 0 | I24: =IF(RecBen=0,"Recreational Users not Included in Benefits","") -> Recreational Users not Included in Benefits | P24: Users - Recreational | Q24: =S21/2 -> 0 | S24: =IF(ISNUMBER(R24),R24,Q24)*RecBen -> 0 | T24: =IF(RecBen=0,"Recreational Users not Included in Benefits","") -> Recreational Users not Included in Benefits
E25: Total Miles - Commuting | F25: =H19*TAvMiCycNB*(1+RTCycNB) -> 0 | H25: 0 | P25: Total Miles - Commuting | Q25: =S19*TAvMiPedNB*(1+RTPedNB) -> 0 | S25: 0
E26: Total Miles - Other Destinations | F26: =H20*TAvMiCycNB*(1+RTCycNB) -> 0 | H26: 0 | P26: Total Miles - Other Destinations | Q26: =S20*TAvMiPedNB*(1+RTPedNB) -> 0 | S26: 0
E27: Total Miles - Recreational | F27: =H21*TAvMiCycNB -> 0 | H27: =IF(ISNUMBER(G27),G27,F27)*RecBen -> 0 | I27: =IF(RecBen=0,"Recreational Users not Included in Benefits","") -> Recreational Users not Included in Benefits | P27: Total Miles - Recreational | Q27: =S21*TAvMiPedNB -> 0 | S27: =IF(ISNUMBER(R27),R27,Q27)*RecBen -> 0 | T27: =IF(RecBen=0,"Recreational Users not Included in Benefits","") -> Recreational Users not Included in Benefits
C30: Build - Cycling | N30: Build - Pedestrian
D31: Year 1 | O31: Year 1
E33: Annual Trips - Commuting | F33: =ADT1CycBEX*PerCommCycB*CycleDays -> 0 | H33: =IF(ISNUMBER(G33),G33,F33) -> 0 | P33: Annual Trips - Commuting | Q33: =ADT1PedBEX*PerCommPedB*CycleDays -> 0 | S33: =IF(ISNUMBER(R33),R33,Q33) -> 0
E34: Annual Trips - Other Destinations | F34: =ADT1CycBEX*PerODCycB*CycleDays -> 0 | H34: 0 | P34: Annual Trips - Other Destinations | Q34: =ADT1PedBEX*PerODPedB*WalkDays -> 0 | S34: 0
E35: Annual Trips - Recreational | F35: =ADT1CycBEX*PerRecCycB*CycleDays -> 0 | H35: =IF(ISNUMBER(G35),G35,F35)*RecBen -> 0 | I35: =IF(RecBen=0,"Recreational Users not Included in Benefits","") -> Recreational Users not Included in Benefits | P35: Annual Trips - Recreational | Q35: =ADT1PedBEX*PerRecPedB*WalkDays -> 0 | S35: =IF(ISNUMBER(R35),R35,Q35)*RecBen -> 0 | T35: =IF(RecBen=0,"Recreational Users not Included in Benefits","") -> Recreational Users not Included in Benefits
E36: Users - Commuting | F36: =H33/(1+RTCycNB) -> 0 | H36: 0 | P36: Users - Commuting | Q36: =S33/(1+RTPedNB) -> 0 | S36: 0
E37: Users - Other Destinations | F37: =H34/(1+RTCycNB) -> 0 | H37: 0 | P37: Users - Other Destinations | Q37: =S34/(1+RTPedNB) -> 0 | S37: 0
E38: Users - Recreational | F38: =H35/2 -> 0 | H38: =IF(ISNUMBER(G38),G38,F38)*RecBen -> 0 | I38: =IF(RecBen=0,"Recreational Users not Included in Benefits","") -> Recreational Users not Included in Benefits | P38: Users - Recreational | Q38: =S35/2 -> 0 | S38: =IF(ISNUMBER(R38),R38,Q38)*RecBen -> 0 | T38: =IF(RecBen=0,"Recreational Users not Included in Benefits","") -> Recreational Users not Included in Benefits
E39: Total Miles - Commuting | F39: =H33*TAvMiCycB*(1+RTCycNB) -> 0 | H39: 0 | P39: Total Miles - Commuting | Q39: =S33*TAvMiPedB*(1+RTPedNB) -> 0 | S39: 0
E40: Total Miles - Other Destinations | F40: =H34*TAvMiCycB*(1+RTCycNB) -> 0 | H40: 0 | P40: Total Miles - Other Destinations | Q40: =S34*TAvMiPedB*(1+RTPedNB) -> 0 | S40: 0
E41: Total Miles - Recreational | F41: =H35*TAvMiCycB -> 0 | H41: =IF(ISNUMBER(G41),G41,F41)*RecBen -> 0 | I41: =IF(RecBen=0,"Recreational Users not Included in Benefits","") -> Recreational Users not Included in Benefits | P41: Total Miles - Recreational | Q41: =S35*TAvMiPedB -> 0 | S41: =IF(ISNUMBER(R41),R41,Q41)*RecBen -> 0 | T41: =IF(RecBen=0,"Recreational Users not Included in Benefits","") -> Recreational Users not Included in Benefits
D43: Year 20 | O43: Year 20
E44: Annual Trips - Commuting | F44: =ADT20CycBEX*PerCommCycB*CycleDays -> 0 | H44: =IF(ISNUMBER(G44),G44,F44) -> 0 | P44: Annual Trips - Commuting | Q44: =ADT20PedBEX*PerCommPedB*CycleDays -> 0 | S44: =IF(ISNUMBER(R44),R44,Q44) -> 0
E45: Annual Trips - Other Destinations | F45: =ADT20CycBEX*PerODCycB*CycleDays -> 0 | H45: 0 | P45: Annual Trips - Other Destinations | Q45: =ADT20PedBEX*PerODPedB*WalkDays -> 0 | S45: 0
E46: Annual Trips - Recreational | F46: =ADT20CycBEX*PerRecCycB*CycleDays -> 0 | H46: =IF(ISNUMBER(G46),G46,F46)*RecBen -> 0 | I46: =IF(RecBen=0,"Recreational Users not Included in Benefits","") -> Recreational Users not Included in Benefits | P46: Annual Trips - Recreational | Q46: =ADT20PedBEX*PerRecPedB*WalkDays -> 0 | S46: =IF(ISNUMBER(R46),R46,Q46)*RecBen -> 0 | T46: =IF(RecBen=0,"Recreational Users not Included in Benefits","") -> Recreational Users not Included in Benefits
E47: Users - Commuting | F47: =H44/(1+RTCycNB) -> 0 | H47: 0 | P47: Users - Commuting | Q47: =S44/(1+RTPedNB) -> 0 | S47: 0
E48: Users - Other Destinations | F48: =H45/(1+RTCycNB) -> 0 | H48: 0 | P48: Users - Other Destinations | Q48: =S45/(1+RTPedNB) -> 0 | S48: 0
E49: Users - Recreational | F49: =H46/2 -> 0 | H49: =IF(ISNUMBER(G49),G49,F49)*RecBen -> 0 | I49: =IF(RecBen=0,"Recreational Users not Included in Benefits","") -> Recreational Users not Included in Benefits | P49: Users - Recreational | Q49: =S46/2 -> 0 | S49: =IF(ISNUMBER(R49),R49,Q49)*RecBen -> 0 | T49: =IF(RecBen=0,"Recreational Users not Included in Benefits","") -> Recreational Users not Included in Benefits
E50: Total Miles - Commuting | F50: =H44*TAvMiCycB*(1+RTCycNB) -> 0 | H50: 0 | P50: Total Miles - Commuting | Q50: =S44*TAvMiPedB*(1+RTPedNB) -> 0 | S50: 0
E51: Total Miles - Other Destinations | F51: =H45*TAvMiCycB*(1+RTCycNB) -> 0 | H51: 0 | P51: Total Miles - Other Destinations | Q51: =S45*TAvMiPedB*(1+RTPedNB) -> 0 | S51: 0
E52: Total Miles - Recreational | F52: =H46*TAvMiCycB -> 0 | H52: =IF(ISNUMBER(G52),G52,F52)*RecBen -> 0 | I52: =IF(RecBen=0,"Recreational Users not Included in Benefits","") -> Recreational Users not Included in Benefits | P52: Total Miles - Recreational | Q52: =S46*TAvMiPedB -> 0 | S52: =IF(ISNUMBER(R52),R52,Q52)*RecBen -> 0 | T52: =IF(RecBen=0,"Recreational Users not Included in Benefits","") -> Recreational Users not Included in Benefits
C58: 2B | E58: ACTIVE TRANSPORTATION DAILY VOLUME INPUTS - CYCLING - New Facility Segment | N58: 2F | P58: ACTIVE TRANSPORTATION DAILY VOLUME INPUTS - PEDESTRIAN - New Facility Segment
F60: Calculated by Model | H60: Used for Proj. Eval. | I60: Reason for Change | Q60: Calculated by Model | S60: Used for Proj. Eval. | T60: Reason for Change
C61: No Build - Cycling | N61: No Build - Pedestrian
D62: Year 1 | O62: Year 1
E63: Annual Trips - Commuting | F63: =ADT1CycNBNew*PerCommCycNB*CycleDays -> 0 | H63: =IF(ISNUMBER(G63),G63,F63) -> 0 | P63: Annual Trips - Commuting | Q63: =ADT1PedNBNew*PerCommPedNB*CycleDays -> 0 | S63: =IF(ISNUMBER(R63),R63,Q63) -> 0
E64: Annual Trips - Other Destinations | F64: =ADT1CycNBNew*PerODCycNB*CycleDays -> 0 | H64: 0 | P64: Annual Trips - Other Destinations | Q64: =ADT1PedNBNew*PerODPedNB*WalkDays -> 0 | S64: 0
E65: Annual Trips - Recreational | F65: =ADT1CycNBNew*PerRecCycNB*CycleDays -> 0 | H65: =IF(ISNUMBER(G65),G65,F65)*RecBen -> 0 | I65: =IF(RecBen=0,"Recreational Users not Included in Benefits","") -> Recreational Users not Included in Benefits | P65: Annual Trips - Recreational | Q65: =ADT1PedNBNew*PerRecPedNB*WalkDays -> 0 | S65: =IF(ISNUMBER(R65),R65,Q65)*RecBen -> 0 | T65: =IF(RecBen=0,"Recreational Users not Included in Benefits","") -> Recreational Users not Included in Benefits
E66: Users - Commuting | F66: =H63/(1+RTCycNB) -> 0 | H66: 0 | P66: Users - Commuting | Q66: =S63/(1+RTPedNB) -> 0 | S66: 0
E67: Users - Other Destinations | F67: =H64/(1+RTCycNB) -> 0 | H67: 0 | P67: Users - Other Destinations | Q67: =S64/(1+RTPedNB) -> 0 | S67: 0
E68: Users - Recreational | F68: =H65/2 -> 0 | H68: =IF(ISNUMBER(G68),G68,F68)*RecBen -> 0 | I68: =IF(RecBen=0,"Recreational Users not Included in Benefits","") -> Recreational Users not Included in Benefits | P68: Users - Recreational | Q68: =S65/2 -> 0 | S68: =IF(ISNUMBER(R68),R68,Q68)*RecBen -> 0 | T68: =IF(RecBen=0,"Recreational Users not Included in Benefits","") -> Recreational Users not Included in Benefits
E69: Total Miles - Commuting | F69: =H63*TAvMiCycNB*(1+RTCycNB) -> 0 | H69: 0 | P69: Total Miles - Commuting | Q69: =S63*TAvMiPedNB*(1+RTPedNB) -> 0 | S69: 0
E70: Total Miles - Other Destinations | F70: =H64*TAvMiCycNB*(1+RTCycNB) -> 0 | H70: 0 | P70: Total Miles - Other Destinations | Q70: =S64*TAvMiPedNB*(1+RTPedNB) -> 0 | S70: 0
E71: Total Miles - Recreational | F71: =H65*TAvMiCycNB -> 0 | H71: =IF(ISNUMBER(G71),G71,F71)*RecBen -> 0 | I71: =IF(RecBen=0,"Recreational Users not Included in Benefits","") -> Recreational Users not Included in Benefits | P71: Total Miles - Recreational | Q71: =S65*TAvMiPedNB -> 0 | S71: =IF(ISNUMBER(R71),R71,Q71)*RecBen -> 0 | T71: =IF(RecBen=0,"Recreational Users not Included in Benefits","") -> Recreational Users not Included in Benefits
D73: Year 20 | O73: Year 20
E74: Trips - Commuting | F74: =ADT20CycNBNew*PerCommCycNB*CycleDays -> 0 | H74: =IF(ISNUMBER(G74),G74,F74) -> 0 | P74: Annual Trips - Commuting | Q74: =ADT20PedNBNew*PerCommPedNB*CycleDays -> 0 | S74: =IF(ISNUMBER(R74),R74,Q74) -> 0
E75: Trips - Other Destinations | F75: =ADT20CycNBNew*PerODCycNB*CycleDays -> 0 | H75: 0 | P75: Annual Trips - Other Destinations | Q75: =ADT20PedNBNew*PerODPedNB*WalkDays -> 0 | S75: 0
E76: Trips - Recreational | F76: =ADT20CycNBNew*PerRecCycNB*CycleDays -> 0 | H76: =IF(ISNUMBER(G76),G76,F76)*RecBen -> 0 | I76: =IF(RecBen=0,"Recreational Users not Included in Benefits","") -> Recreational Users not Included in Benefits | P76: Annual Trips - Recreational | Q76: =ADT20PedNBNew*PerRecPedNB*WalkDays -> 0 | S76: =IF(ISNUMBER(R76),R76,Q76)*RecBen -> 0 | T76: =IF(RecBen=0,"Recreational Users not Included in Benefits","") -> Recreational Users not Included in Benefits
E77: Users - Commuting | F77: =H74/(1+RTCycNB) -> 0 | H77: 0 | P77: Users - Commuting | Q77: =S74/(1+RTPedNB) -> 0 | S77: 0
E78: Users - Other Destinations | F78: =H75/(1+RTCycNB) -> 0 | H78: 0 | P78: Users - Other Destinations | Q78: =S75/(1+RTPedNB) -> 0 | S78: 0
E79: Users - Recreational | F79: =H76/2 -> 0 | H79: =IF(ISNUMBER(G79),G79,F79)*RecBen -> 0 | I79: =IF(RecBen=0,"Recreational Users not Included in Benefits","") -> Recreational Users not Included in Benefits | P79: Users - Recreational | Q79: =S76/2 -> 0 | S79: =IF(ISNUMBER(R79),R79,Q79)*RecBen -> 0 | T79: =IF(RecBen=0,"Recreational Users not Included in Benefits","") -> Recreational Users not Included in Benefits
E80: Total Miles - Commuting | F80: =H74*TAvMiCycNB*(1+RTCycNB) -> 0 | H80: 0 | P80: Total Miles - Commuting | Q80: =S74*TAvMiPedNB*(1+RTPedNB) -> 0 | S80: 0
E81: Total Miles - Other Destinations | F81: =H75*TAvMiCycNB*(1+RTCycNB) -> 0 | H81: 0 | P81: Total Miles - Other Destinations | Q81: =S75*TAvMiPedNB*(1+RTPedNB) -> 0 | S81: 0
E82: Total Miles - Recreational | F82: =H76*TAvMiCycNB -> 0 | H82: =IF(ISNUMBER(G82),G82,F82)*RecBen -> 0 | I82: =IF(RecBen=0,"Recreational Users not Included in Benefits","") -> Recreational Users not Included in Benefits | P82: Total Miles - Recreational | Q82: =S76*TAvMiPedNB -> 0 | S82: =IF(ISNUMBER(R82),R82,Q82)*RecBen -> 0 | T82: =IF(RecBen=0,"Recreational Users not Included in Benefits","") -> Recreational Users not Included in Benefits
C85: Build - Cycling | N85: Build - Pedestrian
D86: Year 1 | O86: Year 1
E88: Annual Trips - Commuting | F88: =ADT1CycBNew*PerCommCycB*CycleDays -> 0 | H88: =IF(ISNUMBER(G88),G88,F88) -> 0 | P88: Annual Trips - Commuting | Q88: =ADT1PedBNew*PerCommPedB*CycleDays -> 0 | S88: =IF(ISNUMBER(R88),R88,Q88) -> 0
E89: Annual Trips - Other Destinations | F89: =ADT1CycBNew*PerODCycB*CycleDays -> 0 | H89: 0 | P89: Annual Trips - Other Destinations | Q89: =ADT1PedBNew*PerODPedB*WalkDays -> 0 | S89: 0
E90: Annual Trips - Recreational | F90: =ADT1CycBNew*PerRecCycB*CycleDays -> 0 | H90: =IF(ISNUMBER(G90),G90,F90)*RecBen -> 0 | I90: =IF(RecBen=0,"Recreational Users not Included in Benefits","") -> Recreational Users not Included in Benefits | P90: Annual Trips - Recreational | Q90: =ADT1PedBNew*PerRecPedB*WalkDays -> 0 | S90: =IF(ISNUMBER(R90),R90,Q90)*RecBen -> 0 | T90: =IF(RecBen=0,"Recreational Users not Included in Benefits","") -> Recreational Users not Included in Benefits
E91: Users - Commuting | F91: =H88/(1+RTCycNB) -> 0 | H91: 0 | P91: Users - Commuting | Q91: =S88/(1+RTPedNB) -> 0 | S91: 0
E92: Users - Other Destinations | F92: =H89/(1+RTCycNB) -> 0 | H92: 0 | P92: Users - Other Destinations | Q92: =S89/(1+RTPedNB) -> 0 | S92: 0
E93: Users - Recreational | F93: =H90/2 -> 0 | H93: =IF(ISNUMBER(G93),G93,F93)*RecBen -> 0 | I93: =IF(RecBen=0,"Recreational Users not Included in Benefits","") -> Recreational Users not Included in Benefits | P93: Users - Recreational | Q93: =S90/2 -> 0 | S93: =IF(ISNUMBER(R93),R93,Q93)*RecBen -> 0 | T93: =IF(RecBen=0,"Recreational Users not Included in Benefits","") -> Recreational Users not Included in Benefits
E94: Total Miles - Commuting | F94: =H88*TAvMiCycB*(1+RTCycNB) -> 0 | H94: 0 | P94: Total Miles - Commuting | Q94: =S88*TAvMiPedB*(1+RTPedNB) -> 0 | S94: 0
E95: Total Miles - Other Destinations | F95: =H89*TAvMiCycB*(1+RTCycNB) -> 0 | H95: 0 | P95: Total Miles - Other Destinations | Q95: =S89*TAvMiPedB*(1+RTPedNB) -> 0 | S95: 0
E96: Total Miles - Recreational | F96: =H90*TAvMiCycB -> 0 | H96: =IF(ISNUMBER(G96),G96,F96)*RecBen -> 0 | I96: =IF(RecBen=0,"Recreational Users not Included in Benefits","") -> Recreational Users not Included in Benefits | P96: Total Miles - Recreational | Q96: =S90*TAvMiPedB -> 0 | S96: =IF(ISNUMBER(R96),R96,Q96)*RecBen -> 0 | T96: =IF(RecBen=0,"Recreational Users not Included in Benefits","") -> Recreational Users not Included in Benefits
D98: Year 20 | O98: Year 20
E99: Annual Trips - Commuting | F99: =ADT20CycBNew*PerCommCycB*CycleDays -> 0 | H99: =IF(ISNUMBER(G99),G99,F99) -> 0 | P99: Annual Trips - Commuting | Q99: =ADT20PedBNew*PerCommPedB*CycleDays -> 0 | S99: =IF(ISNUMBER(R99),R99,Q99) -> 0
E100: Annual Trips - Other Destinations | F100: =ADT20CycBNew*PerODCycB*CycleDays -> 0 | H100: 0 | P100: Annual Trips - Other Destinations | Q100: =ADT20PedBNew*PerODPedB*WalkDays -> 0 | S100: 0
E101: Annual Trips - Recreational | F101: =ADT20CycBNew*PerRecCycB*CycleDays -> 0 | H101: =IF(ISNUMBER(G101),G101,F101)*RecBen -> 0 | I101: =IF(RecBen=0,"Recreational Users not Included in Benefits","") -> Recreational Users not Included in Benefits | P101: Annual Trips - Recreational | Q101: =ADT20PedBNew*PerRecPedB*WalkDays -> 0 | S101: =IF(ISNUMBER(R101),R101,Q101)*RecBen -> 0 | T101: =IF(RecBen=0,"Recreational Users not Included in Benefits","") -> Recreational Users not Included in Benefits
E102: Users - Commuting | F102: =H99/(1+RTCycNB) -> 0 | H102: 0 | P102: Users - Commuting | Q102: =S99/(1+RTPedNB) -> 0 | S102: 0
E103: Users - Other Destinations | F103: =H100/(1+RTCycNB) -> 0 | H103: 0 | P103: Users - Other Destinations | Q103: =S100/(1+RTPedNB) -> 0 | S103: 0
E104: Users - Recreational | F104: =H101/2 -> 0 | H104: =IF(ISNUMBER(G104),G104,F104)*RecBen -> 0 | I104: =IF(RecBen=0,"Recreational Users not Included in Benefits","") -> Recreational Users not Included in Benefits | P104: Users - Recreational | Q104: =S101/2 -> 0 | S104: =IF(ISNUMBER(R104),R104,Q104)*RecBen -> 0 | T104: =IF(RecBen=0,"Recreational Users not Included in Benefits","") -> Recreational Users not Included in Benefits
E105: Total Miles - Commuting | F105: =H99*TAvMiCycB*(1+RTCycNB) -> 0 | H105: 0 | P105: Total Miles - Commuting | Q105: =S99*TAvMiPedB*(1+RTPedNB) -> 0 | S105: 0
E106: Total Miles - Other Destinations | F106: =H100*TAvMiCycB*(1+RTCycNB) -> 0 | H106: 0 | P106: Total Miles - Other Destinations | Q106: =S100*TAvMiPedB*(1+RTPedNB) -> 0 | S106: 0
E107: Total Miles - Recreational | F107: =H101*TAvMiCycB -> 0 | H107: =IF(ISNUMBER(G107),G107,F107)*RecBen -> 0 | I107: =IF(RecBen=0,"Recreational Users not Included in Benefits","") -> Recreational Users not Included in Benefits | P107: Total Miles - Recreational | Q107: =S101*TAvMiPedB -> 0 | S107: =IF(ISNUMBER(R107),R107,Q107)*RecBen -> 0 | T107: =IF(RecBen=0,"Recreational Users not Included in Benefits","") -> Recreational Users not Included in Benefits
C112: 2C | E112: ACTIVE TRANSPORTATION DAILY VOLUME INPUTS - CYCLING - New Safe Routes To School | N112: 2G | P112: ACTIVE TRANSPORTATION DAILY VOLUME INPUTS - PEDESTRIAN - New Safe Routes To School
F114: Calculated by Model | G114: Changed by User | H114: Used for Proj. Eval. | I114: Reason for Change | Q114: Calculated by Model | R114: Changed by User | S114: Used for Proj. Eval. | T114: Reason for Change
C115: No Build - Cycling | N115: No Build - Pedestrian
D116: Year 1 | O116: Year 1
E117: Annual Trips - SRTS | F117: =ADT1CycNBNew_SRTS*SchDays -> 0 | H117: =IF(ISNUMBER(G117),G117,F117) -> 0 | P117: Annual Trips - SRTS | Q117: =ADT1PedNBNew_SRTS*SchDays -> 0 | S117: =IF(ISNUMBER(R117),R117,Q117) -> 0
E118: SRTS Users | F118: =ADT1CycNBNew_SRTS*SchDays/(1+RTCycNB) -> 0 | H118: =IF(ISNUMBER(G118),G118,F118) -> 0 | P118: SRTS Users | Q118: =ADT1PedNBNew_SRTS*SchDays/(1+RTPedNB) -> 0 | S118: =IF(ISNUMBER(R118),R118,Q118) -> 0
E119: Total Miles - SRTS | F119: =H118*TAvMiCycNBSRTS*(1+RTCycNB) -> 0 | H119: =IF(ISNUMBER(G119),G119,F119) -> 0 | P119: Total Miles - SRTS | Q119: =S118*TAvMiPedNBSRTS*(1+RTPedNB) -> 0 | S119: =IF(ISNUMBER(R119),R119,Q119) -> 0
D121: Year 20 | O121: Year 20
E122: Annual Trips - SRTS | F122: =ADT20CycNBNew_SRTS*SchDays -> 0 | H122: =IF(ISNUMBER(G122),G122,F122) -> 0 | P122: Annual Trips - SRTS | Q122: =ADT20PedNBNew_SRTS*SchDays -> 0 | S122: =IF(ISNUMBER(R122),R122,Q122) -> 0
E123: SRTS Users | F123: =ADT20CycNBNew_SRTS*SchDays/(1+RTCycNB) -> 0 | H123: =IF(ISNUMBER(G123),G123,F123) -> 0 | P123: SRTS Users | Q123: =ADT20PedNBNew_SRTS*SchDays/(1+RTPedNB) -> 0 | S123: =IF(ISNUMBER(R123),R123,Q123) -> 0
E124: Total Miles - SRTS | F124: =H123*TAvMiCycNBSRTS*(1+RTCycNB) -> 0 | H124: =IF(ISNUMBER(G124),G124,F124) -> 0 | P124: Total Miles - SRTS | Q124: =S123*TAvMiPedNBSRTS*(1+RTPedNB) -> 0 | S124: =IF(ISNUMBER(R124),R124,Q124) -> 0
C126: Build - Cycling | N126: Build - Pedestrian
D127: Year 1 | O127: Year 1
E128: Annual Trips - SRTS | F128: =ADT1CycBNew_SRTS*SchDays -> 0 | H128: =IF(ISNUMBER(G128),G128,F128) -> 0 | P128: Annual Trips - SRTS | Q128: =ADT1PedBNew_SRTS*SchDays -> 0 | S128: =IF(ISNUMBER(R128),R128,Q128) -> 0
E129: SRTS Users | F129: =ADT1CycBNew_SRTS*SchDays/(1+RTCycNB) -> 0 | H129: =IF(ISNUMBER(G129),G129,F129) -> 0 | P129: SRTS Users | Q129: =ADT1PedBNew_SRTS*SchDays/(1+RTPedNB) -> 0 | S129: =IF(ISNUMBER(R129),R129,Q129) -> 0
E130: Total Miles - SRTS | F130: =H129*TAvMiCycNBSRTS*(1+RTCycNB) -> 0 | H130: =IF(ISNUMBER(G130),G130,F130) -> 0 | P130: Total Miles - SRTS | Q130: =S129*TAvMiPedNBSRTS*(1+RTPedNB) -> 0 | S130: =IF(ISNUMBER(R130),R130,Q130) -> 0
D132: Year 20 | O132: Year 20
E133: Annual Trips - SRTS | F133: =ADT20CycBNew_SRTS*SchDays -> 0 | H133: =IF(ISNUMBER(G133),G133,F133) -> 0 | P133: Annual Trips - SRTS | Q133: =ADT20PedBNew_SRTS*SchDays -> 0 | S133: =IF(ISNUMBER(R133),R133,Q133) -> 0
E134: SRTS Users | F134: =ADT20CycBNew_SRTS*SchDays/(1+RTCycNB) -> 0 | H134: =IF(ISNUMBER(G134),G134,F134) -> 0 | P134: SRTS Users | Q134: =ADT20PedBNew_SRTS*SchDays/(1+RTPedNB) -> 0 | S134: =IF(ISNUMBER(R134),R134,Q134) -> 0
E135: Total Miles - SRTS | F135: =H134*TAvMiCycNBSRTS*(1+RTCycNB) -> 0 | H135: =IF(ISNUMBER(G135),G135,F135) -> 0 | P135: Total Miles - SRTS | Q135: =S134*TAvMiPedNBSRTS*(1+RTPedNB) -> 0 | S135: =IF(ISNUMBER(R135),R135,Q135) -> 0
C140: 2D | E140: ACTIVE TRANSPORTATION DAILY VOLUME INPUTS - CYCLING - Existing Safe Routes To School | N140: 2H | P140: ACTIVE TRANSPORTATION DAILY VOLUME INPUTS - PEDESTRIAN - Existing Safe Routes To School
F142: Calculated by Model | G142: Changed by User | H142: Used for Proj. Eval. | I142: Reason for Change | Q142: Calculated by Model | R142: Changed by User | S142: Used for Proj. Eval. | T142: Reason for Change
C143: No Build - Cycling | N143: No Build - Pedestrian
D144: Year 1 | O144: Year 1
E145: Annual Trips - SRTS | F145: =ADT1CycNBEX_SRTS*SchDays -> 0 | H145: =IF(ISNUMBER(G145),G145,F145) -> 0 | P145: Annual Trips - SRTS | Q145: =ADT1PedNBEX_SRTS*SchDays -> 0 | S145: =IF(ISNUMBER(R145),R145,Q145) -> 0
E146: SRTS Users | F146: =ADT1CycNBEX_SRTS*SchDays/(1+RTCycNB) -> 0 | H146: =IF(ISNUMBER(G146),G146,F146) -> 0 | P146: SRTS Users | Q146: =ADT1PedNBEX_SRTS*SchDays/(1+RTPedNB) -> 0 | S146: =IF(ISNUMBER(R146),R146,Q146) -> 0
E147: Total Miles - SRTS | F147: =H146*TAvMiCycNBSRTS*(1+RTCycNB) -> 0 | H147: =IF(ISNUMBER(G147),G147,F147) -> 0 | P147: Total Miles - SRTS | Q147: =S146*TAvMiPedNBSRTS*(1+RTPedNB) -> 0 | S147: =IF(ISNUMBER(R147),R147,Q147) -> 0
D149: Year 20 | O149: Year 20
E150: Annual Trips - SRTS | F150: =ADT20CycNBEX_SRTS*SchDays -> 0 | H150: =IF(ISNUMBER(G150),G150,F150) -> 0 | P150: Annual Trips - SRTS | Q150: =ADT20PedNBEX_SRTS*SchDays -> 0 | S150: =IF(ISNUMBER(R150),R150,Q150) -> 0
E151: SRTS Users | F151: =ADT20CycNBEX_SRTS*SchDays/(1+RTCycNB) -> 0 | H151: =IF(ISNUMBER(G151),G151,F151) -> 0 | P151: SRTS Users | Q151: =ADT20PedNBEX_SRTS*SchDays/(1+RTPedNB) -> 0 | S151: =IF(ISNUMBER(R151),R151,Q151) -> 0
E152: Total Miles - SRTS | F152: =H151*TAvMiCycNBSRTS*(1+RTCycNB) -> 0 | H152: =IF(ISNUMBER(G152),G152,F152) -> 0 | P152: Total Miles - SRTS | Q152: =S151*TAvMiPedNBSRTS*(1+RTPedNB) -> 0 | S152: =IF(ISNUMBER(R152),R152,Q152) -> 0
C154: Build - Cycling | N154: Build - Pedestrian
D155: Year 1 | O155: Year 1
E156: Annual Trips - SRTS | F156: =ADT1CycBEX_SRTS*SchDays -> 0 | H156: =IF(ISNUMBER(G156),G156,F156) -> 0 | P156: Annual Trips - SRTS | Q156: =ADT1PedBEX_SRTS*SchDays -> 0 | S156: =IF(ISNUMBER(R156),R156,Q156) -> 0
E157: SRTS Users | F157: =ADT1CycBEX_SRTS*SchDays/(1+RTCycNB) -> 0 | H157: =IF(ISNUMBER(G157),G157,F157) -> 0 | P157: SRTS Users | Q157: =ADT1PedBEX_SRTS*SchDays/(1+RTPedNB) -> 0 | S157: =IF(ISNUMBER(R157),R157,Q157) -> 0
E158: Total Miles - SRTS | F158: =H157*TAvMiCycNBSRTS*(1+RTCycNB) -> 0 | H158: =IF(ISNUMBER(G158),G158,F158) -> 0 | P158: Total Miles - SRTS | Q158: =S157*TAvMiPedNBSRTS*(1+RTPedNB) -> 0 | S158: =IF(ISNUMBER(R158),R158,Q158) -> 0
D160: Year 20 | O160: Year 20
E161: Annual Trips - SRTS | F161: =ADT20CycBEX_SRTS*SchDays -> 0 | H161: =IF(ISNUMBER(G161),G161,F161) -> 0 | P161: Annual Trips - SRTS | Q161: =ADT20PedBEX_SRTS*SchDays -> 0 | S161: =IF(ISNUMBER(R161),R161,Q161) -> 0
E162: SRTS Users | F162: =ADT20CycBEX_SRTS*SchDays/(1+RTCycNB) -> 0 | H162: =IF(ISNUMBER(G162),G162,F162) -> 0 | P162: SRTS Users | Q162: =ADT20PedBEX_SRTS*SchDays/(1+RTPedNB) -> 0 | S162: =IF(ISNUMBER(R162),R162,Q162) -> 0
E163: Total Miles - SRTS | F163: =H162*TAvMiCycNBSRTS*(1+RTCycNB) -> 0 | H163: =IF(ISNUMBER(G163),G163,F163) -> 0 | P163: Total Miles - SRTS | Q163: =S162*TAvMiPedNBSRTS*(1+RTPedNB) -> 0 | S163: =IF(ISNUMBER(R163),R163,Q163) -> 0
C165: PROPORTIONS OF SRTS IN TOTAL BENEFITS | N165: PROPORTIONS OF SRTS IN TOTAL BENEFITS
E166: SRTS Trip-Mile / Total Trip-Mile | F166: =IF(ProjType=2,$H$119/(SUM($H$14:$H$16,$H$119)),IF(OR(ProjType=1,ProjType=3),$H$147/(SUM($H$14:$H$16,$H$147)))) -> FALSE | H166: =IF(ISNUMBER(G166),G166,F166) -> FALSE | P166: SRTS Trip-Mile / Total Trip-Mile | Q166: =IF(ProjType=2,$S$119/(SUM($S$14:$S$16,$S$119)),IF(OR(ProjType=1,ProjType=3),$S$147/(SUM($S$14:$S$16,$S$147)))) -> FALSE | S166: =IF(ISNUMBER(R166),R166,Q166) -> FALSE

Sheet 3) Results
B2: District: | E2: ='1a) Project Info'!E2 -> HQ
O3: EA: | P3: ='1a) Project Info'!I3 -> 0
B4: PROJECT: | E4: =ProjName -> Hypothetical Project | O4: PPNO: | P4: ='1a) Project Info'!I4 -> 0
D8: 3 | E8: INVESTMENT ANALYSIS
E9: SUMMARY RESULTS
O11: Average | P11: Total Over
E12: Life-Cycle Costs (mil. $) | H12: =lifecyclecost/1000000 -> 0 | L12: ITEMIZED BENEFITS (mil. $) | O12: Annual | P12: 20 Years
E13: Life-Cycle Benefits (mil. $) | H13: =lifecyclebenefits/1000000 -> 0 | L13: Journey Quality | O13: =P13/20 -> 0 | P13: =('Final Calculations'!C56)/1000000 -> 0
E14: Net Present Value (mil. $) | H14: =NetPresentValue/1000000 -> 0 | L14: Additional Delay Savings | O14: 0 | P14: =('Final Calculations'!D56)/1000000 -> 0
L15: Additional Safety Benefits | O15: 0 | P15: =('Final Calculations'!E56)/1000000 -> 0
L16: Health Benefits | O16: 0 | P16: =('Final Calculations'!F56)/1000000 -> 0
E17: Benefit / Cost Ratio: | H17: =IF(lifecyclecost=0,"N/A",lifecyclebenefits/lifecyclecost) -> N/A | L17: Emission Cost Savings | O17: 0 | P17: =('Final Calculations'!G56)/1000000 -> 0
L18: TOTAL BENEFITS | O18: 0 | P18: =SUM(P13:P17) -> 0
E19: Rate of Return on Investment: | H19: =IFERROR(ReturnOnInvest,0) -> N/A
L20: CO2 Emissions Saved (tons) | O20: =P20/20 -> 0 | P20: ='Final Calculations'!C59 -> 0
E21: Payback Period: | H21: =payback -> N/A | L21: CO2 Emissions Saved (mil. $) | O21: =P21/20 -> 0 | P21: =('Final Calculations'!C60)/1000000 -> 0
L23: SRTS-Specific Benefits (mil. $)
E24: Non-Infrastructure Implementation Cost | L24: Journey Quality | O24: =IF($P$33="Yes",P24/20,"NA") -> NA | P24: =IF($P$33="Yes",'Final Calculations'!N56/1000000,"NA") -> NA
E25: Per Bike Program Impact Score | H25: =IF($P$35="Yes",'1b) Non-Inf Program Info'!$H$75,"NA") -> NA | L25: Additional Delay Savings | O25: =IF($P$33="Yes",P25/20,"NA") -> NA | P25: =IF($P$33="Yes",'Final Calculations'!O56/1000000,"NA") -> NA
E26: Per Ped Program Impact Score | H26: =IF($P$35="Yes",'1b) Non-Inf Program Info'!$H$86,"NA") -> NA | L26: Additional Safety Benefits | O26: =IF($P$33="Yes",P26/20,"NA") -> NA | P26: =IF($P$33="Yes",'Final Calculations'!P56/1000000,"NA") -> NA
L27: TOTAL SRTS BENEFITS | O27: =IF($P$33="Yes",P27/20,"NA") -> NA | P27: =IF($P$33="Yes",SUM(P24:P26),"NA") -> NA
F32: Factors that Differentiate Benefits and Performance Measures
L33: Safe Route to School? | P33: =IF('1a) Project Info'!H19=1,"Yes","No") -> No
L34: Intersection improvements on SRTS? | P34: =IF('1a) Project Info'!H89=1,"Yes","No") -> No
L35: Programmatic Initiatives? | P35: =IF('1a) Project Info'!H21=1,"Yes","No") -> No
L36: Recreational Benefits? (enter 1 for Yes, 0 for No)

Sheet Journey Quality
B1: Journey Quality Benefits
B3: This sheet calculates journey quality benefits for cyclists and pedestrians who travel to a destination. Recreational users are not included.
B5: Formulas:
B7: Avg. Annual Trips = Avg. Daily Trips x Annual Days in Year, by purpose | H7: Value of Journey Quality = Time-Value of Improvement x Avg. Value of Time
B8: trips / yr. | H8: $ / year | J8: $/hour
B10: Time-Value of Imp. = (1 - Facility Preference Factor) x Distance per Trip (Mi.) / Travel Speed (MPH) | H10: Value of Journey Quality for Induced trips applies rule of half
B11: trip - hrs / yr. | D11: trips / yr. x miles | F11: miles/hour
B15: A | C15: CYCLING BENEFITS | M15: B | N15: PEDESTRIAN BENEFITS | X15: C | Y15: TOTAL
B18: Existing Facility | M18: Existing Facility | X18: Existing Facility
C20: AVERAGE ANNUAL VOLUME | G20: JOURNEY QUALITY VALUE | N20: ANNUAL PERSON-MILES | R20: JOURNEY QUALITY VALUE
C21: (trips/yr.) | G21: ($) | N21: (trip-miles/yr.) | R21: ($)
B22: Year | C22: Total Trips, Existing Facility (Baseline) | D22: Total Trips, Improved Facility | E22: Existing Trips, Improved Facility | F22: Induced Trips, Improved Facility | G22: Existing Trip-Miles, Existing Facility | H22: Existing Trip-Miles, Improved Facility | I22: Induced Trip-Miles, Improved Facility | J22: Constant Dollars | K22: Present Value | M22: Year | N22: Total Trips, Existing Facility (Baseline) | O22: Total Trips, Improved Facility | P22: Existing Trips, Improved Facility | Q22: Induced Trips, Improved Facility | R22: Existing Trip-Miles, Existing Facility | S22: Existing Trip-Miles, Improved Facility | T22: Induced Trip-Miles, Improved Facility | U22: Constant Dollars | V22: Present Value | X22: Year | Y22: Constant Dollars | Z22: Present Value
B23: 1 | C23: =IF(OR(ProjType=1,ProjType=3),TrComCyc1NBEX+TrODCyc1NBEX+TrRecCyc1NBEX*RecBen,0) -> 0 | D23: =IF(OR(ProjType=1,ProjType=3),TrComCyc1BEX+TrODCyc1BEX+TrRecCyc1BEX*RecBen,0) -> 0 | E23: =C23 -> 0 | F23: =D23-C23 -> 0 | G23: =E23*JQValperMiCycNBEx*ValTimeAT*TAvMiCycNB -> 0 | H23: =E23*JQValperMiCycBEx*ValTimeAT*TAvMiCycB -> 0 | I23: =F23*(JQValperMiCycBEx-JQValperMiCycNBEx)*ValTimeAT*TAvMiCycB*1/2 -> 0 | J23: =((H23-G23)+(I23))*(1+TTUprater)^($B23+Construct-1) -> 0 | K23: =$J23/(1+DiscRate)^($B23+Construct-1) -> 0 | M23: 1 | N23: =IF(OR(ProjType=1,ProjType=3),TrComPed1NBEX+TrODPed1NBEX+TrRecPed1NBEX*RecBen,0) -> 0 | O23: =IF(OR(ProjType=1,ProjType=3),TrComPed1BEX+TrODPed1BEX+TrRecPed1BEX*RecBen,0) -> 0 | P23: =N23 -> 0 | Q23: =O23-N23 -> 0 | R23: =P23*JQValperMiPedNBEx*TAvMiPedNB -> 0 | S23: =P23*JQValperMiPedBEx*TAvMiPedB -> 0 | T23: =Q23*(JQValperMiPedBEx-JQValperMiPedNBEx)*TAvMiPedB*1/2 -> 0 | U23: =(S23-R23+T23)*(1+TTUprater)^($B23+Construct-1) -> 0 | V23: =$U23/(1+DiscRate)^($B23+Construct-1) -> 0 | X23: 1 | Y23: =U23+J23 -> 0 | Z23: =V23+K23 -> 0
B24: 20 | C24: =IF(OR(ProjType=1,ProjType=3),TrComCyc20NBEX+TrODCyc20NBEX+TrRecCyc20NBEX*RecBen,0) -> 0 | D24: =IF(OR(ProjType=1,ProjType=3),TrComCyc20BEX+TrODCyc20BEX+TrRecCyc20BEX*RecBen,0) -> 0 | E24: =C24 -> 0 | F24: =D24-C24 -> 0 | G24: =E24*JQValperMiCycNBEx*ValTimeAT*TAvMiCycNB -> 0 | H24: =E24*JQValperMiCycBEx*ValTimeAT*TAvMiCycB -> 0 | I24: =F24*(JQValperMiCycBEx-JQValperMiCycNBEx)*ValTimeAT*TAvMiCycB*1/2 -> 0 | J24: =((H24-G24)+(I24))*(1+TTUprater)^($B24+Construct-1) -> 0 | K24: =$J24/(1+DiscRate)^($B24+Construct-1) -> 0 | M24: 20 | N24: =IF(OR(ProjType=1,ProjType=3),TrComPed20NBEX+TrODPed20NBEX+TrRecPed20NBEX*RecBen,0) -> 0 | O24: =IF(OR(ProjType=1,ProjType=3),TrComPed20BEX+TrODPed20BEX+TrRecPed20BEX*RecBen,0) -> 0 | P24: =N24 -> 0 | Q24: =O24-N24 -> 0 | R24: =P24*JQValperMiPedNBEx*TAvMiPedNB -> 0 | S24: =P24*JQValperMiPedBEx*TAvMiPedB -> 0 | T24: =Q24*(JQValperMiPedBEx-JQValperMiPedNBEx)*TAvMiPedB*1/2 -> 0 | U24: =(S24-R24+T24)*(1+TTUprater)^($B24+Construct-1) -> 0 | V24: =$U24/(1+DiscRate)^($B24+Construct-1) -> 0 | X24: 20 | Y24: =U24+J24 -> 0 | Z24: =V24+K24 -> 0
B26: 1 | C26: =TREND(C$23:C$24,$B$23:$B$24,$B26) -> 0 | D26: =TREND(D$23:D$24,$B$23:$B$24,$B26) -> 0 | E26: =TREND(E$23:E$24,$B$23:$B$24,$B26) -> 0 | F26: =TREND(F$23:F$24,$B$23:$B$24,$B26) -> 0 | G26: =E26*JQValperMiCycNBEx*ValTimeAT*TAvMiCycNB -> 0 | H26: =E26*JQValperMiCycBEx*ValTimeAT*TAvMiCycB -> 0 | I26: =F26*(JQValperMiCycBEx-JQValperMiCycNBEx)*ValTimeAT*TAvMiCycB*1/2 -> 0 | J26: =((H26-G26)+(I26))*(1+TTUprater)^($B26+Construct-1) -> 0 | K26: =$J26/(1+DiscRate)^($B26+Construct-1) -> 0 | M26: 1 | N26: =TREND(N$23:N$24,$M$23:$M$24,$M26) -> 0 | O26: =TREND(O$23:O$24,$M$23:$M$24,$M26) -> 0 | P26: =TREND(P$23:P$24,$M$23:$M$24,$M26) -> 0 | Q26: =TREND(Q$23:Q$24,$M$23:$M$24,$M26) -> 0 | R26: =P26*JQValperMiPedNBEx*TAvMiPedNB -> 0 | S26: =P26*JQValperMiPedBEx*TAvMiPedB -> 0 | T26: =Q26*(JQValperMiPedBEx-JQValperMiPedNBEx)*TAvMiPedB*1/2 -> 0 | U26: =(S26-R26+T26)*(1+TTUprater)^($B26+Construct-1) -> 0 | V26: =$U26/(1+DiscRate)^($B26+Construct-1) -> 0 | X26: 1 | Y26: =U26+J26 -> 0 | Z26: 0
B27: 2 | C27: =TREND(C$23:C$24,$B$23:$B$24,$B27) -> 0 | D27: 0 | E27: 0 | F27: =TREND(F$23:F$24,$B$23:$B$24,$B27) -> 0 | G27: 0 | H27: 0 | I27: 0 | J27: 0 | K27: 0 | M27: 2 | N27: =TREND(N$23:N$24,$M$23:$M$24,$M27) -> 0 | O27: 0 | P27: 0 | Q27: 0 | R27: 0 | S27: 0 | T27: 0 | U27: 0 | V27: 0 | X27: 2 | Y27: 0 | Z27: 0
B28: 3 | C28: 0 | D28: 0 | E28: 0 | F28: =TREND(F$23:F$24,$B$23:$B$24,$B28) -> 0 | G28: 0 | H28: 0 | I28: 0 | J28: 0 | K28: 0 | M28: 3 | N28: 0 | O28: 0 | P28: 0 | Q28: 0 | R28: 0 | S28: 0 | T28: 0 | U28: 0 | V28: 0 | X28: 3 | Y28: 0 | Z28: 0
B29: 4 | C29: 0 | D29: 0 | E29: 0 | F29: =TREND(F$23:F$24,$B$23:$B$24,$B29) -> 0 | G29: 0 | H29: 0 | I29: 0 | J29: 0 | K29: 0 | M29: 4 | N29: 0 | O29: 0 | P29: 0 | Q29: 0 | R29: 0 | S29: 0 | T29: 0 | U29: 0 | V29: 0 | X29: 4 | Y29: 0 | Z29: 0
B30: 5 | C30: 0 | D30: 0 | E30: 0 | F30: 0 | G30: 0 | H30: 0 | I30: 0 | J30: 0 | K30: 0 | M30: 5 | N30: 0 | O30: 0 | P30: 0 | Q30: 0 | R30: 0 | S30: 0 | T30: 0 | U30: 0 | V30: 0 | X30: 5 | Y30: 0 | Z30: 0
B31: 6 | C31: 0 | D31: 0 | E31: 0 | F31: 0 | G31: 0 | H31: 0 | I31: 0 | J31: 0 | K31: 0 | M31: 6 | N31: 0 | O31: 0 | P31: 0 | Q31: 0 | R31: 0 | S31: 0 | T31: 0 | U31: 0 | V31: 0 | X31: 6 | Y31: 0 | Z31: 0
B32: 7 | C32: 0 | D32: 0 | E32: 0 | F32: 0 | G32: 0 | H32: 0 | I32: 0 | J32: 0 | K32: 0 | M32: 7 | N32: 0 | O32: 0 | P32: 0 | Q32: 0 | R32: 0 | S32: 0 | T32: 0 | U32: 0 | V32: 0 | X32: 7 | Y32: 0 | Z32: 0
B33: 8 | C33: 0 | D33: 0 | E33: 0 | F33: 0 | G33: 0 | H33: 0 | I33: 0 | J33: 0 | K33: 0 | M33: 8 | N33: 0 | O33: 0 | P33: 0 | Q33: 0 | R33: 0 | S33: 0 | T33: 0 | U33: 0 | V33: 0 | X33: 8 | Y33: 0 | Z33: 0
B34: 9 | C34: 0 | D34: 0 | E34: 0 | F34: 0 | G34: 0 | H34: 0 | I34: 0 | J34: 0 | K34: 0 | M34: 9 | N34: 0 | O34: 0 | P34: 0 | Q34: 0 | R34: 0 | S34: 0 | T34: 0 | U34: 0 | V34: 0 | X34: 9 | Y34: 0 | Z34: 0
B35: 10 | C35: 0 | D35: 0 | E35: 0 | F35: 0 | G35: 0 | H35: 0 | I35: 0 | J35: 0 | K35: 0 | M35: 10 | N35: 0 | O35: 0 | P35: 0 | Q35: 0 | R35: 0 | S35: 0 | T35: 0 | U35: 0 | V35: 0 | X35: 10 | Y35: 0 | Z35: 0
B36: 11 | C36: 0 | D36: 0 | E36: 0 | F36: 0 | G36: 0 | H36: 0 | I36: 0 | J36: 0 | K36: 0 | M36: 11 | N36: 0 | O36: 0 | P36: 0 | Q36: 0 | R36: 0 | S36: 0 | T36: 0 | U36: 0 | V36: 0 | X36: 11 | Y36: 0 | Z36: 0
B37: 12 | C37: 0 | D37: 0 | E37: 0 | F37: 0 | G37: 0 | H37: 0 | I37: 0 | J37: 0 | K37: 0 | M37: 12 | N37: 0 | O37: 0 | P37: 0 | Q37: 0 | R37: 0 | S37: 0 | T37: 0 | U37: 0 | V37: 0 | X37: 12 | Y37: 0 | Z37: 0
B38: 13 | C38: 0 | D38: 0 | E38: 0 | F38: 0 | G38: 0 | H38: 0 | I38: 0 | J38: 0 | K38: 0 | M38: 13 | N38: 0 | O38: 0 | P38: 0 | Q38: 0 | R38: 0 | S38: 0 | T38: 0 | U38: 0 | V38: 0 | X38: 13 | Y38: 0 | Z38: 0
B39: 14 | C39: 0 | D39: 0 | E39: 0 | F39: 0 | G39: 0 | H39: 0 | I39: 0 | J39: 0 | K39: 0 | M39: 14 | N39: 0 | O39: 0 | P39: 0 | Q39: 0 | R39: 0 | S39: 0 | T39: 0 | U39: 0 | V39: 0 | X39: 14 | Y39: 0 | Z39: 0
B40: 15 | C40: 0 | D40: 0 | E40: 0 | F40: 0 | G40: 0 | H40: 0 | I40: 0 | J40: 0 | K40: 0 | M40: 15 | N40: 0 | O40: 0 | P40: 0 | Q40: 0 | R40: 0 | S40: 0 | T40: 0 | U40: 0 | V40: 0 | X40: 15 | Y40: 0 | Z40: 0
B41: 16 | C41: 0 | D41: 0 | E41: 0 | F41: 0 | G41: 0 | H41: 0 | I41: 0 | J41: 0 | K41: 0 | M41: 16 | N41: 0 | O41: 0 | P41: 0 | Q41: 0 | R41: 0 | S41: 0 | T41: 0 | U41: 0 | V41: 0 | X41: 16 | Y41: 0 | Z41: 0
B42: 17 | C42: 0 | D42: 0 | E42: 0 | F42: 0 | G42: 0 | H42: 0 | I42: 0 | J42: 0 | K42: 0 | M42: 17 | N42: 0 | O42: 0 | P42: 0 | Q42: 0 | R42: 0 | S42: 0 | T42: 0 | U42: 0 | V42: 0 | X42: 17 | Y42: 0 | Z42: 0
B43: 18 | C43: 0 | D43: 0 | E43: 0 | F43: 0 | G43: 0 | H43: 0 | I43: 0 | J43: 0 | K43: 0 | M43: 18 | N43: 0 | O43: 0 | P43: 0 | Q43: 0 | R43: 0 | S43: 0 | T43: 0 | U43: 0 | V43: 0 | X43: 18 | Y43: 0 | Z43: 0
B44: 19 | C44: 0 | D44: 0 | E44: 0 | F44: 0 | G44: 0 | H44: 0 | I44: 0 | J44: 0 | K44: 0 | M44: 19 | N44: 0 | O44: 0 | P44: 0 | Q44: 0 | R44: 0 | S44: 0 | T44: 0 | U44: 0 | V44: 0 | X44: 19 | Y44: 0 | Z44: 0
B45: 20 | C45: 0 | D45: 0 | E45: 0 | F45: 0 | G45: 0 | H45: 0 | I45: 0 | J45: 0 | K45: 0 | M45: 20 | N45: 0 | O45: 0 | P45: 0 | Q45: 0 | R45: 0 | S45: 0 | T45: 0 | U45: 0 | V45: 0 | X45: 20 | Y45: 0 | Z45: 0
B47: Total | K47: =SUM(K26:K45) -> 0 | M47: Total | V47: =SUM(V26:V45) -> 0 | X47: Total | Z47: =SUM(Z26:Z45) -> 0
B50: New Facility | M50: New Facility | X50: New Facility
C52: AVERAGE ANNUAL VOLUME | G52: JOURNEY QUALITY VALUE | N52: ANNUAL PERSON-TRIPS | R52: JOURNEY QUALITY VALUE
C53: (trips/yr.) | G53: ($) | N53: (trips/yr.) | R53: ($)
B54: Year | C54: Total Trips, No Facility (Baseline) | D54: Total Trips, New Facility | E54: Existing Trips, New Facility | F54: Induced Trips, New Facility | H54: Existing Trips, New Facility | I54: Induced Trips, New Facility | J54: Constant Dollars | K54: Present Value | M54: Year | N54: Total Trips, No Facility (Baseline) | O54: Total Trips, New Facility | P54: Existing Trips, New Facility | Q54: Induced Trips, New Facility | S54: Existing Trips, New Facility | T54: Induced Trips, New Facility | U54: Constant Dollars | V54: Present Value | X54: Year | Y54: Constant Dollars | Z54: Present Value
B55: 1 | C55: =IF(ProjType>1,TrComCyc1NBNew+TrODCyc1NBNew+TrRecCyc1NBNew,0) -> 0 | D55: =IF(ProjType>1,TrComCyc1BNew+TrODCyc1BNew+TrRecCyc1BNew,0) -> 0 | E55: =C55 -> 0 | F55: =D55-C55 -> 0 | H55: =E55*JQValperMiCycBNew*ValTimeAT*TAvMiCycB -> 0 | I55: =F55*JQValperMiCycBNew*ValTimeAT*TAvMiCycB*1/2 -> 0 | J55: =(I55+H55)*(1+TTUprater)^($B23+Construct-1) -> 0 | K55: =$J55/(1+DiscRate)^($B55+Construct-1) -> 0 | M55: 1 | N55: =IF(ProjType>1,TrComPed1NBNew+TrODPed1NBNew+TrRecPed1NBNew*RecBen,0) -> 0 | O55: =IF(ProjType>1,TrComPed1BNew+TrODPed1BNew+TrRecPed1BNew*RecBen,0) -> 0 | P55: =N55 -> 0 | Q55: =O55-N55 -> 0 | S55: =P55*JQValperMiPedBNew*TAvMiPedB -> 0 | T55: =Q55*JQValperMiPedBNew*TAvMiPedB*1/2 -> 0 | U55: =(S55+T55)*(1+TTUprater)^($B55+Construct-1) -> 0 | V55: =$U55/(1+DiscRate)^($B55+Construct-1) -> 0 | X55: 1 | Y55: =U55+J55 -> 0 | Z55: =V55+K55 -> 0
B56: 20 | C56: =IF(ProjType>1,TrComCyc20NBNew+TrODCyc20NBNew+TrRecCyc20NBNew,0) -> 0 | D56: =IF(ProjType>1,TrComCyc20BNew+TrODCyc20BNew+TrRecCyc20BNew,0) -> 0 | E56: =C56 -> 0 | F56: =D56-C56 -> 0 | H56: =E56*JQValperMiCycBNew*ValTimeAT*TAvMiCycB -> 0 | I56: =F56*JQValperMiCycBNew*ValTimeAT*TAvMiCycB*1/2 -> 0 | J56: =(I56+H56)*(1+TTUprater)^($B24+Construct-1) -> 0 | K56: =$J56/(1+DiscRate)^($B56+Construct-1) -> 0 | M56: 20 | N56: =IF(ProjType>1,TrComPed20NBNew+TrODPed20NBNew+TrRecPed20NBNew*RecBen,0) -> 0 | O56: =IF(ProjType>1,TrComPed20BNew+TrODPed20BNew+TrRecPed20BNew*RecBen,0) -> 0 | P56: =N56 -> 0 | Q56: =O56-N56 -> 0 | S56: =P56*JQValperMiPedBNew*TAvMiPedB -> 0 | T56: =Q56*JQValperMiPedBNew*TAvMiPedB*1/2 -> 0 | U56: =(S56+T56)*(1+TTUprater)^($B56+Construct-1) -> 0 | V56: =$U56/(1+DiscRate)^($B56+Construct-1) -> 0 | X56: 20 | Y56: =U56+J56 -> 0 | Z56: =V56+K56 -> 0
B58: 1 | C58: =TREND(C$55:C$56,$B$55:$B$56,$B58) -> 0 | D58: =TREND(D$55:D$56,$B$55:$B$56,$B58) -> 0 | E58: =TREND(E$55:E$56,$B$55:$B$56,$B58) -> 0 | F58: =TREND(F$55:F$56,$B$55:$B$56,$B58) -> 0 | H58: =E58*JQValperMiCycBNew*ValTimeAT*TAvMiCycB -> 0 | I58: =F58*JQValperMiCycBNew*ValTimeAT*TAvMiCycB*1/2 -> 0 | J58: =(I58+H58)*(1+TTUprater)^($B26+Construct-1) -> 0 | K58: =$J58/(1+DiscRate)^($B58+Construct-1) -> 0 | M58: 1 | N58: =TREND(N$55:N$56,$M$55:$M$56,$M58) -> 0 | O58: =TREND(O$55:O$56,$M$55:$M$56,$M58) -> 0 | P58: =TREND(P$55:P$56,$M$55:$M$56,$M58) -> 0 | Q58: =TREND(Q$55:Q$56,$M$55:$M$56,$M58) -> 0 | S58: =P58*JQValperMiPedBNew*TAvMiPedB -> 0 | T58: =Q58*JQValperMiPedBNew*TAvMiPedB*1/2 -> 0 | U58: =(S58+T58)*(1+TTUprater)^($B58+Construct-1) -> 0 | V58: =$U58/(1+DiscRate)^($B58+Construct-1) -> 0 | X58: 1 | Y58: =U58+J58 -> 0 | Z58: 0
B59: 2 | C59: =TREND(C$55:C$56,$B$55:$B$56,$B59) -> 0 | D59: 0 | E59: 0 | F59: 0 | H59: 0 | I59: 0 | J59: 0 | K59: 0 | M59: 2 | N59: =TREND(N$55:N$56,$M$55:$M$56,$M59) -> 0 | O59: 0 | P59: 0 | Q59: 0 | S59: 0 | T59: 0 | U59: 0 | V59: 0 | X59: 2 | Y59: 0 | Z59: 0
B60: 3 | C60: 0 | D60: 0 | E60: 0 | F60: 0 | H60: 0 | I60: 0 | J60: 0 | K60: 0 | M60: 3 | N60: 0 | O60: 0 | P60: 0 | Q60: 0 | S60: 0 | T60: 0 | U60: 0 | V60: 0 | X60: 3 | Y60: 0 | Z60: 0
B61: 4 | C61: 0 | D61: 0 | E61: 0 | F61: 0 | H61: 0 | I61: 0 | J61: 0 | K61: 0 | M61: 4 | N61: 0 | O61: 0 | P61: 0 | Q61: 0 | S61: 0 | T61: 0 | U61: 0 | V61: 0 | X61: 4 | Y61: 0 | Z61: 0
B62: 5 | C62: 0 | D62: 0 | E62: 0 | F62: 0 | H62: 0 | I62: 0 | J62: 0 | K62: 0 | M62: 5 | N62: 0 | O62: 0 | P62: 0 | Q62: 0 | S62: 0 | T62: 0 | U62: 0 | V62: 0 | X62: 5 | Y62: 0 | Z62: 0
B63: 6 | C63: 0 | D63: 0 | E63: 0 | F63: 0 | H63: 0 | I63: 0 | J63: 0 | K63: 0 | M63: 6 | N63: 0 | O63: 0 | P63: 0 | Q63: 0 | S63: 0 | T63: 0 | U63: 0 | V63: 0 | X63: 6 | Y63: 0 | Z63: 0
B64: 7 | C64: 0 | D64: 0 | E64: 0 | F64: 0 | H64: 0 | I64: 0 | J64: 0 | K64: 0 | M64: 7 | N64: 0 | O64: 0 | P64: 0 | Q64: 0 | S64: 0 | T64: 0 | U64: 0 | V64: 0 | X64: 7 | Y64: 0 | Z64: 0
B65: 8 | C65: 0 | D65: 0 | E65: 0 | F65: 0 | H65: 0 | I65: 0 | J65: 0 | K65: 0 | M65: 8 | N65: 0 | O65: 0 | P65: 0 | Q65: 0 | S65: 0 | T65: 0 | U65: 0 | V65: 0 | X65: 8 | Y65: 0 | Z65: 0
B66: 9 | C66: 0 | D66: 0 | E66: 0 | F66: 0 | H66: 0 | I66: 0 | J66: 0 | K66: 0 | M66: 9 | N66: 0 | O66: 0 | P66: 0 | Q66: 0 | S66: 0 | T66: 0 | U66: 0 | V66: 0 | X66: 9 | Y66: 0 | Z66: 0
B67: 10 | C67: 0 | D67: 0 | E67: 0 | F67: 0 | H67: 0 | I67: 0 | J67: 0 | K67: 0 | M67: 10 | N67: 0 | O67: 0 | P67: 0 | Q67: 0 | S67: 0 | T67: 0 | U67: 0 | V67: 0 | X67: 10 | Y67: 0 | Z67: 0
B68: 11 | C68: 0 | D68: 0 | E68: 0 | F68: 0 | H68: 0 | I68: 0 | J68: 0 | K68: 0 | M68: 11 | N68: 0 | O68: 0 | P68: 0 | Q68: 0 | S68: 0 | T68: 0 | U68: 0 | V68: 0 | X68: 11 | Y68: 0 | Z68: 0
B69: 12 | C69: 0 | D69: 0 | E69: 0 | F69: 0 | H69: 0 | I69: 0 | J69: 0 | K69: 0 | M69: 12 | N69: 0 | O69: 0 | P69: 0 | Q69: 0 | S69: 0 | T69: 0 | U69: 0 | V69: 0 | X69: 12 | Y69: 0 | Z69: 0
B70: 13 | C70: 0 | D70: 0 | E70: 0 | F70: 0 | H70: 0 | I70: 0 | J70: 0 | K70: 0 | M70: 13 | N70: 0 | O70: 0 | P70: 0 | Q70: 0 | S70: 0 | T70: 0 | U70: 0 | V70: 0 | X70: 13 | Y70: 0 | Z70: 0
B71: 14 | C71: 0 | D71: 0 | E71: 0 | F71: 0 | H71: 0 | I71: 0 | J71: 0 | K71: 0 | M71: 14 | N71: 0 | O71: 0 | P71: 0 | Q71: 0 | S71: 0 | T71: 0 | U71: 0 | V71: 0 | X71: 14 | Y71: 0 | Z71: 0
B72: 15 | C72: 0 | D72: 0 | E72: 0 | F72: 0 | H72: 0 | I72: 0 | J72: 0 | K72: 0 | M72: 15 | N72: 0 | O72: 0 | P72: 0 | Q72: 0 | S72: 0 | T72: 0 | U72: 0 | V72: 0 | X72: 15 | Y72: 0 | Z72: 0
B73: 16 | C73: 0 | D73: 0 | E73: 0 | F73: 0 | H73: 0 | I73: 0 | J73: 0 | K73: 0 | M73: 16 | N73: 0 | O73: 0 | P73: 0 | Q73: 0 | S73: 0 | T73: 0 | U73: 0 | V73: 0 | X73: 16 | Y73: 0 | Z73: 0
B74: 17 | C74: 0 | D74: 0 | E74: 0 | F74: 0 | H74: 0 | I74: 0 | J74: 0 | K74: 0 | M74: 17 | N74: 0 | O74: 0 | P74: 0 | Q74: 0 | S74: 0 | T74: 0 | U74: 0 | V74: 0 | X74: 17 | Y74: 0 | Z74: 0
B75: 18 | C75: 0 | D75: 0 | E75: 0 | F75: 0 | H75: 0 | I75: 0 | J75: 0 | K75: 0 | M75: 18 | N75: 0 | O75: 0 | P75: 0 | Q75: 0 | S75: 0 | T75: 0 | U75: 0 | V75: 0 | X75: 18 | Y75: 0 | Z75: 0
B76: 19 | C76: 0 | D76: 0 | E76: 0 | F76: 0 | H76: 0 | I76: 0 | J76: 0 | K76: 0 | M76: 19 | N76: 0 | O76: 0 | P76: 0 | Q76: 0 | S76: 0 | T76: 0 | U76: 0 | V76: 0 | X76: 19 | Y76: 0 | Z76: 0
B77: 20 | C77: 0 | D77: 0 | E77: 0 | F77: 0 | H77: 0 | I77: 0 | J77: 0 | K77: 0 | M77: 20 | N77: 0 | O77: 0 | P77: 0 | Q77: 0 | S77: 0 | T77: 0 | U77: 0 | V77: 0 | X77: 20 | Y77: 0 | Z77: 0
B79: Total | K79: =SUM(K58:K77) -> 0 | M79: Total | V79: =SUM(V58:V77) -> 0 | X79: Total | Z79: =SUM(Z58:Z77) -> 0
B81: D | C81: CYCLING BENEFITS - SRTS | M81: E | N81: PEDESTRIAN BENEFITS - SRTS | X81: F | Y81: TOTAL
B84: Existing SRTS Facility | M84: Existing SRTS Facility | X84: Existing SRTS Facility
C86: AVERAGE ANNUAL VOLUME | G86: JOURNEY QUALITY VALUE | N86: ANNUAL PERSON-MILES | R86: JOURNEY QUALITY VALUE
C87: (trips/yr.) | G87: ($) | N87: (trip-miles/yr.) | R87: ($)
B88: Year | C88: Total Trips, Existing Facility (Baseline) | D88: Total Trips, Improved Facility | E88: Existing Trips, Improved Facility | F88: Induced Trips, Improved Facility | G88: Existing Trips, Existing Facility | H88: Existing Trips, Improved Facility | I88: Induced Trips, Improved Facility | J88: Constant Dollars | K88: Present Value | M88: Year | N88: Total Trips, Existing Facility (Baseline) | O88: Total Trips, Improved Facility | P88: Existing Trips, Improved Facility | Q88: Induced Trips, Improved Facility | R88: Existing Trips, Existing Facility | S88: Existing Trips, Improved Facility | T88: Induced Trips, Improved Facility | U88: Constant Dollars | V88: Present Value | X88: Year | Y88: Constant Dollars | Z88: Present Value
B89: 1 | C89: =IF(AND(OR(ProjType=1,ProjType=3),SRTSProj=1),TrSRTSCyc1NBEx,0) -> 0 | D89: =IF(AND(OR(ProjType=1,ProjType=3),SRTSProj=1),TrSRTSCyc1BEx,0) -> 0 | E89: =C89 -> 0 | F89: =D89-C89 -> 0 | G89: =E89*JQValperMiCycNBEx*ValTimeChild*TAvMiCycNBSRTS -> 0 | H89: =E89*JQValperMiCycBEx*ValTimeChild*TAvMiCycBSRTS -> 0 | I89: =F89*(JQValperMiCycBEx-JQValperMiCycNBEx)*ValTimeChild*TAvMiCycBSRTS*1/2 -> 0 | J89: =((H89-G89)+(I89))*(1+TTUprater)^($B89+Construct-1) -> 0 | K89: =$J89/(1+DiscRate)^($B89+Construct-1) -> 0 | M89: 1 | N89: =IF(AND(OR(ProjType=1,ProjType=3),SRTSProj=1),TrSRTSPed1NBEx,0) -> 0 | O89: =IF(AND(OR(ProjType=1,ProjType=3),SRTSProj=1),TrSRTSPed1BEx,0) -> 0 | P89: =N89 -> 0 | Q89: =O89-N89 -> 0 | R89: =P89*JQValperMiPedNBEx*TAvMiPedNBSRTS -> 0 | S89: =P89*JQValperMiPedBEx*TAvMiPedBSRTS -> 0 | T89: =Q89*(JQValperMiPedBEx-JQValperMiPedNBEx)*TAvMiPedBSRTS*1/2 -> 0 | U89: =(S89-R89+T89)*(1+TTUprater)^($B89+Construct-1) -> 0 | V89: =$U89/(1+DiscRate)^($B89+Construct-1) -> 0 | X89: 1 | Y89: =U89+J89 -> 0 | Z89: =V89+K89 -> 0
B90: 20 | C90: =IF(AND(OR(ProjType=1,ProjType=3),SRTSProj=1),TrSRTSCyc20NBEx,0) -> 0 | D90: =IF(AND(OR(ProjType=1,ProjType=3),SRTSProj=1),TrSRTSCyc20BEx,0) -> 0 | E90: =C90 -> 0 | F90: =D90-C90 -> 0 | G90: =E90*JQValperMiCycNBEx*ValTimeChild*TAvMiCycNBSRTS -> 0 | H90: =E90*JQValperMiCycBEx*ValTimeChild*TAvMiCycBSRTS -> 0 | I90: =F90*(JQValperMiCycBEx-JQValperMiCycNBEx)*ValTimeChild*TAvMiCycBSRTS*1/2 -> 0 | J90: =((H90-G90)+(I90))*(1+TTUprater)^($B90+Construct-1) -> 0 | K90: =$J90/(1+DiscRate)^($B90+Construct-1) -> 0 | M90: 20 | N90: =IF(AND(OR(ProjType=1,ProjType=3),SRTSProj=1),TrSRTSPed20NBEx,0) -> 0 | O90: =IF(AND(OR(ProjType=1,ProjType=3),SRTSProj=1),TrSRTSPed20BEx,0) -> 0 | P90: =N90 -> 0 | Q90: =O90-N90 -> 0 | R90: =P90*JQValperMiPedNBEx*TAvMiPedNBSRTS -> 0 | S90: =P90*JQValperMiPedBEx*TAvMiPedBSRTS -> 0 | T90: =Q90*(JQValperMiPedBEx-JQValperMiPedNBEx)*TAvMiPedBSRTS*1/2 -> 0 | U90: =(S90-R90+T90)*(1+TTUprater)^($B90+Construct-1) -> 0 | V90: =$U90/(1+DiscRate)^($B90+Construct-1) -> 0 | X90: 20 | Y90: =U90+J90 -> 0 | Z90: =V90+K90 -> 0
B92: 1 | C92: =TREND(C$89:C$90,$B$89:$B$90,$B92) -> 0 | D92: =TREND(D$89:D$90,$B$89:$B$90,$B92) -> 0 | E92: =TREND(E$89:E$90,$B$89:$B$90,$B92) -> 0 | F92: =TREND(F$89:F$90,$B$89:$B$90,$B92) -> 0 | G92: =E92*JQValperMiCycNBEx*ValTimeChild*TAvMiCycNB -> 0 | H92: =E92*JQValperMiCycBEx*ValTimeChild*TAvMiCycB -> 0 | I92: =F92*(JQValperMiCycBEx-JQValperMiCycNBEx)*ValTimeChild*TAvMiCycB*1/2 -> 0 | J92: =((H92-G92)+(I92))*(1+TTUprater)^($B92+Construct-1) -> 0 | K92: =$J92/(1+DiscRate)^($B92+Construct-1) -> 0 | M92: 1 | N92: =TREND(N$89:N$90,$M$89:$M$90,$M92) -> 0 | O92: =TREND(O$89:O$90,$M$89:$M$90,$M92) -> 0 | P92: =TREND(P$89:P$90,$M$89:$M$90,$M92) -> 0 | Q92: =TREND(Q$89:Q$90,$M$89:$M$90,$M92) -> 0 | R92: =P92*JQValperMiPedNBEx*TAvMiPedNBSRTS -> 0 | S92: =P92*JQValperMiPedBEx*TAvMiPedBSRTS -> 0 | T92: =Q92*(JQValperMiPedBEx-JQValperMiPedNBEx)*TAvMiPedBSRTS*1/2 -> 0 | U92: =(S92-R92+T92)*(1+TTUprater)^($B92+Construct-1) -> 0 | V92: =$U92/(1+DiscRate)^($B92+Construct-1) -> 0 | X92: 1 | Y92: =U92+J92 -> 0 | Z92: 0
B93: 2 | C93: =TREND(C$89:C$90,$B$89:$B$90,$B93) -> 0 | D93: 0 | E93: 0 | F93: 0 | G93: 0 | H93: 0 | I93: 0 | J93: 0 | K93: 0 | M93: 2 | N93: =TREND(N$89:N$90,$M$89:$M$90,$M93) -> 0 | O93: 0 | P93: 0 | Q93: 0 | R93: 0 | S93: 0 | T93: 0 | U93: 0 | V93: 0 | X93: 2 | Y93: 0 | Z93: 0
B94: 3 | C94: 0 | D94: 0 | E94: 0 | F94: 0 | G94: 0 | H94: 0 | I94: 0 | J94: 0 | K94: 0 | M94: 3 | N94: 0 | O94: 0 | P94: 0 | Q94: 0 | R94: 0 | S94: 0 | T94: 0 | U94: 0 | V94: 0 | X94: 3 | Y94: 0 | Z94: 0
B95: 4 | C95: 0 | D95: 0 | E95: 0 | F95: 0 | G95: 0 | H95: 0 | I95: 0 | J95: 0 | K95: 0 | M95: 4 | N95: 0 | O95: 0 | P95: 0 | Q95: 0 | R95: 0 | S95: 0 | T95: 0 | U95: 0 | V95: 0 | X95: 4 | Y95: 0 | Z95: 0
B96: 5 | C96: 0 | D96: 0 | E96: 0 | F96: 0 | G96: 0 | H96: 0 | I96: 0 | J96: 0 | K96: 0 | M96: 5 | N96: 0 | O96: 0 | P96: 0 | Q96: 0 | R96: 0 | S96: 0 | T96: 0 | U96: 0 | V96: 0 | X96: 5 | Y96: 0 | Z96: 0
B97: 6 | C97: 0 | D97: 0 | E97: 0 | F97: 0 | G97: 0 | H97: 0 | I97: 0 | J97: 0 | K97: 0 | M97: 6 | N97: 0 | O97: 0 | P97: 0 | Q97: 0 | R97: 0 | S97: 0 | T97: 0 | U97: 0 | V97: 0 | X97: 6 | Y97: 0 | Z97: 0
B98: 7 | C98: 0 | D98: 0 | E98: 0 | F98: 0 | G98: 0 | H98: 0 | I98: 0 | J98: 0 | K98: 0 | M98: 7 | N98: 0 | O98: 0 | P98: 0 | Q98: 0 | R98: 0 | S98: 0 | T98: 0 | U98: 0 | V98: 0 | X98: 7 | Y98: 0 | Z98: 0
B99: 8 | C99: 0 | D99: 0 | E99: 0 | F99: 0 | G99: 0 | H99: 0 | I99: 0 | J99: 0 | K99: 0 | M99: 8 | N99: 0 | O99: 0 | P99: 0 | Q99: 0 | R99: 0 | S99: 0 | T99: 0 | U99: 0 | V99: 0 | X99: 8 | Y99: 0 | Z99: 0
B100: 9 | C100: 0 | D100: 0 | E100: 0 | F100: 0 | G100: 0 | H100: 0 | I100: 0 | J100: 0 | K100: 0 | M100: 9 | N100: 0 | O100: 0 | P100: 0 | Q100: 0 | R100: 0 | S100: 0 | T100: 0 | U100: 0 | V100: 0 | X100: 9 | Y100: 0 | Z100: 0
B101: 10 | C101: 0 | D101: 0 | E101: 0 | F101: 0 | G101: 0 | H101: 0 | I101: 0 | J101: 0 | K101: 0 | M101: 10 | N101: 0 | O101: 0 | P101: 0 | Q101: 0 | R101: 0 | S101: 0 | T101: 0 | U101: 0 | V101: 0 | X101: 10 | Y101: 0 | Z101: 0
B102: 11 | C102: 0 | D102: 0 | E102: 0 | F102: 0 | G102: 0 | H102: 0 | I102: 0 | J102: 0 | K102: 0 | M102: 11 | N102: 0 | O102: 0 | P102: 0 | Q102: 0 | R102: 0 | S102: 0 | T102: 0 | U102: 0 | V102: 0 | X102: 11 | Y102: 0 | Z102: 0
B103: 12 | C103: 0 | D103: 0 | E103: 0 | F103: 0 | G103: 0 | H103: 0 | I103: 0 | J103: 0 | K103: 0 | M103: 12 | N103: 0 | O103: 0 | P103: 0 | Q103: 0 | R103: 0 | S103: 0 | T103: 0 | U103: 0 | V103: 0 | X103: 12 | Y103: 0 | Z103: 0
B104: 13 | C104: 0 | D104: 0 | E104: 0 | F104: 0 | G104: 0 | H104: 0 | I104: 0 | J104: 0 | K104: 0 | M104: 13 | N104: 0 | O104: 0 | P104: 0 | Q104: 0 | R104: 0 | S104: 0 | T104: 0 | U104: 0 | V104: 0 | X104: 13 | Y104: 0 | Z104: 0
B105: 14 | C105: 0 | D105: 0 | E105: 0 | F105: 0 | G105: 0 | H105: 0 | I105: 0 | J105: 0 | K105: 0 | M105: 14 | N105: 0 | O105: 0 | P105: 0 | Q105: 0 | R105: 0 | S105: 0 | T105: 0 | U105: 0 | V105: 0 | X105: 14 | Y105: 0 | Z105: 0
B106: 15 | C106: 0 | D106: 0 | E106: 0 | F106: 0 | G106: 0 | H106: 0 | I106: 0 | J106: 0 | K106: 0 | M106: 15 | N106: 0 | O106: 0 | P106: 0 | Q106: 0 | R106: 0 | S106: 0 | T106: 0 | U106: 0 | V106: 0 | X106: 15 | Y106: 0 | Z106: 0
B107: 16 | C107: 0 | D107: 0 | E107: 0 | F107: 0 | G107: 0 | H107: 0 | I107: 0 | J107: 0 | K107: 0 | M107: 16 | N107: 0 | O107: 0 | P107: 0 | Q107: 0 | R107: 0 | S107: 0 | T107: 0 | U107: 0 | V107: 0 | X107: 16 | Y107: 0 | Z107: 0
B108: 17 | C108: 0 | D108: 0 | E108: 0 | F108: 0 | G108: 0 | H108: 0 | I108: 0 | J108: 0 | K108: 0 | M108: 17 | N108: 0 | O108: 0 | P108: 0 | Q108: 0 | R108: 0 | S108: 0 | T108: 0 | U108: 0 | V108: 0 | X108: 17 | Y108: 0 | Z108: 0
B109: 18 | C109: 0 | D109: 0 | E109: 0 | F109: 0 | G109: 0 | H109: 0 | I109: 0 | J109: 0 | K109: 0 | M109: 18 | N109: 0 | O109: 0 | P109: 0 | Q109: 0 | R109: 0 | S109: 0 | T109: 0 | U109: 0 | V109: 0 | X109: 18 | Y109: 0 | Z109: 0
B110: 19 | C110: 0 | D110: 0 | E110: 0 | F110: 0 | G110: 0 | H110: 0 | I110: 0 | J110: 0 | K110: 0 | M110: 19 | N110: 0 | O110: 0 | P110: 0 | Q110: 0 | R110: 0 | S110: 0 | T110: 0 | U110: 0 | V110: 0 | X110: 19 | Y110: 0 | Z110: 0
B111: 20 | C111: 0 | D111: 0 | E111: 0 | F111: 0 | G111: 0 | H111: 0 | I111: 0 | J111: 0 | K111: 0 | M111: 20 | N111: 0 | O111: 0 | P111: 0 | Q111: 0 | R111: 0 | S111: 0 | T111: 0 | U111: 0 | V111: 0 | X111: 20 | Y111: 0 | Z111: 0
B113: Total | K113: =SUM(K92:K111) -> 0 | M113: Total | V113: =SUM(V92:V111) -> 0 | X113: Total | Z113: =SUM(Z92:Z111) -> 0
B117: CYCLING BENEFITS - SRTS | M117: PEDESTRIAN BENEFITS - SRTS | X117: C | Y117: TOTAL
B120: New SRTS Facility | M120: New SRTS Facility | X120: New SRTS Facility
C122: AVERAGE ANNUAL VOLUME | G122: JOURNEY QUALITY VALUE | N122: ANNUAL PERSON-MILES | R122: JOURNEY QUALITY VALUE
C123: (trips/yr.) | G123: ($) | N123: (trip-miles/yr.) | R123: ($)
B124: Year | C124: Total Trips, No Facility (Baseline) | D124: Total Trips, New Facility | E124: Existing Trips, New Facility | F124: Induced Trips, New Facility | H124: Existing Trips, New Facility | I124: Induced Trips, New Facility | J124: Constant Dollars | K124: Present Value | M124: Year | N124: Total Trips, No Facility (Baseline) | O124: Total Trips, New Facility | P124: Existing Trips, New Facility | Q124: Induced Trips, New Facility | S124: Existing Trips, New Facility | T124: Induced Trips, New Facility | U124: Constant Dollars | V124: Present Value | X124: Year | Y124: Constant Dollars | Z124: Present Value
B125: 1 | C125: =IF(AND(ProjType>1,SRTSProj=1),TrSRTSCyc1NBNew,0) -> 0 | D125: =IF(AND(ProjType>1,SRTSProj=1),TrSRTSCyc1BNew,0) -> 0 | E125: =C125 -> 0 | F125: =D125-C125 -> 0 | H125: =E125*JQValperMiCycBNew*ValTimeChild*TAvMiCycBSRTS -> 0 | I125: =F125*JQValperMiCycBNew*ValTimeChild*TAvMiCycBSRTS*1/2 -> 0 | J125: =((H125-G125)+(I125))*(1+TTUprater)^($B125+Construct-1) -> 0 | K125: =$J125/(1+DiscRate)^($B125+Construct-1) -> 0 | M125: 1 | N125: =IF(AND(ProjType>1,SRTSProj=1),TrSRTSPed1NBNew,0) -> 0 | O125: =IF(AND(ProjType>1,SRTSProj=1),TrSRTSPed1BNew,0) -> 0 | P125: =N125 -> 0 | Q125: =O125-N125 -> 0 | S125: =P125*JQValperMiPedBNew*TAvMiPedBSRTS -> 0 | T125: =Q125*JQValperMiPedBNew*TAvMiPedBSRTS*1/2 -> 0 | U125: =(S125-R125+T125)*(1+TTUprater)^($B125+Construct-1) -> 0 | V125: =$U125/(1+DiscRate)^($B125+Construct-1) -> 0 | X125: 1 | Y125: =U125+J125 -> 0 | Z125: =V125+K125 -> 0
B126: 20 | C126: =IF(AND(ProjType>1,SRTSProj=1),TrSRTSCyc20NBNew,0) -> 0 | D126: =IF(AND(ProjType>1,SRTSProj=1),TrSRTSCyc20BNew,0) -> 0 | E126: =C126 -> 0 | F126: =D126-C126 -> 0 | H126: =E126*JQValperMiCycBNew*ValTimeChild*TAvMiCycBSRTS -> 0 | I126: =F126*JQValperMiCycBNew*ValTimeChild*TAvMiCycBSRTS*1/2 -> 0 | J126: =((H126-G126)+(I126))*(1+TTUprater)^($B126+Construct-1) -> 0 | K126: =$J126/(1+DiscRate)^($B126+Construct-1) -> 0 | M126: 20 | N126: =IF(AND(ProjType>1,SRTSProj=1),TrSRTSPed20NBNew,0) -> 0 | O126: =IF(AND(ProjType>1,SRTSProj=1),TrSRTSPed20BNew,0) -> 0 | P126: =N126 -> 0 | Q126: =O126-N126 -> 0 | S126: =P126*JQValperMiPedBNew*TAvMiPedBSRTS -> 0 | T126: =Q126*JQValperMiPedBNew*TAvMiPedBSRTS*1/2 -> 0 | U126: =(S126-R126+T126)*(1+TTUprater)^($B126+Construct-1) -> 0 | V126: =$U126/(1+DiscRate)^($B126+Construct-1) -> 0 | X126: 20 | Y126: =U126+J126 -> 0 | Z126: =V126+K126 -> 0
B128: 1 | C128: =TREND(C$125:C$126,$B$125:$B$126,$B128) -> 0 | D128: =TREND(D$125:D$126,$B$125:$B$126,$B128) -> 0 | E128: =TREND(E$125:E$126,$B$125:$B$126,$B128) -> 0 | F128: =TREND(F$125:F$126,$B$125:$B$126,$B128) -> 0 | H128: =E128*JQValperMiCycBNew*ValTimeChild*TAvMiCycBSRTS -> 0 | I128: =F128*JQValperMiCycBNew*ValTimeChild*TAvMiCycBSRTS*1/2 -> 0 | J128: =((H128-G128)+(I128))*(1+TTUprater)^($B128+Construct-1) -> 0 | K128: =$J128/(1+DiscRate)^($B128+Construct-1) -> 0 | M128: 1 | N128: =TREND(N$125:N$126,$M$125:$M$126,$M128) -> 0 | O128: =TREND(O$125:O$126,$M$125:$M$126,$M128) -> 0 | P128: =TREND(P$125:P$126,$M$125:$M$126,$M128) -> 0 | Q128: =TREND(Q$125:Q$126,$M$125:$M$126,$M128) -> 0 | S128: =P128*JQValperMiPedBNew*TAvMiPedBSRTS -> 0 | T128: =Q128*JQValperMiPedBNew*TAvMiPedBSRTS*1/2 -> 0 | U128: =(S128-R128+T128)*(1+TTUprater)^($B128+Construct-1) -> 0 | V128: =$U128/(1+DiscRate)^($B128+Construct-1) -> 0 | X128: 1 | Y128: =U128+J128 -> 0 | Z128: 0
B129: 2 | C129: =TREND(C$125:C$126,$B$125:$B$126,$B129) -> 0 | D129: 0 | E129: 0 | F129: 0 | H129: 0 | I129: 0 | J129: 0 | K129: 0 | M129: 2 | N129: =TREND(N$125:N$126,$M$125:$M$126,$M129) -> 0 | O129: =TREND(O$125:O$126,$M$125:$M$126,$M129) -> 0 | P129: 0 | Q129: 0 | S129: 0 | T129: 0 | U129: 0 | V129: 0 | X129: 2 | Y129: 0 | Z129: 0
B130: 3 | C130: 0 | D130: 0 | E130: 0 | F130: 0 | H130: 0 | I130: 0 | J130: 0 | K130: 0 | M130: 3 | N130: =TREND(N$125:N$126,$M$125:$M$126,$M130) -> 0 | O130: 0 | P130: 0 | Q130: 0 | S130: 0 | T130: 0 | U130: 0 | V130: 0 | X130: 3 | Y130: 0 | Z130: 0
B131: 4 | C131: 0 | D131: 0 | E131: 0 | F131: 0 | H131: 0 | I131: 0 | J131: 0 | K131: 0 | M131: 4 | N131: =TREND(N$125:N$126,$M$125:$M$126,$M131) -> 0 | O131: 0 | P131: 0 | Q131: 0 | S131: 0 | T131: 0 | U131: 0 | V131: 0 | X131: 4 | Y131: 0 | Z131: 0
B132: 5 | C132: 0 | D132: 0 | E132: 0 | F132: 0 | H132: 0 | I132: 0 | J132: 0 | K132: 0 | M132: 5 | N132: 0 | O132: 0 | P132: 0 | Q132: 0 | S132: 0 | T132: 0 | U132: 0 | V132: 0 | X132: 5 | Y132: 0 | Z132: 0
B133: 6 | C133: 0 | D133: 0 | E133: 0 | F133: 0 | H133: 0 | I133: 0 | J133: 0 | K133: 0 | M133: 6 | N133: 0 | O133: 0 | P133: 0 | Q133: 0 | S133: 0 | T133: 0 | U133: 0 | V133: 0 | X133: 6 | Y133: 0 | Z133: 0
B134: 7 | C134: 0 | D134: 0 | E134: 0 | F134: 0 | H134: 0 | I134: 0 | J134: 0 | K134: 0 | M134: 7 | N134: 0 | O134: 0 | P134: 0 | Q134: 0 | S134: 0 | T134: 0 | U134: 0 | V134: 0 | X134: 7 | Y134: 0 | Z134: 0
B135: 8 | C135: 0 | D135: 0 | E135: 0 | F135: 0 | H135: 0 | I135: 0 | J135: 0 | K135: 0 | M135: 8 | N135: 0 | O135: 0 | P135: 0 | Q135: 0 | S135: 0 | T135: 0 | U135: 0 | V135: 0 | X135: 8 | Y135: 0 | Z135: 0
B136: 9 | C136: 0 | D136: 0 | E136: 0 | F136: 0 | H136: 0 | I136: 0 | J136: 0 | K136: 0 | M136: 9 | N136: 0 | O136: 0 | P136: 0 | Q136: 0 | S136: 0 | T136: 0 | U136: 0 | V136: 0 | X136: 9 | Y136: 0 | Z136: 0
B137: 10 | C137: 0 | D137: 0 | E137: 0 | F137: 0 | H137: 0 | I137: 0 | J137: 0 | K137: 0 | M137: 10 | N137: 0 | O137: 0 | P137: 0 | Q137: 0 | S137: 0 | T137: 0 | U137: 0 | V137: 0 | X137: 10 | Y137: 0 | Z137: 0
B138: 11 | C138: 0 | D138: 0 | E138: 0 | F138: 0 | H138: 0 | I138: 0 | J138: 0 | K138: 0 | M138: 11 | N138: 0 | O138: 0 | P138: 0 | Q138: 0 | S138: 0 | T138: 0 | U138: 0 | V138: 0 | X138: 11 | Y138: 0 | Z138: 0
B139: 12 | C139: 0 | D139: 0 | E139: 0 | F139: 0 | H139: 0 | I139: 0 | J139: 0 | K139: 0 | M139: 12 | N139: 0 | O139: 0 | P139: 0 | Q139: 0 | S139: 0 | T139: 0 | U139: 0 | V139: 0 | X139: 12 | Y139: 0 | Z139: 0
B140: 13 | C140: 0 | D140: 0 | E140: 0 | F140: 0 | H140: 0 | I140: 0 | J140: 0 | K140: 0 | M140: 13 | N140: 0 | O140: 0 | P140: 0 | Q140: 0 | S140: 0 | T140: 0 | U140: 0 | V140: 0 | X140: 13 | Y140: 0 | Z140: 0
B141: 14 | C141: 0 | D141: 0 | E141: 0 | F141: 0 | H141: 0 | I141: 0 | J141: 0 | K141: 0 | M141: 14 | N141: 0 | O141: 0 | P141: 0 | Q141: 0 | S141: 0 | T141: 0 | U141: 0 | V141: 0 | X141: 14 | Y141: 0 | Z141: 0
B142: 15 | C142: 0 | D142: 0 | E142: 0 | F142: 0 | H142: 0 | I142: 0 | J142: 0 | K142: 0 | M142: 15 | N142: 0 | O142: 0 | P142: 0 | Q142: 0 | S142: 0 | T142: 0 | U142: 0 | V142: 0 | X142: 15 | Y142: 0 | Z142: 0
B143: 16 | C143: 0 | D143: 0 | E143: 0 | F143: 0 | H143: 0 | I143: 0 | J143: 0 | K143: 0 | M143: 16 | N143: 0 | O143: 0 | P143: 0 | Q143: 0 | S143: 0 | T143: 0 | U143: 0 | V143: 0 | X143: 16 | Y143: 0 | Z143: 0
B144: 17 | C144: 0 | D144: 0 | E144: 0 | F144: 0 | H144: 0 | I144: 0 | J144: 0 | K144: 0 | M144: 17 | N144: 0 | O144: 0 | P144: 0 | Q144: 0 | S144: 0 | T144: 0 | U144: 0 | V144: 0 | X144: 17 | Y144: 0 | Z144: 0
B145: 18 | C145: 0 | D145: 0 | E145: 0 | F145: 0 | H145: 0 | I145: 0 | J145: 0 | K145: 0 | M145: 18 | N145: 0 | O145: 0 | P145: 0 | Q145: 0 | S145: 0 | T145: 0 | U145: 0 | V145: 0 | X145: 18 | Y145: 0 | Z145: 0
B146: 19 | C146: 0 | D146: 0 | E146: 0 | F146: 0 | H146: 0 | I146: 0 | J146: 0 | K146: 0 | M146: 19 | N146: 0 | O146: 0 | P146: 0 | Q146: 0 | S146: 0 | T146: 0 | U146: 0 | V146: 0 | X146: 19 | Y146: 0 | Z146: 0
B147: 20 | C147: 0 | D147: 0 | E147: 0 | F147: 0 | H147: 0 | I147: 0 | J147: 0 | K147: 0 | M147: 20 | N147: 0 | O147: 0 | P147: 0 | Q147: 0 | S147: 0 | T147: 0 | U147: 0 | V147: 0 | X147: 20 | Y147: 0 | Z147: 0
B149: Total | K149: =SUM(K128:K147) -> 0 | M149: Total | V149: =SUM(V128:V147) -> 0 | X149: Total | Z149: =SUM(Z128:Z147) -> 0
D152: Computation of Journey Quality Parameters - Cycling | P152: Computation of Journey Quality Parameters - Cycling
G154: Improved Facility | I154: New Facility | R154: Improved Facility | T154: New Facility
G155: Existing | H155: Build | I155: Build | R155: No Build | S155: Build | T155: Build
F156: Facility Type | G156: Percent of Facility | H156: Percent of Facility | I156: Percent of Facility | Q156: Amenities | R156: Presence / Absence | S156: Presence / Absence | T156: Presence / Absence
F157: Class I - Bike Paths, if any | G157: =IFERROR('1a) Project Info'!G35/'1a) Project Info'!$H$39,0) -> 0 | H157: =IFERROR('1a) Project Info'!H35/'1a) Project Info'!$H$39,0) -> 0 | I157: =IFERROR('1a) Project Info'!R35/'1a) Project Info'!$R$39,0) -> 0 | Q157: Street Lighting | R157: ='1a) Project Info'!G42 -> 0 | S157: ='1a) Project Info'!H42 -> 0 | T157: ='1a) Project Info'!R42 -> 0 | U157: Yes =1 or No=0
F158: Class II - Bike Lanes, if any | G158: =IFERROR('1a) Project Info'!G36/'1a) Project Info'!$H$39,0) -> 0 | H158: =IFERROR('1a) Project Info'!H36/'1a) Project Info'!$H$39,0) -> 0 | I158: =IFERROR('1a) Project Info'!R36/'1a) Project Info'!$R$39,0) -> 0 | Q158: Curb Level | R158: ='1a) Project Info'!G43 -> 0 | S158: ='1a) Project Info'!H43 -> 0 | T158: ='1a) Project Info'!R43 -> 0 | U158: Yes =1 or No=0
F159: Class III - Bike Route, if any | G159: =IFERROR('1a) Project Info'!G37/'1a) Project Info'!$H$39,0) -> 0 | H159: =IFERROR('1a) Project Info'!H37/'1a) Project Info'!$H$39,0) -> 0 | I159: =IFERROR('1a) Project Info'!R37/'1a) Project Info'!$R$39,0) -> 0 | Q159: Crowding | R159: ='1a) Project Info'!G44 -> 0 | S159: ='1a) Project Info'!H44 -> 0 | T159: ='1a) Project Info'!R44 -> 0 | U159: Yes =1 or No=0
F160: Class IV - Separated bikeways, cycle tracks, if any | G160: =IFERROR('1a) Project Info'!G38/'1a) Project Info'!$H$39,0) -> 0 | H160: =IFERROR('1a) Project Info'!H38/'1a) Project Info'!$H$39,0) -> 0 | I160: =IFERROR('1a) Project Info'!R38/'1a) Project Info'!$R$39,0) -> 0 | Q160: Pavement Evenness | R160: ='1a) Project Info'!G45 -> 0 | S160: ='1a) Project Info'!H45 -> 0 | T160: ='1a) Project Info'!R45 -> 0 | U160: Yes =1 or No=0
Q161: Information Panels | R161: ='1a) Project Info'!G46 -> 0 | S161: ='1a) Project Info'!H46 -> 0 | T161: ='1a) Project Info'!R46 -> 0 | U161: Yes =1 or No=0
Q162: Benches | R162: ='1a) Project Info'!G47 -> 0 | S162: ='1a) Project Info'!H47 -> 0 | T162: ='1a) Project Info'!R47 -> 0 | U162: Yes =1 or No=0
F163: Facility Preference Factor (Pro-rated) - New Segment | G163: =SUMPRODUCT('Journey Quality'!G157:G160,JQValCyc) -> 0 | H163: =SUMPRODUCT('Journey Quality'!H157:H160,JQValCyc) -> 0 | I163: =SUMPRODUCT('Journey Quality'!I157:I160,JQValCyc) -> 0 | J163: miles of road / miles of facility | Q163: Directional Signage | R163: ='1a) Project Info'!G48 -> 0 | S163: ='1a) Project Info'!H48 -> 0 | T163: ='1a) Project Info'!R48 -> 0 | U163: Yes =1 or No=0
F165: Journey Quality per Avg Trip Distance | G165: =IF(OR(ProjType=1,ProjType=3),((1-'Journey Quality'!G$163)/CycSpeed),0) -> 0 | H165: =IF(OR(ProjType=1,ProjType=3),((1-'Journey Quality'!H$163)/CycSpeed),0) -> 0 | I165: =IF(ProjType>1,((1-'Journey Quality'!$I$163)/CycSpeed),0) -> 0 | J165: hrs / mile of avg trip distance | Q165: All measures | R165: =IF(OR(ProjType=1,ProjType=3),SUMPRODUCT(R157:R163,JQValPed),0) -> 0 | S165: =IF(OR(ProjType=1,ProjType=3),SUMPRODUCT(S157:S163,JQValPed),0) -> 0 | T165: =IF(ProjType>1,SUMPRODUCT(T157:T163,JQValPed),0) -> 0 | U165: Value ($/Mi)

Sheet Intersection Delay
B1: Intersection Delay Benefits
B3: This sheet calculates total reduction in intersection delay due to improvements at intersections on an existing bike/pedestrian facility.
B5: Formulas:
B7: Avg. Annual Trips = Avg. Daily Trips x Annual Days in Year, by purpose | H7: Value of Time Savings = Travel Time Reduction x Avg. Value of Time
B8: trips / yr. | H8: $ / year | J8: $/hour
B10: Time Saved = # of intersections crossed per trip x time savings per intersection x Avg. Annual Trips | H10: Value of Journey Quality for Induced trips applies rule of half
B11: trip-hrs / yr. | D11: trip / yr. x miles | F11: miles/hour
B15: A | C15: CYCLING BENEFITS | N15: B | O15: PEDESTRIAN BENEFITS | Z15: C | AA15: TOTAL
B18: Existing Facility | N18: Existing Facility | Z18: Existing Facility
C20: AVERAGE ANNUAL VOLUME | G20: TRAVEL TIME SAVED | I20: VALUE OF TIME SAVINGS | O20: AVERAGE ANNUAL VOLUME | S20: TRAVEL TIME SAVED | U20: VALUE OF TIME SAVINGS
C21: (trips/yr.) | G21: (hours/yr.) | I21: ($/year) | O21: (trips/yr.) | S21: (hours/yr.) | U21: ($/year)
B22: Year | C22: Total Trips, Existing Facility (Baseline) | D22: Total Trips, Improved Facility | E22: Existing Trips, Existing Facility | F22: Induced Trips, Existing Facility | G22: Existing Trips | H22: Induced Trips | I22: Existing Trips | J22: Induced Trips | K22: Constant Dollars | L22: Present Value | N22: Year | O22: Total Trips, Existing Facility (Baseline) | P22: Total Trips, Improved Facility | Q22: Existing Trips, Existing Facility | R22: Induced Trips, Existing Facility | S22: Existing Trips | T22: Induced Trips | U22: Existing Trips | V22: Induced Trips | W22: Constant Dollars | X22: Present Value | Z22: Year | AA22: Constant Dollars | AB22: Present Value
B23: 1 | C23: =IF(OR(ProjType=1, ProjType=3),TrComCyc1NBEX+TrODCyc1NBEX+TrRecCyc1NBEX*RecBen,0) -> 0 | D23: =IF(OR(ProjType=1, ProjType=3),TrComCyc1BEX+TrODCyc1BEX+TrRecCyc1BEX*RecBen,0) -> 0 | E23: =C23 -> 0 | F23: =D23-C23 -> 0 | G23: =E23*'Intersection Delay'!$E$94 -> 0 | H23: =F23*'Intersection Delay'!$E$94 -> 0 | I23: =G23*ValTimeAT -> 0 | J23: =H23*ValTimeAT/2 -> 0 | K23: =I23*(1+TTUprater)^($B23+Construct-1) -> 0 | L23: =$K23/(1+DiscRate)^($B23+Construct-1) -> 0 | N23: 1 | O23: =IF(OR(ProjType=1, ProjType=3),TrComPed1NBEX+TrODPed1NBEX+TrRecPed1NBEX*RecBen,0) -> 0 | P23: =IF(OR(ProjType=1, ProjType=3),TrComPed1BEX+TrODPed1BEX+TrRecPed1BEX*RecBen,0) -> 0 | Q23: =O23 -> 0 | R23: =P23-O23 -> 0 | S23: =Q23*'Intersection Delay'!$Q$94 -> 0 | T23: =R23*'Intersection Delay'!$Q$94 -> 0 | U23: =S23*ValTimeAT -> 0 | V23: =T23*ValTimeAT/2 -> 0 | W23: =U23*(1+TTUprater)^($B23+Construct-1) -> 0 | X23: =$W23/(1+DiscRate)^($B23+Construct-1) -> 0 | Z23: 1 | AA23: =W23+K23 -> 0 | AB23: =X23+L23 -> 0
B24: 20 | C24: =IF(OR(ProjType=1, ProjType=3),TrComCyc20NBEX+TrODCyc20NBEX+TrRecCyc20NBEX*RecBen,0) -> 0 | D24: =IF(OR(ProjType=1, ProjType=3),TrComCyc20BEX+TrODCyc20BEX+TrRecCyc20BEX*RecBen,0) -> 0 | E24: =C24 -> 0 | F24: =D24-C24 -> 0 | G24: =E24*'Intersection Delay'!$E$94 -> 0 | H24: =F24*'Intersection Delay'!$E$94 -> 0 | I24: =G24*ValTimeAT -> 0 | J24: =H24*ValTimeAT/2 -> 0 | K24: =I24*(1+TTUprater)^($B23+Construct-1) -> 0 | L24: =$K24/(1+DiscRate)^($B24+Construct-1) -> 0 | N24: 20 | O24: =IF(OR(ProjType=1, ProjType=3),TrComPed20NBEX+TrODPed20NBEX+TrRecPed20NBEX*RecBen,0) -> 0 | P24: =IF(OR(ProjType=1, ProjType=3),TrComPed20BEX+TrODPed20BEX+TrRecPed20BEX*RecBen,0) -> 0 | Q24: =O24 -> 0 | R24: =P24-O24 -> 0 | S24: =Q24*'Intersection Delay'!$Q$94 -> 0 | T24: =R24*'Intersection Delay'!$Q$94 -> 0 | U24: =S24*ValTimeAT -> 0 | V24: =T24*ValTimeAT/2 -> 0 | W24: =U24*(1+TTUprater)^($B23+Construct-1) -> 0 | X24: =$W24/(1+DiscRate)^($B24+Construct-1) -> 0 | Z24: 20 | AA24: =W24+K24 -> 0 | AB24: =X24+L24 -> 0
B26: 1 | C26: =TREND(C$23:C$24,$B$23:$B$24,$B26) -> 0 | D26: =TREND(D$23:D$24,$B$23:$B$24,$B26) -> 0 | E26: =C26 -> 0 | F26: =D26-C26 -> 0 | G26: =E26*'Intersection Delay'!$E$94 -> 0 | H26: =F26*'Intersection Delay'!$E$94 -> 0 | I26: =G26*ValTimeAT -> 0 | J26: =H26*ValTimeAT/2 -> 0 | K26: =I26*(1+TTUprater)^($B23+Construct-1) -> 0 | L26: =$K26/(1+DiscRate)^($B26+Construct-1) -> 0 | N26: 1 | O26: =TREND(O$23:O$24,$B$23:$B$24,$B26) -> 0 | P26: =TREND(P$23:P$24,$B$23:$B$24,$B26) -> 0 | Q26: =TREND(Q$23:Q$24,$B$23:$B$24,$B26) -> 0 | R26: =P26-O26 -> 0 | S26: =Q26*'Intersection Delay'!$Q$94 -> 0 | T26: =R26*'Intersection Delay'!$Q$94 -> 0 | U26: =S26*ValTimeAT -> 0 | V26: =T26*ValTimeAT/2 -> 0 | W26: =U26*(1+TTUprater)^($B23+Construct-1) -> 0 | X26: =$W26/(1+DiscRate)^($B26+Construct-1) -> 0 | Z26: 1 | AA26: =W26+K26 -> 0 | AB26: =X26+L26 -> 0
B27: 2 | C27: =TREND(C$23:C$24,$B$23:$B$24,$B27) -> 0 | D27: 0 | E27: 0 | F27: 0 | G27: =E27*'Intersection Delay'!$E$94 -> 0 | H27: =F27*'Intersection Delay'!$E$94 -> 0 | I27: 0 | J27: 0 | K27: 0 | L27: 0 | N27: 2 | O27: =TREND(O$23:O$24,$B$23:$B$24,$B27) -> 0 | P27: 0 | Q27: 0 | R27: 0 | S27: =Q27*'Intersection Delay'!$Q$94 -> 0 | T27: =R27*'Intersection Delay'!$Q$94 -> 0 | U27: 0 | V27: 0 | W27: 0 | X27: 0 | Z27: 2 | AA27: 0 | AB27: 0
B28: 3 | C28: 0 | D28: 0 | E28: 0 | F28: 0 | G28: =E28*'Intersection Delay'!$E$94 -> 0 | H28: =F28*'Intersection Delay'!$E$94 -> 0 | I28: 0 | J28: 0 | K28: 0 | L28: 0 | N28: 3 | O28: 0 | P28: 0 | Q28: 0 | R28: 0 | S28: =Q28*'Intersection Delay'!$Q$94 -> 0 | T28: =R28*'Intersection Delay'!$Q$94 -> 0 | U28: 0 | V28: 0 | W28: 0 | X28: 0 | Z28: 3 | AA28: 0 | AB28: 0
B29: 4 | C29: 0 | D29: 0 | E29: 0 | F29: 0 | G29: =E29*'Intersection Delay'!$E$94 -> 0 | H29: =F29*'Intersection Delay'!$E$94 -> 0 | I29: 0 | J29: 0 | K29: 0 | L29: 0 | N29: 4 | O29: 0 | P29: 0 | Q29: 0 | R29: 0 | S29: =Q29*'Intersection Delay'!$Q$94 -> 0 | T29: =R29*'Intersection Delay'!$Q$94 -> 0 | U29: 0 | V29: 0 | W29: 0 | X29: 0 | Z29: 4 | AA29: 0 | AB29: 0
B30: 5 | C30: 0 | D30: 0 | E30: 0 | F30: 0 | G30: =E30*'Intersection Delay'!$E$94 -> 0 | H30: =F30*'Intersection Delay'!$E$94 -> 0 | I30: 0 | J30: 0 | K30: 0 | L30: 0 | N30: 5 | O30: 0 | P30: 0 | Q30: 0 | R30: 0 | S30: =Q30*'Intersection Delay'!$Q$94 -> 0 | T30: =R30*'Intersection Delay'!$Q$94 -> 0 | U30: 0 | V30: 0 | W30: 0 | X30: 0 | Z30: 5 | AA30: 0 | AB30: 0
B31: 6 | C31: 0 | D31: 0 | E31: 0 | F31: 0 | G31: =E31*'Intersection Delay'!$E$94 -> 0 | H31: =F31*'Intersection Delay'!$E$94 -> 0 | I31: 0 | J31: 0 | K31: 0 | L31: 0 | N31: 6 | O31: 0 | P31: 0 | Q31: 0 | R31: 0 | S31: =Q31*'Intersection Delay'!$Q$94 -> 0 | T31: =R31*'Intersection Delay'!$Q$94 -> 0 | U31: 0 | V31: 0 | W31: 0 | X31: 0 | Z31: 6 | AA31: 0 | AB31: 0
B32: 7 | C32: 0 | D32: 0 | E32: 0 | F32: 0 | G32: =E32*'Intersection Delay'!$E$94 -> 0 | H32: =F32*'Intersection Delay'!$E$94 -> 0 | I32: 0 | J32: 0 | K32: 0 | L32: 0 | N32: 7 | O32: 0 | P32: 0 | Q32: 0 | R32: 0 | S32: =Q32*'Intersection Delay'!$Q$94 -> 0 | T32: =R32*'Intersection Delay'!$Q$94 -> 0 | U32: 0 | V32: 0 | W32: 0 | X32: 0 | Z32: 7 | AA32: 0 | AB32: 0
B33: 8 | C33: 0 | D33: 0 | E33: 0 | F33: 0 | G33: =E33*'Intersection Delay'!$E$94 -> 0 | H33: =F33*'Intersection Delay'!$E$94 -> 0 | I33: 0 | J33: 0 | K33: 0 | L33: 0 | N33: 8 | O33: 0 | P33: 0 | Q33: 0 | R33: 0 | S33: =Q33*'Intersection Delay'!$Q$94 -> 0 | T33: =R33*'Intersection Delay'!$Q$94 -> 0 | U33: 0 | V33: 0 | W33: 0 | X33: 0 | Z33: 8 | AA33: 0 | AB33: 0
B34: 9 | C34: 0 | D34: 0 | E34: 0 | F34: 0 | G34: =E34*'Intersection Delay'!$E$94 -> 0 | H34: =F34*'Intersection Delay'!$E$94 -> 0 | I34: 0 | J34: 0 | K34: 0 | L34: 0 | N34: 9 | O34: 0 | P34: 0 | Q34: 0 | R34: 0 | S34: =Q34*'Intersection Delay'!$Q$94 -> 0 | T34: =R34*'Intersection Delay'!$Q$94 -> 0 | U34: 0 | V34: 0 | W34: 0 | X34: 0 | Z34: 9 | AA34: 0 | AB34: 0
B35: 10 | C35: 0 | D35: 0 | E35: 0 | F35: 0 | G35: =E35*'Intersection Delay'!$E$94 -> 0 | H35: =F35*'Intersection Delay'!$E$94 -> 0 | I35: 0 | J35: 0 | K35: 0 | L35: 0 | N35: 10 | O35: 0 | P35: 0 | Q35: 0 | R35: 0 | S35: =Q35*'Intersection Delay'!$Q$94 -> 0 | T35: =R35*'Intersection Delay'!$Q$94 -> 0 | U35: 0 | V35: 0 | W35: 0 | X35: 0 | Z35: 10 | AA35: 0 | AB35: 0
B36: 11 | C36: 0 | D36: 0 | E36: 0 | F36: 0 | G36: =E36*'Intersection Delay'!$E$94 -> 0 | H36: =F36*'Intersection Delay'!$E$94 -> 0 | I36: 0 | J36: 0 | K36: 0 | L36: 0 | N36: 11 | O36: 0 | P36: 0 | Q36: 0 | R36: 0 | S36: =Q36*'Intersection Delay'!$Q$94 -> 0 | T36: =R36*'Intersection Delay'!$Q$94 -> 0 | U36: 0 | V36: 0 | W36: 0 | X36: 0 | Z36: 11 | AA36: 0 | AB36: 0
B37: 12 | C37: 0 | D37: 0 | E37: 0 | F37: 0 | G37: =E37*'Intersection Delay'!$E$94 -> 0 | H37: =F37*'Intersection Delay'!$E$94 -> 0 | I37: 0 | J37: 0 | K37: 0 | L37: 0 | N37: 12 | O37: 0 | P37: 0 | Q37: 0 | R37: 0 | S37: =Q37*'Intersection Delay'!$Q$94 -> 0 | T37: =R37*'Intersection Delay'!$Q$94 -> 0 | U37: 0 | V37: 0 | W37: 0 | X37: 0 | Z37: 12 | AA37: 0 | AB37: 0
B38: 13 | C38: 0 | D38: 0 | E38: 0 | F38: 0 | G38: =E38*'Intersection Delay'!$E$94 -> 0 | H38: =F38*'Intersection Delay'!$E$94 -> 0 | I38: 0 | J38: 0 | K38: 0 | L38: 0 | N38: 13 | O38: 0 | P38: 0 | Q38: 0 | R38: 0 | S38: =Q38*'Intersection Delay'!$Q$94 -> 0 | T38: =R38*'Intersection Delay'!$Q$94 -> 0 | U38: 0 | V38: 0 | W38: 0 | X38: 0 | Z38: 13 | AA38: 0 | AB38: 0
B39: 14 | C39: 0 | D39: 0 | E39: 0 | F39: 0 | G39: =E39*'Intersection Delay'!$E$94 -> 0 | H39: =F39*'Intersection Delay'!$E$94 -> 0 | I39: 0 | J39: 0 | K39: 0 | L39: 0 | N39: 14 | O39: 0 | P39: 0 | Q39: 0 | R39: 0 | S39: =Q39*'Intersection Delay'!$Q$94 -> 0 | T39: =R39*'Intersection Delay'!$Q$94 -> 0 | U39: 0 | V39: 0 | W39: 0 | X39: 0 | Z39: 14 | AA39: 0 | AB39: 0
B40: 15 | C40: 0 | D40: 0 | E40: 0 | F40: 0 | G40: =E40*'Intersection Delay'!$E$94 -> 0 | H40: =F40*'Intersection Delay'!$E$94 -> 0 | I40: 0 | J40: 0 | K40: 0 | L40: 0 | N40: 15 | O40: 0 | P40: 0 | Q40: 0 | R40: 0 | S40: =Q40*'Intersection Delay'!$Q$94 -> 0 | T40: =R40*'Intersection Delay'!$Q$94 -> 0 | U40: 0 | V40: 0 | W40: 0 | X40: 0 | Z40: 15 | AA40: 0 | AB40: 0
B41: 16 | C41: 0 | D41: 0 | E41: 0 | F41: 0 | G41: =E41*'Intersection Delay'!$E$94 -> 0 | H41: =F41*'Intersection Delay'!$E$94 -> 0 | I41: 0 | J41: 0 | K41: 0 | L41: 0 | N41: 16 | O41: 0 | P41: 0 | Q41: 0 | R41: 0 | S41: =Q41*'Intersection Delay'!$Q$94 -> 0 | T41: =R41*'Intersection Delay'!$Q$94 -> 0 | U41: 0 | V41: 0 | W41: 0 | X41: 0 | Z41: 16 | AA41: 0 | AB41: 0
B42: 17 | C42: 0 | D42: 0 | E42: 0 | F42: 0 | G42: =E42*'Intersection Delay'!$E$94 -> 0 | H42: =F42*'Intersection Delay'!$E$94 -> 0 | I42: 0 | J42: 0 | K42: 0 | L42: 0 | N42: 17 | O42: 0 | P42: 0 | Q42: 0 | R42: 0 | S42: =Q42*'Intersection Delay'!$Q$94 -> 0 | T42: =R42*'Intersection Delay'!$Q$94 -> 0 | U42: 0 | V42: 0 | W42: 0 | X42: 0 | Z42: 17 | AA42: 0 | AB42: 0
B43: 18 | C43: 0 | D43: 0 | E43: 0 | F43: 0 | G43: =E43*'Intersection Delay'!$E$94 -> 0 | H43: =F43*'Intersection Delay'!$E$94 -> 0 | I43: 0 | J43: 0 | K43: 0 | L43: 0 | N43: 18 | O43: 0 | P43: 0 | Q43: 0 | R43: 0 | S43: =Q43*'Intersection Delay'!$Q$94 -> 0 | T43: =R43*'Intersection Delay'!$Q$94 -> 0 | U43: 0 | V43: 0 | W43: 0 | X43: 0 | Z43: 18 | AA43: 0 | AB43: 0
B44: 19 | C44: 0 | D44: 0 | E44: 0 | F44: 0 | G44: =E44*'Intersection Delay'!$E$94 -> 0 | H44: =F44*'Intersection Delay'!$E$94 -> 0 | I44: 0 | J44: 0 | K44: 0 | L44: 0 | N44: 19 | O44: 0 | P44: 0 | Q44: 0 | R44: 0 | S44: =Q44*'Intersection Delay'!$Q$94 -> 0 | T44: =R44*'Intersection Delay'!$Q$94 -> 0 | U44: 0 | V44: 0 | W44: 0 | X44: 0 | Z44: 19 | AA44: 0 | AB44: 0
B45: 20 | C45: 0 | D45: 0 | E45: 0 | F45: 0 | G45: =E45*'Intersection Delay'!$E$94 -> 0 | H45: =F45*'Intersection Delay'!$E$94 -> 0 | I45: 0 | J45: 0 | K45: 0 | L45: 0 | N45: 20 | O45: 0 | P45: 0 | Q45: 0 | R45: 0 | S45: =Q45*'Intersection Delay'!$Q$94 -> 0 | T45: =R45*'Intersection Delay'!$Q$94 -> 0 | U45: 0 | V45: 0 | W45: 0 | X45: 0 | Z45: 20 | AA45: 0 | AB45: 0
B47: Total | L47: =SUM(L26:L45) -> 0 | N47: Total | X47: =SUM(X26:X45) -> 0 | Z47: Total | AB47: =SUM(AB26:AB45) -> 0
B52: D | C52: CYCLING BENEFITS | N52: E | O52: PEDESTRIAN BENEFITS - SRTS | Z52: F | AA52: TOTAL
B55: Existing SRTS Facility | N55: Existing SRTS Facility | Z55: Existing Facility
C57: AVERAGE ANNUAL VOLUME | G57: TRAVEL TIME SAVED | I57: VALUE OF TIME SAVINGS | O57: AVERAGE ANNUAL VOLUME | S57: TRAVEL TIME SAVED | U57: VALUE OF TIME SAVINGS
C58: (trips/yr.) | G58: (hours/yr.) | I58: ($/year) | O58: (trips/yr.) | S58: (hours/yr.) | U58: ($/year)
B59: Year | C59: Total Trips, Existing Facility (Baseline) | D59: Total Trips, Improved Facility | E59: Existing Trips, Existing Facility | F59: Induced Trips, Existing Facility | G59: Existing Trips | H59: Induced Trips | I59: Existing Trips | J59: Induced Trips | K59: Constant Dollars | L59: Present Value | N59: Year | O59: Total Trips, Existing Facility (Baseline) | P59: Total Trips, Improved Facility | Q59: Existing Trips, Existing Facility | R59: Induced Trips, Existing Facility | S59: Existing Trips | T59: Induced Trips | U59: Existing Trips | V59: Induced Trips | W59: Constant Dollars | X59: Present Value | Z59: Year | AA59: Constant Dollars | AB59: Present Value
B60: 1 | C60: =IF(AND(OR(ProjType=1, ProjType=3),SRTSProj=1),TrSRTSCyc1NBEx,0) -> 0 | D60: =IF(AND(OR(ProjType=1, ProjType=3),SRTSProj=1),TrSRTSCyc1BEx,0) -> 0 | E60: =C60 -> 0 | F60: =D60-C60 -> 0 | G60: =E60*'Intersection Delay'!$E$94 -> 0 | H60: =F60*'Intersection Delay'!$E$94 -> 0 | I60: =G60*ValTimeAT -> 0 | J60: =H60*ValTimeAT/2 -> 0 | K60: =I60*(1+TTUprater)^($B60+Construct-1) -> 0 | L60: =$K60/(1+DiscRate)^($B60+Construct-1) -> 0 | N60: 1 | O60: =IF(AND(OR(ProjType=1, ProjType=3),SRTSProj=1),TrSRTSPed1NBEx,0) -> 0 | P60: =IF(AND(OR(ProjType=1, ProjType=3),SRTSProj=1),TrSRTSPed1BEx,0) -> 0 | Q60: =O60 -> 0 | R60: =P60-O60 -> 0 | S60: =Q60*'Intersection Delay'!$Q$94 -> 0 | T60: =R60*'Intersection Delay'!$Q$94 -> 0 | U60: =S60*ValTimeAT -> 0 | V60: =T60*ValTimeAT/2 -> 0 | W60: =U60*(1+TTUprater)^($B60+Construct-1) -> 0 | X60: =$W60/(1+DiscRate)^($B60+Construct-1) -> 0 | Z60: 1 | AA60: =W60+K60 -> 0 | AB60: =X60+L60 -> 0
B61: 20 | C61: =IF(AND(OR(ProjType=1, ProjType=3),SRTSProj=1),TrSRTSCyc20NBEx,0) -> 0 | D61: =IF(AND(OR(ProjType=1, ProjType=3),SRTSProj=1),TrSRTSCyc20BEx,0) -> 0 | E61: =C61 -> 0 | F61: =D61-C61 -> 0 | G61: =E61*'Intersection Delay'!$E$94 -> 0 | H61: =F61*'Intersection Delay'!$E$94 -> 0 | I61: =G61*ValTimeAT -> 0 | J61: =H61*ValTimeAT/2 -> 0 | K61: =I61*(1+TTUprater)^($B60+Construct-1) -> 0 | L61: =$K61/(1+DiscRate)^($B61+Construct-1) -> 0 | N61: 20 | O61: =IF(AND(OR(ProjType=1, ProjType=3),SRTSProj=1),TrSRTSPed20NBEx,0) -> 0 | P61: =IF(AND(OR(ProjType=1, ProjType=3),SRTSProj=1),TrSRTSPed20BEx,0) -> 0 | Q61: =O61 -> 0 | R61: =P61-O61 -> 0 | S61: =Q61*'Intersection Delay'!$Q$94 -> 0 | T61: =R61*'Intersection Delay'!$Q$94 -> 0 | U61: =S61*ValTimeAT -> 0 | V61: =T61*ValTimeAT/2 -> 0 | W61: =U61*(1+TTUprater)^($B60+Construct-1) -> 0 | X61: =$W61/(1+DiscRate)^($B61+Construct-1) -> 0 | Z61: 20 | AA61: =W61+K61 -> 0 | AB61: =X61+L61 -> 0
B63: 1 | C63: =TREND(C$60:C$61,$B$60:$B$61,$B63) -> 0 | D63: =TREND(D$60:D$61,$B$60:$B$61,$B63) -> 0 | E63: =C63 -> 0 | F63: =D63-C63 -> 0 | G63: =E63*'Intersection Delay'!$E$94 -> 0 | H63: =F63*'Intersection Delay'!$E$94 -> 0 | I63: =G63*ValTimeAT -> 0 | J63: =H63*ValTimeAT/2 -> 0 | K63: =I63*(1+TTUprater)^($B60+Construct-1) -> 0 | L63: =$K63/(1+DiscRate)^($B63+Construct-1) -> 0 | N63: 1 | O63: =TREND(O$23:O$24,$B$23:$B$24,$B63) -> 0 | P63: =TREND(P$23:P$24,$B$23:$B$24,$B63) -> 0 | Q63: =TREND(Q$23:Q$24,$B$23:$B$24,$B63) -> 0 | R63: =P63-O63 -> 0 | S63: =Q63*'Intersection Delay'!$Q$94 -> 0 | T63: =R63*'Intersection Delay'!$Q$94 -> 0 | U63: =S63*ValTimeAT -> 0 | V63: =T63*ValTimeAT/2 -> 0 | W63: =U63*(1+TTUprater)^($B60+Construct-1) -> 0 | X63: =$W63/(1+DiscRate)^($B63+Construct-1) -> 0 | Z63: 1 | AA63: =W63+K63 -> 0 | AB63: =X63+L63 -> 0
B64: 2 | C64: =TREND(C$60:C$61,$B$60:$B$61,$B64) -> 0 | D64: 0 | E64: 0 | F64: 0 | G64: =E64*'Intersection Delay'!$E$94 -> 0 | H64: =F64*'Intersection Delay'!$E$94 -> 0 | I64: 0 | J64: 0 | K64: 0 | L64: 0 | N64: 2 | O64: =TREND(O$23:O$24,$B$23:$B$24,$B64) -> 0 | P64: 0 | Q64: 0 | R64: 0 | S64: =Q64*'Intersection Delay'!$Q$94 -> 0 | T64: =R64*'Intersection Delay'!$Q$94 -> 0 | U64: 0 | V64: 0 | W64: 0 | X64: 0 | Z64: 2 | AA64: 0 | AB64: 0
B65: 3 | C65: 0 | D65: 0 | E65: 0 | F65: 0 | G65: =E65*'Intersection Delay'!$E$94 -> 0 | H65: =F65*'Intersection Delay'!$E$94 -> 0 | I65: 0 | J65: 0 | K65: 0 | L65: 0 | N65: 3 | O65: 0 | P65: 0 | Q65: 0 | R65: 0 | S65: =Q65*'Intersection Delay'!$Q$94 -> 0 | T65: =R65*'Intersection Delay'!$Q$94 -> 0 | U65: 0 | V65: 0 | W65: 0 | X65: 0 | Z65: 3 | AA65: 0 | AB65: 0
B66: 4 | C66: 0 | D66: 0 | E66: 0 | F66: 0 | G66: =E66*'Intersection Delay'!$E$94 -> 0 | H66: =F66*'Intersection Delay'!$E$94 -> 0 | I66: 0 | J66: 0 | K66: 0 | L66: 0 | N66: 4 | O66: 0 | P66: 0 | Q66: 0 | R66: 0 | S66: =Q66*'Intersection Delay'!$Q$94 -> 0 | T66: =R66*'Intersection Delay'!$Q$94 -> 0 | U66: 0 | V66: 0 | W66: 0 | X66: 0 | Z66: 4 | AA66: 0 | AB66: 0
B67: 5 | C67: 0 | D67: 0 | E67: 0 | F67: 0 | G67: =E67*'Intersection Delay'!$E$94 -> 0 | H67: =F67*'Intersection Delay'!$E$94 -> 0 | I67: 0 | J67: 0 | K67: 0 | L67: 0 | N67: 5 | O67: 0 | P67: 0 | Q67: 0 | R67: 0 | S67: =Q67*'Intersection Delay'!$Q$94 -> 0 | T67: =R67*'Intersection Delay'!$Q$94 -> 0 | U67: 0 | V67: 0 | W67: 0 | X67: 0 | Z67: 5 | AA67: 0 | AB67: 0
B68: 6 | C68: 0 | D68: 0 | E68: 0 | F68: 0 | G68: =E68*'Intersection Delay'!$E$94 -> 0 | H68: =F68*'Intersection Delay'!$E$94 -> 0 | I68: 0 | J68: 0 | K68: 0 | L68: 0 | N68: 6 | O68: 0 | P68: 0 | Q68: 0 | R68: 0 | S68: =Q68*'Intersection Delay'!$Q$94 -> 0 | T68: =R68*'Intersection Delay'!$Q$94 -> 0 | U68: 0 | V68: 0 | W68: 0 | X68: 0 | Z68: 6 | AA68: 0 | AB68: 0
B69: 7 | C69: 0 | D69: 0 | E69: 0 | F69: 0 | G69: =E69*'Intersection Delay'!$E$94 -> 0 | H69: =F69*'Intersection Delay'!$E$94 -> 0 | I69: 0 | J69: 0 | K69: 0 | L69: 0 | N69: 7 | O69: 0 | P69: 0 | Q69: 0 | R69: 0 | S69: =Q69*'Intersection Delay'!$Q$94 -> 0 | T69: =R69*'Intersection Delay'!$Q$94 -> 0 | U69: 0 | V69: 0 | W69: 0 | X69: 0 | Z69: 7 | AA69: 0 | AB69: 0
B70: 8 | C70: 0 | D70: 0 | E70: 0 | F70: 0 | G70: =E70*'Intersection Delay'!$E$94 -> 0 | H70: =F70*'Intersection Delay'!$E$94 -> 0 | I70: 0 | J70: 0 | K70: 0 | L70: 0 | N70: 8 | O70: 0 | P70: 0 | Q70: 0 | R70: 0 | S70: =Q70*'Intersection Delay'!$Q$94 -> 0 | T70: =R70*'Intersection Delay'!$Q$94 -> 0 | U70: 0 | V70: 0 | W70: 0 | X70: 0 | Z70: 8 | AA70: 0 | AB70: 0
B71: 9 | C71: 0 | D71: 0 | E71: 0 | F71: 0 | G71: =E71*'Intersection Delay'!$E$94 -> 0 | H71: =F71*'Intersection Delay'!$E$94 -> 0 | I71: 0 | J71: 0 | K71: 0 | L71: 0 | N71: 9 | O71: 0 | P71: 0 | Q71: 0 | R71: 0 | S71: =Q71*'Intersection Delay'!$Q$94 -> 0 | T71: =R71*'Intersection Delay'!$Q$94 -> 0 | U71: 0 | V71: 0 | W71: 0 | X71: 0 | Z71: 9 | AA71: 0 | AB71: 0
B72: 10 | C72: 0 | D72: 0 | E72: 0 | F72: 0 | G72: =E72*'Intersection Delay'!$E$94 -> 0 | H72: =F72*'Intersection Delay'!$E$94 -> 0 | I72: 0 | J72: 0 | K72: 0 | L72: 0 | N72: 10 | O72: 0 | P72: 0 | Q72: 0 | R72: 0 | S72: =Q72*'Intersection Delay'!$Q$94 -> 0 | T72: =R72*'Intersection Delay'!$Q$94 -> 0 | U72: 0 | V72: 0 | W72: 0 | X72: 0 | Z72: 10 | AA72: 0 | AB72: 0
B73: 11 | C73: 0 | D73: 0 | E73: 0 | F73: 0 | G73: =E73*'Intersection Delay'!$E$94 -> 0 | H73: =F73*'Intersection Delay'!$E$94 -> 0 | I73: 0 | J73: 0 | K73: 0 | L73: 0 | N73: 11 | O73: 0 | P73: 0 | Q73: 0 | R73: 0 | S73: =Q73*'Intersection Delay'!$Q$94 -> 0 | T73: =R73*'Intersection Delay'!$Q$94 -> 0 | U73: 0 | V73: 0 | W73: 0 | X73: 0 | Z73: 11 | AA73: 0 | AB73: 0
B74: 12 | C74: 0 | D74: 0 | E74: 0 | F74: 0 | G74: =E74*'Intersection Delay'!$E$94 -> 0 | H74: =F74*'Intersection Delay'!$E$94 -> 0 | I74: 0 | J74: 0 | K74: 0 | L74: 0 | N74: 12 | O74: 0 | P74: 0 | Q74: 0 | R74: 0 | S74: =Q74*'Intersection Delay'!$Q$94 -> 0 | T74: =R74*'Intersection Delay'!$Q$94 -> 0 | U74: 0 | V74: 0 | W74: 0 | X74: 0 | Z74: 12 | AA74: 0 | AB74: 0
B75: 13 | C75: 0 | D75: 0 | E75: 0 | F75: 0 | G75: =E75*'Intersection Delay'!$E$94 -> 0 | H75: =F75*'Intersection Delay'!$E$94 -> 0 | I75: 0 | J75: 0 | K75: 0 | L75: 0 | N75: 13 | O75: 0 | P75: 0 | Q75: 0 | R75: 0 | S75: =Q75*'Intersection Delay'!$Q$94 -> 0 | T75: =R75*'Intersection Delay'!$Q$94 -> 0 | U75: 0 | V75: 0 | W75: 0 | X75: 0 | Z75: 13 | AA75: 0 | AB75: 0
B76: 14 | C76: 0 | D76: 0 | E76: 0 | F76: 0 | G76: =E76*'Intersection Delay'!$E$94 -> 0 | H76: =F76*'Intersection Delay'!$E$94 -> 0 | I76: 0 | J76: 0 | K76: 0 | L76: 0 | N76: 14 | O76: 0 | P76: 0 | Q76: 0 | R76: 0 | S76: =Q76*'Intersection Delay'!$Q$94 -> 0 | T76: =R76*'Intersection Delay'!$Q$94 -> 0 | U76: 0 | V76: 0 | W76: 0 | X76: 0 | Z76: 14 | AA76: 0 | AB76: 0
B77: 15 | C77: 0 | D77: 0 | E77: 0 | F77: 0 | G77: =E77*'Intersection Delay'!$E$94 -> 0 | H77: =F77*'Intersection Delay'!$E$94 -> 0 | I77: 0 | J77: 0 | K77: 0 | L77: 0 | N77: 15 | O77: 0 | P77: 0 | Q77: 0 | R77: 0 | S77: =Q77*'Intersection Delay'!$Q$94 -> 0 | T77: =R77*'Intersection Delay'!$Q$94 -> 0 | U77: 0 | V77: 0 | W77: 0 | X77: 0 | Z77: 15 | AA77: 0 | AB77: 0
B78: 16 | C78: 0 | D78: 0 | E78: 0 | F78: 0 | G78: =E78*'Intersection Delay'!$E$94 -> 0 | H78: =F78*'Intersection Delay'!$E$94 -> 0 | I78: 0 | J78: 0 | K78: 0 | L78: 0 | N78: 16 | O78: 0 | P78: 0 | Q78: 0 | R78: 0 | S78: =Q78*'Intersection Delay'!$Q$94 -> 0 | T78: =R78*'Intersection Delay'!$Q$94 -> 0 | U78: 0 | V78: 0 | W78: 0 | X78: 0 | Z78: 16 | AA78: 0 | AB78: 0
B79: 17 | C79: 0 | D79: 0 | E79: 0 | F79: 0 | G79: =E79*'Intersection Delay'!$E$94 -> 0 | H79: =F79*'Intersection Delay'!$E$94 -> 0 | I79: 0 | J79: 0 | K79: 0 | L79: 0 | N79: 17 | O79: 0 | P79: 0 | Q79: 0 | R79: 0 | S79: =Q79*'Intersection Delay'!$Q$94 -> 0 | T79: =R79*'Intersection Delay'!$Q$94 -> 0 | U79: 0 | V79: 0 | W79: 0 | X79: 0 | Z79: 17 | AA79: 0 | AB79: 0
B80: 18 | C80: 0 | D80: 0 | E80: 0 | F80: 0 | G80: =E80*'Intersection Delay'!$E$94 -> 0 | H80: =F80*'Intersection Delay'!$E$94 -> 0 | I80: 0 | J80: 0 | K80: 0 | L80: 0 | N80: 18 | O80: 0 | P80: 0 | Q80: 0 | R80: 0 | S80: =Q80*'Intersection Delay'!$Q$94 -> 0 | T80: =R80*'Intersection Delay'!$Q$94 -> 0 | U80: 0 | V80: 0 | W80: 0 | X80: 0 | Z80: 18 | AA80: 0 | AB80: 0
B81: 19 | C81: 0 | D81: 0 | E81: 0 | F81: 0 | G81: =E81*'Intersection Delay'!$E$94 -> 0 | H81: =F81*'Intersection Delay'!$E$94 -> 0 | I81: 0 | J81: 0 | K81: 0 | L81: 0 | N81: 19 | O81: 0 | P81: 0 | Q81: 0 | R81: 0 | S81: =Q81*'Intersection Delay'!$Q$94 -> 0 | T81: =R81*'Intersection Delay'!$Q$94 -> 0 | U81: 0 | V81: 0 | W81: 0 | X81: 0 | Z81: 19 | AA81: 0 | AB81: 0
B82: 20 | C82: 0 | D82: 0 | E82: 0 | F82: 0 | G82: =E82*'Intersection Delay'!$E$94 -> 0 | H82: =F82*'Intersection Delay'!$E$94 -> 0 | I82: 0 | J82: 0 | K82: 0 | L82: 0 | N82: 20 | O82: 0 | P82: 0 | Q82: 0 | R82: 0 | S82: =Q82*'Intersection Delay'!$Q$94 -> 0 | T82: =R82*'Intersection Delay'!$Q$94 -> 0 | U82: 0 | V82: 0 | W82: 0 | X82: 0 | Z82: 20 | AA82: 0 | AB82: 0
B84: Total | L84: =SUM(L63:L82) -> 0 | N84: Total | X84: =SUM(X63:X82) -> 0 | Z84: Total | AB84: =SUM(AB63:AB82) -> 0
C88: Computation of Travel Time Parameters - Cycling | O88: Computation of Travel Time Parameters - Pedestrian
D90: Average Number of Intersections Crossed per Trip (#) | E90: =IFERROR('1a) Project Info'!H87/'1a) Project Info'!H13*TAvMiCycNB,0) -> 0 | P90: Average Number of Intersections Crossed per Trip | Q90: =IFERROR('1a) Project Info'!H87/'1a) Project Info'!H13*TAvMiPedNB,0) -> 0
D92: Total Time Savings per Trip (min) | E92: =E90*'1a) Project Info'!H88 -> 0 | P92: Total Time Savings per Trip (min) | Q92: =Q90*'1a) Project Info'!H88 -> 0
D94: Total Time Savings per Trip (hr) | E94: =E92/60 -> 0 | P94: Total Time Savings per Trip (hr) | Q94: =Q92/60 -> 0

Sheet Intersection Safety
B1: Intersection Safety Benefits
B3: This sheet calculates safety benefits associated with intersection improvements along a bike/pedestrian facility.
B5: Formulas:
B7: Baseline Ave. Ann. Accidents by Type = Sum of total Accidents by Type / Years of Accident Data | J7: Value of Accident Reduction by Type = Reduced # of accidents by Type x Value of Accident by Type
B8: Accidents / yr. | J8: $ / year | L8: $/accident
B10: Reduction in Acc. by Type = Crash Modification Factor(s) x Baseline Ave. Ann. Acc. by Type (see calculations, below) | J10: Value of Accident Reduction all types = Sum of Value of Accidents by Type
B11: vehicle-hrs / yr. | D11: vehicles / yr. x miles | F11: miles/hour | J11: $ / year | L11: $/accident
B15: A | C15: CYCLING BENEFITS | S15: B | T15: PEDESTRIAN BENEFITS | AJ15: C | AK15: TOTAL | AN15: D | AO15: SRTS Benefits Share
B18: Existing Facility | S18: Existing Facility | AJ18: Existing Facility | AN18: Existing Facility
C20: EXISTING ACCIDENT RATE AT AFFECTED INTERSECTIONS | G20: NEW ACCIDENT RATE AT AFFECTED INTERSECTIONS | K20: ACCIDENT REDUCTION AT AFFECTED INTERSECTIONS | O20: SAFETY VALUE | T20: EXISTING ACCIDENT RATE AT AFFECTED INTERSECTIONS | X20: NEW ACCIDENT RATE AT AFFECTED INTERSECTIONS | AB20: ACCIDENT REDUCTION AT AFFECTED INTERSECTIONS | AF20: SAFETY VALUE | AO20: Share of Cycling Benefits | AP20: Share of Ped Benefits | AQ20: Sum of Benefits
C21: (events/yr.) | G21: (events/yr.) | K21: (events/yr.) | O21: ($) | T21: (events/yr.) | X21: (events/yr.) | AB21: (events/yr.) | AF21: ($) | AO21: ='2) Model Inputs'!$H$166 -> FALSE | AP21: ='2) Model Inputs'!$S$166 -> FALSE
B22: Year | C22: Fatalities | D22: Injuries | E22: Property Damage Only | F22: Total | G22: Fatalities | H22: Injuries | I22: Property Damage Only | J22: Total | K22: Fatalities | L22: Injuries | M22: Property Damage Only | N22: Total | O22: Total | P22: Constant Dollars | Q22: Present Value | S22: Year | T22: Fatalities | U22: Injuries | V22: Property Damage Only | W22: Total | X22: Fatalities | Y22: Injuries | Z22: Property Damage Only | AA22: Total | AB22: Fatalities | AC22: Injuries | AD22: Property Damage Only | AE22: Total | AF22: Total | AG22: Constant Dollars | AH22: Present Value | AK22: Dollars | AL22: Value | AN22: Year | AO22: SRTS Cycling Benefits - Present Value | AP22: SRTS Ped Benefits - Present Value
B23: 1 | C23: =IF(OR(ProjType=1, ProjType=3),FatCycYr,0) -> 0 | D23: =IF(OR(ProjType=1, ProjType=3),InjCycYr,0) -> 0 | E23: =IF(OR(ProjType=1, ProjType=3),PdoCycYr,0) -> 0 | F23: =SUM(C23:E23) -> 0 | G23: =C23*(1-$K$82) -> 0 | H23: 0 | I23: 0 | J23: =SUM(G23:I23) -> 0 | K23: =C23-G23 -> 0 | L23: 0 | M23: 0 | N23: 0 | O23: =L82 -> 0 | P23: =O23 -> 0 | Q23: =$P23/(1+DiscRate)^($B23+Construct-1) -> 0 | S23: 1 | T23: =IF(OR(ProjType=1, ProjType=3),FatPedYr,0) -> 0 | U23: =IF(OR(ProjType=1, ProjType=3),InjPedYr,0) -> 0 | V23: =IF(OR(ProjType=1, ProjType=3),PdoPedYr,0) -> 0 | W23: =SUM(T23:V23) -> 0 | X23: =T23*(1-$K$82) -> 0 | Y23: 0 | Z23: 0 | AA23: =SUM(X23:Z23) -> 0 | AB23: =T23-X23 -> 0 | AC23: 0 | AD23: 0 | AE23: 0 | AF23: =AC82 -> 0 | AG23: =AF23 -> 0 | AH23: =$AG23/(1+DiscRate)^($B23+Construct-1) -> 0 | AJ23: 1 | AK23: =AG23+P23 -> 0 | AL23: =AH23+Q23 -> 0 | AN23: 1 | AO23: =$AO$21*Q23 -> 0 | AP23: =$AP$21*AH23 -> 0 | AQ23: =SUM(AO23:AP23) -> 0
B24: 20 | C24: =C45 -> 0 | D24: =D45 -> 0 | E24: =E45 -> 0 | F24: =SUM(C24:E24) -> 0 | G24: 0 | H24: 0 | I24: 0 | J24: =SUM(G24:I24) -> 0 | K24: 0 | L24: 0 | M24: 0 | N24: 0 | O24: =O45 -> 0 | P24: =O24 -> 0 | Q24: =$P24/(1+DiscRate)^($B24+Construct-1) -> 0 | S24: 20 | T24: =T45 -> 0 | U24: =U45 -> 0 | V24: =V45 -> 0 | W24: =SUM(T24:V24) -> 0 | X24: 0 | Y24: 0 | Z24: 0 | AA24: =SUM(X24:Z24) -> 0 | AB24: 0 | AC24: 0 | AD24: 0 | AE24: 0 | AF24: =AF45 -> 0 | AG24: =AF24 -> 0 | AH24: =$AG24/(1+DiscRate)^($B24+Construct-1) -> 0 | AJ24: 20 | AK24: =AG24+P24 -> 0 | AL24: =AH24+Q24 -> 0 | AN24: 20 | AO24: =$AO$21*Q24 -> 0 | AP24: =$AP$21*AH24 -> 0 | AQ24: =SUM(AO24:AP24) -> 0
B26: 1 | C26: =C23 -> 0 | D26: =D23 -> 0 | E26: =E23 -> 0 | F26: =SUM(C26:E26) -> 0 | G26: =C26*(1-$K$82) -> 0 | H26: =D26*(1-$K$82) -> 0 | I26: =E26*(1-$K$82) -> 0 | J26: =SUM(G26:I26) -> 0 | K26: =C26-G26 -> 0 | L26: =D26-H26 -> 0 | M26: =E26-I26 -> 0 | N26: =F26-J26 -> 0 | O26: =O23 -> 0 | P26: =O26 -> 0 | Q26: =$P26/(1+DiscRate)^($B26+Construct-1) -> 0 | S26: 1 | T26: =T23 -> 0 | U26: =U23 -> 0 | V26: =V23 -> 0 | W26: =SUM(T26:V26) -> 0 | X26: =T26*(1-$K$82) -> 0 | Y26: =U26*(1-$K$82) -> 0 | Z26: =V26*(1-$K$82) -> 0 | AA26: =SUM(X26:Z26) -> 0 | AB26: =T26-X26 -> 0 | AC26: =U26-Y26 -> 0 | AD26: =V26-Z26 -> 0 | AE26: =W26-AA26 -> 0 | AF26: =AF23 -> 0 | AG26: =AF26 -> 0 | AH26: =$AG26/(1+DiscRate)^($B26+Construct-1) -> 0 | AJ26: 1 | AK26: =AG26+P26 -> 0 | AL26: =AH26+Q26 -> 0 | AN26: 1 | AO26: =$AO$21*Q26 -> 0 | AP26: =$AP$21*AH26 -> 0 | AQ26: =SUM(AO26:AP26) -> 0
B27: 2 | C27: =C26*(1+AccCycGrowth) -> 0 | D27: =D26*(1+AccCycGrowth) -> 0 | E27: =E26*(1+AccCycGrowth) -> 0 | F27: 0 | G27: 0 | H27: 0 | I27: 0 | J27: 0 | K27: 0 | L27: 0 | M27: 0 | N27: 0 | O27: =O26*(1+AccCycGrowth) -> 0 | P27: =O27 -> 0 | Q27: 0 | S27: 2 | T27: =T26*(1+AccPedGrowth) -> 0 | U27: =U26*(1+AccPedGrowth) -> 0 | V27: =V26*(1+AccPedGrowth) -> 0 | W27: 0 | X27: 0 | Y27: 0 | Z27: 0 | AA27: 0 | AB27: 0 | AC27: 0 | AD27: 0 | AE27: 0 | AF27: =AF26*(1+AccPedGrowth) -> 0 | AG27: =AF27 -> 0 | AH27: 0 | AJ27: 2 | AK27: 0 | AL27: 0 | AN27: 2 | AO27: 0 | AP27: 0 | AQ27: =SUM(AO27:AP27) -> 0
B28: 3 | C28: 0 | D28: 0 | E28: 0 | F28: 0 | G28: 0 | H28: 0 | I28: 0 | J28: 0 | K28: 0 | L28: 0 | M28: 0 | N28: 0 | O28: 0 | P28: =O28 -> 0 | Q28: 0 | S28: 3 | T28: 0 | U28: 0 | V28: 0 | W28: 0 | X28: 0 | Y28: 0 | Z28: 0 | AA28: 0 | AB28: 0 | AC28: 0 | AD28: 0 | AE28: 0 | AF28: 0 | AG28: 0 | AH28: 0 | AJ28: 3 | AK28: 0 | AL28: 0 | AN28: 3 | AO28: 0 | AP28: 0 | AQ28: 0
B29: 4 | C29: 0 | D29: 0 | E29: 0 | F29: 0 | G29: 0 | H29: 0 | I29: 0 | J29: 0 | K29: 0 | L29: 0 | M29: 0 | N29: 0 | O29: 0 | P29: =O29 -> 0 | Q29: 0 | S29: 4 | T29: 0 | U29: 0 | V29: 0 | W29: 0 | X29: 0 | Y29: 0 | Z29: 0 | AA29: 0 | AB29: 0 | AC29: 0 | AD29: 0 | AE29: 0 | AF29: 0 | AG29: 0 | AH29: 0 | AJ29: 4 | AK29: 0 | AL29: 0 | AN29: 4 | AO29: 0 | AP29: 0 | AQ29: 0
B30: 5 | C30: 0 | D30: 0 | E30: 0 | F30: 0 | G30: 0 | H30: 0 | I30: 0 | J30: 0 | K30: 0 | L30: 0 | M30: 0 | N30: 0 | O30: 0 | P30: 0 | Q30: 0 | S30: 5 | T30: 0 | U30: 0 | V30: 0 | W30: 0 | X30: 0 | Y30: 0 | Z30: 0 | AA30: 0 | AB30: 0 | AC30: 0 | AD30: 0 | AE30: 0 | AF30: 0 | AG30: 0 | AH30: 0 | AJ30: 5 | AK30: 0 | AL30: 0 | AN30: 5 | AO30: 0 | AP30: 0 | AQ30: 0
B31: 6 | C31: 0 | D31: 0 | E31: 0 | F31: 0 | G31: 0 | H31: 0 | I31: 0 | J31: 0 | K31: 0 | L31: 0 | M31: 0 | N31: 0 | O31: 0 | P31: 0 | Q31: 0 | S31: 6 | T31: 0 | U31: 0 | V31: 0 | W31: 0 | X31: 0 | Y31: 0 | Z31: 0 | AA31: 0 | AB31: 0 | AC31: 0 | AD31: 0 | AE31: 0 | AF31: 0 | AG31: 0 | AH31: 0 | AJ31: 6 | AK31: 0 | AL31: 0 | AN31: 6 | AO31: 0 | AP31: 0 | AQ31: 0
B32: 7 | C32: 0 | D32: 0 | E32: 0 | F32: 0 | G32: 0 | H32: 0 | I32: 0 | J32: 0 | K32: 0 | L32: 0 | M32: 0 | N32: 0 | O32: 0 | P32: 0 | Q32: 0 | S32: 7 | T32: 0 | U32: 0 | V32: 0 | W32: 0 | X32: 0 | Y32: 0 | Z32: 0 | AA32: 0 | AB32: 0 | AC32: 0 | AD32: 0 | AE32: 0 | AF32: 0 | AG32: 0 | AH32: 0 | AJ32: 7 | AK32: 0 | AL32: 0 | AN32: 7 | AO32: 0 | AP32: 0 | AQ32: 0
B33: 8 | C33: 0 | D33: 0 | E33: 0 | F33: 0 | G33: 0 | H33: 0 | I33: 0 | J33: 0 | K33: 0 | L33: 0 | M33: 0 | N33: 0 | O33: 0 | P33: 0 | Q33: 0 | S33: 8 | T33: 0 | U33: 0 | V33: 0 | W33: 0 | X33: 0 | Y33: 0 | Z33: 0 | AA33: 0 | AB33: 0 | AC33: 0 | AD33: 0 | AE33: 0 | AF33: 0 | AG33: 0 | AH33: 0 | AJ33: 8 | AK33: 0 | AL33: 0 | AN33: 8 | AO33: 0 | AP33: 0 | AQ33: 0
B34: 9 | C34: 0 | D34: 0 | E34: 0 | F34: 0 | G34: 0 | H34: 0 | I34: 0 | J34: 0 | K34: 0 | L34: 0 | M34: 0 | N34: 0 | O34: 0 | P34: 0 | Q34: 0 | S34: 9 | T34: 0 | U34: 0 | V34: 0 | W34: 0 | X34: 0 | Y34: 0 | Z34: 0 | AA34: 0 | AB34: 0 | AC34: 0 | AD34: 0 | AE34: 0 | AF34: 0 | AG34: 0 | AH34: 0 | AJ34: 9 | AK34: 0 | AL34: 0 | AN34: 9 | AO34: 0 | AP34: 0 | AQ34: 0
B35: 10 | C35: 0 | D35: 0 | E35: 0 | F35: 0 | G35: 0 | H35: 0 | I35: 0 | J35: 0 | K35: 0 | L35: 0 | M35: 0 | N35: 0 | O35: 0 | P35: 0 | Q35: 0 | S35: 10 | T35: 0 | U35: 0 | V35: 0 | W35: 0 | X35: 0 | Y35: 0 | Z35: 0 | AA35: 0 | AB35: 0 | AC35: 0 | AD35: 0 | AE35: 0 | AF35: 0 | AG35: 0 | AH35: 0 | AJ35: 10 | AK35: 0 | AL35: 0 | AN35: 10 | AO35: 0 | AP35: 0 | AQ35: 0
B36: 11 | C36: 0 | D36: 0 | E36: 0 | F36: 0 | G36: 0 | H36: 0 | I36: 0 | J36: 0 | K36: 0 | L36: 0 | M36: 0 | N36: 0 | O36: 0 | P36: 0 | Q36: 0 | S36: 11 | T36: 0 | U36: 0 | V36: 0 | W36: 0 | X36: 0 | Y36: 0 | Z36: 0 | AA36: 0 | AB36: 0 | AC36: 0 | AD36: 0 | AE36: 0 | AF36: 0 | AG36: 0 | AH36: 0 | AJ36: 11 | AK36: 0 | AL36: 0 | AN36: 11 | AO36: 0 | AP36: 0 | AQ36: 0
B37: 12 | C37: 0 | D37: 0 | E37: 0 | F37: 0 | G37: 0 | H37: 0 | I37: 0 | J37: 0 | K37: 0 | L37: 0 | M37: 0 | N37: 0 | O37: 0 | P37: 0 | Q37: 0 | S37: 12 | T37: 0 | U37: 0 | V37: 0 | W37: 0 | X37: 0 | Y37: 0 | Z37: 0 | AA37: 0 | AB37: 0 | AC37: 0 | AD37: 0 | AE37: 0 | AF37: 0 | AG37: 0 | AH37: 0 | AJ37: 12 | AK37: 0 | AL37: 0 | AN37: 12 | AO37: 0 | AP37: 0 | AQ37: 0
B38: 13 | C38: 0 | D38: 0 | E38: 0 | F38: 0 | G38: 0 | H38: 0 | I38: 0 | J38: 0 | K38: 0 | L38: 0 | M38: 0 | N38: 0 | O38: 0 | P38: 0 | Q38: 0 | S38: 13 | T38: 0 | U38: 0 | V38: 0 | W38: 0 | X38: 0 | Y38: 0 | Z38: 0 | AA38: 0 | AB38: 0 | AC38: 0 | AD38: 0 | AE38: 0 | AF38: 0 | AG38: 0 | AH38: 0 | AJ38: 13 | AK38: 0 | AL38: 0 | AN38: 13 | AO38: 0 | AP38: 0 | AQ38: 0
B39: 14 | C39: 0 | D39: 0 | E39: 0 | F39: 0 | G39: 0 | H39: 0 | I39: 0 | J39: 0 | K39: 0 | L39: 0 | M39: 0 | N39: 0 | O39: 0 | P39: 0 | Q39: 0 | S39: 14 | T39: 0 | U39: 0 | V39: 0 | W39: 0 | X39: 0 | Y39: 0 | Z39: 0 | AA39: 0 | AB39: 0 | AC39: 0 | AD39: 0 | AE39: 0 | AF39: 0 | AG39: 0 | AH39: 0 | AJ39: 14 | AK39: 0 | AL39: 0 | AN39: 14 | AO39: 0 | AP39: 0 | AQ39: 0
B40: 15 | C40: 0 | D40: 0 | E40: 0 | F40: 0 | G40: 0 | H40: 0 | I40: 0 | J40: 0 | K40: 0 | L40: 0 | M40: 0 | N40: 0 | O40: 0 | P40: 0 | Q40: 0 | S40: 15 | T40: 0 | U40: 0 | V40: 0 | W40: 0 | X40: 0 | Y40: 0 | Z40: 0 | AA40: 0 | AB40: 0 | AC40: 0 | AD40: 0 | AE40: 0 | AF40: 0 | AG40: 0 | AH40: 0 | AJ40: 15 | AK40: 0 | AL40: 0 | AN40: 15 | AO40: 0 | AP40: 0 | AQ40: 0
B41: 16 | C41: 0 | D41: 0 | E41: 0 | F41: 0 | G41: 0 | H41: 0 | I41: 0 | J41: 0 | K41: 0 | L41: 0 | M41: 0 | N41: 0 | O41: 0 | P41: 0 | Q41: 0 | S41: 16 | T41: 0 | U41: 0 | V41: 0 | W41: 0 | X41: 0 | Y41: 0 | Z41: 0 | AA41: 0 | AB41: 0 | AC41: 0 | AD41: 0 | AE41: 0 | AF41: 0 | AG41: 0 | AH41: 0 | AJ41: 16 | AK41: 0 | AL41: 0 | AN41: 16 | AO41: 0 | AP41: 0 | AQ41: 0
B42: 17 | C42: 0 | D42: 0 | E42: 0 | F42: 0 | G42: 0 | H42: 0 | I42: 0 | J42: 0 | K42: 0 | L42: 0 | M42: 0 | N42: 0 | O42: 0 | P42: 0 | Q42: 0 | S42: 17 | T42: 0 | U42: 0 | V42: 0 | W42: 0 | X42: 0 | Y42: 0 | Z42: 0 | AA42: 0 | AB42: 0 | AC42: 0 | AD42: 0 | AE42: 0 | AF42: 0 | AG42: 0 | AH42: 0 | AJ42: 17 | AK42: 0 | AL42: 0 | AN42: 17 | AO42: 0 | AP42: 0 | AQ42: 0
B43: 18 | C43: 0 | D43: 0 | E43: 0 | F43: 0 | G43: 0 | H43: 0 | I43: 0 | J43: 0 | K43: 0 | L43: 0 | M43: 0 | N43: 0 | O43: 0 | P43: 0 | Q43: 0 | S43: 18 | T43: 0 | U43: 0 | V43: 0 | W43: 0 | X43: 0 | Y43: 0 | Z43: 0 | AA43: 0 | AB43: 0 | AC43: 0 | AD43: 0 | AE43: 0 | AF43: 0 | AG43: 0 | AH43: 0 | AJ43: 18 | AK43: 0 | AL43: 0 | AN43: 18 | AO43: 0 | AP43: 0 | AQ43: 0
B44: 19 | C44: 0 | D44: 0 | E44: 0 | F44: 0 | G44: 0 | H44: 0 | I44: 0 | J44: 0 | K44: 0 | L44: 0 | M44: 0 | N44: 0 | O44: 0 | P44: 0 | Q44: 0 | S44: 19 | T44: 0 | U44: 0 | V44: 0 | W44: 0 | X44: 0 | Y44: 0 | Z44: 0 | AA44: 0 | AB44: 0 | AC44: 0 | AD44: 0 | AE44: 0 | AF44: 0 | AG44: 0 | AH44: 0 | AJ44: 19 | AK44: 0 | AL44: 0 | AN44: 19 | AO44: 0 | AP44: 0 | AQ44: 0
B45: 20 | C45: 0 | D45: 0 | E45: 0 | F45: 0 | G45: 0 | H45: 0 | I45: 0 | J45: 0 | K45: 0 | L45: 0 | M45: 0 | N45: 0 | O45: 0 | P45: 0 | Q45: 0 | S45: 20 | T45: 0 | U45: 0 | V45: 0 | W45: 0 | X45: 0 | Y45: 0 | Z45: 0 | AA45: 0 | AB45: 0 | AC45: 0 | AD45: 0 | AE45: 0 | AF45: 0 | AG45: 0 | AH45: 0 | AJ45: 20 | AK45: 0 | AL45: 0 | AN45: 20 | AO45: 0 | AP45: 0 | AQ45: 0
B47: Total | Q47: =SUM(Q26:Q45) -> 0 | S47: Total | AH47: =SUM(AH26:AH45) -> 0 | AJ47: Total | AL47: =SUM(AL26:AL45) -> 0 | AN47: Total | AO47: =SUM(AO26:AO45) -> 0 | AP47: =SUM(AP26:AP45) -> 0 | AQ47: 0
C50: Intersection Safety Improvements - Cycling | T50: Intersection Safety Improvements - Pedestrian
H52: Fatalities | I52: Injuries | J52: Property Damage Only | L52: Total | Y52: Fatalities | Z52: Injuries | AA52: Property Damage Only | AC52: Total
G53: Baseline Frequency | H53: =FatCycYr -> 0 | I53: =InjCycYr -> 0 | J53: =PdoCycYr -> 0 | L53: =SUM(H53:J53) -> 0 | X53: Baseline Frequency | Y53: =FatPedYr -> 0 | Z53: =InjPedYr -> 0 | AA53: =PdoPedYr -> 0 | AC53: =SUM(Y53:AA53) -> 0
G54: Cost per Collision (Vc) | H54: =HwyFatCost -> 10800000 | I54: =HwyInjCost -> 148800 | J54: =HwyPDOCost -> 9700 | L54: =SUMPRODUCT(H53:J53,H54:J54) -> 0 | X54: Cost per Collision (Vc) | Y54: =HwyFatCost -> 10800000 | Z54: =HwyInjCost -> 148800 | AA54: =HwyPDOCost -> 9700 | AC54: =SUMPRODUCT(Y53:AA53,Y54:AA54) -> 0
G57: Measures | H57: Applicable | I57: Collision Reduction Factors (CRFs) | J57: Potential Cost Reduction | K57: Estimated Impact (%) - Pc | L57: Estimated Impact ($) | X57: Measures | Y57: Applicable | Z57: Collision Reduction Factors (CRFs) | AA57: Potential Cost Reduction | AB57: Estimated Impact (%) - Pc | AC57: Estimated Impact ($)
G58: SIGNALIZED INTERSECTION COUNTERMEASURES | X58: SIGNALIZED INTERSECTION COUNTERMEASURES
G59: Install pedestrian countdown signal heads | H59: ='1a) Project Info'!H116 -> 0 | I59: 0.25 | J59: =($L$54*I59) -> 0 | K59: =I59*$H59 -> 0 | L59: 0 | X59: Install pedestrian countdown signal heads | Y59: ='1a) Project Info'!H116 -> 0 | Z59: 0.25 | AA59: =($AC$54*Z59) -> 0 | AB59: =Z59*$H59 -> 0 | AC59: 0
G60: Install pedestrian crossing | H60: ='1a) Project Info'!H117 -> 0 | I60: 0.25 | J60: =($L$54*I60) -> 0 | K60: 0 | L60: 0 | X60: Install pedestrian crossing | Y60: ='1a) Project Info'!H117 -> 0 | Z60: 0.25 | AA60: =($AC$54*Z60) -> 0 | AB60: 0 | AC60: 0
G61: Install advance stop bar before crosswalk (bicycle box) | H61: ='1a) Project Info'!H118 -> 0 | I61: 0.15 | J61: =($L$54*I61) -> 0 | K61: 0 | L61: 0 | X61: Install advance stop bar before crosswalk (bicycle box) | Y61: ='1a) Project Info'!H118 -> 0 | Z61: 0.15 | AA61: =($AC$54*Z61) -> 0 | AB61: 0 | AC61: 0
G62: Install pedestrian overpass/ underpass | H62: ='1a) Project Info'!H119 -> 0 | I62: 0.75 | J62: =($L$54*I62) -> 0 | K62: 0 | L62: 0 | X62: Install pedestrian overpass/ underpass | Y62: ='1a) Project Info'!H119 -> 0 | Z62: 0.75 | AA62: =($AC$54*Z62) -> 0 | AB62: 0 | AC62: 0
G64: UNSIGNALIZED INTERESECTION COUNTERMEASURES | X64: UNSIGNALIZED INTERESECTION COUNTERMEASURES
G65: Install raised medians/ refuge islands | H65: ='1a) Project Info'!H121 -> 0 | I65: 0.45 | J65: =($L$54*I65) -> 0 | K65: =I65*$H65 -> 0 | L65: 0 | X65: Install raised medians/ refuge islands | Y65: ='1a) Project Info'!H121 -> 0 | Z65: 0.45 | AA65: =($AC$54*Z65) -> 0 | AB65: =Z65*$H65 -> 0 | AC65: 0
G66: Install pedestrian crossings (new signs and markings only | H66: ='1a) Project Info'!H122 -> 0 | I66: 0.25 | J66: =($L$54*I66) -> 0 | K66: 0 | L66: 0 | X66: Install pedestrian crossings (new signs and markings only | Y66: ='1a) Project Info'!H122 -> 0 | Z66: 0.25 | AA66: =($AC$54*Z66) -> 0 | AB66: 0 | AC66: 0
G67: Install pedestrian crossing (with enhanced safety measures/ curb extensions | H67: ='1a) Project Info'!H123 -> 0 | I67: 0.35 | J67: =($L$54*I67) -> 0 | K67: 0 | L67: 0 | X67: Install pedestrian crossing (with enhanced safety measures/ curb extensions | Y67: ='1a) Project Info'!H123 -> 0 | Z67: 0.35 | AA67: =($AC$54*Z67) -> 0 | AB67: 0 | AC67: 0
G68: Install pedestrian signal | H68: ='1a) Project Info'!H124 -> 0 | I68: 0.55 | J68: =($L$54*I68) -> 0 | K68: 0 | L68: 0 | X68: Install pedestrian signal | Y68: ='1a) Project Info'!H124 -> 0 | Z68: 0.55 | AA68: =($AC$54*Z68) -> 0 | AB68: 0 | AC68: 0
G70: ROADWAY COUNTERMEASURES | X70: ROADWAY COUNTERMEASURES
G71: Install bike lanes | H71: ='1a) Project Info'!H126 -> 0 | I71: 0.35 | J71: =($L$54*I71) -> 0 | K71: =I71*$H71 -> 0 | L71: 0 | X71: Install bike lanes | Y71: ='1a) Project Info'!H126 -> 0 | Z71: 0.35 | AA71: =($AC$54*Z71) -> 0 | AB71: =Z71*$H71 -> 0 | AC71: 0
G72: Install sidewalk/ pathway (to avoid walking along roadways | H72: ='1a) Project Info'!H127 -> 0 | I72: 0.8 | J72: =($L$54*I72) -> 0 | K72: 0 | L72: 0 | X72: Install sidewalk/ pathway (to avoid walking along roadways | Y72: ='1a) Project Info'!H127 -> 0 | Z72: 0.8 | AA72: =($AC$54*Z72) -> 0 | AB72: 0 | AC72: 0
G73: Install pedestrian crossing (with enhanced safety measures | H73: ='1a) Project Info'!H128 -> 0 | I73: 0.3 | J73: =($L$54*I73) -> 0 | K73: 0 | L73: 0 | X73: Install pedestrian crossing (with enhanced safety measures | Y73: ='1a) Project Info'!H128 -> 0 | Z73: 0.3 | AA73: =($AC$54*Z73) -> 0 | AB73: 0 | AC73: 0
G74: Install Pedestrian crossing | H74: ='1a) Project Info'!H129 -> 0 | I74: 0.35 | J74: =($L$54*I74) -> 0 | K74: 0 | L74: 0 | X74: Install Pedestrian crossing | Y74: ='1a) Project Info'!H129 -> 0 | Z74: 0.35 | AA74: =($AC$54*Z74) -> 0 | AB74: 0 | AC74: 0
G76: OTHER REDUCTION FACTOR | H76: ='1a) Project Info'!H130 -> 0 | I76: 0.1 | J76: =($L$54*I76) -> 0 | K76: =I76*$H76 -> 0 | L76: =J76*$H76 -> 0 | X76: OTHER REDUCTION FACTOR | Y76: ='1a) Project Info'!H130 -> 0 | Z76: 0.1 | AA76: =($AC$54*Z76) -> 0 | AB76: =Z76*$H76 -> 0 | AC76: =AA76*$H76 -> 0
G78: TOTAL | X78: TOTAL
J79: TOTAL MEASURES | K79: =IF(OR(ProjType=1, ProjType=3),SUM(H59:H76),0) -> 0 | AA79: TOTAL MEASURES | AB79: =IF(OR(ProjType=1, ProjType=3),SUM(Y59:Y76),0) -> 0
J80: Average of highest measures (if 2 or fewer) | K80: =IFERROR(IF(K79<3,SUMIF(K58:K76,">0")/K79,""),0) -> 0 | L80: =IFERROR(IF(K79<3,SUMIF(L58:L76,">0")/K79,""),0) -> 0 | AA80: Average of highest measures (if 2 or fewer) | AB80: =IFERROR(IF(AB79<3,SUMIF(AB58:AB76,">0")/AB79,""),0) -> 0 | AC80: =IFERROR(IF(AB79<3,SUMIF(AC58:AC76,">0")/AB79,""),0) -> 0
J81: Average of 3 highest measures (if 3 or more) | K81: =IFERROR(IF(K79>2,AVERAGE(LARGE(K58:K76, {1,2,3})),""),0) ->  | L81: =IFERROR(IF(K79>2,AVERAGE(LARGE(L58:L76, {1,2,3})),""),0) ->  | AA81: Average of 3 highest measures (if 3 or more) | AB81: =IFERROR(IF(AB79>2,AVERAGE(LARGE(AB58:AB76, {1,2,3})),""),0) ->  | AC81: =IFERROR(IF(AB79>2,AVERAGE(LARGE(AC58:AC76, {1,2,3})),""),0) -> 
J82: TOTAL ANNUAL IMPACT | K82: =MAX(K81,K80) -> 0 | L82: =MAX(L81,L80) -> 0 | AA82: TOTAL ANNUAL IMPACT | AB82: =MAX(AB81,AB80) -> 0 | AC82: =MAX(AC81,AC80) -> 0

Sheet Auto Accident Costs
B1: Accident Reduction Benefits
B3: This sheet calculates benefits of avoided accidents on highways due to a mode shift in trips to active transportation modes.
B5: Formulas:
B7: Vehicle-Miles Traveled = Affected Length x Avg Volume / Vehicle Occupancy | G7: Transit Acc Cost = Veh-Miles x Acc Cost/Mile
B8: veh-miles/yr. | D8: miles | E8: vehicles/yr.
B10: Hwy Acc Cost = (VMT x Rate x Cost/Mile) by Acc Type | G10: Transit Acc Cost/Mile from PARAMETERS
B15: A | C15: REDUCED ACCIDENT BENEFITS - HIGHWAY USERS
B18: Total
C20: AVERAGE ANNUAL VOLUME | E20: REDUCED VMT | F20: ACCIDENT BENEFITS
C21: (trip-miles/yr.) | E21: (veh-miles/yr.) | F21: ($/yr.)
B22: Year | C22: Induced Trips, Cycling | D22: Induced Trips, Pedestrians | E22: Induced Trips, Cyclists, Pedestrians | F22: Induced Trips | G22: Constant Dollars | H22: Present Value
B23: 1 | C23: =IF(OR(ProjType=1,ProjType=3),((TrComCyc1BEX-TrComCyc1NBEX)+(TrODCyc1BEX-TrODCyc1NBEX))*TAvMiCycNB,0)+IF(ProjType>1,((TrComCyc1BNew-TrComCyc1NBNew)+(TrODCyc1BNew-TrODCyc1NBNew))*TAvMiCycNB,0) -> 0 | D23: =IF(OR(ProjType=1,ProjType=3),((TrComPed1BEX-TrComPed1NBEX)+(TrODPed1BEX-TrODPed1NBEX))*TAvMiPedNB,0)+IF(ProjType>1,((TrComPed1BNew-TrComPed1NBNew)+(TrODPed1BNew-TrODPed1NBNew))*TAvMiPedNB,0) -> 0 | E23: =(D23*DivCycAutoNB+C23*DivPedAutoNB)/VehOcc -> 0 | F23: =(E23*NonFwyAccRate*AvgAccCost/1000000) -> 0 | G23: =SUM(F23:F23) -> 0 | H23: =$G23/(1+DiscRate)^($B23+Construct-1) -> 0
B24: 20 | C24: =IF(OR(ProjType=1,ProjType=3),((TrComCyc20BEX-TrComCyc20NBEX)+(TrODCyc20BEX-TrODCyc20NBEX))*TAvMiCycNB,0)+IF(ProjType>1,((TrComCyc20BNew-TrComCyc20NBNew)+(TrODCyc20BNew-TrODCyc20NBNew))*TAvMiCycNB,0) -> 0 | D24: =IF(OR(ProjType=1,ProjType=3),((TrComPed20BEX-TrComPed20NBEX)+(TrODPed20BEX-TrODPed20NBEX))*TAvMiPedNB,0)+IF(ProjType>1,((TrComPed20BNew-TrComPed20NBNew)+(TrODPed20BNew-TrODPed20NBNew))*TAvMiPedNB,0) -> 0 | E24: =(D24*DivCycAutoNB+C24*DivPedAutoNB)/VehOcc -> 0 | F24: =(E24*NonFwyAccRate*AvgAccCost/1000000) -> 0 | G24: =SUM($F24:$F24) -> 0 | H24: =$G24/(1+DiscRate)^($B24+Construct-1) -> 0
B26: 1 | C26: =TREND(C$23:C$24,$B$23:$B$24,$B26) -> 0 | D26: =TREND(D$23:D$24,$B$23:$B$24,$B26) -> 0 | E26: =(D26*DivCycAutoNB+C26*DivPedAutoNB)/VehOcc -> 0 | F26: =(E26*NonFwyAccRate*AvgAccCost/1000000) -> 0 | G26: =TREND(G$23:G$24,$B$23:$B$24,$B26) -> 0 | H26: =$G26/(1+DiscRate)^($B26+Construct-1) -> 0
B27: 2 | C27: =TREND(C$23:C$24,$B$23:$B$24,$B27) -> 0 | D27: 0 | E27: 0 | F27: 0 | G27: 0 | H27: 0
B28: 3 | C28: 0 | D28: 0 | E28: 0 | F28: 0 | G28: 0 | H28: 0
B29: 4 | C29: 0 | D29: 0 | E29: 0 | F29: 0 | G29: 0 | H29: 0
B30: 5 | C30: 0 | D30: 0 | E30: 0 | F30: 0 | G30: 0 | H30: 0
B31: 6 | C31: 0 | D31: 0 | E31: 0 | F31: 0 | G31: 0 | H31: 0
B32: 7 | C32: 0 | D32: 0 | E32: 0 | F32: 0 | G32: 0 | H32: 0
B33: 8 | C33: 0 | D33: 0 | E33: 0 | F33: 0 | G33: 0 | H33: 0
B34: 9 | C34: 0 | D34: 0 | E34: 0 | F34: 0 | G34: 0 | H34: 0
B35: 10 | C35: 0 | D35: 0 | E35: 0 | F35: 0 | G35: 0 | H35: 0
B36: 11 | C36: 0 | D36: 0 | E36: 0 | F36: 0 | G36: 0 | H36: 0
B37: 12 | C37: 0 | D37: 0 | E37: 0 | F37: 0 | G37: 0 | H37: 0
B38: 13 | C38: 0 | D38: 0 | E38: 0 | F38: 0 | G38: 0 | H38: 0
B39: 14 | C39: 0 | D39: 0 | E39: 0 | F39: 0 | G39: 0 | H39: 0
B40: 15 | C40: 0 | D40: 0 | E40: 0 | F40: 0 | G40: 0 | H40: 0
B41: 16 | C41: 0 | D41: 0 | E41: 0 | F41: 0 | G41: 0 | H41: 0
B42: 17 | C42: 0 | D42: 0 | E42: 0 | F42: 0 | G42: 0 | H42: 0
B43: 18 | C43: 0 | D43: 0 | E43: 0 | F43: 0 | G43: 0 | H43: 0
B44: 19 | C44: 0 | D44: 0 | E44: 0 | F44: 0 | G44: 0 | H44: 0
B45: 20 | C45: 0 | D45: 0 | E45: 0 | F45: 0 | G45: 0 | H45: 0
B47: Total | H47: =SUM(H26:H45) -> 0

Sheet Health - Absenteeism
B1: Health Benefits - Reduced Absenteeism
B3: This sheet calculates the benefits to employers of improved health of employees who use active transportation modes. Benefits are based on the value of reduced work absences.
B5: Formulas:
H6: Value of Short-Term Health = Reduced Days of Work Absences x Avg. Value of Time per Day
B7: Avg. Ann. Commuters = Avg. Daily Trips / Roundtrip Factor x Commuting Purpose (%) x Annual Days | H7: $ / year | J7: # of days / year | L7: $ / day
B8: # / year | C8: #/day' | D8: % | E8: # | H8: Avg. Value of Time per Day, based on state average wage rate and 8 hour day
B10: Reduced Days of Work Absences = Avg. Ann. Commuters x Short-term sick leave coverage x Reduction in sick days | H10: Only applicable for induced riders
B11: # / yr. | C11: # / year | D11: (%) | E11: (%)
B15: A | C15: CYCLING BENEFITS | K15: B | L15: PEDESTRIAN BENEFITS | T15: C | U15: TOTAL
B18: Total | K18: Total | T18: Total
C20: COMMUTER TRIPS | F20: REDUCTION IN ABSENTEEISM | G20: VALUE OF REDUCED ABSENTEEISM | L20: NEW COMMUTERS | O20: REDUCTION IN ABSENTEEISM | P20: VALUE OF REDUCED ABSENTEEISM
C21: (trips/yr.) | F21: (days) | G21: ($/day) | L21: (trips/yr.) | O21: (days) | P21: ($/day)
B22: Year | C22: Total Commuters, Existing + New Facility (Baseline) | D22: Total Commuters, Improved + New Facility | E22: Induced Commuters, Existing Facility | F22: Induced Commuters | G22: Induced Commuters | H22: Constant Dollars | I22: Present Value | K22: Year | L22: Total Commuters, Existing Facility (Baseline) | M22: Total Commuters, Improved Facility | N22: Induced Commuters, Existing Facility | O22: Induced Commuters | P22: Induced Commuters | Q22: Constant Dollars | R22: Present Value | T22: Year | U22: Constant Dollars | V22: Present Value
B23: 1 | C23: =IF(OR(ProjType=1,ProjType=3),UserComCyc1NBEX,0)+IF(ProjType>1,UserComCyc1NBNew,0) -> 0 | D23: =IF(OR(ProjType=1,ProjType=3),UserComCyc1BEX,0)+IF(ProjType>1,UserComCyc1BNew,0) -> 0 | E23: =D23-C23 -> 0 | F23: =E23*AnnSickDays*PerSickDaysLeave*PerSickDaysRed -> 0 | G23: =WageStatewide*8 -> 218.711254 | H23: =G23*F23*(1+TTUprater)^($B23+Construct-1) -> 0 | I23: =$H23/(1+DiscRate)^($B23+Construct-1) -> 0 | K23: 1 | L23: =IF(OR(ProjType=1,ProjType=3),UserComPed1NBEX,0)+IF(ProjType>1,UserComPed1NBNew,0) -> 0 | M23: =IF(OR(ProjType=1,ProjType=3),UserComPed1BEX,0)+IF(ProjType>1,UserComPed1BNew,0) -> 0 | N23: =M23-L23 -> 0 | O23: =N23*AnnSickDays*PerSickDaysLeave*PerSickDaysRed -> 0 | P23: =WageStatewide*8 -> 218.711254 | Q23: =P23*O23 -> 0 | R23: =$Q23/(1+DiscRate)^($K23+Construct-1) -> 0 | T23: 1 | U23: =Q23+H23 -> 0 | V23: =R23+I23 -> 0
B24: 20 | C24: =IF(OR(ProjType=1,ProjType=3),UserComCyc20NBEX,0)+IF(ProjType>1,UserComCyc20NBNew,0) -> 0 | D24: =IF(OR(ProjType=1,ProjType=3),UserComCyc20BEX,0)+IF(ProjType>1,UserComCyc20BNew,0) -> 0 | E24: =D24-C24 -> 0 | F24: =E24*AnnSickDays*PerSickDaysLeave*PerSickDaysRed -> 0 | G24: =WageStatewide*8 -> 218.711254 | H24: =G24*F24*(1+TTUprater)^($B24+Construct-1) -> 0 | I24: =$H24/(1+DiscRate)^($B24+Construct-1) -> 0 | K24: 20 | L24: =IF(OR(ProjType=1,ProjType=3),UserComPed20NBEX,0)+IF(ProjType>1,UserComPed20NBNew,0) -> 0 | M24: =IF(OR(ProjType=1,ProjType=3),UserComPed20BEX,0)+IF(ProjType>1,UserComPed20BNew,0) -> 0 | N24: =M24-L24 -> 0 | O24: =N24*AnnSickDays*PerSickDaysLeave*PerSickDaysRed -> 0 | P24: =WageStatewide*8 -> 218.711254 | Q24: =P24*O24 -> 0 | R24: =$Q24/(1+DiscRate)^($K24+Construct-1) -> 0 | T24: 20 | U24: =Q24+H24 -> 0 | V24: =R24+I24 -> 0
B26: 1 | C26: =TREND(C$23:C$24,$B$23:$B$24,$B26) -> 0 | D26: =TREND(D$23:D$24,$B$23:$B$24,$B26) -> 0 | E26: =TREND(E$23:E$24,$B$23:$B$24,$B26) -> 0 | F26: =E26*AnnSickDays*PerSickDaysLeave*PerSickDaysRed -> 0 | G26: =WageStatewide*8 -> 218.711254 | H26: =G26*F26*(1+TTUprater)^($B26+Construct-1) -> 0 | I26: =$H26/(1+DiscRate)^($B26+Construct-1) -> 0 | K26: 1 | L26: =TREND(L$23:L$24,$B$23:$B$24,$B26) -> 0 | M26: =TREND(M$23:M$24,$B$23:$B$24,$B26) -> 0 | N26: =TREND(N$23:N$24,$B$23:$B$24,$B26) -> 0 | O26: =N26*AnnSickDays*PerSickDaysLeave*PerSickDaysRed -> 0 | P26: =WageStatewide*8 -> 218.711254 | Q26: =P26*O26 -> 0 | R26: =$Q26/(1+DiscRate)^($K26+Construct-1) -> 0 | T26: 1 | U26: =Q26+H26 -> 0 | V26: =R26+I26 -> 0
B27: 2 | C27: =TREND(C$23:C$24,$B$23:$B$24,$B27) -> 0 | D27: 0 | E27: 0 | F27: 0 | G27: 218.711254 | H27: 0 | I27: 0 | K27: 2 | L27: =TREND(L$23:L$24,$B$23:$B$24,$B27) -> 0 | M27: 0 | N27: 0 | O27: 0 | P27: 218.711254 | Q27: 0 | R27: 0 | T27: 2 | U27: 0 | V27: 0
B28: 3 | C28: 0 | D28: 0 | E28: 0 | F28: 0 | G28: 218.711254 | H28: 0 | I28: 0 | K28: 3 | L28: 0 | M28: 0 | N28: 0 | O28: 0 | P28: 218.711254 | Q28: 0 | R28: 0 | T28: 3 | U28: 0 | V28: 0
B29: 4 | C29: 0 | D29: 0 | E29: 0 | F29: 0 | G29: 218.711254 | H29: 0 | I29: 0 | K29: 4 | L29: 0 | M29: 0 | N29: 0 | O29: 0 | P29: 218.711254 | Q29: 0 | R29: 0 | T29: 4 | U29: 0 | V29: 0
B30: 5 | C30: 0 | D30: 0 | E30: 0 | F30: 0 | G30: 218.711254 | H30: 0 | I30: 0 | K30: 5 | L30: 0 | M30: 0 | N30: 0 | O30: 0 | P30: 218.711254 | Q30: 0 | R30: 0 | T30: 5 | U30: 0 | V30: 0
B31: 6 | C31: 0 | D31: 0 | E31: 0 | F31: 0 | G31: 218.711254 | H31: 0 | I31: 0 | K31: 6 | L31: 0 | M31: 0 | N31: 0 | O31: 0 | P31: 218.711254 | Q31: 0 | R31: 0 | T31: 6 | U31: 0 | V31: 0
B32: 7 | C32: 0 | D32: 0 | E32: 0 | F32: 0 | G32: 218.711254 | H32: 0 | I32: 0 | K32: 7 | L32: 0 | M32: 0 | N32: 0 | O32: 0 | P32: 218.711254 | Q32: 0 | R32: 0 | T32: 7 | U32: 0 | V32: 0
B33: 8 | C33: 0 | D33: 0 | E33: 0 | F33: 0 | G33: 218.711254 | H33: 0 | I33: 0 | K33: 8 | L33: 0 | M33: 0 | N33: 0 | O33: 0 | P33: 218.711254 | Q33: 0 | R33: 0 | T33: 8 | U33: 0 | V33: 0
B34: 9 | C34: 0 | D34: 0 | E34: 0 | F34: 0 | G34: 218.711254 | H34: 0 | I34: 0 | K34: 9 | L34: 0 | M34: 0 | N34: 0 | O34: 0 | P34: 218.711254 | Q34: 0 | R34: 0 | T34: 9 | U34: 0 | V34: 0
B35: 10 | C35: 0 | D35: 0 | E35: 0 | F35: 0 | G35: 218.711254 | H35: 0 | I35: 0 | K35: 10 | L35: 0 | M35: 0 | N35: 0 | O35: 0 | P35: 218.711254 | Q35: 0 | R35: 0 | T35: 10 | U35: 0 | V35: 0
B36: 11 | C36: 0 | D36: 0 | E36: 0 | F36: 0 | G36: 218.711254 | H36: 0 | I36: 0 | K36: 11 | L36: 0 | M36: 0 | N36: 0 | O36: 0 | P36: 218.711254 | Q36: 0 | R36: 0 | T36: 11 | U36: 0 | V36: 0
B37: 12 | C37: 0 | D37: 0 | E37: 0 | F37: 0 | G37: 218.711254 | H37: 0 | I37: 0 | K37: 12 | L37: 0 | M37: 0 | N37: 0 | O37: 0 | P37: 218.711254 | Q37: 0 | R37: 0 | T37: 12 | U37: 0 | V37: 0
B38: 13 | C38: 0 | D38: 0 | E38: 0 | F38: 0 | G38: 218.711254 | H38: 0 | I38: 0 | K38: 13 | L38: 0 | M38: 0 | N38: 0 | O38: 0 | P38: 218.711254 | Q38: 0 | R38: 0 | T38: 13 | U38: 0 | V38: 0
B39: 14 | C39: 0 | D39: 0 | E39: 0 | F39: 0 | G39: 218.711254 | H39: 0 | I39: 0 | K39: 14 | L39: 0 | M39: 0 | N39: 0 | O39: 0 | P39: 218.711254 | Q39: 0 | R39: 0 | T39: 14 | U39: 0 | V39: 0
B40: 15 | C40: 0 | D40: 0 | E40: 0 | F40: 0 | G40: 218.711254 | H40: 0 | I40: 0 | K40: 15 | L40: 0 | M40: 0 | N40: 0 | O40: 0 | P40: 218.711254 | Q40: 0 | R40: 0 | T40: 15 | U40: 0 | V40: 0
B41: 16 | C41: 0 | D41: 0 | E41: 0 | F41: 0 | G41: 218.711254 | H41: 0 | I41: 0 | K41: 16 | L41: 0 | M41: 0 | N41: 0 | O41: 0 | P41: 218.711254 | Q41: 0 | R41: 0 | T41: 16 | U41: 0 | V41: 0
B42: 17 | C42: 0 | D42: 0 | E42: 0 | F42: 0 | G42: 218.711254 | H42: 0 | I42: 0 | K42: 17 | L42: 0 | M42: 0 | N42: 0 | O42: 0 | P42: 218.711254 | Q42: 0 | R42: 0 | T42: 17 | U42: 0 | V42: 0
B43: 18 | C43: 0 | D43: 0 | E43: 0 | F43: 0 | G43: 218.711254 | H43: 0 | I43: 0 | K43: 18 | L43: 0 | M43: 0 | N43: 0 | O43: 0 | P43: 218.711254 | Q43: 0 | R43: 0 | T43: 18 | U43: 0 | V43: 0
B44: 19 | C44: 0 | D44: 0 | E44: 0 | F44: 0 | G44: 218.711254 | H44: 0 | I44: 0 | K44: 19 | L44: 0 | M44: 0 | N44: 0 | O44: 0 | P44: 218.711254 | Q44: 0 | R44: 0 | T44: 19 | U44: 0 | V44: 0
B45: 20 | C45: 0 | D45: 0 | E45: 0 | F45: 0 | G45: 218.711254 | H45: 0 | I45: 0 | K45: 20 | L45: 0 | M45: 0 | N45: 0 | O45: 0 | P45: 218.711254 | Q45: 0 | R45: 0 | T45: 20 | U45: 0 | V45: 0
B47: Total | I47: =SUM(I26:I45) -> 0 | K47: Total | R47: =SUM(R26:R45) -> 0 | T47: Total | V47: =SUM(V26:V45) -> 0

Sheet Health - Reduced Mortality
B1: Health Benefits - Reduced Mortality
B3: This sheet calculates the benefits to cyclists and pedestrians for improved long-term health based on reduced risk of mortality.
B5: Formulas:
H6: Number of Expected Deaths in Age Group (Baseline) = Number of Users in Risk-Reducing Age Group * Death Rate (Group)
B7: Number of Induced Users = Users With Project (Improved or New Facility) - Baseline Users (Existing and / or no Facility) | H7: # / yr.
B8: # / yr. | H8: Reduced Mortality Risk = Expected Deaths in Age Group * Mortality Risk Reduction (%), as function of annual trip miles
H9: # / yr.
B10: Number of Users in Risk-Reducing Age Group = Number of Induced Users * % of Users (by Mode) in Risk-reducing Age Group | H10: Value of Reduced Mortality = Reduced Number of Annual Deaths * Value of Life
B11: # / yr. | H11: $/yr.
B15: A | C15: CYCLING BENEFITS | M15: B | N15: PEDESTRIAN BENEFITS | X15: C | Y15: TOTAL
B18: Existing | M18: Existing | X18: Existing
C20: AVERAGE ANNUAL USERS | F20: REDUCED MORTALITY RISK | I20: VALUE OF REDUCED MORTALITY | N20: AVERAGE ANNUAL USERS | Q20: REDUCED MORTALITY RISK | T20: VALUE OF REDUCED MORTALITY
C21: (Users/yr.) | F21: (# of persons) | I21: ($) | N21: (trips/yr.) | Q21: (# of persons) | T21: ($)
B22: Year | C22: Total Users, Existing Facility (Baseline) | D22: Total Users, Improved Facility | E22: Induced Users, Improved Facility | F22: Users in Risk-Reducing Age Group (Ages 20-64) | G22: Expected # of Deaths Among Users | H22: Reduced Mortality Risk (Induced User Trips) | I22: Induced Users | J22: Constant Dollars | K22: Present Value | M22: Year | N22: Total Users, Existing Facility (Baseline) | O22: Total Users, Improved Facility | P22: Induced Users, Improved Facility | Q22: Users in Age-Risk Group | R22: Expected # of Deaths Among Users | S22: Reduced Mortality Risk (Induced User Trips) | T22: Induced Users | U22: Constant Dollars | V22: Present Value | X22: Year | Y22: Constant Dollars | Z22: Present Value
B23: 1 | C23: =IF(OR(ProjType=1, ProjType=3),UserComCyc1NBEX+UserODCyc1NBEX+UserRecCyc1NBEX*RecBen,0) -> 0 | D23: =IF(OR(ProjType=1, ProjType=3),UserComCyc1BEX+UserODCyc1BEX+UserRecCyc1BEX*RecBen,0) -> 0 | E23: =D23-C23 -> 0 | F23: =E23*PerCycAge -> 0 | G23: =F23*MortRateCyc/100000 -> 0 | H23: =G23*PerCycRiskRedUsers -> 0 | I23: =H23*HwyFatCost -> 0 | J23: =I23 -> 0 | K23: =$J23/(1+DiscRate)^($B23+Construct-1) -> 0 | M23: 1 | N23: =IF(OR(ProjType=1, ProjType=3),UserComPed1NBEX+UserODPed1NBEX+UserRecPed1NBEX*RecBen,0) -> 0 | O23: =IF(OR(ProjType=1, ProjType=3),UserComPed1BEX+UserODPed1BEX+UserRecPed1BEX*RecBen,0) -> 0 | P23: =O23-N23 -> 0 | Q23: =P23*PerPedAge -> 0 | R23: =Q23*MortRatePed/100000 -> 0 | S23: =R23*PerPedRiskRedUsers -> 0 | T23: =IF(OR(ProjType=1, ProjType=3),S23*HwyFatCost,0) -> 0 | U23: =T23 -> 0 | V23: =$U23/(1+DiscRate)^($M23+Construct-1) -> 0 | X23: 1 | Y23: =U23+J23 -> 0 | Z23: =V23+K23 -> 0
B24: 20 | C24: =IF(OR(ProjType=1, ProjType=3),UserComCyc20NBEX+UserODCyc20NBEX+UserRecCyc20NBEX*RecBen,0) -> 0 | D24: =IF(OR(ProjType=1, ProjType=3),UserComCyc20BEX+UserODCyc20BEX+UserRecCyc20BEX*RecBen,0) -> 0 | E24: =D24-C24 -> 0 | F24: =E24*PerCycAge -> 0 | G24: =F24*MortRateCyc/100000 -> 0 | H24: =G24*PerCycRiskRedUsers -> 0 | I24: =H24*HwyFatCost -> 0 | J24: =I24 -> 0 | K24: =$J24/(1+DiscRate)^($B24+Construct-1) -> 0 | M24: 20 | N24: =IF(OR(ProjType=1, ProjType=3),UserComPed20NBEX+UserODPed20NBEX+UserRecPed20NBEX*RecBen,0) -> 0 | O24: =IF(OR(ProjType=1, ProjType=3),UserComPed20BEX+UserODPed20BEX+UserRecPed20BEX*RecBen,0) -> 0 | P24: =O24-N24 -> 0 | Q24: =P24*PerPedAge -> 0 | R24: =Q24*MortRatePed/100000 -> 0 | S24: =R24*PerPedRiskRedUsers -> 0 | T24: =IF(OR(ProjType=1, ProjType=3),S24*HwyFatCost,0) -> 0 | U24: =T24 -> 0 | V24: =$U24/(1+DiscRate)^($M24+Construct-1) -> 0 | X24: 20 | Y24: =U24+J24 -> 0 | Z24: =V24+K24 -> 0
B26: 1 | C26: =TREND(C$23:C$24,$B$23:$B$24,$B26) -> 0 | D26: =TREND(D$23:D$24,$B$23:$B$24,$B26) -> 0 | E26: =TREND(E$23:E$24,$B$23:$B$24,$B26) -> 0 | F26: =E26*PerCycAge -> 0 | G26: =F26*MortRateCyc/100000 -> 0 | H26: =G26*PerCycRiskRedUsers -> 0 | I26: =H26*HwyFatCost -> 0 | J26: =I26 -> 0 | K26: =$J26/(1+DiscRate)^($B26+Construct-1) -> 0 | M26: 1 | N26: =TREND(N$23:N$24,$M$23:$M$24,$M26) -> 0 | O26: 0 | P26: =O26-N26 -> 0 | Q26: =P26*PerPedAge -> 0 | R26: =Q26*MortRatePed/100000 -> 0 | S26: =R26*PerPedRiskRedUsers -> 0 | T26: =IF(OR(ProjType=1, ProjType=3),S26*HwyFatCost,0) -> 0 | U26: =T26 -> 0 | V26: =U26/(1+DiscRate)^($B26+Construct-1) -> 0 | X26: 1 | Y26: =U26+J26 -> 0 | Z26: 0
B27: 2 | C27: =TREND(C$23:C$24,$B$23:$B$24,$B27) -> 0 | D27: 0 | E27: 0 | F27: 0 | G27: 0 | H27: 0 | I27: 0 | J27: 0 | K27: 0 | M27: 2 | N27: 0 | O27: 0 | P27: =O27-N27 -> 0 | Q27: 0 | R27: 0 | S27: 0 | T27: 0 | U27: 0 | V27: 0 | X27: 2 | Y27: 0 | Z27: 0
B28: 3 | C28: 0 | D28: 0 | E28: 0 | F28: 0 | G28: 0 | H28: 0 | I28: 0 | J28: 0 | K28: 0 | M28: 3 | N28: 0 | O28: 0 | P28: 0 | Q28: 0 | R28: 0 | S28: 0 | T28: 0 | U28: 0 | V28: 0 | X28: 3 | Y28: 0 | Z28: 0
B29: 4 | C29: 0 | D29: 0 | E29: 0 | F29: 0 | G29: 0 | H29: 0 | I29: 0 | J29: 0 | K29: 0 | M29: 4 | N29: 0 | O29: 0 | P29: 0 | Q29: 0 | R29: 0 | S29: 0 | T29: 0 | U29: 0 | V29: 0 | X29: 4 | Y29: 0 | Z29: 0
B30: 5 | C30: 0 | D30: 0 | E30: 0 | F30: 0 | G30: 0 | H30: 0 | I30: 0 | J30: 0 | K30: 0 | M30: 5 | N30: 0 | O30: 0 | P30: 0 | Q30: 0 | R30: 0 | S30: 0 | T30: 0 | U30: 0 | V30: 0 | X30: 5 | Y30: 0 | Z30: 0
B31: 6 | C31: 0 | D31: 0 | E31: 0 | F31: 0 | G31: 0 | H31: 0 | I31: 0 | J31: 0 | K31: 0 | M31: 6 | N31: 0 | O31: 0 | P31: 0 | Q31: 0 | R31: 0 | S31: 0 | T31: 0 | U31: 0 | V31: 0 | X31: 6 | Y31: 0 | Z31: 0
B32: 7 | C32: 0 | D32: 0 | E32: 0 | F32: 0 | G32: 0 | H32: 0 | I32: 0 | J32: 0 | K32: 0 | M32: 7 | N32: 0 | O32: 0 | P32: 0 | Q32: 0 | R32: 0 | S32: 0 | T32: 0 | U32: 0 | V32: 0 | X32: 7 | Y32: 0 | Z32: 0
B33: 8 | C33: 0 | D33: 0 | E33: 0 | F33: 0 | G33: 0 | H33: 0 | I33: 0 | J33: 0 | K33: 0 | M33: 8 | N33: 0 | O33: 0 | P33: 0 | Q33: 0 | R33: 0 | S33: 0 | T33: 0 | U33: 0 | V33: 0 | X33: 8 | Y33: 0 | Z33: 0
B34: 9 | C34: 0 | D34: 0 | E34: 0 | F34: 0 | G34: 0 | H34: 0 | I34: 0 | J34: 0 | K34: 0 | M34: 9 | N34: =TREND(N$23:N$24,$M$23:$M$24,$M34) -> 0 | O34: =TREND(O$23:O$24,$M$23:$M$24,$M34) -> 0 | P34: 0 | Q34: 0 | R34: 0 | S34: 0 | T34: 0 | U34: 0 | V34: 0 | X34: 9 | Y34: 0 | Z34: 0
B35: 10 | C35: 0 | D35: 0 | E35: 0 | F35: 0 | G35: 0 | H35: 0 | I35: 0 | J35: 0 | K35: 0 | M35: 10 | N35: =TREND(N$23:N$24,$B$23:$B$24,$B35) -> 0 | O35: 0 | P35: 0 | Q35: 0 | R35: 0 | S35: 0 | T35: 0 | U35: 0 | V35: 0 | X35: 10 | Y35: 0 | Z35: 0
B36: 11 | C36: 0 | D36: 0 | E36: 0 | F36: 0 | G36: 0 | H36: 0 | I36: 0 | J36: 0 | K36: 0 | M36: 11 | N36: 0 | O36: 0 | P36: 0 | Q36: 0 | R36: 0 | S36: 0 | T36: 0 | U36: 0 | V36: 0 | X36: 11 | Y36: 0 | Z36: 0
B37: 12 | C37: 0 | D37: 0 | E37: 0 | F37: 0 | G37: 0 | H37: 0 | I37: 0 | J37: 0 | K37: 0 | M37: 12 | N37: 0 | O37: 0 | P37: 0 | Q37: 0 | R37: 0 | S37: 0 | T37: 0 | U37: 0 | V37: 0 | X37: 12 | Y37: 0 | Z37: 0
B38: 13 | C38: 0 | D38: 0 | E38: 0 | F38: 0 | G38: 0 | H38: 0 | I38: 0 | J38: 0 | K38: 0 | M38: 13 | N38: 0 | O38: 0 | P38: 0 | Q38: 0 | R38: 0 | S38: 0 | T38: 0 | U38: 0 | V38: 0 | X38: 13 | Y38: 0 | Z38: 0
B39: 14 | C39: 0 | D39: 0 | E39: 0 | F39: 0 | G39: 0 | H39: 0 | I39: 0 | J39: 0 | K39: 0 | M39: 14 | N39: 0 | O39: 0 | P39: 0 | Q39: 0 | R39: 0 | S39: 0 | T39: 0 | U39: 0 | V39: 0 | X39: 14 | Y39: 0 | Z39: 0
B40: 15 | C40: 0 | D40: 0 | E40: 0 | F40: 0 | G40: 0 | H40: 0 | I40: 0 | J40: 0 | K40: 0 | M40: 15 | N40: 0 | O40: 0 | P40: 0 | Q40: 0 | R40: 0 | S40: 0 | T40: 0 | U40: 0 | V40: 0 | X40: 15 | Y40: 0 | Z40: 0
B41: 16 | C41: 0 | D41: 0 | E41: 0 | F41: 0 | G41: 0 | H41: 0 | I41: 0 | J41: 0 | K41: 0 | M41: 16 | N41: 0 | O41: 0 | P41: 0 | Q41: 0 | R41: 0 | S41: 0 | T41: 0 | U41: 0 | V41: 0 | X41: 16 | Y41: 0 | Z41: 0
B42: 17 | C42: 0 | D42: 0 | E42: 0 | F42: 0 | G42: 0 | H42: 0 | I42: 0 | J42: 0 | K42: 0 | M42: 17 | N42: 0 | O42: 0 | P42: 0 | Q42: 0 | R42: 0 | S42: 0 | T42: 0 | U42: 0 | V42: 0 | X42: 17 | Y42: 0 | Z42: 0
B43: 18 | C43: 0 | D43: 0 | E43: 0 | F43: 0 | G43: 0 | H43: 0 | I43: 0 | J43: 0 | K43: 0 | M43: 18 | N43: 0 | O43: 0 | P43: 0 | Q43: 0 | R43: 0 | S43: 0 | T43: 0 | U43: 0 | V43: 0 | X43: 18 | Y43: 0 | Z43: 0
B44: 19 | C44: 0 | D44: 0 | E44: 0 | F44: 0 | G44: 0 | H44: 0 | I44: 0 | J44: 0 | K44: 0 | M44: 19 | N44: 0 | O44: 0 | P44: 0 | Q44: 0 | R44: 0 | S44: 0 | T44: 0 | U44: 0 | V44: 0 | X44: 19 | Y44: 0 | Z44: 0
B45: 20 | C45: 0 | D45: 0 | E45: 0 | F45: 0 | G45: 0 | H45: 0 | I45: 0 | J45: 0 | K45: 0 | M45: 20 | N45: 0 | O45: 0 | P45: 0 | Q45: 0 | R45: 0 | S45: 0 | T45: 0 | U45: 0 | V45: 0 | X45: 20 | Y45: 0 | Z45: 0
B47: Total | K47: =SUM(K26:K45) -> 0 | M47: Total | V47: =SUM(V26:V45) -> 0 | X47: Total | Z47: =SUM(Z26:Z45) -> 0
B52: D | C52: CYCLING BENEFITS | M52: E | N52: PEDESTRIAN BENEFITS | X52: F | Y52: TOTAL
B55: New | M55: New | X55: New
C57: AVERAGE ANNUAL USERS | F57: REDUCED MORTALITY RISK | I57: VALUE OF REDUCED MORTALITY | N57: AVERAGE ANNUAL USERS | Q57: REDUCED MORTALITY RISK | T57: VALUE OF REDUCED MORTALITY
C58: (trips/yr.) | F58: (# of persons) | I58: ($) | N58: (trips/yr.) | Q58: (# of persons) | T58: ($)
B59: Year | C59: Total Users, Existing Facility (Baseline) | D59: Total Users, Improved Facility | E59: Induced Users, Improved Facility | F59: Users in Age-Risk Group | G59: Expected # of Deaths Among Users | H59: Reduced Mortality Risk (Induced User Trips) | I59: Induced Users | J59: Constant Dollars | K59: Present Value | M59: Year | N59: Total Users, Existing Facility (Baseline) | O59: Total Users, Improved Facility | P59: Induced Users, Improved Facility | Q59: Users in Age-Risk Group | R59: Expected # of Deaths Among Users | S59: Reduced Mortality Risk (Induced User Trips) | T59: Induced Users | U59: Constant Dollars | V59: Present Value | X59: Year | Y59: Constant Dollars | Z59: Present Value
B60: 1 | C60: =IF(ProjType>1,UserComCyc1NBNew+UserODCyc1NBNew+UserRecCyc1NBNew*RecBen,0) -> 0 | D60: =IF(ProjType>1,UserComCyc1BNew+UserODCyc1BNew+UserRecCyc1BNew*RecBen,0) -> 0 | E60: =D60-C60 -> 0 | F60: =E60*PerCycAge -> 0 | G60: =F60*MortRateCyc/100000 -> 0 | H60: =G60*PerCycRiskRedUsers -> 0 | I60: =H60*HwyFatCost -> 0 | J60: =I60 -> 0 | K60: =$J60/(1+DiscRate)^($B60+Construct-1) -> 0 | M60: 1 | N60: =IF(ProjType>1,UserComPed1NBNew+UserODPed1NBNew+UserRecPed1NBNew*RecBen,0) -> 0 | O60: =IF(ProjType>1,UserComPed1BNew+UserODPed1BNew+UserRecPed1BNew*RecBen,0) -> 0 | P60: =O60-N60 -> 0 | Q60: =P60*PerPedAge -> 0 | R60: =Q60*MortRatePed/100000 -> 0 | S60: =R60*PerPedRiskRedUsers -> 0 | T60: =IF(ProjType>1,S60*HwyFatCost,0) -> 0 | U60: =T60 -> 0 | V60: =$U60/(1+DiscRate)^($M60+Construct-1) -> 0 | X60: 1 | Y60: =U60+J60 -> 0 | Z60: =V60+K60 -> 0
B61: 20 | C61: =IF(ProjType>1,UserComCyc20NBNew+UserODCyc20NBNew+UserRecCyc20NBNew*RecBen,0) -> 0 | D61: =IF(ProjType>1,UserComCyc20BNew+UserODCyc20BNew+UserRecCyc20BNew*RecBen,0) -> 0 | E61: =D61-C61 -> 0 | F61: =E61*PerCycAge -> 0 | G61: =F61*MortRateCyc/100000 -> 0 | H61: =G61*PerCycRiskRedUsers -> 0 | I61: =H61*HwyFatCost -> 0 | J61: =I61 -> 0 | K61: =$J61/(1+DiscRate)^($B61+Construct-1) -> 0 | M61: 20 | N61: =IF(ProjType>1,UserComPed20NBNew+UserODPed20NBNew+UserRecPed20NBNew*RecBen,0) -> 0 | O61: =IF(ProjType>1,UserComPed20BNew+UserODPed20BNew+UserRecPed20BNew*RecBen,0) -> 0 | P61: =O61-N61 -> 0 | Q61: =P61*PerPedAge -> 0 | R61: =Q61*MortRatePed/100000 -> 0 | S61: =R61*PerPedRiskRedUsers -> 0 | T61: =IF(ProjType>1,S61*HwyFatCost,0) -> 0 | U61: =T61 -> 0 | V61: =$U61/(1+DiscRate)^($M61+Construct-1) -> 0 | X61: 20 | Y61: =U61+J61 -> 0 | Z61: =V61+K61 -> 0
B63: 1 | C63: =TREND(C$60:C$61,$B$60:$B$61,$B63) -> 0 | D63: =TREND(D$60:D$61,$B$60:$B$61,$B63) -> 0 | E63: =D63-C63 -> 0 | F63: =E63*PerCycAge -> 0 | G63: =F63*MortRateCyc/100000 -> 0 | H63: =G63*PerCycRiskRedUsers -> 0 | I63: =H63*HwyFatCost -> 0 | J63: =I63 -> 0 | K63: =$J63/(1+DiscRate)^($B63+Construct-1) -> 0 | M63: 1 | N63: =TREND(N$60:N$61,$M$60:$M$61,$M63) -> 0 | O63: =TREND(O$60:O$61,$M$60:$M$61,$M63) -> 0 | P63: =O63-N63 -> 0 | Q63: =P63*PerPedAge -> 0 | R63: =Q63*MortRatePed/100000 -> 0 | S63: =R63*PerPedRiskRedUsers -> 0 | T63: =IF(ProjType>1,S63*HwyFatCost,0) -> 0 | U63: =T63 -> 0 | V63: =U63/(1+DiscRate)^($B63+Construct-1) -> 0 | X63: 1 | Y63: =U63+J63 -> 0 | Z63: 0
B64: 2 | C64: =TREND(C$60:C$61,$B$60:$B$61,$B64) -> 0 | D64: 0 | E64: =D64-C64 -> 0 | F64: 0 | G64: 0 | H64: 0 | I64: 0 | J64: 0 | K64: 0 | M64: 2 | N64: =TREND(N$60:N$61,$M$60:$M$61,$M64) -> 0 | O64: 0 | P64: =O64-N64 -> 0 | Q64: 0 | R64: 0 | S64: 0 | T64: 0 | U64: 0 | V64: 0 | X64: 2 | Y64: 0 | Z64: 0
B65: 3 | C65: 0 | D65: 0 | E65: 0 | F65: 0 | G65: 0 | H65: 0 | I65: 0 | J65: 0 | K65: 0 | M65: 3 | N65: 0 | O65: 0 | P65: 0 | Q65: 0 | R65: 0 | S65: 0 | T65: 0 | U65: 0 | V65: 0 | X65: 3 | Y65: 0 | Z65: 0
B66: 4 | C66: 0 | D66: 0 | E66: 0 | F66: 0 | G66: 0 | H66: 0 | I66: 0 | J66: 0 | K66: 0 | M66: 4 | N66: 0 | O66: 0 | P66: 0 | Q66: 0 | R66: 0 | S66: 0 | T66: 0 | U66: 0 | V66: 0 | X66: 4 | Y66: 0 | Z66: 0
B67: 5 | C67: 0 | D67: 0 | E67: 0 | F67: 0 | G67: 0 | H67: 0 | I67: 0 | J67: 0 | K67: 0 | M67: 5 | N67: 0 | O67: 0 | P67: 0 | Q67: 0 | R67: 0 | S67: 0 | T67: 0 | U67: 0 | V67: 0 | X67: 5 | Y67: 0 | Z67: 0
B68: 6 | C68: 0 | D68: 0 | E68: 0 | F68: 0 | G68: 0 | H68: 0 | I68: 0 | J68: 0 | K68: 0 | M68: 6 | N68: 0 | O68: 0 | P68: 0 | Q68: 0 | R68: 0 | S68: 0 | T68: 0 | U68: 0 | V68: 0 | X68: 6 | Y68: 0 | Z68: 0
B69: 7 | C69: 0 | D69: 0 | E69: 0 | F69: 0 | G69: 0 | H69: 0 | I69: 0 | J69: 0 | K69: 0 | M69: 7 | N69: 0 | O69: 0 | P69: 0 | Q69: 0 | R69: 0 | S69: 0 | T69: 0 | U69: 0 | V69: 0 | X69: 7 | Y69: 0 | Z69: 0
B70: 8 | C70: 0 | D70: 0 | E70: 0 | F70: 0 | G70: 0 | H70: 0 | I70: 0 | J70: 0 | K70: 0 | M70: 8 | N70: 0 | O70: 0 | P70: 0 | Q70: 0 | R70: 0 | S70: 0 | T70: 0 | U70: 0 | V70: 0 | X70: 8 | Y70: 0 | Z70: 0
B71: 9 | C71: 0 | D71: 0 | E71: 0 | F71: 0 | G71: 0 | H71: 0 | I71: 0 | J71: 0 | K71: 0 | M71: 9 | N71: 0 | O71: 0 | P71: 0 | Q71: 0 | R71: 0 | S71: 0 | T71: 0 | U71: 0 | V71: 0 | X71: 9 | Y71: 0 | Z71: 0
B72: 10 | C72: 0 | D72: 0 | E72: 0 | F72: 0 | G72: 0 | H72: 0 | I72: 0 | J72: 0 | K72: 0 | M72: 10 | N72: 0 | O72: 0 | P72: 0 | Q72: 0 | R72: 0 | S72: 0 | T72: 0 | U72: 0 | V72: 0 | X72: 10 | Y72: 0 | Z72: 0
B73: 11 | C73: 0 | D73: 0 | E73: 0 | F73: 0 | G73: 0 | H73: 0 | I73: 0 | J73: 0 | K73: 0 | M73: 11 | N73: 0 | O73: 0 | P73: 0 | Q73: 0 | R73: 0 | S73: 0 | T73: 0 | U73: 0 | V73: 0 | X73: 11 | Y73: 0 | Z73: 0
B74: 12 | C74: 0 | D74: 0 | E74: 0 | F74: 0 | G74: 0 | H74: 0 | I74: 0 | J74: 0 | K74: 0 | M74: 12 | N74: 0 | O74: 0 | P74: 0 | Q74: 0 | R74: 0 | S74: 0 | T74: 0 | U74: 0 | V74: 0 | X74: 12 | Y74: 0 | Z74: 0
B75: 13 | C75: 0 | D75: 0 | E75: 0 | F75: 0 | G75: 0 | H75: 0 | I75: 0 | J75: 0 | K75: 0 | M75: 13 | N75: 0 | O75: 0 | P75: 0 | Q75: 0 | R75: 0 | S75: 0 | T75: 0 | U75: 0 | V75: 0 | X75: 13 | Y75: 0 | Z75: 0
B76: 14 | C76: 0 | D76: 0 | E76: 0 | F76: 0 | G76: 0 | H76: 0 | I76: 0 | J76: 0 | K76: 0 | M76: 14 | N76: 0 | O76: 0 | P76: 0 | Q76: 0 | R76: 0 | S76: 0 | T76: 0 | U76: 0 | V76: 0 | X76: 14 | Y76: 0 | Z76: 0
B77: 15 | C77: 0 | D77: 0 | E77: 0 | F77: 0 | G77: 0 | H77: 0 | I77: 0 | J77: 0 | K77: 0 | M77: 15 | N77: 0 | O77: 0 | P77: 0 | Q77: 0 | R77: 0 | S77: 0 | T77: 0 | U77: 0 | V77: 0 | X77: 15 | Y77: 0 | Z77: 0
B78: 16 | C78: 0 | D78: 0 | E78: 0 | F78: 0 | G78: 0 | H78: 0 | I78: 0 | J78: 0 | K78: 0 | M78: 16 | N78: 0 | O78: 0 | P78: 0 | Q78: 0 | R78: 0 | S78: 0 | T78: 0 | U78: 0 | V78: 0 | X78: 16 | Y78: 0 | Z78: 0
B79: 17 | C79: 0 | D79: 0 | E79: 0 | F79: 0 | G79: 0 | H79: 0 | I79: 0 | J79: 0 | K79: 0 | M79: 17 | N79: 0 | O79: 0 | P79: 0 | Q79: 0 | R79: 0 | S79: 0 | T79: 0 | U79: 0 | V79: 0 | X79: 17 | Y79: 0 | Z79: 0
B80: 18 | C80: 0 | D80: 0 | E80: 0 | F80: 0 | G80: 0 | H80: 0 | I80: 0 | J80: 0 | K80: 0 | M80: 18 | N80: 0 | O80: 0 | P80: 0 | Q80: 0 | R80: 0 | S80: 0 | T80: 0 | U80: 0 | V80: 0 | X80: 18 | Y80: 0 | Z80: 0
B81: 19 | C81: 0 | D81: 0 | E81: 0 | F81: 0 | G81: 0 | H81: 0 | I81: 0 | J81: 0 | K81: 0 | M81: 19 | N81: 0 | O81: 0 | P81: 0 | Q81: 0 | R81: 0 | S81: 0 | T81: 0 | U81: 0 | V81: 0 | X81: 19 | Y81: 0 | Z81: 0
B82: 20 | C82: 0 | D82: 0 | E82: 0 | F82: 0 | G82: 0 | H82: 0 | I82: 0 | J82: 0 | K82: 0 | M82: 20 | N82: 0 | O82: 0 | P82: 0 | Q82: 0 | R82: 0 | S82: 0 | T82: 0 | U82: 0 | V82: 0 | X82: 20 | Y82: 0 | Z82: 0
B84: Total | K84: =SUM(K63:K82) -> 0 | M84: Total | V84: =SUM(V63:V82) -> 0 | X84: Total | Z84: =SUM(Z63:Z82) -> 0
F88: Computation of Risk Redution Parameter - Cycling | Q88: Computation of Risk Redution Parameter - Walking
G90: Total Average Annual Miles - Existing | H90: =TAvMiCycB*CycleDays -> 905.2 | R90: Total Average Annual Miles - Existing | S90: =TAvMiPedB*WalkDays -> 251.85
G92: Percentage reduction in mortality per 365 annual cycling miles (2) from research | H92: =PerCycRiskRed -> 0.045 | R92: Percentage reduction in mortality per 365 annual cycling miles (2) from research | S92: =PerPedRiskRed -> 0.09
G94: Actual annual percentage reduction in mortality | H94: =MIN(IFERROR(H90,0)*H92/365,30%) -> 0.1116 | I94: Note: Max risk reduction = 45%, or about 5 miles per trip for 365 days. WHO HEAT Model (2016) | R94: Actual annual percentage reduction in mortality | S94: =MIN(IFERROR(S90,0)*S92/365,30%) -> 0.0621 | T94: Note: Max risk reduction = 30%, or about 1.7 miles per day for 365 days. WHO HEAT Model (2016)

Sheet Emissions
B1: Emission Reduction Benefits
B3: This sheet calculates emissions benefits associated with reductions in automobile use due to increased cycling and walking.
B5: Formulas:
B7: Vehicle-Miles Traveled = Affected Length x Avg. Annual Volume | H7: Veh Em Cost = (Veh-Miles x Rate x Cost/Mile) by Em Type
B8: veh-miles/yr. | D8: miles | E8: vehicles/yr.
B10: Hwy Emissions Cost = (VMT x Rate x Cost/Mile) by Emissions Type
B15: A | C15: REDUCED EMISSIONS BENEFITS
B18: Total
C20: AVERAGE ANNUAL VOLUME | E20: REDUCED VMT | F20: AVERAGE SPEED | G20: RUNNING EMISSIONS | K20: CO2 EMISSIONS
C21: (trip-miles/yr.) | E21: (veh-miles/yr.) | F21: (mph) | G21: ($/yr.) | K21: SAVED
B22: Year | C22: Induced Trips, Cycling | D22: Induced Trips, Pedestrians | E22: Induced Trips | F22: Induced Trips | G22: Induced Trips | H22: Constant Dollars | I22: Present Value | K22: tons/yr. | L22: PV $/yr.
B23: 1 | C23: =IF(OR(ProjType=1,ProjType=3),((TrComCyc1BEX-TrComCyc1NBEX)+(TrODCyc1BEX-TrODCyc1NBEX))*TAvMiCycNB,0)+IF(ProjType>1,((TrComCyc1BNew-TrComCyc1NBNew)+(TrODCyc1BNew-TrODCyc1NBNew))*TAvMiCycNB,0) -> 0 | D23: =IF(OR(ProjType=1,ProjType=3),((TrComPed1BEX-TrComPed1NBEX)+(TrODPed1BEX-TrODPed1NBEX))*TAvMiPedNB,0)+IF(ProjType>1,((TrComPed1BNew-TrComPed1NBNew)+(TrODPed1BNew-TrODPed1NBNew))*TAvMiPedNB,0) -> 0 | E23: =(D23*DivCycAutoNB+C23*DivPedAutoNB)/VehOcc -> 0 | F23: =VehSpeed -> 25 | G23: =IFERROR(E23*0.00000110231131*(VLOOKUP(F23,EmAuto1,2)*VLOOKUP(ProjLoc,EmCost,2)+VLOOKUP(F23,EmAuto1,3)*VLOOKUP(ProjLoc,EmCost,3)*(1+CO2Uprater)^($B23+Construct-1)+VLOOKUP(F23,EmAuto1,4)*VLOOKUP(ProjLoc,EmCost,4)+VLOOKUP(F23,EmAuto1,5)*VLOOKUP(ProjLoc,EmCost,5)+VLOOKUP(F23,EmAuto1,6)*VLOOKUP(ProjLoc,EmCost,6)+VLOOKUP(F23,EmAuto1,7)*VLOOKUP(ProjLoc,EmCost,7)),0) -> 0 | H23: =G23 -> 0 | I23: =$H23/(1+DiscRate)^($B23+Construct-1) -> 0 | K23: =0.00000110231131*(E23*VLOOKUP(F23,EmAuto1,3)) -> 0 | L23: =IFERROR(K23*VLOOKUP(ProjLoc,EmCost,3)*(1+CO2Uprater)^($B23+Construct-1)/(1+DiscRate)^($B23+Construct-1),0) -> 0
B24: 20 | C24: =IF(OR(ProjType=1,ProjType=3),((TrComCyc20BEX-TrComCyc20NBEX)+(TrODCyc20BEX-TrODCyc20NBEX))*TAvMiCycNB,0)+IF(ProjType>1,((TrComCyc20BNew-TrComCyc20NBNew)+(TrODCyc20BNew-TrODCyc20NBNew))*TAvMiCycNB,0) -> 0 | D24: =IF(OR(ProjType=1,ProjType=3),((TrComPed20BEX-TrComPed20NBEX)+(TrODPed20BEX-TrODPed20NBEX))*TAvMiPedNB,0)+IF(ProjType>1,((TrComPed20BNew-TrComPed20NBNew)+(TrODPed20BNew-TrODPed20NBNew))*TAvMiPedNB,0) -> 0 | E24: =(D24*DivCycAutoNB+C24*DivPedAutoNB)/VehOcc -> 0 | F24: =VehSpeed -> 25 | G24: =IFERROR(E24*0.00000110231131*(VLOOKUP(F24,EmAuto20,2)*VLOOKUP(ProjLoc,EmCost,2)+VLOOKUP(F24,EmAuto20,3)*VLOOKUP(ProjLoc,EmCost,3)*(1+CO2Uprater)^($B24+Construct-1)+VLOOKUP(F24,EmAuto20,4)*VLOOKUP(ProjLoc,EmCost,4)+VLOOKUP(F24,EmAuto20,5)*VLOOKUP(ProjLoc,EmCost,5)+VLOOKUP(F24,EmAuto20,6)*VLOOKUP(ProjLoc,EmCost,6)+VLOOKUP(F24,EmAuto20,7)*VLOOKUP(ProjLoc,EmCost,7)),0) -> 0 | H24: =G24 -> 0 | I24: =$H24/(1+DiscRate)^($B24+Construct-1) -> 0 | K24: =0.00000110231131*(E24*VLOOKUP(F24,EmAuto1,3)) -> 0 | L24: =IFERROR(K24*VLOOKUP(ProjLoc,EmCost,3)*(1+CO2Uprater)^($B24+Construct-1)/(1+DiscRate)^($B24+Construct-1),0) -> 0
B26: 1 | C26: =TREND(C$23:C$24,$B$23:$B$24,$B26) -> 0 | D26: =TREND(D$23:D$24,$B$23:$B$24,$B26) -> 0 | E26: =(D26*DivCycAutoNB+C26*DivPedAutoNB)/VehOcc -> 0 | F26: =VehSpeed -> 25 | G26: =G23 -> 0 | H26: =G26 -> 0 | I26: =$H26/(1+DiscRate)^($B26+Construct-1) -> 0 | K26: =0.00000110231131*(E26*VLOOKUP(F26,EmAuto1,3)) -> 0 | L26: =IFERROR(K26*VLOOKUP(ProjLoc,EmCost,3)*(1+CO2Uprater)^($B26+Construct-1)/(1+DiscRate)^($B26+Construct-1),0) -> 0
B27: 2 | C27: =TREND(C$23:C$24,$B$23:$B$24,$B27) -> 0 | D27: 0 | E27: 0 | F27: 25 | G27: =G26 -> 0 | H27: 0 | I27: 0 | K27: 0 | L27: 0
B28: 3 | C28: 0 | D28: 0 | E28: 0 | F28: 25 | G28: 0 | H28: 0 | I28: 0 | K28: 0 | L28: 0
B29: 4 | C29: 0 | D29: 0 | E29: 0 | F29: 25 | G29: 0 | H29: 0 | I29: 0 | K29: 0 | L29: 0
B30: 5 | C30: 0 | D30: 0 | E30: 0 | F30: 25 | G30: 0 | H30: 0 | I30: 0 | K30: 0 | L30: 0
B31: 6 | C31: 0 | D31: 0 | E31: 0 | F31: 25 | G31: 0 | H31: 0 | I31: 0 | K31: 0 | L31: 0
B32: 7 | C32: 0 | D32: 0 | E32: 0 | F32: 25 | G32: 0 | H32: 0 | I32: 0 | K32: 0 | L32: 0
B33: 8 | C33: 0 | D33: 0 | E33: 0 | F33: 25 | G33: =G24 -> 0 | H33: 0 | I33: 0 | K33: 0 | L33: 0
B34: 9 | C34: 0 | D34: 0 | E34: 0 | F34: 25 | G34: =G33 -> 0 | H34: 0 | I34: 0 | K34: 0 | L34: 0
B35: 10 | C35: 0 | D35: 0 | E35: 0 | F35: 25 | G35: =G34 -> 0 | H35: 0 | I35: 0 | K35: 0 | L35: 0
B36: 11 | C36: 0 | D36: 0 | E36: 0 | F36: 25 | G36: 0 | H36: 0 | I36: 0 | K36: 0 | L36: 0
B37: 12 | C37: 0 | D37: 0 | E37: 0 | F37: 25 | G37: 0 | H37: 0 | I37: 0 | K37: 0 | L37: 0
B38: 13 | C38: 0 | D38: 0 | E38: 0 | F38: 25 | G38: 0 | H38: 0 | I38: 0 | K38: 0 | L38: 0
B39: 14 | C39: 0 | D39: 0 | E39: 0 | F39: 25 | G39: 0 | H39: 0 | I39: 0 | K39: 0 | L39: 0
B40: 15 | C40: 0 | D40: 0 | E40: 0 | F40: 25 | G40: 0 | H40: 0 | I40: 0 | K40: 0 | L40: 0
B41: 16 | C41: 0 | D41: 0 | E41: 0 | F41: 25 | G41: 0 | H41: 0 | I41: 0 | K41: 0 | L41: 0
B42: 17 | C42: 0 | D42: 0 | E42: 0 | F42: 25 | G42: 0 | H42: 0 | I42: 0 | K42: 0 | L42: 0
B43: 18 | C43: 0 | D43: 0 | E43: 0 | F43: 25 | G43: 0 | H43: 0 | I43: 0 | K43: 0 | L43: 0
B44: 19 | C44: 0 | D44: 0 | E44: 0 | F44: 25 | G44: 0 | H44: 0 | I44: 0 | K44: 0 | L44: 0
B45: 20 | C45: 0 | D45: 0 | E45: 0 | F45: 25 | G45: 0 | H45: 0 | I45: 0 | K45: 0 | L45: 0
B47: Total | I47: =SUM(I26:I45) -> 0 | K47: =SUM(K26:K45) -> 0 | L47: =SUM(L26:L45) -> 0

Sheet Final Calculations
B1: Final Calculations
B3: This sheet performs the final calculations before presenting the summary results.
B4: Both net present value and internal rate of return are calculated.
B15: A | C15: NET PRESENT VALUE CALCULATION | M15: B | N15: SRTS BENEFITS | S15: C | T15: INTERNAL RATE OF RETURN ON INVESTMENT AND PAYBACK PERIOD
C20: PRESENT VALUE OF USER BENEFITS | N20: PRESENT VALUE OF USER BENEFITS | T20: USER BENEFITS IN CONSTANT DOLLARS
C22: Journey Quality | D22: Additional Delay Savings | E22: Additional Safety Benefits | F22: Health Benefits | G22: Emission Cost Savings | H22: Present Value of Total Benefits | I22: Present Value of Total Costs | J22: NET | K22: CUMULATIVE NET | N22: Journey Quality | O22: Additional Delay Savings | P22: Additional Safety Benefits | T22: Journey Quality | U22: Additional Delay Savings | V22: Additional Safety Benefits | W22: Health Benefits | X22: Emission Cost Savings | Y22: Total Benefits - Constant Dollars | Z22: Total Costs - Constant Dollars | AA22: Annual Returns on Investment | AB22: Cumulative Costs and Benefits | AD22: Years of Project Implementation and Operation | AE22: Annual Returns on Investment
B23: Year | E23: Absenteeism | F23: Absenteeism | J23: PRESENT | K23: PRESENT | M23: Year | P23: Absenteeism | S23: Year | V23: Absenteeism | W23: Absenteeism
E24: Reduction | F24: Reduction | J24: VALUE | K24: VALUE | P24: Reduction | V24: Reduction | W24: Reduction
B25: Construction Period | M25: Construction Period | S25: Construction Period | AD25: 1 | AE25: =IF(ISNA(IF(AD25<=Construct,AA26,VLOOKUP(AD25-Construct,$S$35:$AA$54,9,FALSE))),0,IF(AD25<=Construct,AA26,VLOOKUP(AD25-Construct,$S$35:$AA$54,9,FALSE))) -> 0
B26: 1 | H26: =SUM(C26:G26) -> 0 | I26: ='1a) Project Info'!AG15+'1a) Project Info'!AG59 -> 0 | J26: =H26-I26 -> 0 | K26: =J26 -> 0 | M26: 1 | S26: 1 | Y26: =SUM(T26:X26) -> 0 | Z26: ='1a) Project Info'!AF15+'1a) Project Info'!AF59 -> 0 | AA26: =-Z26 -> 0 | AB26: =AA26 -> 0 | AD26: 2 | AE26: 0
B27: 2 | H27: 0 | I27: ='1a) Project Info'!AG16+'1a) Project Info'!AG60 -> 0 | J27: =H27-I27 -> 0 | K27: =K26+J27 -> 0 | M27: 2 | S27: 2 | Y27: =SUM(T27:X27) -> 0 | Z27: ='1a) Project Info'!AF16+'1a) Project Info'!AF60 -> 0 | AA27: =-Z27 -> 0 | AB27: =AB26+AA27 -> 0 | AD27: 3 | AE27: 0
B28: 3 | H28: 0 | I28: ='1a) Project Info'!AG17+'1a) Project Info'!AG61 -> 0 | J28: 0 | K28: =K27+J28 -> 0 | M28: 3 | S28: 3 | Y28: 0 | Z28: ='1a) Project Info'!AF17+'1a) Project Info'!AF61 -> 0 | AA28: 0 | AB28: =AB27+AA28 -> 0 | AD28: 4 | AE28: 0
B29: 4 | H29: 0 | I29: ='1a) Project Info'!AG18+'1a) Project Info'!AG62 -> 0 | J29: 0 | K29: 0 | M29: 4 | S29: 4 | Y29: 0 | Z29: ='1a) Project Info'!AF18+'1a) Project Info'!AF62 -> 0 | AA29: 0 | AB29: 0 | AD29: 5 | AE29: 0
B30: 5 | H30: 0 | I30: ='1a) Project Info'!AG19+'1a) Project Info'!AG63 -> 0 | J30: 0 | K30: 0 | M30: 5 | S30: 5 | Y30: 0 | Z30: ='1a) Project Info'!AF19+'1a) Project Info'!AF63 -> 0 | AA30: 0 | AB30: 0 | AD30: 6 | AE30: 0
B31: 6 | H31: 0 | I31: ='1a) Project Info'!AG20+'1a) Project Info'!AG64 -> 0 | J31: =H31-I31 -> 0 | K31: 0 | M31: 6 | S31: 6 | Y31: 0 | Z31: ='1a) Project Info'!AF20+'1a) Project Info'!AF64 -> 0 | AA31: 0 | AB31: 0 | AD31: 7 | AE31: 0
B32: 7 | H32: 0 | I32: ='1a) Project Info'!AG21+'1a) Project Info'!AG65 -> 0 | J32: =H32-I32 -> 0 | K32: 0 | M32: 7 | S32: 7 | Y32: 0 | Z32: ='1a) Project Info'!AF21+'1a) Project Info'!AF65 -> 0 | AA32: 0 | AB32: 0 | AD32: 8 | AE32: 0
B33: 8 | H33: 0 | I33: ='1a) Project Info'!AG22+'1a) Project Info'!AG66 -> 0 | J33: =H33-I33 -> 0 | K33: 0 | M33: 8 | S33: 8 | Y33: 0 | Z33: ='1a) Project Info'!AF22+'1a) Project Info'!AF66 -> 0 | AA33: 0 | AB33: 0 | AD33: 9 | AE33: 0
B34: Project Open | M34: Project Open | S34: Project Open | AD34: 10 | AE34: 0
B35: 1 | C35: ='Journey Quality'!Z26+'Journey Quality'!Z58+'Journey Quality'!Z92+'Journey Quality'!Z128 -> 0 | D35: ='Intersection Delay'!AB26+'Intersection Delay'!AB63 -> 0 | E35: ='Intersection Safety'!AL26+'Auto Accident Costs'!H26 -> 0 | F35: ='Health - Absenteeism'!V26+'Health - Reduced Mortality'!Z26+'Health - Reduced Mortality'!Z63 -> 0 | G35: =Emissions!I26 -> 0 | H35: =SUM(C35:G35) -> 0 | I35: ='1a) Project Info'!AG24+'1a) Project Info'!AG68 -> 0 | J35: =H35-I35 -> 0 | K35: =J35 -> 0 | M35: 1 | N35: ='Journey Quality'!Z92+'Journey Quality'!Z128 -> 0 | O35: ='Intersection Delay'!AB63 -> 0 | P35: ='Intersection Safety'!AQ26 -> 0 | S35: 1 | T35: ='Journey Quality'!Y26+'Journey Quality'!Y58+'Journey Quality'!Y92+'Journey Quality'!Y128 -> 0 | U35: ='Intersection Delay'!AA26+'Intersection Delay'!AA63 -> 0 | V35: ='Intersection Safety'!AK26+'Auto Accident Costs'!G26 -> 0 | W35: ='Health - Absenteeism'!U26+'Health - Reduced Mortality'!Y26+'Health - Reduced Mortality'!Y63 -> 0 | X35: =Emissions!H26 -> 0 | Y35: =SUM(T35:X35) -> 0 | Z35: ='1a) Project Info'!AF24+'1a) Project Info'!AF68 -> 0 | AA35: =Y35-Z35 -> 0 | AB35: =AA35 -> 0 | AD35: 11 | AE35: 0
B36: 2 | C36: ='Journey Quality'!Z27+'Journey Quality'!Z59+'Journey Quality'!Z93+'Journey Quality'!Z129 -> 0 | D36: ='Intersection Delay'!AB27+'Intersection Delay'!AB64 -> 0 | E36: ='Intersection Safety'!AL27+'Auto Accident Costs'!H27 -> 0 | F36: ='Health - Absenteeism'!V27+'Health - Reduced Mortality'!Z27+'Health - Reduced Mortality'!Z64 -> 0 | G36: =Emissions!I27 -> 0 | H36: 0 | I36: ='1a) Project Info'!AG25+'1a) Project Info'!AG69 -> 0 | J36: =H36-I36 -> 0 | K36: =K35+J36 -> 0 | M36: 2 | N36: ='Journey Quality'!Z93+'Journey Quality'!Z129 -> 0 | O36: ='Intersection Delay'!AB64 -> 0 | P36: ='Intersection Safety'!AQ27 -> 0 | S36: 2 | T36: ='Journey Quality'!Y27+'Journey Quality'!Y59+'Journey Quality'!Y93+'Journey Quality'!Y129 -> 0 | U36: ='Intersection Delay'!AA27+'Intersection Delay'!AA64 -> 0 | V36: ='Intersection Safety'!AK27+'Auto Accident Costs'!G27 -> 0 | W36: ='Health - Absenteeism'!U27+'Health - Reduced Mortality'!Y27+'Health - Reduced Mortality'!Y64 -> 0 | X36: =Emissions!H27 -> 0 | Y36: 0 | Z36: ='1a) Project Info'!AF25+'1a) Project Info'!AF69 -> 0 | AA36: 0 | AB36: =AB35+AA36 -> 0 | AD36: 12 | AE36: 0
B37: 3 | C37: ='Journey Quality'!Z28+'Journey Quality'!Z60+'Journey Quality'!Z94+'Journey Quality'!Z130 -> 0 | D37: ='Intersection Delay'!AB28+'Intersection Delay'!AB65 -> 0 | E37: ='Intersection Safety'!AL28+'Auto Accident Costs'!H28 -> 0 | F37: ='Health - Absenteeism'!V28+'Health - Reduced Mortality'!Z28+'Health - Reduced Mortality'!Z65 -> 0 | G37: =Emissions!I28 -> 0 | H37: 0 | I37: ='1a) Project Info'!AG26+'1a) Project Info'!AG70 -> 0 | J37: =H37-I37 -> 0 | K37: 0 | M37: 3 | N37: ='Journey Quality'!Z94+'Journey Quality'!Z130 -> 0 | O37: ='Intersection Delay'!AB65 -> 0 | P37: ='Intersection Safety'!AQ28 -> 0 | S37: 3 | T37: ='Journey Quality'!Y28+'Journey Quality'!Y60+'Journey Quality'!Y94+'Journey Quality'!Y130 -> 0 | U37: ='Intersection Delay'!AA28+'Intersection Delay'!AA65 -> 0 | V37: ='Intersection Safety'!AK28+'Auto Accident Costs'!G28 -> 0 | W37: ='Health - Absenteeism'!U28+'Health - Reduced Mortality'!Y28+'Health - Reduced Mortality'!Y65 -> 0 | X37: =Emissions!H28 -> 0 | Y37: 0 | Z37: ='1a) Project Info'!AF26+'1a) Project Info'!AF70 -> 0 | AA37: 0 | AB37: 0 | AD37: 13 | AE37: 0
B38: 4 | C38: ='Journey Quality'!Z29+'Journey Quality'!Z61+'Journey Quality'!Z95+'Journey Quality'!Z131 -> 0 | D38: ='Intersection Delay'!AB29+'Intersection Delay'!AB66 -> 0 | E38: ='Intersection Safety'!AL29+'Auto Accident Costs'!H29 -> 0 | F38: ='Health - Absenteeism'!V29+'Health - Reduced Mortality'!Z29+'Health - Reduced Mortality'!Z66 -> 0 | G38: =Emissions!I29 -> 0 | H38: 0 | I38: ='1a) Project Info'!AG27+'1a) Project Info'!AG71 -> 0 | J38: =H38-I38 -> 0 | K38: 0 | M38: 4 | N38: ='Journey Quality'!Z95+'Journey Quality'!Z131 -> 0 | O38: ='Intersection Delay'!AB66 -> 0 | P38: ='Intersection Safety'!AQ29 -> 0 | S38: 4 | T38: ='Journey Quality'!Y29+'Journey Quality'!Y61+'Journey Quality'!Y95+'Journey Quality'!Y131 -> 0 | U38: ='Intersection Delay'!AA29+'Intersection Delay'!AA66 -> 0 | V38: ='Intersection Safety'!AK29+'Auto Accident Costs'!G29 -> 0 | W38: ='Health - Absenteeism'!U29+'Health - Reduced Mortality'!Y29+'Health - Reduced Mortality'!Y66 -> 0 | X38: =Emissions!H29 -> 0 | Y38: 0 | Z38: ='1a) Project Info'!AF27+'1a) Project Info'!AF71 -> 0 | AA38: 0 | AB38: 0 | AD38: 14 | AE38: 0
B39: 5 | C39: ='Journey Quality'!Z30+'Journey Quality'!Z62+'Journey Quality'!Z96+'Journey Quality'!Z132 -> 0 | D39: ='Intersection Delay'!AB30+'Intersection Delay'!AB67 -> 0 | E39: ='Intersection Safety'!AL30+'Auto Accident Costs'!H30 -> 0 | F39: ='Health - Absenteeism'!V30+'Health - Reduced Mortality'!Z30+'Health - Reduced Mortality'!Z67 -> 0 | G39: =Emissions!I30 -> 0 | H39: 0 | I39: ='1a) Project Info'!AG28+'1a) Project Info'!AG72 -> 0 | J39: 0 | K39: 0 | M39: 5 | N39: ='Journey Quality'!Z96+'Journey Quality'!Z132 -> 0 | O39: ='Intersection Delay'!AB67 -> 0 | P39: ='Intersection Safety'!AQ30 -> 0 | S39: 5 | T39: ='Journey Quality'!Y30+'Journey Quality'!Y62+'Journey Quality'!Y96+'Journey Quality'!Y132 -> 0 | U39: ='Intersection Delay'!AA30+'Intersection Delay'!AA67 -> 0 | V39: ='Intersection Safety'!AK30+'Auto Accident Costs'!G30 -> 0 | W39: ='Health - Absenteeism'!U30+'Health - Reduced Mortality'!Y30+'Health - Reduced Mortality'!Y67 -> 0 | X39: =Emissions!H30 -> 0 | Y39: 0 | Z39: ='1a) Project Info'!AF28+'1a) Project Info'!AF72 -> 0 | AA39: 0 | AB39: 0 | AD39: 15 | AE39: 0
B40: 6 | C40: ='Journey Quality'!Z31+'Journey Quality'!Z63+'Journey Quality'!Z97+'Journey Quality'!Z133 -> 0 | D40: ='Intersection Delay'!AB31+'Intersection Delay'!AB68 -> 0 | E40: ='Intersection Safety'!AL31+'Auto Accident Costs'!H31 -> 0 | F40: ='Health - Absenteeism'!V31+'Health - Reduced Mortality'!Z31+'Health - Reduced Mortality'!Z68 -> 0 | G40: =Emissions!I31 -> 0 | H40: 0 | I40: ='1a) Project Info'!AG29+'1a) Project Info'!AG73 -> 0 | J40: 0 | K40: 0 | M40: 6 | N40: ='Journey Quality'!Z97+'Journey Quality'!Z133 -> 0 | O40: ='Intersection Delay'!AB68 -> 0 | P40: ='Intersection Safety'!AQ31 -> 0 | S40: 6 | T40: ='Journey Quality'!Y31+'Journey Quality'!Y63+'Journey Quality'!Y97+'Journey Quality'!Y133 -> 0 | U40: ='Intersection Delay'!AA31+'Intersection Delay'!AA68 -> 0 | V40: ='Intersection Safety'!AK31+'Auto Accident Costs'!G31 -> 0 | W40: ='Health - Absenteeism'!U31+'Health - Reduced Mortality'!Y31+'Health - Reduced Mortality'!Y68 -> 0 | X40: =Emissions!H31 -> 0 | Y40: 0 | Z40: ='1a) Project Info'!AF29+'1a) Project Info'!AF73 -> 0 | AA40: 0 | AB40: 0 | AD40: 16 | AE40: 0
B41: 7 | C41: ='Journey Quality'!Z32+'Journey Quality'!Z64+'Journey Quality'!Z98+'Journey Quality'!Z134 -> 0 | D41: ='Intersection Delay'!AB32+'Intersection Delay'!AB69 -> 0 | E41: ='Intersection Safety'!AL32+'Auto Accident Costs'!H32 -> 0 | F41: ='Health - Absenteeism'!V32+'Health - Reduced Mortality'!Z32+'Health - Reduced Mortality'!Z69 -> 0 | G41: =Emissions!I32 -> 0 | H41: 0 | I41: ='1a) Project Info'!AG30+'1a) Project Info'!AG74 -> 0 | J41: =H41-I41 -> 0 | K41: 0 | M41: 7 | N41: ='Journey Quality'!Z98+'Journey Quality'!Z134 -> 0 | O41: ='Intersection Delay'!AB69 -> 0 | P41: ='Intersection Safety'!AQ32 -> 0 | S41: 7 | T41: ='Journey Quality'!Y32+'Journey Quality'!Y64+'Journey Quality'!Y98+'Journey Quality'!Y134 -> 0 | U41: ='Intersection Delay'!AA32+'Intersection Delay'!AA69 -> 0 | V41: ='Intersection Safety'!AK32+'Auto Accident Costs'!G32 -> 0 | W41: ='Health - Absenteeism'!U32+'Health - Reduced Mortality'!Y32+'Health - Reduced Mortality'!Y69 -> 0 | X41: =Emissions!H32 -> 0 | Y41: 0 | Z41: ='1a) Project Info'!AF30+'1a) Project Info'!AF74 -> 0 | AA41: 0 | AB41: 0 | AD41: 17 | AE41: 0
B42: 8 | C42: ='Journey Quality'!Z33+'Journey Quality'!Z65+'Journey Quality'!Z99+'Journey Quality'!Z135 -> 0 | D42: ='Intersection Delay'!AB33+'Intersection Delay'!AB70 -> 0 | E42: ='Intersection Safety'!AL33+'Auto Accident Costs'!H33 -> 0 | F42: ='Health - Absenteeism'!V33+'Health - Reduced Mortality'!Z33+'Health - Reduced Mortality'!Z70 -> 0 | G42: =Emissions!I33 -> 0 | H42: 0 | I42: ='1a) Project Info'!AG31+'1a) Project Info'!AG75 -> 0 | J42: 0 | K42: =K41+J42 -> 0 | M42: 8 | N42: ='Journey Quality'!Z99+'Journey Quality'!Z135 -> 0 | O42: ='Intersection Delay'!AB70 -> 0 | P42: ='Intersection Safety'!AQ33 -> 0 | S42: 8 | T42: ='Journey Quality'!Y33+'Journey Quality'!Y65+'Journey Quality'!Y99+'Journey Quality'!Y135 -> 0 | U42: ='Intersection Delay'!AA33+'Intersection Delay'!AA70 -> 0 | V42: ='Intersection Safety'!AK33+'Auto Accident Costs'!G33 -> 0 | W42: ='Health - Absenteeism'!U33+'Health - Reduced Mortality'!Y33+'Health - Reduced Mortality'!Y70 -> 0 | X42: =Emissions!H33 -> 0 | Y42: 0 | Z42: ='1a) Project Info'!AF31+'1a) Project Info'!AF75 -> 0 | AA42: 0 | AB42: =AB41+AA42 -> 0 | AD42: 18 | AE42: 0
B43: 9 | C43: ='Journey Quality'!Z34+'Journey Quality'!Z66+'Journey Quality'!Z100+'Journey Quality'!Z136 -> 0 | D43: ='Intersection Delay'!AB34+'Intersection Delay'!AB71 -> 0 | E43: ='Intersection Safety'!AL34+'Auto Accident Costs'!H34 -> 0 | F43: ='Health - Absenteeism'!V34+'Health - Reduced Mortality'!Z34+'Health - Reduced Mortality'!Z71 -> 0 | G43: =Emissions!I34 -> 0 | H43: 0 | I43: ='1a) Project Info'!AG32+'1a) Project Info'!AG76 -> 0 | J43: 0 | K43: =K42+J43 -> 0 | M43: 9 | N43: ='Journey Quality'!Z100+'Journey Quality'!Z136 -> 0 | O43: ='Intersection Delay'!AB71 -> 0 | P43: ='Intersection Safety'!AQ34 -> 0 | S43: 9 | T43: ='Journey Quality'!Y34+'Journey Quality'!Y66+'Journey Quality'!Y100+'Journey Quality'!Y136 -> 0 | U43: ='Intersection Delay'!AA34+'Intersection Delay'!AA71 -> 0 | V43: ='Intersection Safety'!AK34+'Auto Accident Costs'!G34 -> 0 | W43: ='Health - Absenteeism'!U34+'Health - Reduced Mortality'!Y34+'Health - Reduced Mortality'!Y71 -> 0 | X43: =Emissions!H34 -> 0 | Y43: 0 | Z43: ='1a) Project Info'!AF32+'1a) Project Info'!AF76 -> 0 | AA43: 0 | AB43: =AB42+AA43 -> 0 | AD43: 19 | AE43: 0
B44: 10 | C44: ='Journey Quality'!Z35+'Journey Quality'!Z67+'Journey Quality'!Z101+'Journey Quality'!Z137 -> 0 | D44: ='Intersection Delay'!AB35+'Intersection Delay'!AB72 -> 0 | E44: ='Intersection Safety'!AL35+'Auto Accident Costs'!H35 -> 0 | F44: ='Health - Absenteeism'!V35+'Health - Reduced Mortality'!Z35+'Health - Reduced Mortality'!Z72 -> 0 | G44: =Emissions!I35 -> 0 | H44: 0 | I44: ='1a) Project Info'!AG33+'1a) Project Info'!AG77 -> 0 | J44: 0 | K44: =K43+J44 -> 0 | M44: 10 | N44: ='Journey Quality'!Z101+'Journey Quality'!Z137 -> 0 | O44: ='Intersection Delay'!AB72 -> 0 | P44: ='Intersection Safety'!AQ35 -> 0 | S44: 10 | T44: ='Journey Quality'!Y35+'Journey Quality'!Y67+'Journey Quality'!Y101+'Journey Quality'!Y137 -> 0 | U44: ='Intersection Delay'!AA35+'Intersection Delay'!AA72 -> 0 | V44: ='Intersection Safety'!AK35+'Auto Accident Costs'!G35 -> 0 | W44: ='Health - Absenteeism'!U35+'Health - Reduced Mortality'!Y35+'Health - Reduced Mortality'!Y72 -> 0 | X44: =Emissions!H35 -> 0 | Y44: 0 | Z44: ='1a) Project Info'!AF33+'1a) Project Info'!AF77 -> 0 | AA44: 0 | AB44: =AB43+AA44 -> 0 | AD44: 20 | AE44: 0
B45: 11 | C45: ='Journey Quality'!Z36+'Journey Quality'!Z68+'Journey Quality'!Z102+'Journey Quality'!Z138 -> 0 | D45: ='Intersection Delay'!AB36+'Intersection Delay'!AB73 -> 0 | E45: ='Intersection Safety'!AL36+'Auto Accident Costs'!H36 -> 0 | F45: ='Health - Absenteeism'!V36+'Health - Reduced Mortality'!Z36+'Health - Reduced Mortality'!Z73 -> 0 | G45: =Emissions!I36 -> 0 | H45: 0 | I45: ='1a) Project Info'!AG34+'1a) Project Info'!AG78 -> 0 | J45: 0 | K45: =K44+J45 -> 0 | M45: 11 | N45: ='Journey Quality'!Z102+'Journey Quality'!Z138 -> 0 | O45: ='Intersection Delay'!AB73 -> 0 | P45: ='Intersection Safety'!AQ36 -> 0 | S45: 11 | T45: ='Journey Quality'!Y36+'Journey Quality'!Y68+'Journey Quality'!Y102+'Journey Quality'!Y138 -> 0 | U45: ='Intersection Delay'!AA36+'Intersection Delay'!AA73 -> 0 | V45: ='Intersection Safety'!AK36+'Auto Accident Costs'!G36 -> 0 | W45: ='Health - Absenteeism'!U36+'Health - Reduced Mortality'!Y36+'Health - Reduced Mortality'!Y73 -> 0 | X45: =Emissions!H36 -> 0 | Y45: 0 | Z45: ='1a) Project Info'!AF34+'1a) Project Info'!AF78 -> 0 | AA45: 0 | AB45: =AB44+AA45 -> 0 | AD45: 21 | AE45: 0
B46: 12 | C46: ='Journey Quality'!Z37+'Journey Quality'!Z69+'Journey Quality'!Z103+'Journey Quality'!Z139 -> 0 | D46: ='Intersection Delay'!AB37+'Intersection Delay'!AB74 -> 0 | E46: ='Intersection Safety'!AL37+'Auto Accident Costs'!H37 -> 0 | F46: ='Health - Absenteeism'!V37+'Health - Reduced Mortality'!Z37+'Health - Reduced Mortality'!Z74 -> 0 | G46: =Emissions!I37 -> 0 | H46: 0 | I46: ='1a) Project Info'!AG35+'1a) Project Info'!AG79 -> 0 | J46: 0 | K46: 0 | M46: 12 | N46: ='Journey Quality'!Z103+'Journey Quality'!Z139 -> 0 | O46: ='Intersection Delay'!AB74 -> 0 | P46: ='Intersection Safety'!AQ37 -> 0 | S46: 12 | T46: ='Journey Quality'!Y37+'Journey Quality'!Y69+'Journey Quality'!Y103+'Journey Quality'!Y139 -> 0 | U46: ='Intersection Delay'!AA37+'Intersection Delay'!AA74 -> 0 | V46: ='Intersection Safety'!AK37+'Auto Accident Costs'!G37 -> 0 | W46: ='Health - Absenteeism'!U37+'Health - Reduced Mortality'!Y37+'Health - Reduced Mortality'!Y74 -> 0 | X46: =Emissions!H37 -> 0 | Y46: 0 | Z46: ='1a) Project Info'!AF35+'1a) Project Info'!AF79 -> 0 | AA46: 0 | AB46: 0 | AD46: 22 | AE46: 0
B47: 13 | C47: ='Journey Quality'!Z38+'Journey Quality'!Z70+'Journey Quality'!Z104+'Journey Quality'!Z140 -> 0 | D47: ='Intersection Delay'!AB38+'Intersection Delay'!AB75 -> 0 | E47: ='Intersection Safety'!AL38+'Auto Accident Costs'!H38 -> 0 | F47: ='Health - Absenteeism'!V38+'Health - Reduced Mortality'!Z38+'Health - Reduced Mortality'!Z75 -> 0 | G47: =Emissions!I38 -> 0 | H47: 0 | I47: ='1a) Project Info'!AG36+'1a) Project Info'!AG80 -> 0 | J47: 0 | K47: =K46+J47 -> 0 | M47: 13 | N47: ='Journey Quality'!Z104+'Journey Quality'!Z140 -> 0 | O47: ='Intersection Delay'!AB75 -> 0 | P47: ='Intersection Safety'!AQ38 -> 0 | S47: 13 | T47: ='Journey Quality'!Y38+'Journey Quality'!Y70+'Journey Quality'!Y104+'Journey Quality'!Y140 -> 0 | U47: ='Intersection Delay'!AA38+'Intersection Delay'!AA75 -> 0 | V47: ='Intersection Safety'!AK38+'Auto Accident Costs'!G38 -> 0 | W47: ='Health - Absenteeism'!U38+'Health - Reduced Mortality'!Y38+'Health - Reduced Mortality'!Y75 -> 0 | X47: =Emissions!H38 -> 0 | Y47: 0 | Z47: ='1a) Project Info'!AF36+'1a) Project Info'!AF80 -> 0 | AA47: 0 | AB47: =AB46+AA47 -> 0 | AD47: 23 | AE47: 0
B48: 14 | C48: ='Journey Quality'!Z39+'Journey Quality'!Z71+'Journey Quality'!Z105+'Journey Quality'!Z141 -> 0 | D48: ='Intersection Delay'!AB39+'Intersection Delay'!AB76 -> 0 | E48: ='Intersection Safety'!AL39+'Auto Accident Costs'!H39 -> 0 | F48: ='Health - Absenteeism'!V39+'Health - Reduced Mortality'!Z39+'Health - Reduced Mortality'!Z76 -> 0 | G48: =Emissions!I39 -> 0 | H48: 0 | I48: ='1a) Project Info'!AG37+'1a) Project Info'!AG81 -> 0 | J48: 0 | K48: =K47+J48 -> 0 | M48: 14 | N48: ='Journey Quality'!Z105+'Journey Quality'!Z141 -> 0 | O48: ='Intersection Delay'!AB76 -> 0 | P48: ='Intersection Safety'!AQ39 -> 0 | S48: 14 | T48: ='Journey Quality'!Y39+'Journey Quality'!Y71+'Journey Quality'!Y105+'Journey Quality'!Y141 -> 0 | U48: ='Intersection Delay'!AA39+'Intersection Delay'!AA76 -> 0 | V48: ='Intersection Safety'!AK39+'Auto Accident Costs'!G39 -> 0 | W48: ='Health - Absenteeism'!U39+'Health - Reduced Mortality'!Y39+'Health - Reduced Mortality'!Y76 -> 0 | X48: =Emissions!H39 -> 0 | Y48: 0 | Z48: ='1a) Project Info'!AF37+'1a) Project Info'!AF81 -> 0 | AA48: 0 | AB48: =AB47+AA48 -> 0 | AD48: 24 | AE48: 0
B49: 15 | C49: ='Journey Quality'!Z40+'Journey Quality'!Z72+'Journey Quality'!Z106+'Journey Quality'!Z142 -> 0 | D49: ='Intersection Delay'!AB40+'Intersection Delay'!AB77 -> 0 | E49: ='Intersection Safety'!AL40+'Auto Accident Costs'!H40 -> 0 | F49: ='Health - Absenteeism'!V40+'Health - Reduced Mortality'!Z40+'Health - Reduced Mortality'!Z77 -> 0 | G49: =Emissions!I40 -> 0 | H49: 0 | I49: ='1a) Project Info'!AG38+'1a) Project Info'!AG82 -> 0 | J49: 0 | K49: 0 | M49: 15 | N49: ='Journey Quality'!Z106+'Journey Quality'!Z142 -> 0 | O49: ='Intersection Delay'!AB77 -> 0 | P49: ='Intersection Safety'!AQ40 -> 0 | S49: 15 | T49: ='Journey Quality'!Y40+'Journey Quality'!Y72+'Journey Quality'!Y106+'Journey Quality'!Y142 -> 0 | U49: ='Intersection Delay'!AA40+'Intersection Delay'!AA77 -> 0 | V49: ='Intersection Safety'!AK40+'Auto Accident Costs'!G40 -> 0 | W49: ='Health - Absenteeism'!U40+'Health - Reduced Mortality'!Y40+'Health - Reduced Mortality'!Y77 -> 0 | X49: =Emissions!H40 -> 0 | Y49: 0 | Z49: ='1a) Project Info'!AF38+'1a) Project Info'!AF82 -> 0 | AA49: 0 | AB49: 0 | AD49: 25 | AE49: 0
B50: 16 | C50: ='Journey Quality'!Z41+'Journey Quality'!Z73+'Journey Quality'!Z107+'Journey Quality'!Z143 -> 0 | D50: ='Intersection Delay'!AB41+'Intersection Delay'!AB78 -> 0 | E50: ='Intersection Safety'!AL41+'Auto Accident Costs'!H41 -> 0 | F50: ='Health - Absenteeism'!V41+'Health - Reduced Mortality'!Z41+'Health - Reduced Mortality'!Z78 -> 0 | G50: =Emissions!I41 -> 0 | H50: 0 | I50: ='1a) Project Info'!AG39+'1a) Project Info'!AG83 -> 0 | J50: 0 | K50: =K49+J50 -> 0 | M50: 16 | N50: ='Journey Quality'!Z107+'Journey Quality'!Z143 -> 0 | O50: ='Intersection Delay'!AB78 -> 0 | P50: ='Intersection Safety'!AQ41 -> 0 | S50: 16 | T50: ='Journey Quality'!Y41+'Journey Quality'!Y73+'Journey Quality'!Y107+'Journey Quality'!Y143 -> 0 | U50: ='Intersection Delay'!AA41+'Intersection Delay'!AA78 -> 0 | V50: ='Intersection Safety'!AK41+'Auto Accident Costs'!G41 -> 0 | W50: ='Health - Absenteeism'!U41+'Health - Reduced Mortality'!Y41+'Health - Reduced Mortality'!Y78 -> 0 | X50: =Emissions!H41 -> 0 | Y50: 0 | Z50: ='1a) Project Info'!AF39+'1a) Project Info'!AF83 -> 0 | AA50: 0 | AB50: =AB49+AA50 -> 0 | AD50: 26 | AE50: 0
B51: 17 | C51: ='Journey Quality'!Z42+'Journey Quality'!Z74+'Journey Quality'!Z108+'Journey Quality'!Z144 -> 0 | D51: ='Intersection Delay'!AB42+'Intersection Delay'!AB79 -> 0 | E51: ='Intersection Safety'!AL42+'Auto Accident Costs'!H42 -> 0 | F51: ='Health - Absenteeism'!V42+'Health - Reduced Mortality'!Z42+'Health - Reduced Mortality'!Z79 -> 0 | G51: =Emissions!I42 -> 0 | H51: 0 | I51: ='1a) Project Info'!AG40+'1a) Project Info'!AG84 -> 0 | J51: 0 | K51: =K50+J51 -> 0 | M51: 17 | N51: ='Journey Quality'!Z108+'Journey Quality'!Z144 -> 0 | O51: ='Intersection Delay'!AB79 -> 0 | P51: ='Intersection Safety'!AQ42 -> 0 | S51: 17 | T51: ='Journey Quality'!Y42+'Journey Quality'!Y74+'Journey Quality'!Y108+'Journey Quality'!Y144 -> 0 | U51: ='Intersection Delay'!AA42+'Intersection Delay'!AA79 -> 0 | V51: ='Intersection Safety'!AK42+'Auto Accident Costs'!G42 -> 0 | W51: ='Health - Absenteeism'!U42+'Health - Reduced Mortality'!Y42+'Health - Reduced Mortality'!Y79 -> 0 | X51: =Emissions!H42 -> 0 | Y51: 0 | Z51: ='1a) Project Info'!AF40+'1a) Project Info'!AF84 -> 0 | AA51: 0 | AB51: =AB50+AA51 -> 0 | AD51: 27 | AE51: 0
B52: 18 | C52: ='Journey Quality'!Z43+'Journey Quality'!Z75+'Journey Quality'!Z109+'Journey Quality'!Z145 -> 0 | D52: ='Intersection Delay'!AB43+'Intersection Delay'!AB80 -> 0 | E52: ='Intersection Safety'!AL43+'Auto Accident Costs'!H43 -> 0 | F52: ='Health - Absenteeism'!V43+'Health - Reduced Mortality'!Z43+'Health - Reduced Mortality'!Z80 -> 0 | G52: =Emissions!I43 -> 0 | H52: 0 | I52: ='1a) Project Info'!AG41+'1a) Project Info'!AG85 -> 0 | J52: 0 | K52: =K51+J52 -> 0 | M52: 18 | N52: ='Journey Quality'!Z109+'Journey Quality'!Z145 -> 0 | O52: ='Intersection Delay'!AB80 -> 0 | P52: ='Intersection Safety'!AQ43 -> 0 | S52: 18 | T52: ='Journey Quality'!Y43+'Journey Quality'!Y75+'Journey Quality'!Y109+'Journey Quality'!Y145 -> 0 | U52: ='Intersection Delay'!AA43+'Intersection Delay'!AA80 -> 0 | V52: ='Intersection Safety'!AK43+'Auto Accident Costs'!G43 -> 0 | W52: ='Health - Absenteeism'!U43+'Health - Reduced Mortality'!Y43+'Health - Reduced Mortality'!Y80 -> 0 | X52: =Emissions!H43 -> 0 | Y52: 0 | Z52: ='1a) Project Info'!AF41+'1a) Project Info'!AF85 -> 0 | AA52: 0 | AB52: =AB51+AA52 -> 0 | AD52: 28 | AE52: 0
B53: 19 | C53: ='Journey Quality'!Z44+'Journey Quality'!Z76+'Journey Quality'!Z110+'Journey Quality'!Z146 -> 0 | D53: ='Intersection Delay'!AB44+'Intersection Delay'!AB81 -> 0 | E53: ='Intersection Safety'!AL44+'Auto Accident Costs'!H44 -> 0 | F53: ='Health - Absenteeism'!V44+'Health - Reduced Mortality'!Z44+'Health - Reduced Mortality'!Z81 -> 0 | G53: =Emissions!I44 -> 0 | H53: 0 | I53: ='1a) Project Info'!AG42+'1a) Project Info'!AG86 -> 0 | J53: 0 | K53: 0 | M53: 19 | N53: ='Journey Quality'!Z110+'Journey Quality'!Z146 -> 0 | O53: ='Intersection Delay'!AB81 -> 0 | P53: ='Intersection Safety'!AQ44 -> 0 | S53: 19 | T53: ='Journey Quality'!Y44+'Journey Quality'!Y76+'Journey Quality'!Y110+'Journey Quality'!Y146 -> 0 | U53: ='Intersection Delay'!AA44+'Intersection Delay'!AA81 -> 0 | V53: ='Intersection Safety'!AK44+'Auto Accident Costs'!G44 -> 0 | W53: ='Health - Absenteeism'!U44+'Health - Reduced Mortality'!Y44+'Health - Reduced Mortality'!Y81 -> 0 | X53: =Emissions!H44 -> 0 | Y53: 0 | Z53: ='1a) Project Info'!AF42+'1a) Project Info'!AF86 -> 0 | AA53: 0 | AB53: 0
B54: 20 | C54: ='Journey Quality'!Z45+'Journey Quality'!Z77+'Journey Quality'!Z111+'Journey Quality'!Z147 -> 0 | D54: ='Intersection Delay'!AB45+'Intersection Delay'!AB82 -> 0 | E54: ='Intersection Safety'!AL45+'Auto Accident Costs'!H45 -> 0 | F54: ='Health - Absenteeism'!V45+'Health - Reduced Mortality'!Z45+'Health - Reduced Mortality'!Z82 -> 0 | G54: =Emissions!I45 -> 0 | H54: 0 | I54: ='1a) Project Info'!AG43+'1a) Project Info'!AG87 -> 0 | J54: 0 | K54: =K53+J54 -> 0 | M54: 20 | N54: ='Journey Quality'!Z111+'Journey Quality'!Z147 -> 0 | O54: ='Intersection Delay'!AB82 -> 0 | P54: ='Intersection Safety'!AQ45 -> 0 | S54: 20 | T54: ='Journey Quality'!Y45+'Journey Quality'!Y77+'Journey Quality'!Y111+'Journey Quality'!Y147 -> 0 | U54: ='Intersection Delay'!AA45+'Intersection Delay'!AA82 -> 0 | V54: ='Intersection Safety'!AK45+'Auto Accident Costs'!G45 -> 0 | W54: ='Health - Absenteeism'!U45+'Health - Reduced Mortality'!Y45+'Health - Reduced Mortality'!Y82 -> 0 | X54: =Emissions!H45 -> 0 | Y54: 0 | Z54: ='1a) Project Info'!AF43+'1a) Project Info'!AF87 -> 0 | AA54: 0 | AB54: =AB53+AA54 -> 0 | AD54: Internal Rate | AG54: The INTERNAL RATE OF RETURN (IRR) is the discount rate at which benefits and costs break even (are equal). For a project
AD55: of Return | AE55: =IF(SUM(AE25:AE52)=0,"N/A",IRR(AE25:AE52)) -> N/A | AG55: with an IRR greater than the Discount Rate, benefits are greater than costs, and the project has a positive economic value. The
B56: Total | C56: =SUM(C35:C54) -> 0 | D56: =SUM(D35:D54) -> 0 | E56: =SUM(E35:E54) -> 0 | F56: =SUM(F35:F54) -> 0 | G56: =SUM(G35:G54) -> 0 | H56: =SUM(H26:H54) -> 0 | I56: =SUM(I26:I54) -> 0 | J56: =SUM(J26:J54) -> 0 | M56: Total | N56: =SUM(N35:N54) -> 0 | O56: =SUM(O35:O54) -> 0 | P56: =SUM(P35:P54) -> 0 | S56: Total | T56: =SUM(T35:T54) -> 0 | U56: =SUM(U35:U54) -> 0 | V56: =SUM(V35:V54) -> 0 | W56: =SUM(W35:W54) -> 0 | X56: =SUM(X35:X54) -> 0 | Y56: =SUM(Y26:Y54) -> 0 | Z56: =SUM(Z26:Z54) -> 0 | AA56: 0 | AG56: IRR allows projects with different costs, different benefit flows, and different time periods to be compared.
AD58: Payback | AG58: The PAYBACK PERIOD is the number of years it takes for the net benefits (benefits minus costs) to equal, or payback, the initial
C59: =Emissions!K47 -> 0 | D59: CO2 Emissions Saved (tons) | J59: Total Construction Costs | K59: =-(SUM(J26:J33)) -> 0 | AA59: Total Construction Costs | AB59: =ABS(SUM(AA26:AA33)) -> 0 | AD59: Period | AE59: =IF(AB59=0,"N/A",IF(AB59<AB35,"1 year",IF(AB59>AB54,"20+",(LOOKUP(AB59,AB35:AB54,S35:S54)+1))&" years")) -> N/A | AG59: construction costs. For a project with a Payback Period longer than the life-cycle of the project, initial construction costs are not
C60: =Emissions!L47 -> 0 | D60: CO2 Emissions Saved ($ PV) | AG60: recovered. The Payback Period varies inversely with the Benefit-Cost Ratio: shorter Payback Period yields higher Benefit-Cost.

Sheet PARAMETERS
B1: Parameters
B3: This page contains all economic values and rate tables.
B4: To update economic values automatically, change "Economic Update Factor." | AF4: Travel Demand Tables | AQ4: Operating Cost Tables | AX4: Accident Tables | BN4: Emissions Tables | CW4: Pavement Adjustments (used only for pavement projects) | DK4: Weaving Adjustments (used only for freeway | DR4: TMS Adjustments (used only for ramp metering, ramp metering signal coordination, incident
DK5: connector, HOV connector, and HOV drop ramp projects) | DR5: management, traveler information projects, AVL, transit priority, and BRT projects)
B7: General Economic Parameters | Y7: Project Types
AG8: DEMAND FOR TRAVEL IN PEAK PERIOD | AR8: FUEL CONSUMPTION RATES | AY8: HIGHWAY INJURY SEVERITY FREQUENCY | BG8: RATES FOR TRANSIT ACCIDENT EVENTS | BO8: HIGHWAY EMISSIONS FACTORS (g/mi) | BZ8: HIGHWAY EMISSIONS FACTORS (g/mi) | CL8: HEALTH COST OF TRANSPORTATION EMISSIONS | CX8: PAVEMENT DETERIORATION | DE8: VEHICLE OPERATING SPEED | DL8: VEHICLE OPERATING SPEED | DS8: PEAK PERIOD SPEED, VOLUME, AND NON-HIGHWAY BENEFITS
C9: Year of Current Dollars for Model | F9: 2016 | Z9: Highway Capacity Expansion | AC9: Please select a type of highway project | AG9: (percent of total daily travel) | AR9: (gal/veh-mi) | AY9: (percent of injuries) | BG9: (events/million veh-mi) | BO9: Model Year 2016 | BZ9: Model Year 2036 | CL9: ($/ton) | CX9: (IRI in inches/mile) | DE9: (percent adjustment) | DL9: (percent adjustment) | DS9: (percent adjustment)
C10: Economic Update Factor (Using GDP Deflator) | F10: 1 | H10: 1 | Z10: General Highway | AA10: =IF(ProjType=Z10,TRUE) -> FALSE | AB10: GenHwy
Z11: HOV Lane Addition | AA11: FALSE | AB11: HOV | AC11: Enter HOV restriction in section 1B | AG11: Number of | AH11: Urban | AR11: Speed | AS11: Auto* | AT11: Truck | AY11: Event | AZ11: Urban | BA11: Suburban | BB11: Rural | BC11: Average | BG11: Event | BH11: Pass Train | BI11: Light Rail | BJ11: Bus | BO11: Mode | BP11: Speed | BQ11: CO | BR11: CO2 | BS11: NOX | BT11: PM10 | BU11: SOX | BV11: VOC | BZ11: Mode | CA11: Speed | CB11: CO | CC11: CO2 | CD11: NOX | CE11: PM10 | CF11: SOX | CG11: VOC | CL11: Area | CM11: Proj Loc | CN11: CO | CO11: CO2e | CP11: NOX | CQ11: PM10 | CR11: SOX | CS11: VOC | CY11: Year 20, By Loading | DL11: Percent | DM11: Freeway | DN11: HOV | DS11: TMS | DT11: Without | DV11: With | DX11: Non-Highway Benefits | EA11: Total
C12: Real Discount Rate | F12: 0.04 | H12: 2 | Z12: HOT Lane Addition | AA12: FALSE | AB12: HOT | AC12: Include toll payers as HOVs & check AVOs | AG12: Hours in | AH12: So. California | AJ12: No. California | AL12: Rural | AR12: 5 | AS12: 0.1024 | AT12: 0.2112 | AY12: Severe Injury (A) | AZ12: =ROUND(10664/223128,4) -> 0.0478 | BA12: =ROUND(10664/223128,4) -> 0.0478 | BB12: =ROUND(10664/223128,4) -> 0.0478 | BC12: =ROUND(10664/223128,4) -> 0.0478 | BG12: Fatality | BH12: 0.0555 | BI12: 0.248 | BJ12: 0.0349 | BO12: Auto | BP12: 0 | BQ12: 0.538 | BR12: 13.0731 | BS12: 0.04 | BT12: 0.0005 | BU12: 0.0001 | BV12: 0.0444 | BZ12: Auto | CA12: 0 | CB12: 0.1267 | CC12: 8.2937 | CD12: 0.0054 | CE12: 0.0003 | CF12: 0.0001 | CG12: 0.0087 | CL12: LA/South Coast | CM12: 1 | CN12: =ROUND(115*(1.1164/0.8147)*ValueUpdate/5,0)*5 -> 160 | CO12: =ROUND(36*(1+2%)^(2016-2015)*(1.1164/0.9684)/1.10231*ValueUpdate,0) -> 38 | CP12: =ROUND(46615*(1.1164/0.8147)*ValueUpdate,-2) -> 63900 | CQ12: =ROUND(381859*(1.1164/0.8147)*ValueUpdate,-2) -> 523300 | CR12: =ROUND(143469*(1.1164/0.8147)*ValueUpdate,-2) -> 196600 | CS12: =ROUND(2898*(1.1164/0.8147)*ValueUpdate/5,0)*5 -> 3970 | CX12: Year 0 | CY12: Light | CZ12: Medium | DA12: Heavy | DE12: IRI | DF12: Auto | DG12: Truck | DL12: Weaving | DM12: Conn | DN12: Project | DS12: Strategy | DT12: Speed | DU12: Volume | DV12: Speed | DW12: Volume | DX12: TT | DY12: VOC | DZ12: Em | EA12: Benefit
Z13: Passing Lane | AA13: FALSE | AB13: Passing | AC13: Enter a truck speed in section 1B | AG13: Peak Period | AH13: Fwy/Exp | AI13: Other | AJ13: Fwy/Exp | AK13: Other | AL13: Fwy/Exp | AM13: Other | AR13: 6 | AS13: 0.0971 | AT13: 0.2056 | AY13: Other Visible Injury (B) | AZ13: =ROUND(56986/223128,4) -> 0.2554 | BA13: =ROUND(56986/223128,4) -> 0.2554 | BB13: =ROUND(56986/223128,4) -> 0.2554 | BC13: =ROUND(56986/223128,4) -> 0.2554 | BG13: Injury | BH13: 0.2519 | BI13: 3.9469 | BJ13: 3.6535 | BP13: 5 | BQ13: 3.4738 | BR13: 1116.2988 | BS13: 0.3085 | BT13: 0.0137 | BU13: 0.0112 | BV13: 0.3257 | CA13: 5 | CB13: 0.9124 | CC13: 621.3226 | CD13: 0.0617 | CE13: 0.0059 | CF13: 0.0062 | CG13: 0.1117 | CL13: CA Urban Area | CM13: 2 | CN13: =ROUND(60*(1.1164/0.8147)*ValueUpdate/5,0)*5 -> 80 | CO13: =ROUND(36*(1+2%)^(2016-2015)*(1.1164/0.9684)/1.10231*ValueUpdate,0) -> 38 | CP13: =ROUND(13646*(1.1164/0.8147)*ValueUpdate,-2) -> 18700 | CQ13: =ROUND(110258*(1.1164/0.8147)*ValueUpdate,-2) -> 151100 | CR13: =ROUND(55069*(1.1164/0.8147)*ValueUpdate,-2) -> 75500 | CS13: =ROUND(954*(1.1164/0.8147)*ValueUpdate/5,0)*5 -> 1305 | CX13: 0 | CY13: 125 | CZ13: 150 | DA13: 350 | DE13: 0 | DF13: 1 | DG13: 1.025 | DL13: 0 | DM13: 1 | DN13: 1 | DS13: AMoth | DT13: 1.024390244 | DU13: 0.9503320629 | DV13: 1.022648084 | DW13: 0.9502478565 | DX13: -5.048265471 | DY13: 12.81200477 | DZ13: 1.368537764 | EA13: 0.736497545
Z14: Intersection | AA14: FALSE | AB14: Intersect | AC14: Remember to run model for both roads | AG14: 1 | AH14: 0.085 | AI14: 0.085 | AJ14: 0.085 | AK14: 0.085 | AL14: 0.085 | AM14: 0.085 | AR14: 7 | AS14: 0.0919 | AT14: 0.2 | AY14: Complaint of Pain (C) | AZ14: =ROUND(155478/223128,4) -> 0.6968 | BA14: =ROUND(155478/223128,4) -> 0.6968 | BB14: =ROUND(155478/223128,4) -> 0.6968 | BC14: =ROUND(155478/223128,4) -> 0.6968 | BG14: All Accidents | BH14: 0.2775 | BI14: 5.3817 | BJ14: 2.6733 | BP14: 6 | BQ14: 3.315 | BR14: 1059.1874 | BS14: 0.2954 | BT14: 0.0127 | BU14: 0.0106 | BV14: 0.2994 | CA14: 6 | CB14: 0.8859 | CC14: 589.854 | CD14: 0.0602 | CE14: 0.0055 | CF14: 0.0059 | CG14: 0.1039 | CL14: CA Rural Area | CM14: 3 | CN14: =ROUND(54*(1.1164/0.8147)*ValueUpdate/5,0)*5 -> 75 | CO14: =ROUND(36*(1+2%)^(2016-2015)*(1.1164/0.9684)/1.10231*ValueUpdate,0) -> 38 | CP14: =ROUND(10144*(1.1164/0.8147)*ValueUpdate,-2) -> 13900 | CQ14: =ROUND(78618*(1.1164/0.8147)*ValueUpdate,-2) -> 107700 | CR14: =ROUND(39732*(1.1164/0.8147)*ValueUpdate,-2) -> 54400 | CS14: =ROUND(749*(1.1164/0.8147)*ValueUpdate/5,0)*5 -> 1025 | CX14: 25 | CY14: 150 | CZ14: 200 | DA14: 500 | DE14: 25 | DF14: 1 | DG14: 1.025 | DL14: 0.002 | DM14: 0.982 | DN14: 0.988 | DS14: AMsev | DT14: 1.530973451 | DU14: 0.9385815808 | DV14: 1.533923304 | DW14: 0.9365252325 | DX14: 1.205596712 | DY14: 1.379528678 | DZ14: -0.3652658395 | EA14: 1
Z15: Bypass | AA15: FALSE | AB15: Bypass | AC15: Remember to run model for both roads | AG15: 2 | AH15: 0.168 | AI15: 0.168 | AJ15: 0.168 | AK15: 0.168 | AL15: 0.168 | AM15: 0.168 | AR15: 8 | AS15: 0.0867 | AT15: 0.1944 | BP15: 7 | BQ15: 3.1563 | BR15: 1002.0759 | BS15: 0.2823 | BT15: 0.0118 | BU15: 0.0101 | BV15: 0.2732 | CA15: 7 | CB15: 0.8594 | CC15: 558.3854 | CD15: 0.0588 | CE15: 0.005 | CF15: 0.0056 | CG15: 0.096 | CX15: 50 | CY15: 175 | CZ15: 250 | DA15: 675 | DE15: 50 | DF15: 1 | DG15: 1.025 | DL15: 0.004 | DM15: 0.964 | DN15: 0.976 | DS15: IMoth | DT15: 0.8763197587 | DU15: 1.178741497 | DV15: 0.9793459552 | DW15: 0.9556060017 | DX15: 0.5127996725 | DY15: 0.148212878 | DZ15: 0.05879892443 | EA15: 0.736497545
Z16: Queuing | AA16: FALSE | AB16: Queuing | AC16: Add arrival rate & check departure rate in 1B | AG16: 3 | AH16: 0.25 | AI16: 0.25 | AJ16: 0.25 | AK16: 0.25 | AL16: 0.25 | AM16: 0.25 | AR16: 9 | AS16: 0.0815 | AT16: 0.1888 | BP16: 8 | BQ16: 2.9975 | BR16: 944.9645 | BS16: 0.2692 | BT16: 0.0108 | BU16: 0.0095 | BV16: 0.2469 | CA16: 8 | CB16: 0.8328 | CC16: 526.9168 | CD16: 0.0574 | CE16: 0.0046 | CF16: 0.0053 | CG16: 0.0882 | CN16: CO2e Uprater | CO16: 0.02 | CP16: increase in value per year | CX16: 75 | CY16: 200 | CZ16: 300 | DA16: 750 | DE16: 75 | DF16: 1 | DG16: 1.025 | DL16: 0.006 | DM16: 0.945 | DN16: 0.964 | DS16: IMsev | DT16: 1.006389776 | DU16: 0.9724862862 | DV16: 1.009584665 | DW16: 0.9461055622 | DX16: 0.2957044886 | DY16: 0.3126114503 | DZ16: 0.3020072069 | EA16: 1
B17: Travel Time Parameters | I17: Highway Operations Parameters | R17: Active Transportation Parameters | Z17: Pavement | AA17: FALSE | AB17: Pavement | AC17: Enter pavement condition in section 1B | AG17: 4 | AH17: 0.328 | AI17: 0.328 | AJ17: 0.328 | AK17: 0.328 | AL17: 0.328 | AM17: 0.328 | AR17: 10 | AS17: 0.0763 | AT17: 0.1832 | AX17: Source: 2013 SWITRS Annual Report, Table 8C | BF17: Source: USDOT,Transportation Statistics Annual Report, Table 2-33, | BP17: 9 | BQ17: 2.8387 | BR17: 887.8531 | BS17: 0.256 | BT17: 0.0098 | BU17: 0.0089 | BV17: 0.2207 | CA17: 9 | CB17: 0.8063 | CC17: 495.4481 | CD17: 0.056 | CE17: 0.0042 | CF17: 0.005 | CG17: 0.0804 | CX17: 100 | CY17: 275 | CZ17: 400 | DA17: 750 | DE17: 100 | DF17: 1 | DG17: 1.025 | DL17: 0.008 | DM17: 0.927 | DN17: 0.952 | DS17: NoAdj | DT17: 1 | DU17: 1 | DV17: 1 | DW17: 1 | DX17: 0 | DY17: 0 | DZ17: 0 | EA17: 1
E18: Value | F18: Units | M18: Value | N18: Units | AG18: 5 | AH18: 0.403 | AI18: 0.403 | AJ18: 0.403 | AK18: 0.403 | AL18: 0.403 | AM18: 0.403 | AR18: 11 | AS18: 0.0727 | AT18: 0.1707 | BG18: 2003 to 2012 average | BP18: 10 | BQ18: 2.68 | BR18: 830.7416 | BS18: 0.2429 | BT18: 0.0088 | BU18: 0.0083 | BV18: 0.1944 | CA18: 10 | CB18: 0.7798 | CC18: 463.9795 | CD18: 0.0546 | CE18: 0.0037 | CF18: 0.0046 | CG18: 0.0726 | CX18: 125 | CY18: 325 | CZ18: 475 | DA18: 750 | DE18: 125 | DF18: 1 | DG18: 1.025 | DL18: 0.01 | DM18: 0.909 | DN18: 0.939 | DS18: ORoth | DT18: =1/1.025 -> 0.9756097561 | DU18: =1/0.967507287790243 -> 1.033583946 | DV18: 1 | DW18: 1 | DX18: -0.07356647791 | DY18: -0.03071615219 | DZ18: -0.0696029926 | EC18: 29
C19: Statewide Average Hourly Wage | E19: =26.57*(128/124.4)*ValueUpdate -> 27.33890675 | F19: $/hr | H19: 3 | J19: Maximum V/C Ratio | M19: 1.56 | N19: - | Q19: 16 | S19: General Travel Activity Characteristics Parameters | U19: Value | V19: Units | Z19: Rail or Transit Cap Expansion | AC19: Please select a type of rail or transit project | AG19: 6 | AH19: 0.474 | AI19: 0.474 | AJ19: 0.474 | AK19: 0.474 | AL19: 0.474 | AM19: 0.474 | AR19: 12 | AS19: 0.0691 | AT19: 0.1583 | BP19: 11 | BQ19: 2.6065 | BR19: 791.6908 | BS19: 0.2349 | BT19: 0.0082 | BU19: 0.0079 | BV19: 0.1825 | CA19: 11 | CB19: 0.7615 | CC19: 442.2214 | CD19: 0.0527 | CE19: 0.0035 | CF19: 0.0044 | CG19: 0.068 | CK19: Sources: McCubbin and Delucchi, 1996 for emissions other than CO2e | CX19: 150 | CY19: 400 | CZ19: 575 | DA19: 750 | DE19: 150 | DF19: 1 | DG19: 1.013 | DL19: 0.012 | DM19: 0.891 | DN19: 0.927 | DS19: ORsev | DT19: =1/1.05014749262537 -> 0.952247191 | DU19: =1/0.972697289554735 -> 1.028069072 | DV19: 1 | DW19: 1 | DX19: -0.001481505335 | DY19: -0.001323833569 | DZ19: 5.67437418 | EC19: 29
T20: Cycling Days per Year | U20: 365 | V20: days | Z20: Passenger Rail | AA20: =IF(ProjType=Z20,TRUE) -> FALSE | AB20: PassRail | AC20: Enter data in both sections 1B & 1E | AG20: 7 | AH20: 0.542 | AI20: 0.542 | AJ20: 0.542 | AK20: 0.542 | AL20: 0.542 | AM20: 0.542 | AR20: 13 | AS20: 0.0656 | AT20: 0.1459 | BP20: 12 | BQ20: 2.533 | BR20: 752.6399 | BS20: 0.2269 | BT20: 0.0076 | BU20: 0.0076 | BV20: 0.1707 | CA20: 12 | CB20: 0.7432 | CC20: 420.4632 | CD20: 0.0509 | CE20: 0.0032 | CF20: 0.0042 | CG20: 0.0635 | CL20: Interagency Working Group on Social Cost of Carbon, United States Government, 2016 for CO2e | CX20: 175 | CY20: 500 | CZ20: 700 | DA20: 750 | DE20: 175 | DF20: 1 | DG20: 1 | DL20: 0.014 | DM20: 0.873 | DN20: 0.915 | DS20: RMoth | DT20: 1 | DU20: 1 | DV20: 1.025 | DW20: 0.9675072878 | DX20: -0.07356647791 | DY20: -0.03071615219 | DZ20: -0.0696029926 | EA20: 1
C21: Heavy and Light Truck Drivers | J21: Percent ADT in Peak Period | N21: % | T21: Walking Days per Year | U21: 365 | V21: days | Z21: Light-Rail (LRT) | AA21: =IF(ProjType=Z21,TRUE) -> FALSE | AB21: LRT | AC21: Enter data in both sections 1B & 1E | AG21: 8 | AH21: 0.608 | AI21: 0.608 | AJ21: 0.608 | AK21: 0.608 | AL21: 0.608 | AM21: 0.608 | AR21: 14 | AS21: 0.062 | AT21: 0.1335 | BP21: 13 | BQ21: 2.4595 | BR21: 713.589 | BS21: 0.219 | BT21: 0.007 | BU21: 0.0072 | BV21: 0.1588 | CA21: 13 | CB21: 0.7249 | CC21: 398.7051 | CD21: 0.0491 | CE21: 0.003 | CF21: 0.004 | CG21: 0.0589 | CX21: 200 | CY21: 575 | CZ21: 750 | DA21: 750 | DE21: 200 | DF21: 1 | DG21: 0.98 | DL21: 0.016 | DM21: 0.855 | DN21: 0.903 | DS21: RMsev | DT21: 1 | DU21: 1 | DV21: 1.050147493 | DW21: 0.9726972896 | DX21: -0.001481505335 | DY21: -0.001323833569 | DZ21: 5.67437418 | EA21: 1
D22: Average Hourly Wage | E22: =(21.17*129170+17.98*89230)/(129170+89230)*(128/124.4)*ValueUpdate -> 20.44160654 | F22: $/hr | H22: 3 | J22: Percent ADT in Average Peak Hour | N22: % | T22: School Days per Year | U22: 180 | V22: days | Z22: Bus | AA22: =IF(ProjType=Z22,TRUE) -> FALSE | AB22: Bus | AC22: Enter data in both sections 1B & 1E | AG22: 9 | AH22: 0.671 | AI22: 0.671 | AJ22: 0.671 | AK22: 0.671 | AL22: 0.671 | AM22: 0.671 | AR22: 15 | AS22: 0.0584 | AT22: 0.1211 | AY22: NUMBER OF FATALITIES | BG22: COST OF TRANSIT ACCIDENT EVENTS | BP22: 14 | BQ22: 2.386 | BR22: 674.5382 | BS22: 0.211 | BT22: 0.0064 | BU22: 0.0068 | BV22: 0.1469 | CA22: 14 | CB22: 0.7066 | CC22: 376.9469 | CD22: 0.0472 | CE22: 0.0027 | CF22: 0.0038 | CG22: 0.0544 | CX22: 225 | CY22: 650 | CZ22: 750 | DA22: 750 | DE22: 225 | DF22: 1 | DG22: 0.949 | DL22: 0.018 | DM22: 0.836 | DN22: 0.891 | DS22: TIoth | DT22: 1 | DU22: 1 | DV22: 1.015463918 | DW22: 0.9691308177 | DX22: -0.1102658587 | DY22: -0.1187270477 | DZ22: -0.3518002468 | EA22: 1
D23: Benefits and Costs | E23: =WageTruck*(27.84/18.12-1)*ValueUpdate -> 10.9653651 | F23: $/hr | H23: 4 | Z23: Hwy-Rail Grade Crossing | AA23: =IF(ProjType=Z23,TRUE) -> FALSE | AB23: HwyRail | AC23: Put hwy design in 1B, safety in 1C & crossing in 1D | AG23: 10 | AH23: 0.734 | AI23: 0.734 | AJ23: 0.734 | AK23: 0.734 | AL23: 0.734 | AM23: 0.734 | AR23: 16 | AS23: 0.056 | AT23: 0.1181 | AY23: (events/accident) | BG23: ($/event) | BP23: 15 | BQ23: 2.3125 | BR23: 635.4873 | BS23: 0.203 | BT23: 0.0058 | BU23: 0.0064 | BV23: 0.1351 | CA23: 15 | CB23: 0.6883 | CC23: 355.1888 | CD23: 0.0454 | CE23: 0.0025 | CF23: 0.0036 | CG23: 0.0499 | CX23: 250 | CY23: 750 | CZ23: 750 | DA23: 750 | DE23: 250 | DF23: 1 | DG23: 0.919 | DL23: 0.02 | DM23: 0.789 | DN23: 0.879 | DS23: TIsev | DT23: 1 | DU23: 1 | DV23: 1.005899705 | DW23: 0.9718304881 | DX23: -0.391225726 | DY23: -0.3916022882 | DZ23: -0.3518002468 | EA23: 1
J24: Annualization Factor | M24: 365 | N24: days/yr | S24: Vehicle Statistics | AG24: 11 | AH24: 0.79 | AI24: 0.79 | AJ24: 0.79 | AK24: 0.79 | AL24: 0.79 | AM24: 0.79 | AR24: 17 | AS24: 0.0536 | AT24: 0.115 | BP24: 16 | BQ24: 2.2482 | BR24: 609.4158 | BS24: 0.1973 | BT24: 0.0055 | BU24: 0.0061 | BV24: 0.127 | CA24: 16 | CB24: 0.6724 | CC24: 340.7505 | CD24: 0.0442 | CE24: 0.0023 | CF24: 0.0034 | CG24: 0.0469 | CL24: PASSENGER TRAIN EMISSIONS FACTORS | CX24: 275 | CY24: 750 | CZ24: 750 | DA24: 750 | DE24: 275 | DF24: 0.991 | DG24: 0.89 | DL24: 0.022 | DM24: 0.747 | DN24: 0.867
C25: Value of Time | T25: Average Vehicle Speed | U25: 25 | V25: mph | Z25: Hwy Operational Improvement | AC25: Please select a type of op. improvement | AG25: 12 | AH25: 0.843 | AI25: 0.843 | AJ25: 0.843 | AK25: 0.843 | AL25: 0.843 | AM25: 0.843 | AR25: 18 | AS25: 0.0513 | AT25: 0.112 | AY25: Accident Type | AZ25: Urban | BA25: Suburban | BB25: Rural | BC25: Average | BG25: Event | BH25: Pass Train | BI25: Light Rail | BJ25: Bus | BP25: 17 | BQ25: 2.1838 | BR25: 583.3443 | BS25: 0.1916 | BT25: 0.0051 | BU25: 0.0059 | BV25: 0.1189 | CA25: 17 | CB25: 0.6566 | CC25: 326.3121 | CD25: 0.0431 | CE25: 0.0022 | CF25: 0.0033 | CG25: 0.0439 | CL25: (g/train-mile) | CX25: 300 | CY25: 750 | CZ25: 750 | DA25: 750 | DE25: 300 | DF25: 0.981 | DG25: 0.862 | DL25: 0.024 | DM25: 0.706 | DN25: 0.855
D26: Automobile | E26: =ROUND(WageStatewide*0.5/5,2)*5 -> 13.65 | F26: $/hr/per | H26: 5 | N26: Capacity | O26: Dep. Rate | T26: Average Vehicle Occupancy | U26: 1.25 | V26: persons / veh | X26: 19 | Z26: Auxiliary Lane | AA26: =IF(ProjType=Z26,TRUE) -> FALSE | AB26: AuxLane | AC26: Enter ramp design speed & on-ramp volume | AG26: 13 | AH26: 0.886 | AI26: 0.886 | AJ26: 0.886 | AK26: 0.886 | AL26: 0.886 | AM26: 0.886 | AR26: 19 | AS26: 0.0489 | AT26: 0.1089 | AY26: Fatal Accident | AZ26: 1.09 | BA26: 1.08 | BB26: 1.14 | BC26: 1.11 | BG26: Fatality | BH26: =FatValue -> 9800000 | BI26: =FatValue -> 9800000 | BJ26: =FatValue -> 9800000 | BP26: 18 | BQ26: 2.1195 | BR26: 557.2727 | BS26: 0.1859 | BT26: 0.0048 | BU26: 0.0056 | BV26: 0.1108 | CA26: 18 | CB26: 0.6407 | CC26: 311.8738 | CD26: 0.042 | CE26: 0.002 | CF26: 0.0031 | CG26: 0.041 | CX26: 325 | CY26: 750 | CZ26: 750 | DA26: 750 | DE26: 325 | DF26: 0.971 | DG26: 0.834 | DL26: 0.026 | DM26: 0.664 | DN26: 0.842 | DR26: Source: California Department of Transportation TMS Master Plan, 2003
D27: Truck | E27: =ROUND((WageTruck+FringeTruck)/5,2)*5 -> 31.4 | F27: $/hr/veh | H27: 5 | L27: Alpha | M27: Beta | N27: (vphpl) | O27: (vphpl) | Z27: Freeway Connector | AA27: FALSE | AB27: FreeConn | AC27: Check percent traffic in weave in section 1B | AG27: 14 | AH27: 0.916 | AI27: 0.916 | AJ27: 0.916 | AK27: 0.916 | AL27: 0.916 | AM27: 0.916 | AR27: 20 | AS27: 0.0465 | AT27: 0.1059 | BG27: Injury | BH27: =ROUND((BC12*InjAValue+BC13*InjBValue)/SUM(BC12:BC13),-2) -> 180500 | BI27: =ROUND((BC12*InjAValue+BC13*InjBValue)/SUM(BC12:BC13),-2) -> 180500 | BJ27: =ROUND((BC12*InjAValue+BC13*InjBValue)/SUM(BC12:BC13),-2) -> 180500 | BP27: 19 | BQ27: 2.0551 | BR27: 531.2012 | BS27: 0.1803 | BT27: 0.0044 | BU27: 0.0053 | BV27: 0.1027 | CA27: 19 | CB27: 0.6249 | CC27: 297.4355 | CD27: 0.0409 | CE27: 0.0019 | CF27: 0.003 | CG27: 0.038 | CL27: Mode | CM27: Year | CN27: CO | CO27: CO2 | CP27: NOX | CQ27: PM10 | CR27: SOX | CS27: VOC | CX27: 350 | CY27: 750 | CZ27: 750 | DA27: 750 | DE27: 350 | DF27: 0.961 | DG27: 0.808 | DL27: 0.028 | DM27: 0.623 | DN27: 0.817 | DS27: 29) Chaudhary and Messer, 2000
D28: Auto & Truck Composite | E28: =ROUND((1.3*ValTimeAuto*0.91+ValTimeTruck*0.09)/5,2)*5 -> 18.95 | F28: $/hr/veh | H28: 6 | J28: Freeway | L28: 0.2 | M28: 10 | N28: 2000 | O28: 1800 | Q28: 16, 17 | S28: Active Transportation User Characteristics | Z28: HOV Connector | AA28: FALSE | AB28: HOVConn | AC28: Check percent traffic in weave in section 1B | AG28: 15 | AH28: 0.943 | AI28: 0.943 | AJ28: 0.943 | AK28: 0.943 | AL28: 0.943 | AM28: 0.943 | AR28: 21 | AS28: 0.0449 | AT28: 0.1011 | BG28: Prop Damage | BH28: =ROUND(18130110/230,-2) -> 78800 | BI28: =ROUND(5179121/418,-2) -> 12400 | BJ28: =ROUND(22564745/6008,-2) -> 3800 | BP28: 20 | BQ28: 1.9907 | BR28: 505.1297 | BS28: 0.1746 | BT28: 0.0041 | BU28: 0.0051 | BV28: 0.0946 | CA28: 20 | CB28: 0.609 | CC28: 282.9972 | CD28: 0.0397 | CE28: 0.0017 | CF28: 0.0028 | CG28: 0.035 | CL28: Passenger Train | CM28: 2002 | CN28: 45.67 | CP28: 583.58 | CQ28: 62.02 | CS28: 19.73 | CX28: 375 | CY28: 750 | CZ28: 750 | DA28: 750 | DE28: 375 | DF28: 0.952 | DG28: 0.782 | DL28: 0.03 | DM28: 0.581 | DN28: 0.789
D29: Transit | E29: =ROUND(WageStatewide*0.5/5,2)*5 -> 13.65 | F29: $/hr/per | H29: 5 | J29: Expressway | L29: 0.2 | M29: 10 | N29: 2000 | O29: 1800 | Q29: 16, 17 | T29: Average Cycling Speed | U29: 11.8 | V29: mph | X29: 20 | Z29: HOV Drop Ramp | AA29: FALSE | AB29: HOVDrop | AC29: Check percent traffic in weave in section 1B | AG29: 16 | AH29: 0.964 | AI29: 0.964 | AJ29: 0.964 | AK29: 0.964 | AL29: 0.964 | AM29: 0.964 | AR29: 22 | AS29: 0.0433 | AT29: 0.0963 | AY29: NUMBER OF INJURIES | BP29: 21 | BQ29: 1.9371 | BR29: 487.6709 | BS29: 0.1701 | BT29: 0.0039 | BU29: 0.0049 | BV29: 0.0895 | CA29: 21 | CB29: 0.5973 | CC29: 273.2085 | CD29: 0.039 | CE29: 0.0016 | CF29: 0.0027 | CG29: 0.0333 | CM29: 2022 | CN29: 45.67 | CP29: 250.11 | CQ29: 31.01 | CS29: 19.73 | CX29: 400 | CY29: 750 | CZ29: 750 | DA29: 750 | DE29: 400 | DF29: 0.942 | DG29: 0.758 | DL29: 0.032 | DM29: 0.54 | DN29: 0.761
D30: Out-of-Vehicle Travel | E30: 2 | F30: times | H30: 5 | J30: Conventional Highway | L30: 0.05 | M30: 10 | N30: 800 | O30: 1400 | Q30: 17 | T30: Average Walking Speed | U30: 3 | V30: mph | X30: 21 | Z30: Off-Ramp Widening | AA30: FALSE | AB30: OffRamp | AC30: Check percent traffic in weave in section 1B | AG30: 17 | AH30: 0.976 | AI30: 0.976 | AJ30: 0.976 | AK30: 0.976 | AL30: 0.976 | AM30: 0.976 | AR30: 23 | AS30: 0.0417 | AT30: 0.0916 | AY30: (events/accident) | BP30: 22 | BQ30: 1.8834 | BR30: 470.2121 | BS30: 0.1656 | BT30: 0.0036 | BU30: 0.0047 | BV30: 0.0845 | CA30: 22 | CB30: 0.5855 | CC30: 263.4199 | CD30: 0.0383 | CE30: 0.0015 | CF30: 0.0026 | CG30: 0.0316 | CX30: 425 | CY30: 750 | CZ30: 750 | DA30: 750 | DE30: 425 | DF30: 0.932 | DG30: 0.734 | DL30: 0.034 | DM30: 0.498 | DN30: 0.734
D31: Incident-Related Travel | E31: 3 | F31: times | H31: 7 | J31: HOV Lanes | L31: 0.55 | M31: 8 | N31: 1600 | Q31: 18 | T31: Percentage of Cycling Trips with Return Trips | U31: 0.95 | V31: % | X31: 19 | Z31: On-Ramp Widening | AA31: FALSE | AB31: OnRamp | AC31: Enter on-ramp volume & metering strategy | AG31: 18 | AH31: 0.985 | AI31: 0.985 | AJ31: 0.985 | AK31: 0.985 | AL31: 0.985 | AM31: 0.985 | AR31: 24 | AS31: 0.0401 | AT31: 0.0868 | BF31: Source: FTA, Transit Safety & Security Statistics, 2002 to 2011 average | BP31: 23 | BQ31: 1.8297 | BR31: 452.7533 | BS31: 0.1611 | BT31: 0.0034 | BU31: 0.0045 | BV31: 0.0794 | CA31: 23 | CB31: 0.5737 | CC31: 253.6313 | CD31: 0.0376 | CE31: 0.0015 | CF31: 0.0025 | CG31: 0.0299 | CX31: 450 | CY31: 750 | CZ31: 750 | DA31: 750 | DE31: 450 | DF31: 0.923 | DG31: 0.709 | DL31: 0.036 | DM31: 0.476 | DN31: 0.706
D32: Travel Time Uprater | E32: 0 | F32: annual incr | T32: Percentage of Pedestrian Trips with Return Trips | U32: 0.9 | V32: % | X32: 19 | Z32: HOV-2 to HOV-3 Conv | AA32: FALSE | AB32: HOV2to3 | AC32: Check AVOs & trips in sections 1B & 2D | AG32: 19 | AH32: 0.991 | AI32: 0.991 | AJ32: 0.991 | AK32: 0.991 | AL32: 0.991 | AM32: 0.991 | AR32: 25 | AS32: 0.0384 | AT32: 0.0821 | AY32: Accident Type | AZ32: Urban | BA32: Suburban | BB32: Rural | BC32: Average | BP32: 24 | BQ32: 1.776 | BR32: 435.2945 | BS32: 0.1566 | BT32: 0.0032 | BU32: 0.0044 | BV32: 0.0744 | CA32: 24 | CB32: 0.5619 | CC32: 243.8426 | CD32: 0.0369 | CE32: 0.0014 | CF32: 0.0024 | CG32: 0.0282 | CL32: LIGHT RAIL EMISSIONS FACTORS | DL32: 0.038 | DM32: 0.473 | DN32: 0.678 | DS32: TRANSIT TRAVEL TIME AND AGENCY COST SAVINGS
N33: Capacity | T33: Diversion of Cyclists from Personal Vehicles | U33: 0.5 | V33: assumption | Z33: HOT Lane Conversion | AA33: FALSE | AB33: HOTConv | AC33: Check AVOs & trips in sections 1B & 2D | AG33: 20 | AH33: 0.994 | AI33: 0.994 | AJ33: 0.994 | AK33: 0.994 | AL33: 0.994 | AM33: 0.994 | AR33: 26 | AS33: 0.0374 | AT33: 0.0804 | AY33: Fatal Accident | AZ33: 0.81 | BA33: 0.82 | BB33: 1.12 | BC33: 0.95 | BP33: 25 | BQ33: 1.7223 | BR33: 417.8356 | BS33: 0.1522 | BT33: 0.003 | BU33: 0.0042 | BV33: 0.0693 | CA33: 25 | CB33: 0.5502 | CC33: 234.054 | CD33: 0.0362 | CE33: 0.0013 | CF33: 0.0023 | CG33: 0.0264 | CL33: (g/veh-mile) | DL33: 0.04 | DM33: 0.471 | DN33: 0.65 | DS33: (percent savings)
B34: Vehicle Operating Cost Parameters | J34: Non-HOV Lanes | L34: Alpha | M34: Beta | N34: (vphpl) | T34: Diversion of Pedestrians from Personal Vehicles | U34: 0.5 | V34: assumption | AG34: 21 | AH34: 0.997 | AI34: 0.997 | AJ34: 0.997 | AK34: 0.997 | AL34: 0.997 | AM34: 0.997 | AR34: 27 | AS34: 0.0363 | AT34: 0.0788 | AY34: Injury Accident | AZ34: 1.44 | BA34: 1.43 | BB34: 1.5 | BC34: 1.44 | BP34: 26 | BQ34: 1.6875 | BR34: 406.0164 | BS34: 0.1499 | BT34: 0.0029 | BU34: 0.0041 | BV34: 0.0665 | CA34: 26 | CB34: 0.5395 | CC34: 227.3537 | CD34: 0.0356 | CE34: 0.0012 | CF34: 0.0023 | CG34: 0.0253 | CW34: Source: Paterson, 1987 | DD34: Source: Botterill, 1996 and 1997 | DL34: 0.042 | DM34: 0.468 | DN34: 0.623
K35: No Build | Z35: Transp Mgmt Systems (TMS) | AC35: Please select a type of TMS project | AG35: 22 | AH35: 0.998 | AI35: 0.998 | AJ35: 0.998 | AK35: 0.998 | AL35: 0.998 | AM35: 0.998 | AR35: 28 | AS35: 0.0352 | AT35: 0.0771 | BG35: COSTS OF TRANSIT ACCIDENTS | BP35: 27 | BQ35: 1.6528 | BR35: 394.1971 | BS35: 0.1476 | BT35: 0.0027 | BU35: 0.004 | BV35: 0.0637 | CA35: 27 | CB35: 0.5289 | CC35: 220.6535 | CD35: 0.0349 | CE35: 0.0012 | CF35: 0.0022 | CG35: 0.0242 | CL35: Mode | CM35: Year | CN35: CO | CO35: CO2 | CP35: NOX | CQ35: PM10 | CR35: SOX | CS35: VOC | DL35: 0.044 | DM35: 0.466 | DN35: 0.595 | DV35: Travel | DW35: Agency Costs
C36: Average Fuel Price | K36: Build | S36: Value of Travel Time | Z36: Ramp Metering | AA36: =IF(ProjType=Z36,TRUE) -> FALSE | AB36: RM | AC36: Enter model data, if avail, in sections 2A & 2C | AG36: 23 | AH36: 0.999 | AI36: 0.999 | AJ36: 0.999 | AK36: 0.999 | AL36: 0.999 | AM36: 0.999 | AR36: 29 | AS36: 0.0341 | AT36: 0.0755 | BG36: ($/million veh-mi) | BP36: 28 | BQ36: 1.618 | BR36: 382.3778 | BS36: 0.1453 | BT36: 0.0026 | BU36: 0.0038 | BV36: 0.0609 | CA36: 28 | CB36: 0.5182 | CC36: 213.9532 | CD36: 0.0343 | CE36: 0.0011 | CF36: 0.0021 | CG36: 0.0231 | CL36: Light Rail | CM36: 2002 | CN36: =CN28/CS28*CS36 -> 0.1388849468 | CP36: 1.13 | CQ36: 0.17 | CS36: 0.06 | DL36: 0.046 | DM36: 0.463 | DN36: 0.567 | DS36: TMS Strategy | DV36: Time | DW36: Capital | DX36: O&M
D37: Automobile (regular unleaded) | E37: =AVERAGE(3.449,2.901)*ValueUpdate -> 3.175 | F37: $/gal | H37: 8 | T37: Adults | U37: =ValTimeAuto -> 13.65 | V37: $/hr/per | Z37: Ramp Metering Signal Coord | AA37: FALSE | AB37: AM | AC37: Enter model data, if avail, in sections 2A & 2C | AG37: 24 | AH37: 1 | AI37: 1 | AJ37: 1 | AK37: 1 | AL37: 1 | AM37: 1 | AR37: 30 | AS37: 0.033 | AT37: 0.0738 | AY37: NUMBER OF VEHICLES INVOLVED | BP37: 29 | BQ37: 1.5833 | BR37: 370.5585 | BS37: 0.143 | BT37: 0.0025 | BU37: 0.0037 | BV37: 0.058 | CA37: 29 | CB37: 0.5076 | CC37: 207.253 | CD37: 0.0337 | CE37: 0.001 | CF37: 0.0021 | CG37: 0.0219 | CM37: 2022 | CN37: =CN29/CS29*CS37 -> 0.1388849468 | CP37: 1.14 | CQ37: 0.17 | CS37: 0.06 | DL37: 0.048 | DM37: 0.46 | DN37: 0.54 | DS37: Transit Vehicle Location (AVL) | DV37: 0.15 | DW37: 0.02 | DX37: 0.08
D38: Truck (diesel) | E38: =AVERAGE(3.19,2.81)*ValueUpdate -> 3 | F38: $/gal | H38: 8 | T38: Children | U38: =ValTimeAuto -> 13.65 | V38: $/hr/per | Z38: Incident Management | AA38: FALSE | AB38: IM | AC38: Enter model data, if avail, in sections 2A & 2C | AR38: 31 | AS38: 0.0323 | AT38: 0.075 | AY38: (events/accident) | BG38: Value | BH38: Pass Train | BI38: Light Rail | BJ38: Bus | BP38: 30 | BQ38: 1.5486 | BR38: 358.7392 | BS38: 0.1407 | BT38: 0.0023 | BU38: 0.0036 | BV38: 0.0552 | CA38: 30 | CB38: 0.497 | CC38: 200.5527 | CD38: 0.0331 | CE38: 0.001 | CF38: 0.002 | CG38: 0.0208 | CX38: FUEL CONSUMPTION | DE38: NON-FUEL COSTS | DL38: 0.05 | DM38: 0.458 | DN38: 0.512 | DS38: Transit Vehicle Signal Priority | DV38: 0.1 | DW38: - | DX38: -
I39: Sources: 16) Highway Capacity Manual, 17) NCHRP 387, 18) PeMS data | Z39: Traveler Information | AA39: FALSE | AB39: TI | AC39: Enter model data, if avail, in sections 2A & 2C | AR39: 32 | AS39: 0.0316 | AT39: 0.0763 | BG39: Cost | BH39: =ROUND(BH12*BH26+BH13*BH27+BH14*BH28,-2) -> 611200 | BI39: =ROUND(BI12*BI26+BI13*BI27+BI14*BI28,-2) -> 3209500 | BJ39: =ROUND(BJ12*BJ26+BJ13*BJ27+BJ14*BJ28,-2) -> 1011600 | BP39: 31 | BQ39: 1.5319 | BR39: 351.4164 | BS39: 0.1404 | BT39: 0.0023 | BU39: 0.0035 | BV39: 0.0538 | CA39: 31 | CB39: 0.4906 | CC39: 196.3779 | CD39: 0.033 | CE39: 0.001 | CF39: 0.002 | CG39: 0.0201 | CX39: (percent adjustment) | DE39: (percent adjustment) | DL39: 0.052 | DM39: 0.455 | DN39: 0.484 | DS39: Bus Rapid Transit (BRT) | DV39: 0.29 | DW39: - | DX39: -
C40: Sales and Fuel Taxes | S40: Cycling Journey Quality - Facility Preference Factors as Function of Distance by Facility Class | Z40: Arterial Signal Management | AA40: FALSE | AB40: ASM | AC40: Complete only sections 1A, 1E & 2C | AF40: Source: California Department of Transportation, 2010-2012 California Household Travel | AR40: 33 | AS40: 0.031 | AT40: 0.0774 | AY40: Accident Type | AZ40: Urban | BA40: Suburban | BB40: Rural | BC40: Average | BP40: 32 | BQ40: 1.5153 | BR40: 344.0935 | BS40: 0.14 | BT40: 0.0022 | BU40: 0.0035 | BV40: 0.0525 | CA40: 32 | CB40: 0.4842 | CC40: 192.2031 | CD40: 0.0328 | CE40: 0.0009 | CF40: 0.0019 | CG40: 0.0194 | CK40: Source: California Air Resources Board | DL40: 0.054 | DM40: 0.453 | DN40: 0.476
D41: State Sales Tax (gasoline) | E41: 0.0225 | F41: % | H41: 9 | T41: Class I | U41: 0.57 | V41: - | X41: 20 | Z41: Transit Vehicle Location (AVL) | AA41: FALSE | AB41: AVL | AC41: Enter transit agency costs in section 1D | AF41: Survey, Final Report Appendix, June 2013 | AR41: 34 | AS41: 0.0303 | AT41: 0.0786 | AY41: Fatal Accident | AZ41: 1.51 | BA41: 1.69 | BB41: 1.58 | BC41: 1.63 | BP41: 33 | BQ41: 1.4987 | BR41: 336.7706 | BS41: 0.1396 | BT41: 0.0021 | BU41: 0.0034 | BV41: 0.0511 | CA41: 33 | CB41: 0.4779 | CC41: 188.0283 | CD41: 0.0327 | CE41: 0.0009 | CF41: 0.0019 | CG41: 0.0187 | CX41: IRI | CY41: Auto | CZ41: Truck | DE41: IRI | DF41: Auto | DG41: Truck | DL41: 0.056 | DM41: 0.453 | DN41: 0.474
D42: State Sales Tax (diesel) | E42: =5.75%+1.75% -> 0.075 | F42: % | H42: 9 | T42: Class II | U42: 0.49 | V42: - | X42: 20 | Z42: Transit Vehicle Signal Priority | AA42: FALSE | AB42: SigPriority | AC42: Check travel time in section 1D | AR42: 35 | AS42: 0.0296 | AT42: 0.0799 | AY42: Injury Accident | AZ42: 1.82 | BA42: 2.1 | BB42: 1.59 | BC42: 1.99 | BF42: Source: Combination of above two tables | BP42: 34 | BQ42: 1.4821 | BR42: 329.4478 | BS42: 0.1392 | BT42: 0.002 | BU42: 0.0033 | BV42: 0.0497 | CA42: 34 | CB42: 0.4715 | CC42: 183.8535 | CD42: 0.0325 | CE42: 0.0009 | CF42: 0.0018 | CG42: 0.0181 | CX42: 0 | CY42: 0.971 | CZ42: 0.961 | DE42: 0 | DF42: 1 | DG42: 1 | DL42: 0.058 | DM42: 0.453 | DN42: 0.473 | DR42: Sources: FHWA ITS Deployment Analysis System (IDAS), California PATH
D43: Average Local Sales Tax | E43: 0.005 | F43: % | H43: 9 | T43: Class III | U43: 0.92 | V43: - | X43: 20 | Z43: Bus Rapid Transit (BRT) | AA43: FALSE | AB43: BRT | AC43: Enter free-flow bus lane speed in section 1B | AR43: 36 | AS43: 0.0292 | AT43: 0.0796 | AY43: PDO Accident | AZ43: 1.8 | BA43: 2.03 | BB43: 1.59 | BC43: 1.96 | BP43: 35 | BQ43: 1.4654 | BR43: 322.1249 | BS43: 0.1389 | BT43: 0.002 | BU43: 0.0032 | BV43: 0.0483 | CA43: 35 | CB43: 0.4652 | CC43: 179.6787 | CD43: 0.0324 | CE43: 0.0008 | CF43: 0.0018 | CG43: 0.0174 | CX43: 25 | CY43: 0.977 | CZ43: 0.965 | DE43: 25 | DF43: 1 | DG43: 1 | DL43: 0.06 | DM43: 0.453 | DN43: 0.471
D44: Federal Fuel Excise Tax (gasoline) | E44: 0.184 | F44: $/gal | H44: 9 | T44: Class IV | U44: =CLASS2MRS -> 0.49 | V44: - | X44: 20 | AR44: 37 | AS44: 0.0288 | AT44: 0.0794 | BP44: 36 | BQ44: 1.453 | BR44: 317.7039 | BS44: 0.1389 | BT44: 0.0019 | BU44: 0.0032 | BV44: 0.0475 | CA44: 36 | CB44: 0.459 | CC44: 177.1527 | CD44: 0.0322 | CE44: 0.0008 | CF44: 0.0018 | CG44: 0.0169 | CX44: 50 | CY44: 0.98 | CZ44: 0.97 | DE44: 50 | DF44: 1 | DG44: 1 | DL44: 0.062 | DM44: 0.453 | DN44: 0.469
D45: Federal Fuel Excise Tax (diesel) | E45: 0.244 | F45: $/gal | H45: 9 | T45: Note: Class IV assumed to be the same as Class II | Z45: TMS Lookup Code | AB45: TMSLookup | AR45: 38 | AS45: 0.0284 | AT45: 0.0792 | BP45: 37 | BQ45: 1.4406 | BR45: 313.283 | BS45: 0.139 | BT45: 0.0019 | BU45: 0.0032 | BV45: 0.0467 | CA45: 37 | CB45: 0.4528 | CC45: 174.6268 | CD45: 0.032 | CE45: 0.0008 | CF45: 0.0018 | CG45: 0.0165 | CX45: 75 | CY45: 0.982 | CZ45: 0.975 | DE45: 75 | DF45: 1 | DG45: 1 | DL45: 0.064 | DM45: 0.453 | DN45: 0.467
D46: State Fuel Excise Tax (gasoline) | E46: =0.18+0.098 -> 0.278 | F46: $/gal | H46: 9 | Z46: User Modified Inputs | AB46: UserAdjInputs | AG46: AGE COHORTS FOR MORTALITY RISK REDUCTION | AR46: 39 | AS46: 0.028 | AT46: 0.079 | AY46: DISTRIBUTION OF ACCIDENT TYPES | BG46: HIGHWAY-RAIL GRADE CROSSING INCIDENTS | BP46: 38 | BQ46: 1.4282 | BR46: 308.8621 | BS46: 0.1391 | BT46: 0.0018 | BU46: 0.0031 | BV46: 0.0458 | CA46: 38 | CB46: 0.4466 | CC46: 172.1008 | CD46: 0.0318 | CE46: 0.0008 | CF46: 0.0017 | CG46: 0.016 | CX46: 100 | CY46: 0.985 | CZ46: 0.98 | DE46: 100 | DF46: 1 | DG46: 1 | DL46: 0.066 | DM46: 0.453 | DN46: 0.466
D47: State Fuel Excise Tax (diesel) | E47: 0.16 | F47: $/gal | H47: 9 | S47: Walking Journey Quality Values per Mile by Amentity | AG47: (percent of population) | AR47: 40 | AS47: 0.0276 | AT47: 0.0788 | AY47: (percent of accidents) | BG47: (units in table) | BP47: 39 | BQ47: 1.4157 | BR47: 304.4411 | BS47: 0.1392 | BT47: 0.0018 | BU47: 0.0031 | BV47: 0.045 | CA47: 39 | CB47: 0.4405 | CC47: 169.5748 | CD47: 0.0316 | CE47: 0.0007 | CF47: 0.0017 | CG47: 0.0156 | CX47: 125 | CY47: 0.99 | CZ47: 0.986 | DE47: 125 | DF47: 1 | DG47: 1 | DL47: 0.068 | DM47: 0.453 | DN47: 0.464
T48: Street Lighting | U48: 0.11 | V48: $/mi | X48: 22 | AR48: 41 | AS48: 0.0274 | AT48: 0.0796 | BP48: 40 | BQ48: 1.4033 | BR48: 300.0202 | BS48: 0.1392 | BT48: 0.0017 | BU48: 0.003 | BV48: 0.0442 | CA48: 40 | CB48: 0.4343 | CC48: 167.0488 | CD48: 0.0314 | CE48: 0.0007 | CF48: 0.0017 | CG48: 0.0152 | CX48: 150 | CY48: 0.995 | CZ48: 0.993 | DE48: 150 | DF48: 1.017 | DG48: 1.018 | DL48: 0.07 | DM48: 0.453 | DN48: 0.462
C49: Fuel Cost Per Gallon (Exclude Taxes) | T49: Curb Level | U49: 0.078 | V49: $/mi | X49: 22 | AJ49: Urban | AR49: 42 | AS49: 0.0272 | AT49: 0.0804 | AY49: Accident Type | AZ49: Urban | BA49: Suburban | BB49: Rural | BC49: Average | BG49: Value | BH49: Incident | BI49: Fatality | BJ49: Injury | BP49: 41 | BQ49: 1.393 | BR49: 297.8379 | BS49: 0.1396 | BT49: 0.0017 | BU49: 0.003 | BV49: 0.0439 | CA49: 41 | CB49: 0.4306 | CC49: 165.8643 | CD49: 0.0314 | CE49: 0.0007 | CF49: 0.0017 | CG49: 0.015 | CX49: 175 | CY49: 1 | CZ49: 1 | DE49: 175 | DF49: 1.034 | DG49: 1.038 | DL49: 0.072 | DM49: 0.453 | DN49: 0.46
D50: Automobile | E50: =ROUND((FuelPriceAuto/(1+SalesTaxGasState+SalesTaxLocal)-ExciseTaxGasFed-ExciseTaxGasState)/5,2)*5 -> 2.65 | F50: $/gal | T50: Crowding | U50: 0.055 | V50: $/mi | X50: 22 | AG50: Mode | AH50: Age Cohort | AJ50: South | AK50: North | AL50: Rural | AR50: 43 | AS50: 0.027 | AT50: 0.0812 | AY50: Fatal Accident | AZ50: 0.0118 | BA50: 0.0045 | BB50: 0.0192 | BC50: 0.0071 | BG50: Total Events | BH50: 799 | BI50: 94 | BJ50: 515 | BP50: 42 | BQ50: 1.3827 | BR50: 295.6556 | BS50: 0.1399 | BT50: 0.0017 | BU50: 0.003 | BV50: 0.0435 | CA50: 42 | CB50: 0.4269 | CC50: 164.6798 | CD50: 0.0314 | CE50: 0.0007 | CF50: 0.0017 | CG50: 0.0149 | CX50: 200 | CY50: 1.005 | CZ50: 1.007 | DE50: 200 | DF50: 1.052 | DG50: 1.058 | DL50: 0.074 | DM50: 0.453 | DN50: 0.459
D51: Truck | E51: =ROUND((FuelPriceTruck/(1+SalesTaxDieselState)-ExciseTaxDieselFed-ExciseTaxDieselState)/5,2)*5 -> 2.4 | F51: $/gal | T51: Pavement Evenness | U51: 0.026 | V51: $/mi | X51: 22 | AG51: Cycling | AH51: Age 16-64 | AJ51: 0.705 | AK51: 0.734 | AL51: 0.66 | AR51: 44 | AS51: 0.0268 | AT51: 0.082 | AY51: Injury Accident | AZ51: 0.3493 | BA51: 0.3309 | BB51: 0.3825 | BC51: 0.3398 | BG51: Avg per Incident | BI51: =ROUND(BI50/BH50,4) -> 0.1176 | BJ51: =ROUND(BJ50/BH50,4) -> 0.6446 | BP51: 43 | BQ51: 1.3724 | BR51: 293.4734 | BS51: 0.1402 | BT51: 0.0017 | BU51: 0.003 | BV51: 0.0432 | CA51: 43 | CB51: 0.4232 | CC51: 163.4953 | CD51: 0.0314 | CE51: 0.0007 | CF51: 0.0016 | CG51: 0.0148 | CX51: 225 | CY51: 1.012 | CZ51: 1.017 | DE51: 225 | DF51: 1.07 | DG51: 1.078 | DL51: 0.076 | DM51: 0.453 | DN51: 0.457
T52: Information Panels | U52: 0.026 | V52: $/mi | X52: 22 | AG52: Walking | AH52: Age 16-74 | AJ52: 0.762 | AK52: 0.807 | AL52: 0.7 | AR52: 45 | AS52: 0.0266 | AT52: 0.0828 | AY52: PDO Accident | AZ52: 0.6389 | BA52: 0.6645 | BB52: 0.5983 | BC52: 0.6531 | BG52: Cost per Event | BI52: =BH26 -> 9800000 | BJ52: =BH27 -> 180500 | BP52: 44 | BQ52: 1.3621 | BR52: 291.2911 | BS52: 0.1405 | BT52: 0.0016 | BU52: 0.0029 | BV52: 0.0429 | CA52: 44 | CB52: 0.4195 | CC52: 162.3108 | CD52: 0.0315 | CE52: 0.0007 | CF52: 0.0016 | CG52: 0.0147 | CX52: 250 | CY52: 1.019 | CZ52: 1.026 | DE52: 250 | DF52: 1.088 | DG52: 1.097 | DL52: 0.078 | DM52: 0.453 | DN52: 0.455
C53: Non-Fuel Cost Per Mile | T53: Benches | U53: 0.017 | V53: $/mi | X53: 22 | AR53: 46 | AS53: 0.0266 | AT53: 0.0826 | BP53: 45 | BQ53: 1.3518 | BR53: 289.1088 | BS53: 0.1408 | BT53: 0.0016 | BU53: 0.0029 | BV53: 0.0425 | CA53: 45 | CB53: 0.4158 | CC53: 161.1263 | CD53: 0.0315 | CE53: 0.0007 | CF53: 0.0016 | CG53: 0.0145 | CX53: 275 | CY53: 1.027 | CZ53: 1.036 | DE53: 275 | DF53: 1.105 | DG53: 1.117 | DL53: 0.08 | DM53: 0.453 | DN53: 0.453
D54: Automobile | E54: =ROUND((0.0528+0.01+0.2506)*ValueUpdate,3) -> 0.313 | F54: $/mi | H54: 10 | T54: Directional Signage | U54: 0.017 | V54: $/mi | X54: 22 | AR54: 47 | AS54: 0.0266 | AT54: 0.0824 | BP54: 46 | BQ54: 1.3461 | BR54: 289.1663 | BS54: 0.1416 | BT54: 0.0016 | BU54: 0.0029 | BV54: 0.0425 | CA54: 46 | CB54: 0.4121 | CC54: 161.1408 | CD54: 0.0315 | CE54: 0.0006 | CF54: 0.0016 | CG54: 0.0145 | CX54: 300 | CY54: 1.034 | CZ54: 1.047 | DE54: 300 | DF54: 1.123 | DG54: 1.137
D55: Truck | E55: =ROUND((0.158+0.044+0.215)*(1.1164/1.0843)*ValueUpdate,3) -> 0.429 | F55: $/mi | H55: 11 | AG55: AVERAGE DISTANCE PER ACTIVE TRANSPORTATION TRIP | AR55: 48 | AS55: 0.0266 | AT55: 0.0821 | AX55: Source: California Department of Transportation,TASAS Unit, 2010 to 2013 average | BF55: Source: FRA, Office of Safety Analysis, 5.10 - Hwy/Rail Incidents Summary | BP55: 47 | BQ55: 1.3403 | BR55: 289.2238 | BS55: 0.1424 | BT55: 0.0016 | BU55: 0.0029 | BV55: 0.0426 | CA55: 47 | CB55: 0.4083 | CC55: 161.1552 | CD55: 0.0315 | CE55: 0.0006 | CF55: 0.0016 | CG55: 0.0144 | CX55: 325 | CY55: 1.041 | CZ55: 1.058 | DE55: 325 | DF55: 1.141 | DG55: 1.156
S56: Health (Absenteeism Reduction) | AG56: (miles/trip) | AR56: 49 | AS56: 0.0266 | AT56: 0.0819 | BG56: Table, California, Motor Vehicles, Public Crossings, Jan 2007 to Dec 2016 | BP56: 48 | BQ56: 1.3346 | BR56: 289.2813 | BS56: 0.1432 | BT56: 0.0016 | BU56: 0.0029 | BV56: 0.0426 | CA56: 48 | CB56: 0.4046 | CC56: 161.1697 | CD56: 0.0316 | CE56: 0.0006 | CF56: 0.0016 | CG56: 0.0143 | CX56: 350 | CY56: 1.05 | CZ56: 1.07 | DE56: 350 | DF56: 1.159 | DG56: 1.176 | DK56: Source: Fitzpatrick, Brewer, and Venglar, 2003
C57: Idling Speed for Op. Costs and Emissions | E57: 5 | F57: mph | T57: Average Absence of Employees | U57: 3.6 | V57: days/yr | X57: 23 | AR57: 50 | AS57: 0.0266 | AT57: 0.0817 | BP57: 49 | BQ57: 1.3288 | BR57: 289.3388 | BS57: 0.144 | BT57: 0.0016 | BU57: 0.0029 | BV57: 0.0426 | CA57: 49 | CB57: 0.4009 | CC57: 161.1841 | CD57: 0.0316 | CE57: 0.0006 | CF57: 0.0016 | CG57: 0.0143 | CX57: 375 | CY57: 1.061 | CZ57: 1.085 | DE57: 375 | DF57: 1.176 | DG57: 1.196
T58: Percentage Covered by Short-Term Sick Leave | U58: 0.95 | V58: % | X58: 24 | AJ58: Urban | AR58: 51 | AS58: 0.0268 | AT58: 0.0826 | BP58: 50 | BQ58: 1.3231 | BR58: 289.3962 | BS58: 0.1448 | BT58: 0.0016 | BU58: 0.0029 | BV58: 0.0426 | CA58: 50 | CB58: 0.3971 | CC58: 161.1986 | CD58: 0.0317 | CE58: 0.0006 | CF58: 0.0016 | CG58: 0.0142 | CX58: 400 | CY58: 1.072 | CZ58: 1.1 | DE58: 400 | DF58: 1.194 | DG58: 1.216
B59: Accident Cost Parameters | T59: Percentage of Sick Days Reduced When Active at Least 30 Minutes per Day | U59: 0.06 | V59: % | X59: 25 | AG59: Mode | AH59: Age Cohort | AJ59: South | AK59: North | AL59: Rural | AR59: 52 | AS59: 0.027 | AT59: 0.0834 | BP59: 51 | BQ59: 1.3174 | BR59: 291.4641 | BS59: 0.1457 | BT59: 0.0016 | BU59: 0.0029 | BV59: 0.0429 | CA59: 51 | CB59: 0.3934 | CC59: 162.3502 | CD59: 0.0316 | CE59: 0.0006 | CF59: 0.0016 | CG59: 0.0142 | CX59: 425 | CY59: 1.082 | CZ59: 1.114 | DE59: 425 | DF59: 1.212 | DG59: 1.235
AG60: Cycling | AH60: Adults | AJ60: 2.51 | AK60: 2.21 | AL60: 2.48 | AR60: 53 | AS60: 0.0272 | AT60: 0.0842 | AY60: COST OF HIGHWAY ACCIDENTS | BG60: PASSING LANE ACCIDENT REDUCTION FACTORS | BP60: 52 | BQ60: 1.3117 | BR60: 293.5321 | BS60: 0.1466 | BT60: 0.0016 | BU60: 0.003 | BV60: 0.0431 | CA60: 52 | CB60: 0.3897 | CC60: 163.5019 | CD60: 0.0316 | CE60: 0.0006 | CF60: 0.0016 | CG60: 0.0143 | CX60: 450 | CY60: 1.093 | CZ60: 1.129 | DE60: 450 | DF60: 1.23 | DG60: 1.255
C61: Cost of a Fatality | E61: =ROUND(9600000*(1.1164/1.099)*ValueUpdate,-5) -> 9800000 | F61: $/event | H61: 12 | S61: Health (Mortality Reduction) | AH61: Children <16 | AJ61: 1.57 | AK61: 1.1 | AL61: 1.12 | AR61: 54 | AS61: 0.0274 | AT61: 0.085 | AY61: ($/accident) | BG61: (rate with passing lane/rate without passing lane) | BP61: 53 | BQ61: 1.3061 | BR61: 295.6 | BS61: 0.1476 | BT61: 0.0016 | BU61: 0.003 | BV61: 0.0434 | CA61: 53 | CB61: 0.3859 | CC61: 164.6536 | CD61: 0.0316 | CE61: 0.0006 | CF61: 0.0016 | CG61: 0.0144
T62: Percentage of Cyclists Aged 16-64 | U62: =IF(ProjLoc=1,AJ51,IF(ProjLoc=2,AK51,AL51)) -> 0.66 | V62: % | X62: 26 | AG62: Walking | AH62: Adults | AJ62: 0.65 | AK62: 0.77 | AL62: 0.69 | AR62: 55 | AS62: 0.0275 | AT62: 0.0858 | BP62: 54 | BQ62: 1.3004 | BR62: 297.6679 | BS62: 0.1485 | BT62: 0.0016 | BU62: 0.003 | BV62: 0.0437 | CA62: 54 | CB62: 0.3822 | CC62: 165.8052 | CD62: 0.0316 | CE62: 0.0006 | CF62: 0.0017 | CG62: 0.0144
C63: Cost of an Injury | T63: Percentage of Pedestrians Aged 16-74 | U63: =IF(ProjLoc=1,AJ52,IF(ProjLoc=2,AK52,AL52)) -> 0.7 | V63: % | X63: 26 | AH63: Children <16 | AJ63: 0.6 | AK63: 0.59 | AL63: 0.57 | AR63: 56 | AS63: 0.0279 | AT63: 0.0839 | AY63: Accident Type | AZ63: Urban | BA63: Suburban | BB63: Rural | BC63: Average | BG63: Minimum ADT | BH63: Fatality | BI63: Injury | BJ63: PDO | BP63: 55 | BQ63: 1.2947 | BR63: 299.7358 | BS63: 0.1494 | BT63: 0.0017 | BU63: 0.003 | BV63: 0.0439 | CA63: 55 | CB63: 0.3785 | CC63: 166.9569 | CD63: 0.0316 | CE63: 0.0006 | CF63: 0.0017 | CG63: 0.0145 | CW63: Source: Texas Transportation Institute, 1994 | DD63: Source: ARRB Research Board TR VOC Model
D64: Level A (Severe) | E64: =ROUND(459120*(1.1164/1.099)*ValueUpdate,-2) -> 466400 | F64: $/event | H64: 12 | AR64: 57 | AS64: 0.0283 | AT64: 0.082 | AY64: Fatal Accident | AZ64: =ROUND(FatValue*AZ26+(InjAValue*AZ$12+InjBValue*AZ$13+InjCValue*AZ$14)*AZ33+NoInjValue*AZ41,-5) -> 10800000 | BA64: =ROUND(FatValue*BA26+(InjAValue*BA$12+InjBValue*BA$13+InjCValue*BA$14)*BA33+NoInjValue*BA41,-5) -> 10700000 | BB64: =ROUND(FatValue*BB26+(InjAValue*BB$12+InjBValue*BB$13+InjCValue*BB$14)*BB33+NoInjValue*BB41,-5) -> 11300000 | BC64: =ROUND(FatValue*BC26+(InjAValue*BC$12+InjBValue*BC$13+InjCValue*BC$14)*BC33+NoInjValue*BC41,-5) -> 11000000 | BG64: 0 | BH64: 0.25 | BI64: 0.694 | BJ64: 0.926 | BP64: 56 | BQ64: 1.2785 | BR64: 303.633 | BS64: 0.1482 | BT64: 0.0017 | BU64: 0.0031 | BV64: 0.0439 | CA64: 56 | CB64: 0.3749 | CC64: 169.1785 | CD64: 0.0315 | CE64: 0.0007 | CF64: 0.0017 | CG64: 0.0147
D65: Level B (Moderate) | E65: =ROUND(125050*(1.1164/1.099)*ValueUpdate,-2) -> 127000 | F65: $/event | H65: 12 | T65: Percentage Reduction in Mortality per 365 Annual Cycling Miles | U65: 0.045 | V65: % | X65: 27 | AR65: 58 | AS65: 0.0286 | AT65: 0.0802 | AY65: Injury Accident | AZ65: =ROUND((InjAValue*AZ$12+InjBValue*AZ$13+InjCValue*AZ$14)*AZ34+NoInjValue*AZ42,-2) -> 148800 | BA65: =ROUND((InjAValue*BA$12+InjBValue*BA$13+InjCValue*BA$14)*BA34+NoInjValue*BA42,-2) -> 148600 | BB65: =ROUND((InjAValue*BB$12+InjBValue*BB$13+InjCValue*BB$14)*BB34+NoInjValue*BB42,-2) -> 154200 | BC65: =ROUND((InjAValue*BC$12+InjBValue*BC$13+InjCValue*BC$14)*BC34+NoInjValue*BC42,-2) -> 149300 | BG65: 5000 | BH65: 0.192 | BI65: 0.803 | BJ65: 0.965 | BP65: 57 | BQ65: 1.2623 | BR65: 307.5302 | BS65: 0.1469 | BT65: 0.0017 | BU65: 0.0031 | BV65: 0.0439 | CA65: 57 | CB65: 0.3712 | CC65: 171.4 | CD65: 0.0314 | CE65: 0.0007 | CF65: 0.0017 | CG65: 0.0149
D66: Level C (Minor) | E66: =ROUND(63854*(1.1164/1.099)*ValueUpdate,-2) -> 64900 | F66: $/event | H66: 12 | T66: Percentage Reduction in Mortality per 365 Annual Walking Miles | U66: 0.09 | V66: % | X66: 27 | AG66: TRIP PURPOSE FOR ACTIVE TRANSPORTATION TRIPS | AR66: 59 | AS66: 0.029 | AT66: 0.0783 | AY66: PDO Accident | AZ66: =ROUND(NoInjValue*AZ43*2,-2) -> 9700 | BA66: =ROUND(NoInjValue*BA43*2,-2) -> 11000 | BB66: =ROUND(NoInjValue*BB43*2,-2) -> 8600 | BC66: =ROUND(NoInjValue*BC43*2,-2) -> 10600 | BG66: 10000 | BH66: 0.84 | BI66: 0.577 | BJ66: 0.978 | BP66: 58 | BQ66: 1.246 | BR66: 311.4274 | BS66: 0.1457 | BT66: 0.0017 | BU66: 0.0031 | BV66: 0.0439 | CA66: 58 | CB66: 0.3676 | CC66: 173.6216 | CD66: 0.0313 | CE66: 0.0007 | CF66: 0.0017 | CG66: 0.0151
AG67: (percent of trips) | AR67: 60 | AS67: 0.0293 | AT67: 0.0764 | AY67: All Types | AZ67: =ROUND(AZ50*AZ64+AZ51*AZ65+AZ52*AZ66,-2) -> 185600 | BA67: =ROUND(BA50*BA64+BA51*BA65+BA52*BA66,-2) -> 104600 | BB67: =ROUND(BB50*BB64+BB51*BB65+BB52*BB66,-2) -> 281100 | BC67: =ROUND(BC50*BC64+BC51*BC65+BC52*BC66,-2) -> 135800 | BP67: 59 | BQ67: 1.2298 | BR67: 315.3246 | BS67: 0.1445 | BT67: 0.0017 | BU67: 0.0032 | BV67: 0.0439 | CA67: 59 | CB67: 0.364 | CC67: 175.8432 | CD67: 0.0312 | CE67: 0.0007 | CF67: 0.0018 | CG67: 0.0152
C68: Cost of Property Damage | E68: =ROUND(2444*(1.1164/1.0088)*ValueUpdate,-2) -> 2700 | F68: $/event | H68: 13 | T68: Morality Rate - All Causes (Aged 20-64) | U68: 266 | V68: #/100,000 people | X68: 28 | AR68: 61 | AS68: 0.03 | AT68: 0.0756 | BP68: 60 | BQ68: 1.2136 | BR68: 319.2217 | BS68: 0.1432 | BT68: 0.0017 | BU68: 0.0032 | BV68: 0.0439 | CA68: 60 | CB68: 0.3603 | CC68: 178.0647 | CD68: 0.0311 | CE68: 0.0007 | CF68: 0.0018 | CG68: 0.0154
T69: Morality Rate - All Causes (Aged 20-74) | U69: 395 | V69: #/100,000 people | X69: 28 | AJ69: Urban | AR69: 62 | AS69: 0.0306 | AT69: 0.0749 | BP69: 61 | BQ69: 1.221 | BR69: 326.2862 | BS69: 0.1444 | BT69: 0.0018 | BU69: 0.0033 | BV69: 0.0453 | CA69: 61 | CB69: 0.3639 | CC69: 181.7269 | CD69: 0.032 | CE69: 0.0007 | CF69: 0.0018 | CG69: 0.0161
C70: Cost of Highway Accident | AG70: Mode | AH70: Trip Purpose | AJ70: South | AK70: North | AL70: Rural | AR70: 63 | AS70: 0.0312 | AT70: 0.0741 | AX70: Source: Combination of above four tables | BF70: Source: Taylor and Jain, 1991 | BP70: 62 | BQ70: 1.2284 | BR70: 333.3507 | BS70: 0.1455 | BT70: 0.0018 | BU70: 0.0033 | BV70: 0.0468 | CA70: 62 | CB70: 0.3676 | CC70: 185.3891 | CD70: 0.0329 | CE70: 0.0007 | CF70: 0.0019 | CG70: 0.0168
D71: Fatal Accident | E71: =IF(ProjLoc=3,HwyFatCostR,HwyFatCostU) -> 10800000 | F71: $/accident | AG71: Cycling | AH71: Commuting | AJ71: 0.08 | AK71: 0.11 | AL71: 0.07 | AR71: 64 | AS71: 0.0319 | AT71: 0.0734 | BP71: 63 | BQ71: 1.2358 | BR71: 340.4152 | BS71: 0.1467 | BT71: 0.0018 | BU71: 0.0034 | BV71: 0.0483 | CA71: 63 | CB71: 0.3712 | CC71: 189.0513 | CD71: 0.0338 | CE71: 0.0007 | CF71: 0.0019 | CG71: 0.0175
D72: Injury Accident | E72: =IF(ProjLoc=3,HwyInjCostR,HwyInjCostU) -> 148800 | F72: $/accident | R72: Sources: 19) 2000-2001 California Statewide Travel Survey, 20) Hood et al., 2011, 21) WHO HEAT Model, 2012, 22) Heuman et al., 2005, | AH72: Recreation | AJ72: 0.15 | AK72: 0.13 | AL72: 0.15 | AR72: 65 | AS72: 0.0325 | AT72: 0.0726 | BP72: 64 | BQ72: 1.2432 | BR72: 347.4797 | BS72: 0.1479 | BT72: 0.0018 | BU72: 0.0035 | BV72: 0.0497 | CA72: 64 | CB72: 0.3748 | CC72: 192.7134 | CD72: 0.0347 | CE72: 0.0008 | CF72: 0.0019 | CG72: 0.0182
D73: PDO Accident | E73: =IF(ProjLoc=3,HwyPDOCostR,HwyPDOCostU) -> 9700 | F73: $/accident | R73: 23) CDC, 2007, 24) UK TAG, 2014, 25) WHO, 2003, 26) 2010-2012 California Household Transporation Survey, 27) WHO HEAT Model, 2016, | AH73: Other Destination | AJ73: 0.77 | AK73: 0.76 | AL73: 0.78 | AR73: 66 | AS73: 0.0331 | AT73: 0.0765 | BP73: 65 | BQ73: 1.2506 | BR73: 354.5442 | BS73: 0.149 | BT73: 0.0019 | BU73: 0.0036 | BV73: 0.0512 | CA73: 65 | CB73: 0.3784 | CC73: 196.3756 | CD73: 0.0356 | CE73: 0.0008 | CF73: 0.002 | CG73: 0.0189
D74: Average Cost | E74: =IF(ProjLoc=3,AvgAccCostR,AvgAccCostU) -> 185600 | F74: $/accident | R74: 28) California Department of Health, 2010-2014 Death Rates, Table 5.2 | AG74: Walking | AH74: Commuting | AJ74: 0.05 | AK74: 0.09 | AL74: 0.04 | AR74: 67 | AS74: 0.0337 | AT74: 0.0804 | BP74: 66 | BQ74: 1.2948 | BR74: 361.2833 | BS74: 0.1524 | BT74: 0.0019 | BU74: 0.0036 | BV74: 0.0537 | CA74: 66 | CB74: 0.3804 | CC74: 200.1791 | CD74: 0.035 | CE74: 0.0008 | CF74: 0.002 | CG74: 0.0191
AH75: Recreation | AJ75: 0.1 | AK75: 0.1 | AL75: 0.15 | AR75: 68 | AS75: 0.0343 | AT75: 0.0842 | BP75: 67 | BQ75: 1.3391 | BR75: 368.0223 | BS75: 0.1559 | BT75: 0.002 | BU75: 0.0037 | BV75: 0.0563 | CA75: 67 | CB75: 0.3823 | CC75: 203.9827 | CD75: 0.0344 | CE75: 0.0008 | CF75: 0.002 | CG75: 0.0194
C76: Statewide Highway Accident Rates | AH76: Other Destination | AJ76: 0.85 | AK76: 0.81 | AL76: 0.81 | AR76: 69 | AS76: 0.035 | AT76: 0.0881 | BP76: 68 | BQ76: 1.3833 | BR76: 374.7614 | BS76: 0.1593 | BT76: 0.002 | BU76: 0.0038 | BV76: 0.0588 | CA76: 68 | CB76: 0.3843 | CC76: 207.7862 | CD76: 0.0338 | CE76: 0.0008 | CF76: 0.0021 | CG76: 0.0197
D77: Fatal Accident | E77: =ROUND(1105/178281.76,3) -> 0.006 | F77: per mil veh-mi | H77: 14 | AR77: 70 | AS77: 0.0356 | AT77: 0.092 | BP77: 69 | BQ77: 1.4275 | BR77: 381.5004 | BS77: 0.1627 | BT77: 0.002 | BU77: 0.0038 | BV77: 0.0613 | CA77: 69 | CB77: 0.3863 | CC77: 211.5897 | CD77: 0.0333 | CE77: 0.0008 | CF77: 0.0021 | CG77: 0.0199
D78: Injury Accident | E78: =ROUND(51378/178281.76,2) -> 0.29 | F78: per mil veh-mi | H78: 14 | BP78: 70 | BQ78: 1.4718 | BR78: 388.2395 | BS78: 0.1661 | BT78: 0.0021 | BU78: 0.0039 | BV78: 0.0638 | CA78: 70 | CB78: 0.3882 | CC78: 215.3932 | CD78: 0.0327 | CE78: 0.0008 | CF78: 0.0022 | CG78: 0.0202
D79: PDO Accident | E79: =ROUND(98338/178281.76,2) -> 0.55 | F79: per mil veh-mi | H79: 14 | AF79: Source: California Department of Transportation, 2010-2012 California Household Travel | AQ79: * Includes motorcycles & motorhomes
D80: Non-Freeway | E80: 1.05 | F80: per mil veh-mi | H80: 15 | AF80: Survey database, 2012 | AQ80: Note: Five mph is best estimate for idling | BO80: Truck | BP80: 0 | BQ80: 0.884 | BR80: 15.8943 | BS80: 0.1698 | BT80: 0.0004 | BU80: 0.0002 | BV80: 0.0746 | BZ80: Truck | CA80: 0 | CB80: 0.2015 | CC80: 9.6105 | CD80: 0.162 | CE80: 0.0002 | CF80: 0.0001 | CG80: 0.0118
BP81: 5 | BQ81: 5.1981 | BR81: 2078.7487 | BS81: 6.0007 | BT81: 0.0866 | BU81: 0.0196 | BV81: 0.8863 | CA81: 5 | CB81: 3.5072 | CC81: 1907.1744 | CD81: 6.8607 | CE81: 0.011 | CF81: 0.0168 | CG81: 0.3209
AQ82: Source: California Air Resources Board, | BP82: 6 | BQ82: 4.9646 | BR82: 2025.227 | BS82: 5.9079 | BT82: 0.0866 | BU82: 0.0191 | BV82: 0.8538 | CA82: 6 | CB82: 3.3251 | CC82: 1859.4917 | CD82: 6.5675 | CE82: 0.0105 | CF82: 0.0165 | CG82: 0.3064
B83: Sources: 1) Office of Management and Budget (OMB), 2) Review of OMB and State | AQ83: EMFAC2014, 2016 & 2036 average | BP83: 7 | BQ83: 4.7312 | BR83: 1971.7054 | BS83: 5.8151 | BT83: 0.0867 | BU83: 0.0186 | BV83: 0.8213 | CA83: 7 | CB83: 3.1431 | CC83: 1811.8091 | CD83: 6.2744 | CE83: 0.0101 | CF83: 0.0161 | CG83: 0.2919
B84: Treasurer's Office data, 3) Bureau of Labor Statistics (BLS) OES, 4) BLS Employment | BP84: 8 | BQ84: 4.4977 | BR84: 1918.1838 | BS84: 5.7223 | BT84: 0.0868 | BU84: 0.0181 | BV84: 0.7888 | CA84: 8 | CB84: 2.961 | CC84: 1764.1265 | CD84: 5.9812 | CE84: 0.0096 | CF84: 0.0157 | CG84: 0.2774
B85: Cost Index, 5) USDOT Department Guidance, 6) California Department of Transportation | BP85: 9 | BQ85: 4.2642 | BR85: 1864.6622 | BS85: 5.6295 | BT85: 0.0869 | BU85: 0.0176 | BV85: 0.7563 | CA85: 9 | CB85: 2.779 | CC85: 1716.4439 | CD85: 5.688 | CE85: 0.0092 | CF85: 0.0153 | CG85: 0.2629
B86: TSI and Traffic Operations, 7) IDAS model, 8) AAA Daily Fuel Gauge Report, 9) California | BP86: 10 | BQ86: 4.0308 | BR86: 1811.1406 | BS86: 5.5367 | BT86: 0.0869 | BU86: 0.0171 | BV86: 0.7239 | CA86: 10 | CB86: 2.597 | CC86: 1668.7613 | CD86: 5.3948 | CE86: 0.0087 | CF86: 0.015 | CG86: 0.2484
B87: Board of Equalization, 10) AAA Your Driving Costs, 11) American Transportation Research | BP87: 11 | BQ87: 3.8318 | BR87: 1684.0729 | BS87: 5.0222 | BT87: 0.0789 | BU87: 0.016 | BV87: 0.6511 | CA87: 11 | CB87: 2.3246 | CC87: 1549.8034 | CD87: 4.7725 | CE87: 0.0083 | CF87: 0.014 | CG87: 0.2253
B88: Institute, 12) USDOT VSL, 13) NHTSA, 14) TASAS summary 2013, 15) TASAS summary 2009 | BP88: 12 | BQ88: 3.6328 | BR88: 1557.0053 | BS88: 4.5078 | BT88: 0.0709 | BU88: 0.0149 | BV88: 0.5784 | CA88: 12 | CB88: 2.0522 | CC88: 1430.8454 | CD88: 4.1501 | CE88: 0.0079 | CF88: 0.013 | CG88: 0.2023
BP89: 13 | BQ89: 3.4338 | BR89: 1429.9376 | BS89: 3.9933 | BT89: 0.0628 | BU89: 0.0137 | BV89: 0.5056 | CA89: 13 | CB89: 1.7799 | CC89: 1311.8875 | CD89: 3.5278 | CE89: 0.0075 | CF89: 0.0121 | CG89: 0.1792
BP90: 14 | BQ90: 3.2348 | BR90: 1302.8699 | BS90: 3.4788 | BT90: 0.0548 | BU90: 0.0126 | BV90: 0.4329 | CA90: 14 | CB90: 1.5075 | CC90: 1192.9296 | CD90: 2.9055 | CE90: 0.0071 | CF90: 0.0111 | CG90: 0.1561
BP91: 15 | BQ91: 3.0358 | BR91: 1175.8022 | BS91: 2.9643 | BT91: 0.0468 | BU91: 0.0114 | BV91: 0.3601 | CA91: 15 | CB91: 1.2352 | CC91: 1073.9717 | CD91: 2.2831 | CE91: 0.0067 | CF91: 0.0102 | CG91: 0.1331
BP92: 16 | BQ92: 2.9594 | BR92: 1149.78 | BS92: 2.8981 | BT92: 0.0452 | BU92: 0.0112 | BV92: 0.3364 | CA92: 16 | CB92: 1.1707 | CC92: 1044.4852 | CD92: 2.1133 | CE92: 0.0063 | CF92: 0.0099 | CG92: 0.1231
BP93: 17 | BQ93: 2.883 | BR93: 1123.7577 | BS93: 2.8318 | BT93: 0.0436 | BU93: 0.011 | BV93: 0.3126 | CA93: 17 | CB93: 1.1062 | CC93: 1014.9987 | CD93: 1.9435 | CE93: 0.0059 | CF93: 0.0097 | CG93: 0.113
BP94: 18 | BQ94: 2.8066 | BR94: 1097.7354 | BS94: 2.7656 | BT94: 0.042 | BU94: 0.0107 | BV94: 0.2888 | CA94: 18 | CB94: 1.0418 | CC94: 985.5122 | CD94: 1.7737 | CE94: 0.0055 | CF94: 0.0094 | CG94: 0.103
BP95: 19 | BQ95: 2.7302 | BR95: 1071.7131 | BS95: 2.6994 | BT95: 0.0405 | BU95: 0.0105 | BV95: 0.265 | CA95: 19 | CB95: 0.9773 | CC95: 956.0257 | CD95: 1.6039 | CE95: 0.0051 | CF95: 0.0092 | CG95: 0.093
BP96: 20 | BQ96: 2.6538 | BR96: 1045.6908 | BS96: 2.6332 | BT96: 0.0389 | BU96: 0.0102 | BV96: 0.2413 | CA96: 20 | CB96: 0.9128 | CC96: 926.5391 | CD96: 1.4341 | CE96: 0.0047 | CF96: 0.0089 | CG96: 0.083
BP97: 21 | BQ97: 2.6003 | BR97: 1002.0956 | BS97: 2.4211 | BT97: 0.035 | BU97: 0.0098 | BV97: 0.2216 | CA97: 21 | CB97: 0.8778 | CC97: 874.5162 | CD97: 1.253 | CE97: 0.0044 | CF97: 0.0084 | CG97: 0.0748
BP98: 22 | BQ98: 2.5468 | BR98: 958.5005 | BS98: 2.2091 | BT98: 0.0311 | BU98: 0.0094 | BV98: 0.2019 | CA98: 22 | CB98: 0.8428 | CC98: 822.4933 | CD98: 1.0718 | CE98: 0.0041 | CF98: 0.0079 | CG98: 0.0666
BP99: 23 | BQ99: 2.4933 | BR99: 914.9053 | BS99: 1.9971 | BT99: 0.0272 | BU99: 0.009 | BV99: 0.1822 | CA99: 23 | CB99: 0.8077 | CC99: 770.4704 | CD99: 0.8907 | CE99: 0.0038 | CF99: 0.0074 | CG99: 0.0584
BP100: 24 | BQ100: 2.4398 | BR100: 871.3101 | BS100: 1.785 | BT100: 0.0233 | BU100: 0.0086 | BV100: 0.1626 | CA100: 24 | CB100: 0.7727 | CC100: 718.4476 | CD100: 0.7096 | CE100: 0.0035 | CF100: 0.0069 | CG100: 0.0502
BP101: 25 | BQ101: 2.3864 | BR101: 827.715 | BS101: 1.573 | BT101: 0.0194 | BU101: 0.0081 | BV101: 0.1429 | CA101: 25 | CB101: 0.7377 | CC101: 666.4247 | CD101: 0.5284 | CE101: 0.0031 | CF101: 0.0064 | CG101: 0.042
BP102: 26 | BQ102: 2.344 | BR102: 810.584 | BS102: 1.532 | BT102: 0.0187 | BU102: 0.008 | BV102: 0.1364 | CA102: 26 | CB102: 0.7207 | CC102: 654.1183 | CD102: 0.4949 | CE102: 0.003 | CF102: 0.0063 | CG102: 0.0399
BP103: 27 | BQ103: 2.3017 | BR103: 793.453 | BS103: 1.4911 | BT103: 0.018 | BU103: 0.0078 | BV103: 0.1299 | CA103: 27 | CB103: 0.7038 | CC103: 641.812 | CD103: 0.4613 | CE103: 0.0029 | CF103: 0.0062 | CG103: 0.0378
BP104: 28 | BQ104: 2.2593 | BR104: 776.322 | BS104: 1.4501 | BT104: 0.0173 | BU104: 0.0076 | BV104: 0.1234 | CA104: 28 | CB104: 0.6869 | CC104: 629.5057 | CD104: 0.4278 | CE104: 0.0028 | CF104: 0.0061 | CG104: 0.0358
BP105: 29 | BQ105: 2.217 | BR105: 759.191 | BS105: 1.4092 | BT105: 0.0167 | BU105: 0.0075 | BV105: 0.1169 | CA105: 29 | CB105: 0.67 | CC105: 617.1994 | CD105: 0.3942 | CE105: 0.0026 | CF105: 0.006 | CG105: 0.0337
BP106: 30 | BQ106: 2.1747 | BR106: 742.06 | BS106: 1.3682 | BT106: 0.016 | BU106: 0.0073 | BV106: 0.1104 | CA106: 30 | CB106: 0.6531 | CC106: 604.8931 | CD106: 0.3607 | CE106: 0.0025 | CF106: 0.0058 | CG106: 0.0316
BP107: 31 | BQ107: 2.1326 | BR107: 752.0419 | BS107: 1.444 | BT107: 0.0168 | BU107: 0.0074 | BV107: 0.1096 | CA107: 31 | CB107: 0.6458 | CC107: 624.5823 | CD107: 0.3646 | CE107: 0.0025 | CF107: 0.006 | CG107: 0.0318
BP108: 32 | BQ108: 2.0905 | BR108: 762.0238 | BS108: 1.5198 | BT108: 0.0177 | BU108: 0.0075 | BV108: 0.1087 | CA108: 32 | CB108: 0.6386 | CC108: 644.2715 | CD108: 0.3685 | CE108: 0.0026 | CF108: 0.0062 | CG108: 0.032
BP109: 33 | BQ109: 2.0484 | BR109: 772.0057 | BS109: 1.5955 | BT109: 0.0185 | BU109: 0.0075 | BV109: 0.1079 | CA109: 33 | CB109: 0.6313 | CC109: 663.9607 | CD109: 0.3725 | CE109: 0.0026 | CF109: 0.0063 | CG109: 0.0322
BP110: 34 | BQ110: 2.0064 | BR110: 781.9877 | BS110: 1.6713 | BT110: 0.0194 | BU110: 0.0076 | BV110: 0.1071 | CA110: 34 | CB110: 0.6241 | CC110: 683.6499 | CD110: 0.3764 | CE110: 0.0026 | CF110: 0.0065 | CG110: 0.0324
BP111: 35 | BQ111: 1.9643 | BR111: 791.9696 | BS111: 1.7471 | BT111: 0.0202 | BU111: 0.0077 | BV111: 0.1062 | CA111: 35 | CB111: 0.6168 | CC111: 703.3391 | CD111: 0.3803 | CE111: 0.0026 | CF111: 0.0067 | CG111: 0.0326
BP112: 36 | BQ112: 1.9353 | BR112: 788.7558 | BS112: 1.7522 | BT112: 0.0206 | BU112: 0.0077 | BV112: 0.1039 | CA112: 36 | CB112: 0.5989 | CC112: 704.5951 | CD112: 0.3666 | CE112: 0.0026 | CF112: 0.0067 | CG112: 0.0314
BP113: 37 | BQ113: 1.9064 | BR113: 785.542 | BS113: 1.7573 | BT113: 0.021 | BU113: 0.0076 | BV113: 0.1015 | CA113: 37 | CB113: 0.5809 | CC113: 705.8511 | CD113: 0.3529 | CE113: 0.0026 | CF113: 0.0067 | CG113: 0.0302
BP114: 38 | BQ114: 1.8774 | BR114: 782.3282 | BS114: 1.7624 | BT114: 0.0213 | BU114: 0.0076 | BV114: 0.0991 | CA114: 38 | CB114: 0.5629 | CC114: 707.1071 | CD114: 0.3392 | CE114: 0.0026 | CF114: 0.0067 | CG114: 0.0291
BP115: 39 | BQ115: 1.8485 | BR115: 779.1144 | BS115: 1.7676 | BT115: 0.0217 | BU115: 0.0076 | BV115: 0.0967 | CA115: 39 | CB115: 0.545 | CC115: 708.363 | CD115: 0.3255 | CE115: 0.0025 | CF115: 0.0067 | CG115: 0.0279
BP116: 40 | BQ116: 1.8195 | BR116: 775.9006 | BS116: 1.7727 | BT116: 0.0221 | BU116: 0.0075 | BV116: 0.0944 | CA116: 40 | CB116: 0.527 | CC116: 709.619 | CD116: 0.3118 | CE116: 0.0025 | CF116: 0.0067 | CG116: 0.0267
BP117: 41 | BQ117: 1.7831 | BR117: 783.2454 | BS117: 1.8215 | BT117: 0.0228 | BU117: 0.0076 | BV117: 0.0934 | CA117: 41 | CB117: 0.5118 | CC117: 720.8037 | CD117: 0.3077 | CE117: 0.0025 | CF117: 0.0069 | CG117: 0.0262
BP118: 42 | BQ118: 1.7466 | BR118: 790.5902 | BS118: 1.8703 | BT118: 0.0234 | BU118: 0.0077 | BV118: 0.0923 | CA118: 42 | CB118: 0.4965 | CC118: 731.9884 | CD118: 0.3036 | CE118: 0.0026 | CF118: 0.007 | CG118: 0.0257
BP119: 43 | BQ119: 1.7102 | BR119: 797.935 | BS119: 1.9191 | BT119: 0.0241 | BU119: 0.0077 | BV119: 0.0913 | CA119: 43 | CB119: 0.4813 | CC119: 743.1731 | CD119: 0.2995 | CE119: 0.0026 | CF119: 0.0071 | CG119: 0.0252
BP120: 44 | BQ120: 1.6737 | BR120: 805.2797 | BS120: 1.9679 | BT120: 0.0248 | BU120: 0.0078 | BV120: 0.0903 | CA120: 44 | CB120: 0.466 | CC120: 754.3578 | CD120: 0.2954 | CE120: 0.0026 | CF120: 0.0072 | CG120: 0.0247
BP121: 45 | BQ121: 1.6373 | BR121: 812.6245 | BS121: 2.0168 | BT121: 0.0255 | BU121: 0.0079 | BV121: 0.0893 | CA121: 45 | CB121: 0.4508 | CC121: 765.5425 | CD121: 0.2913 | CE121: 0.0027 | CF121: 0.0073 | CG121: 0.0242
BP122: 46 | BQ122: 1.6085 | BR122: 809.0851 | BS122: 2.0513 | BT122: 0.0259 | BU122: 0.0078 | BV122: 0.0885 | CA122: 46 | CB122: 0.4344 | CC122: 765.4447 | CD122: 0.2853 | CE122: 0.0027 | CF122: 0.0073 | CG122: 0.0234
BP123: 47 | BQ123: 1.5797 | BR123: 805.5456 | BS123: 2.0859 | BT123: 0.0264 | BU123: 0.0078 | BV123: 0.0876 | CA123: 47 | CB123: 0.4181 | CC123: 765.3468 | CD123: 0.2794 | CE123: 0.0027 | CF123: 0.0073 | CG123: 0.0226
BP124: 48 | BQ124: 1.551 | BR124: 802.0062 | BS124: 2.1205 | BT124: 0.0268 | BU124: 0.0078 | BV124: 0.0868 | CA124: 48 | CB124: 0.4017 | CC124: 765.249 | CD124: 0.2734 | CE124: 0.0028 | CF124: 0.0073 | CG124: 0.0218
BP125: 49 | BQ125: 1.5222 | BR125: 798.4667 | BS125: 2.155 | BT125: 0.0273 | BU125: 0.0078 | BV125: 0.086 | CA125: 49 | CB125: 0.3854 | CC125: 765.1511 | CD125: 0.2675 | CE125: 0.0028 | CF125: 0.0073 | CG125: 0.021
BP126: 50 | BQ126: 1.4935 | BR126: 794.9273 | BS126: 2.1896 | BT126: 0.0277 | BU126: 0.0077 | BV126: 0.0852 | CA126: 50 | CB126: 0.369 | CC126: 765.0533 | CD126: 0.2615 | CE126: 0.0028 | CF126: 0.0073 | CG126: 0.0202
BP127: 51 | BQ127: 1.4732 | BR127: 804.8722 | BS127: 2.2174 | BT127: 0.0293 | BU127: 0.0078 | BV127: 0.0851 | CA127: 51 | CB127: 0.3589 | CC127: 772.938 | CD127: 0.2554 | CE127: 0.0028 | CF127: 0.0074 | CG127: 0.0196
BP128: 52 | BQ128: 1.4529 | BR128: 814.8171 | BS128: 2.2453 | BT128: 0.0308 | BU128: 0.0079 | BV128: 0.085 | CA128: 52 | CB128: 0.3488 | CC128: 780.8227 | CD128: 0.2493 | CE128: 0.0028 | CF128: 0.0075 | CG128: 0.019
BP129: 53 | BQ129: 1.4326 | BR129: 824.762 | BS129: 2.2731 | BT129: 0.0323 | BU129: 0.008 | BV129: 0.0849 | CA129: 53 | CB129: 0.3388 | CC129: 788.7075 | CD129: 0.2433 | CE129: 0.0028 | CF129: 0.0076 | CG129: 0.0184
BP130: 54 | BQ130: 1.4124 | BR130: 834.7069 | BS130: 2.301 | BT130: 0.0338 | BU130: 0.0081 | BV130: 0.0849 | CA130: 54 | CB130: 0.3287 | CC130: 796.5922 | CD130: 0.2372 | CE130: 0.0028 | CF130: 0.0077 | CG130: 0.0178
BP131: 55 | BQ131: 1.3921 | BR131: 844.6518 | BS131: 2.3288 | BT131: 0.0353 | BU131: 0.0082 | BV131: 0.0848 | CA131: 55 | CB131: 0.3186 | CC131: 804.4769 | CD131: 0.2311 | CE131: 0.0028 | CF131: 0.0077 | CG131: 0.0171
BP132: 56 | BQ132: 1.4034 | BR132: 827.1954 | BS132: 2.2073 | BT132: 0.0345 | BU132: 0.008 | BV132: 0.0832 | CA132: 56 | CB132: 0.3134 | CC132: 779.8106 | CD132: 0.2173 | CE132: 0.0027 | CF132: 0.0075 | CG132: 0.0163
BP133: 57 | BQ133: 1.4147 | BR133: 809.7391 | BS133: 2.0858 | BT133: 0.0338 | BU133: 0.0079 | BV133: 0.0815 | CA133: 57 | CB133: 0.3082 | CC133: 755.1442 | CD133: 0.2034 | CE133: 0.0026 | CF133: 0.0073 | CG133: 0.0154
BP134: 58 | BQ134: 1.426 | BR134: 792.2827 | BS134: 1.9643 | BT134: 0.033 | BU134: 0.0077 | BV134: 0.0799 | CA134: 58 | CB134: 0.303 | CC134: 730.4779 | CD134: 0.1896 | CE134: 0.0025 | CF134: 0.007 | CG134: 0.0146
BP135: 59 | BQ135: 1.4373 | BR135: 774.8264 | BS135: 1.8428 | BT135: 0.0322 | BU135: 0.0076 | BV135: 0.0783 | CA135: 59 | CB135: 0.2978 | CC135: 705.8115 | CD135: 0.1758 | CE135: 0.0024 | CF135: 0.0068 | CG135: 0.0137
BP136: 60 | BQ136: 1.4486 | BR136: 757.37 | BS136: 1.7213 | BT136: 0.0314 | BU136: 0.0074 | BV136: 0.0766 | CA136: 60 | CB136: 0.2926 | CC136: 681.1452 | CD136: 0.1619 | CE136: 0.0023 | CF136: 0.0066 | CG136: 0.0129
BP137: 61 | BQ137: 1.4697 | BR137: 751.8344 | BS137: 1.6368 | BT137: 0.029 | BU137: 0.0074 | BV137: 0.0756 | CA137: 61 | CB137: 0.2967 | CC137: 666.116 | CD137: 0.1573 | CE137: 0.0023 | CF137: 0.0064 | CG137: 0.0128
BP138: 62 | BQ138: 1.4909 | BR138: 746.2988 | BS138: 1.5524 | BT138: 0.0265 | BU138: 0.0073 | BV138: 0.0745 | CA138: 62 | CB138: 0.3008 | CC138: 651.0868 | CD138: 0.1527 | CE138: 0.0022 | CF138: 0.0063 | CG138: 0.0127
BP139: 63 | BQ139: 1.512 | BR139: 740.7632 | BS139: 1.468 | BT139: 0.0241 | BU139: 0.0073 | BV139: 0.0734 | CA139: 63 | CB139: 0.305 | CC139: 636.0575 | CD139: 0.1481 | CE139: 0.0022 | CF139: 0.0062 | CG139: 0.0126
BP140: 64 | BQ140: 1.5332 | BR140: 735.2276 | BS140: 1.3836 | BT140: 0.0216 | BU140: 0.0072 | BV140: 0.0724 | CA140: 64 | CB140: 0.3091 | CC140: 621.0283 | CD140: 0.1434 | CE140: 0.0021 | CF140: 0.006 | CG140: 0.0125
BP141: 65 | BQ141: 1.5544 | BR141: 729.692 | BS141: 1.2992 | BT141: 0.0191 | BU141: 0.0072 | BV141: 0.0713 | CA141: 65 | CB141: 0.3132 | CC141: 605.9991 | CD141: 0.1388 | CE141: 0.0021 | CF141: 0.0059 | CG141: 0.0125
BP142: 66 | BQ142: 1.5252 | BR142: 769.9276 | BS142: 1.462 | BT142: 0.0203 | BU142: 0.0076 | BV142: 0.0735 | CA142: 66 | CB142: 0.3047 | CC142: 649.3239 | CD142: 0.1524 | CE142: 0.0022 | CF142: 0.0063 | CG142: 0.0133
BP143: 67 | BQ143: 1.4961 | BR143: 810.1633 | BS143: 1.6247 | BT143: 0.0214 | BU143: 0.0079 | BV143: 0.0757 | CA143: 67 | CB143: 0.2962 | CC143: 692.6487 | CD143: 0.166 | CE143: 0.0024 | CF143: 0.0067 | CG143: 0.0142
BP144: 68 | BQ144: 1.467 | BR144: 850.3989 | BS144: 1.7874 | BT144: 0.0226 | BU144: 0.0083 | BV144: 0.0778 | CA144: 68 | CB144: 0.2877 | CC144: 735.9736 | CD144: 0.1796 | CE144: 0.0026 | CF144: 0.0071 | CG144: 0.015
BP145: 69 | BQ145: 1.4378 | BR145: 890.6346 | BS145: 1.9502 | BT145: 0.0237 | BU145: 0.0087 | BV145: 0.08 | CA145: 69 | CB145: 0.2791 | CC145: 779.2984 | CD145: 0.1933 | CE145: 0.0027 | CF145: 0.0075 | CG145: 0.0159
BP146: 70 | BQ146: 1.4087 | BR146: 930.8702 | BS146: 2.1129 | BT146: 0.0248 | BU146: 0.0091 | BV146: 0.0822 | CA146: 70 | CB146: 0.2706 | CC146: 822.6232 | CD146: 0.2069 | CE146: 0.0029 | CF146: 0.0079 | CG146: 0.0167
BO148: Bus | BP148: 0 | BQ148: 0.9177 | BR148: 7.0526 | BS148: 0.1729 | BT148: 0.0001 | BU148: 0.0001 | BV148: 0.0589 | BZ148: Bus | CA148: 0 | CB148: 0.5851 | CC148: 9.1495 | CD148: 0.2924 | CE148: 0.0001 | CF148: 0.0001 | CG148: 0.0398
BP149: 5 | BQ149: 19.5716 | BR149: 3427.7169 | BS149: 22.0898 | BT149: 0.4156 | BU149: 0.0272 | BV149: 3.1109 | CA149: 5 | CB149: 9.8074 | CC149: 2999.6012 | CD149: 5.2921 | CE149: 0.0368 | CF149: 0.0239 | CG149: 0.387
BP150: 6 | BQ150: 18.614 | BR150: 3345.9708 | BS150: 21.1562 | BT150: 0.397 | BU150: 0.0267 | BV150: 2.9233 | CA150: 6 | CB150: 9.1892 | CC150: 2922.623 | CD150: 5.0912 | CE150: 0.0348 | CF150: 0.0234 | CG150: 0.3644
BP151: 7 | BQ151: 17.6564 | BR151: 3264.2247 | BS151: 20.2227 | BT151: 0.3785 | BU151: 0.0261 | BV151: 2.7357 | CA151: 7 | CB151: 8.571 | CC151: 2845.6447 | CD151: 4.8903 | CE151: 0.0329 | CF151: 0.0228 | CG151: 0.3417
BP152: 8 | BQ152: 16.6988 | BR152: 3182.4787 | BS152: 19.2892 | BT152: 0.36 | BU152: 0.0255 | BV152: 2.548 | CA152: 8 | CB152: 7.9529 | CC152: 2768.6665 | CD152: 4.6894 | CE152: 0.0309 | CF152: 0.0223 | CG152: 0.3191
BP153: 9 | BQ153: 15.7411 | BR153: 3100.7326 | BS153: 18.3556 | BT153: 0.3415 | BU153: 0.025 | BV153: 2.3604 | CA153: 9 | CB153: 7.3347 | CC153: 2691.6883 | CD153: 4.4886 | CE153: 0.0289 | CF153: 0.0218 | CG153: 0.2964
BP154: 10 | BQ154: 14.7835 | BR154: 3018.9865 | BS154: 17.4221 | BT154: 0.323 | BU154: 0.0244 | BV154: 2.1728 | CA154: 10 | CB154: 6.7166 | CC154: 2614.71 | CD154: 4.2877 | CE154: 0.027 | CF154: 0.0212 | CG154: 0.2738
BP155: 11 | BQ155: 13.9616 | BR155: 2881.3138 | BS155: 16.5063 | BT155: 0.3034 | BU155: 0.0232 | BV155: 1.9877 | CA155: 11 | CB155: 6.1349 | CC155: 2484.7098 | CD155: 3.9697 | CE155: 0.0252 | CF155: 0.0201 | CG155: 0.2512
BP156: 12 | BQ156: 13.1396 | BR156: 2743.6411 | BS156: 15.5905 | BT156: 0.2838 | BU156: 0.022 | BV156: 1.8026 | CA156: 12 | CB156: 5.5533 | CC156: 2354.7095 | CD156: 3.6517 | CE156: 0.0234 | CF156: 0.0189 | CG156: 0.2286
BP157: 13 | BQ157: 12.3177 | BR157: 2605.9684 | BS157: 14.6748 | BT157: 0.2642 | BU157: 0.0208 | BV157: 1.6175 | CA157: 13 | CB157: 4.9716 | CC157: 2224.7093 | CD157: 3.3337 | CE157: 0.0217 | CF157: 0.0178 | CG157: 0.206
BP158: 14 | BQ158: 11.4957 | BR158: 2468.2957 | BS158: 13.759 | BT158: 0.2446 | BU158: 0.0196 | BV158: 1.4324 | CA158: 14 | CB158: 4.39 | CC158: 2094.709 | CD158: 3.0157 | CE158: 0.0199 | CF158: 0.0166 | CG158: 0.1833
BP159: 15 | BQ159: 10.6738 | BR159: 2330.623 | BS159: 12.8432 | BT159: 0.225 | BU159: 0.0184 | BV159: 1.2474 | CA159: 15 | CB159: 3.8083 | CC159: 1964.7088 | CD159: 2.6977 | CE159: 0.0182 | CF159: 0.0154 | CG159: 0.1607
BP160: 16 | BQ160: 10.6231 | BR160: 2266.5116 | BS160: 12.7714 | BT160: 0.2193 | BU160: 0.0175 | BV160: 1.168 | CA160: 16 | CB160: 3.6564 | CC160: 1904.7758 | CD160: 2.5065 | CE160: 0.018 | CF160: 0.0145 | CG160: 0.1489
BP161: 17 | BQ161: 10.5725 | BR161: 2202.4002 | BS161: 12.6995 | BT161: 0.2136 | BU161: 0.0167 | BV161: 1.0887 | CA161: 17 | CB161: 3.5045 | CC161: 1844.8428 | CD161: 2.3153 | CE161: 0.0179 | CF161: 0.0135 | CG161: 0.137
BP162: 18 | BQ162: 10.5218 | BR162: 2138.2887 | BS162: 12.6277 | BT162: 0.2079 | BU162: 0.0158 | BV162: 1.0093 | CA162: 18 | CB162: 3.3526 | CC162: 1784.9098 | CD162: 2.1241 | CE162: 0.0178 | CF162: 0.0126 | CG162: 0.1251
BP163: 19 | BQ163: 10.4712 | BR163: 2074.1773 | BS163: 12.5558 | BT163: 0.2022 | BU163: 0.015 | BV163: 0.93 | CA163: 19 | CB163: 3.2006 | CC163: 1724.9767 | CD163: 1.9328 | CE163: 0.0176 | CF163: 0.0116 | CG163: 0.1133
BP164: 20 | BQ164: 10.4205 | BR164: 2010.0658 | BS164: 12.484 | BT164: 0.1965 | BU164: 0.0141 | BV164: 0.8506 | CA164: 20 | CB164: 3.0487 | CC164: 1665.0437 | CD164: 1.7416 | CE164: 0.0175 | CF164: 0.0107 | CG164: 0.1014
BP165: 21 | BQ165: 8.8915 | BR165: 1886.2217 | BS165: 11.1331 | BT165: 0.169 | BU165: 0.0139 | BV165: 0.7311 | CA165: 21 | CB165: 2.5386 | CC165: 1582.512 | CD165: 1.601 | CE165: 0.0148 | CF165: 0.0109 | CG165: 0.0929
BP166: 22 | BQ166: 7.3625 | BR166: 1762.3776 | BS166: 9.7823 | BT166: 0.1416 | BU166: 0.0137 | BV166: 0.6115 | CA166: 22 | CB166: 2.0285 | CC166: 1499.9803 | CD166: 1.4604 | CE166: 0.0122 | CF166: 0.0111 | CG166: 0.0843
BP167: 23 | BQ167: 5.8334 | BR167: 1638.5335 | BS167: 8.4314 | BT167: 0.1142 | BU167: 0.0134 | BV167: 0.492 | CA167: 23 | CB167: 1.5183 | CC167: 1417.4486 | CD167: 1.3197 | CE167: 0.0095 | CF167: 0.0114 | CG167: 0.0758
BP168: 24 | BQ168: 4.3044 | BR168: 1514.6894 | BS168: 7.0806 | BT168: 0.0868 | BU168: 0.0132 | BV168: 0.3724 | CA168: 24 | CB168: 1.0082 | CC168: 1334.9169 | CD168: 1.1791 | CE168: 0.0068 | CF168: 0.0116 | CG168: 0.0673
BP169: 25 | BQ169: 2.7754 | BR169: 1390.8452 | BS169: 5.7297 | BT169: 0.0594 | BU169: 0.013 | BV169: 0.2529 | CA169: 25 | CB169: 0.4981 | CC169: 1252.3852 | CD169: 1.0385 | CE169: 0.0041 | CF169: 0.0118 | CG169: 0.0587
BP170: 26 | BQ170: 2.7002 | BR170: 1372.4617 | BS170: 5.6623 | BT170: 0.0576 | BU170: 0.0128 | BV170: 0.2422 | CA170: 26 | CB170: 0.4776 | CC170: 1237.6052 | CD170: 0.9754 | CE170: 0.004 | CF170: 0.0117 | CG170: 0.0559
BP171: 27 | BQ171: 2.625 | BR171: 1354.0782 | BS171: 5.5949 | BT171: 0.0558 | BU171: 0.0126 | BV171: 0.2315 | CA171: 27 | CB171: 0.4571 | CC171: 1222.8253 | CD171: 0.9124 | CE171: 0.0039 | CF171: 0.0115 | CG171: 0.0531
BP172: 28 | BQ172: 2.5498 | BR172: 1335.6947 | BS172: 5.5274 | BT172: 0.0539 | BU172: 0.0124 | BV172: 0.2208 | CA172: 28 | CB172: 0.4366 | CC172: 1208.0454 | CD172: 0.8493 | CE172: 0.0038 | CF172: 0.0114 | CG172: 0.0503
BP173: 29 | BQ173: 2.4747 | BR173: 1317.3112 | BS173: 5.46 | BT173: 0.0521 | BU173: 0.0123 | BV173: 0.2102 | CA173: 29 | CB173: 0.4162 | CC173: 1193.2654 | CD173: 0.7863 | CE173: 0.0037 | CF173: 0.0113 | CG173: 0.0474
BP174: 30 | BQ174: 2.3995 | BR174: 1298.9277 | BS174: 5.3926 | BT174: 0.0503 | BU174: 0.0121 | BV174: 0.1995 | CA174: 30 | CB174: 0.3957 | CC174: 1178.4855 | CD174: 0.7233 | CE174: 0.0036 | CF174: 0.0111 | CG174: 0.0446
BP175: 31 | BQ175: 2.342 | BR175: 1282.7142 | BS175: 5.3486 | BT175: 0.0492 | BU175: 0.012 | BV175: 0.1916 | CA175: 31 | CB175: 0.3799 | CC175: 1165.3188 | CD175: 0.6873 | CE175: 0.0035 | CF175: 0.011 | CG175: 0.0424
BP176: 32 | BQ176: 2.2845 | BR176: 1266.5008 | BS176: 5.3047 | BT176: 0.048 | BU176: 0.0118 | BV176: 0.1836 | CA176: 32 | CB176: 0.3642 | CC176: 1152.1522 | CD176: 0.6513 | CE176: 0.0035 | CF176: 0.0109 | CG176: 0.0401
BP177: 33 | BQ177: 2.227 | BR177: 1250.2874 | BS177: 5.2608 | BT177: 0.0469 | BU177: 0.0117 | BV177: 0.1757 | CA177: 33 | CB177: 0.3485 | CC177: 1138.9856 | CD177: 0.6154 | CE177: 0.0034 | CF177: 0.0108 | CG177: 0.0379
BP178: 34 | BQ178: 2.1695 | BR178: 1234.0739 | BS178: 5.2169 | BT178: 0.0457 | BU178: 0.0116 | BV178: 0.1678 | CA178: 34 | CB178: 0.3327 | CC178: 1125.819 | CD178: 0.5794 | CE178: 0.0033 | CF178: 0.0106 | CG178: 0.0356
BP179: 35 | BQ179: 2.112 | BR179: 1217.8605 | BS179: 5.1729 | BT179: 0.0445 | BU179: 0.0114 | BV179: 0.1598 | CA179: 35 | CB179: 0.317 | CC179: 1112.6523 | CD179: 0.5435 | CE179: 0.0033 | CF179: 0.0105 | CG179: 0.0334
BP180: 36 | BQ180: 2.0857 | BR180: 1213.3793 | BS180: 5.0994 | BT180: 0.0437 | BU180: 0.0114 | BV180: 0.1557 | CA180: 36 | CB180: 0.3098 | CC180: 1109.2246 | CD180: 0.5225 | CE180: 0.0032 | CF180: 0.0105 | CG180: 0.0319
BP181: 37 | BQ181: 2.0595 | BR181: 1208.898 | BS181: 5.0259 | BT181: 0.0429 | BU181: 0.0113 | BV181: 0.1516 | CA181: 37 | CB181: 0.3026 | CC181: 1105.7968 | CD181: 0.5015 | CE181: 0.0032 | CF181: 0.0104 | CG181: 0.0305
BP182: 38 | BQ182: 2.0332 | BR182: 1204.4168 | BS182: 4.9524 | BT182: 0.0421 | BU182: 0.0113 | BV182: 0.1475 | CA182: 38 | CB182: 0.2955 | CC182: 1102.369 | CD182: 0.4805 | CE182: 0.0031 | CF182: 0.0104 | CG182: 0.029
BP183: 39 | BQ183: 2.0069 | BR183: 1199.9356 | BS183: 4.8788 | BT183: 0.0413 | BU183: 0.0112 | BV183: 0.1434 | CA183: 39 | CB183: 0.2883 | CC183: 1098.9412 | CD183: 0.4595 | CE183: 0.0031 | CF183: 0.0104 | CG183: 0.0276
BP184: 40 | BQ184: 1.9806 | BR184: 1195.4543 | BS184: 4.8053 | BT184: 0.0405 | BU184: 0.0112 | BV184: 0.1393 | CA184: 40 | CB184: 0.2811 | CC184: 1095.5135 | CD184: 0.4385 | CE184: 0.003 | CF184: 0.0103 | CG184: 0.0262
BP185: 41 | BQ185: 1.9689 | BR185: 1187.5854 | BS185: 4.7071 | BT185: 0.0397 | BU185: 0.0111 | BV185: 0.1362 | CA185: 41 | CB185: 0.2757 | CC185: 1088.6622 | CD185: 0.4217 | CE185: 0.003 | CF185: 0.0103 | CG185: 0.0249
BP186: 42 | BQ186: 1.9571 | BR186: 1179.7165 | BS186: 4.6089 | BT186: 0.0389 | BU186: 0.011 | BV186: 0.133 | CA186: 42 | CB186: 0.2702 | CC186: 1081.8109 | CD186: 0.405 | CE186: 0.0029 | CF186: 0.0102 | CG186: 0.0237
BP187: 43 | BQ187: 1.9453 | BR187: 1171.8476 | BS187: 4.5106 | BT187: 0.0382 | BU187: 0.0109 | BV187: 0.1298 | CA187: 43 | CB187: 0.2648 | CC187: 1074.9596 | CD187: 0.3883 | CE187: 0.0029 | CF187: 0.0101 | CG187: 0.0224
BP188: 44 | BQ188: 1.9336 | BR188: 1163.9787 | BS188: 4.4124 | BT188: 0.0374 | BU188: 0.0108 | BV188: 0.1267 | CA188: 44 | CB188: 0.2593 | CC188: 1068.1083 | CD188: 0.3715 | CE188: 0.0028 | CF188: 0.01 | CG188: 0.0212
BP189: 45 | BQ189: 1.9218 | BR189: 1156.1098 | BS189: 4.3142 | BT189: 0.0367 | BU189: 0.0108 | BV189: 0.1235 | CA189: 45 | CB189: 0.2539 | CC189: 1061.257 | CD189: 0.3548 | CE189: 0.0027 | CF189: 0.01 | CG189: 0.0199
BP190: 46 | BQ190: 1.8909 | BR190: 1152.6296 | BS190: 4.2858 | BT190: 0.0369 | BU190: 0.0107 | BV190: 0.1221 | CA190: 46 | CB190: 0.2475 | CC190: 1059.087 | CD190: 0.3451 | CE190: 0.0027 | CF190: 0.01 | CG190: 0.0193
BP191: 47 | BQ191: 1.86 | BR191: 1149.1493 | BS191: 4.2573 | BT191: 0.0371 | BU191: 0.0107 | BV191: 0.1208 | CA191: 47 | CB191: 0.241 | CC191: 1056.9171 | CD191: 0.3354 | CE191: 0.0027 | CF191: 0.0099 | CG191: 0.0187
BP192: 48 | BQ192: 1.8291 | BR192: 1145.6691 | BS192: 4.2289 | BT192: 0.0373 | BU192: 0.0107 | BV192: 0.1194 | CA192: 48 | CB192: 0.2346 | CC192: 1054.7471 | CD192: 0.3257 | CE192: 0.0027 | CF192: 0.0099 | CG192: 0.0181
BP193: 49 | BQ193: 1.7982 | BR193: 1142.1889 | BS193: 4.2004 | BT193: 0.0375 | BU193: 0.0106 | BV193: 0.118 | CA193: 49 | CB193: 0.2281 | CC193: 1052.5771 | CD193: 0.316 | CE193: 0.0027 | CF193: 0.0099 | CG193: 0.0175
BP194: 50 | BQ194: 1.7673 | BR194: 1138.7086 | BS194: 4.172 | BT194: 0.0377 | BU194: 0.0106 | BV194: 0.1166 | CA194: 50 | CB194: 0.2217 | CC194: 1050.4072 | CD194: 0.3063 | CE194: 0.0027 | CF194: 0.0099 | CG194: 0.0169
BP195: 51 | BQ195: 1.7408 | BR195: 1137.0732 | BS195: 4.2359 | BT195: 0.0389 | BU195: 0.0106 | BV195: 0.1169 | CA195: 51 | CB195: 0.2164 | CC195: 1048.78 | CD195: 0.3035 | CE195: 0.0027 | CF195: 0.0098 | CG195: 0.0165
BP196: 52 | BQ196: 1.7143 | BR196: 1135.4378 | BS196: 4.2999 | BT196: 0.0402 | BU196: 0.0106 | BV196: 0.1172 | CA196: 52 | CB196: 0.2111 | CC196: 1047.1529 | CD196: 0.3006 | CE196: 0.0027 | CF196: 0.0098 | CG196: 0.0161
BP197: 53 | BQ197: 1.6878 | BR197: 1133.8024 | BS197: 4.3638 | BT197: 0.0414 | BU197: 0.0105 | BV197: 0.1175 | CA197: 53 | CB197: 0.2059 | CC197: 1045.5257 | CD197: 0.2977 | CE197: 0.0028 | CF197: 0.0098 | CG197: 0.0157
BP198: 54 | BQ198: 1.6613 | BR198: 1132.167 | BS198: 4.4278 | BT198: 0.0427 | BU198: 0.0105 | BV198: 0.1178 | CA198: 54 | CB198: 0.2006 | CC198: 1043.8985 | CD198: 0.2948 | CE198: 0.0028 | CF198: 0.0098 | CG198: 0.0152
BP199: 55 | BQ199: 1.6348 | BR199: 1130.5315 | BS199: 4.4917 | BT199: 0.044 | BU199: 0.0105 | BV199: 0.1181 | CA199: 55 | CB199: 0.1954 | CC199: 1042.2714 | CD199: 0.2919 | CE199: 0.0028 | CF199: 0.0098 | CG199: 0.0148
BP200: 56 | BQ200: 1.6585 | BR200: 1135.2651 | BS200: 4.5276 | BT200: 0.0451 | BU200: 0.0105 | BV200: 0.1215 | CA200: 56 | CB200: 0.1959 | CC200: 1045.108 | CD200: 0.2934 | CE200: 0.0029 | CF200: 0.0098 | CG200: 0.0148
BP201: 57 | BQ201: 1.6822 | BR201: 1139.9987 | BS201: 4.5636 | BT201: 0.0463 | BU201: 0.0105 | BV201: 0.1249 | CA201: 57 | CB201: 0.1963 | CC201: 1047.9446 | CD201: 0.2949 | CE201: 0.0029 | CF201: 0.0098 | CG201: 0.0149
BP202: 58 | BQ202: 1.7059 | BR202: 1144.7323 | BS202: 4.5995 | BT202: 0.0474 | BU202: 0.0106 | BV202: 0.1283 | CA202: 58 | CB202: 0.1968 | CC202: 1050.7812 | CD202: 0.2965 | CE202: 0.003 | CF202: 0.0098 | CG202: 0.0149
BP203: 59 | BQ203: 1.7297 | BR203: 1149.4659 | BS203: 4.6355 | BT203: 0.0486 | BU203: 0.0106 | BV203: 0.1317 | CA203: 59 | CB203: 0.1973 | CC203: 1053.6178 | CD203: 0.298 | CE203: 0.0031 | CF203: 0.0098 | CG203: 0.0149
... 13 more rows
